Workbook

Sheet Input
K1: Premium Glance: $ | L1: =ROUND('One Insured'!L20,2) -> 557.6 | M1: =ROUND('Two Insured'!M21,2) -> 1181.28
A2: ~ Critical Cash Plan Design Input Page ~ | D2: Agents - Simply make choices in the YELLOW cells. When done, click a button to view quote. | K2: Prems:
A3: Agent Name & Contact Info: | B3: GoldenCare | C3: 800-842-7799
K4: above 5.5K?: | L4: =IF(B6="LA","OK",IF(B6="SD","OK",IF(B6="KS","OK",IF(B6="MN","OK","NO")))) -> NO | M4: =L4 -> NO
B5: 1st Client: | C5: 2nd Client: | K5: ST Avail?: | L5: =VLOOKUP(B6,STATECHART,4,0) -> YES | M5: =L5 -> YES
A6: State: | B6: KY | C6: =IF($B17="Yes",CONCATENATE(K1," ",M1),CONCATENATE(K1," ",L1)) -> Premium Glance: $ 557.6 | D6: =IF(L5="YES","","Sorry, Critical Cash is not currently available in 1st Client's State!") ->  | K6: State?: | L6: =B6 -> KY | M6: =L6 -> KY | P6: BenPerDrop
A7: First Name: | B7: Valued | C7: Spouse | K7: 1st: | L7: Valued | M7: Spouse | P7: =IF(L6="MD","MDBENPER","BENPER") -> BENPER
A8: Last Name: | B8: Client | C8: Prospect | D8: =IF(AND(L12>5500,L4="NO"),"Sorry, 1st Client's Monthly Benefit amount is too high!","") ->  | K8: Last: | L8: Client | M8: Prospect | P8: NH Drop1 | R8: NH Drop2
A9: Age: | B9: 53 | C9: 55 | D9: =IF(AND(M12>5500,M4="NO",B17="Yes"),"Sorry, 2nd Client's Monthly Benefit amount is too high!","") ->  | K9: Age band: | L9: =VLOOKUP(B9,AGERANGE,2,0) -> 50-54 | M9: =VLOOKUP(C9,AGERANGE,2,0) -> 55-59 | P9: =IF(OR($B$6="KS",$B$6="MN",$B$6="SD"),"_5750",(VLOOKUP(B12,DROPID,3,0))) -> _1000 | R9: =IF(OR($B$6="KS",$B$6="MN",$B$6="SD"),"_5750",(VLOOKUP(C12,DROPID,3,0))) -> _1000
A10: Tobacco: | B10: No | C10: No | D10: =IF(AND(B9>69,L15="Yes"),"Sorry, Return of Premium Not Available Past Age 69!",IF(AND(L15="Yes",L6="TX",B9>54),"Sorry, TX Return of Premium Not Available Past Age 54!","")) ->  | K10: Tobac?: | L10: =B10 -> No | M10: =C10 -> No | P10: CUMULATIVE!
A11: Plan Choice: | B11: Plan A - Comprehensive | C11: Plan A - Comprehensive | D11: =IF(AND(B6="MD",L15="Yes"),"Sorry, Return of Premium Not Available In Maryland!",IF(AND(L15="Yes",B6="NJ"),"Sorry, Return of Premium Not Available In New Jersey!",IF(AND(L15="Yes",B6="MN"),"Sorry, Return of Premium Not Available In Minnesota!",""))) ->  | K11: Plan: | L11: =VLOOKUP(B11,PLANCHART,2,0) -> A | M11: =VLOOKUP(C11,PLANCHART,2,0) -> A | N11: =VLOOKUP(B20,PLANCHART,2,0) -> A | P11: #1 | R11: #2
A12: Monthly Base Ben.: | B12: 1000 | C12: 1000 | D12: =IF(AND(B6="HI",(OR(B9<60,B18="Yes"))),"Sorry, Hawaii Only Allows Age 60 & Over!",(IF(AND(B6="HI",B17="Yes",C9<60),"Sorry, Hawaii Only Allows Age 60 & Over!",""))) ->  | K12: Mos. Base Ben: | L12: =VLOOKUP(B12,MOSBENCHART,2,0) -> 1000 | M12: =VLOOKUP(C12,MOSBENCHART,2,0) -> 1000 | N12: 500 | P12: =L12+L13 -> 6000 | R12: =M12+M13 -> 6000
A13: Mos. Facility Ben.: | B13: 5000 | C13: 5000 | D13: =IF(OR(P12>6000,R12>6000),"Sorry, Sum of Monthly 'BASE' + 'NH' May Not Exceed $6000","") ->  | K13: Mos. NH Ben: | L13: =VLOOKUP(B13,NHBENCHART,2,0) -> 5000 | M13: =VLOOKUP(C13,NHBENCHART,2,0) -> 5000 | N13: 500
A14: Benefit Period: | B14: 24 Months | C14: 18 Months | D14: =IF(OR(AND(L13>0,L4="OK"),(AND(B17="Yes",M13>0,M4="OK"))),"Sorry, There is No Addn'l Facility Benefit in KS, MN or SD!","") ->  | K14: Ben Per: | L14: =VLOOKUP(B14,BENPERCHART,2,0) -> 24 | M14: =VLOOKUP(C14,BENPERCHART,2,0) -> 18 | N14: =L21 -> 0
A15: Return of Premium: | B15: No | C15: Would you like to show the premiums for all three Plans (A, B & C)? | D15: =IF(AND(B6="WA",B17="Yes",(OR(NOT(B11=C11),NOT(B12=C12),NOT(B14=C14)))),"In WA, Spousal Plans Must Be Identical, or They Must Apply Seperately!","") ->  | K15: ROP?: | L15: =B15 -> No
A16: Prem. Mode: | B16: Annual | K16: Mode fact: | L16: =IF($B$6="HI",VLOOKUP($B$16,MODECHART,3,0),(IF($B$6="MN",VLOOKUP($B$16,MODECHART,3,0),VLOOKUP(B16,MODECHART,2,0)))) -> 1
A17: Spouse Also?: | B17: No | D17: No | K17: Spouse? | L17: =B17 -> No
A18: Dependent Coverage?: | B18: No | C18: =IF(AND(B6="HI",B18="Yes"),"Sorry, Hawaii Does Not Allow Dependent Coverage!","") ->  | D18: =IF(AND($B$17="No",$L$21>$L$14),"Sorry, the Dependent's Benefit Period Cannot Be Greater Than The 1st Client's!",IF(AND($B$17="Yes",$L$21>$L$14,$L$21>$M$14),"Sorry, the Dependent's Benefit Period Cannot Be Greater Than Both Clients' Benefit Periods!","")) ->  | K18: Depend: | L18: =B18 -> No
A19: No. of Dependents: | B19: 1 | D19: =IF(AND($B$6="WA",$B$18="Yes",$B$17="No",NOT(B20=B11)),"In WA, Dependent's Must Choose The Same Plan Type as One of the Parent's!",IF(AND($B$6="WA",$B18="Yes",$B$17="Yes",(OR(NOT(B20=B11),NOT(B20=C11)))),"In WA, Dependent's Must Choose The Same Plan Type as One of the Parent's!","")) ->  | K19: Depend #: | L19: =IF(L18="Yes",B19,0) -> 0
A20: Depend. Plan : | B20: Plan A - Comprehensive | K20: Dpend Plan: | L20: =VLOOKUP(B20,PLANCHART,2,0) -> A
A21: Depend. Ben. Per.: | B21: 12 Months | K21: Dpend Period: | L21: =IF(L18="Yes",(VLOOKUP(B21,BENPERCHART,2,0)),0) -> 0
K22: Dep Mos: | L22: =IF(L18="Yes",500,0) -> 0
A23: Form: ADH09-14(R2016-07) | K23: St Code: | L23: =VLOOKUP(L6,STATECHART,3,0) -> 65 | M23: =VLOOKUP(M6,STATECHART,3,0) -> 65 | N23: =M23 -> 65 | S23: St Code: | T23: =$L$23 -> 65 | U23: =$M$23 -> 65 | V23: =$N$23 -> 65 | AA23: St Code: | AB23: =$L$23 -> 65 | AC23: =$M$23 -> 65 | AD23: =$N$23 -> 65 | AI23: St Code: | AJ23: =$L$23 -> 65 | AK23: =$M$23 -> 65 | AL23: =$N$23 -> 65
K24: Plan Code: | L24: =IF(L11="D","A",L11) -> A | M24: =IF(M11="D","A",M11) -> A | N24: =L20 -> A | S24: Plan Code: | T24: A | U24: A | V24: A | AA24: Plan Code: | AB24: B | AC24: B | AD24: B | AI24: Plan Code: | AJ24: C | AK24: C | AL24: C
K25: Per Code: | L25: =L14 -> 24 | M25: =M14 -> 18 | N25: =L21 -> 0 | S25: Per Code: | T25: =$L$25 -> 24 | U25: =$M$25 -> 18 | V25: =$N$25 -> 0 | AA25: Per Code: | AB25: =$L$25 -> 24 | AC25: =$M$25 -> 18 | AD25: =$N$25 -> 0 | AI25: Per Code: | AJ25: =$L$25 -> 24 | AK25: =$M$25 -> 18 | AL25: =$N$25 -> 0
K26: Age Code: | L26: =L9 -> 50-54 | M26: =M9 -> 55-59 | N26: D | S26: Age Code: | T26: =$L$26 -> 50-54 | U26: =$M$26 -> 55-59 | V26: =$N$26 -> D | AA26: Age Code: | AB26: =$L$26 -> 50-54 | AC26: =$M$26 -> 55-59 | AD26: =$N$26 -> D | AI26: Age Code: | AJ26: =$L$26 -> 50-54 | AK26: =$M$26 -> 55-59 | AL26: =$N$26 -> D
K27: ConCan: | L27: =CONCATENATE(L24,"-",L25,"-BASE-",L26) -> A-24-BASE-50-54 | M27: =CONCATENATE(M24,"-",M25,"-BASE-",M26) -> A-18-BASE-55-59 | N27: =CONCATENATE(N24,"-",N25,"-BASE-",N26) -> A-0-BASE-D | S27: ConCan: | T27: =CONCATENATE(T24,"-",T25,"-BASE-",T26) -> A-24-BASE-50-54 | U27: =CONCATENATE(U24,"-",U25,"-BASE-",U26) -> A-18-BASE-55-59 | V27: =CONCATENATE(V24,"-",V25,"-BASE-",V26) -> A-0-BASE-D | AA27: ConCan: | AB27: =CONCATENATE(AB24,"-",AB25,"-BASE-",AB26) -> B-24-BASE-50-54 | AC27: =CONCATENATE(AC24,"-",AC25,"-BASE-",AC26) -> B-18-BASE-55-59 | AD27: =CONCATENATE(AD24,"-",AD25,"-BASE-",AD26) -> B-0-BASE-D | AI27: ConCan: | AJ27: =CONCATENATE(AJ24,"-",AJ25,"-BASE-",AJ26) -> C-24-BASE-50-54 | AK27: =CONCATENATE(AK24,"-",AK25,"-BASE-",AK26) -> C-18-BASE-55-59 | AL27: =CONCATENATE(AL24,"-",AL25,"-BASE-",AL26) -> C-0-BASE-D
K29: Plan Annuals-50: | L29: =VLOOKUP(L$27,CASHCHART50,MATCH(L$12,BASE50,0),FALSE) -> 667.92 | M29: =VLOOKUP(M$27,CASHCHART50,MATCH(M$12,BASE50,0),FALSE) -> 710 | N29: =VLOOKUP(N$27,CASHCHART50,MATCH(N$12,BASE50,0),FALSE) ->  | O29: =N29*$L$19 ->  | S29: Plan Annuals-50: | T29: =VLOOKUP(T$27,CASHCHART50,MATCH(L$12,BASE50,0),FALSE) -> 667.92 | U29: =VLOOKUP(U$27,CASHCHART50,MATCH(M$12,BASE50,0),FALSE) -> 710 | V29: =VLOOKUP(V$27,CASHCHART50,MATCH(N$12,BASE50,0),FALSE) ->  | W29: =V29*$L$19 ->  | AA29: Plan Annuals-50: | AB29: =VLOOKUP(AB$27,CASHCHART50,MATCH(L$12,BASE50,0),FALSE) -> 450.12 | AC29: =VLOOKUP(AC$27,CASHCHART50,MATCH(M$12,BASE50,0),FALSE) -> 482.8 | AD29: =VLOOKUP(AD$27,CASHCHART50,MATCH(N$12,BASE50,0),FALSE) ->  | AE29: =AD29*$L$19 ->  | AI29: Plan Annuals-50: | AJ29: =VLOOKUP(AJ$27,CASHCHART50,MATCH(L$12,BASE50,0),FALSE) -> 297.68 | AK29: =VLOOKUP(AK$27,CASHCHART50,MATCH(M$12,BASE50,0),FALSE) -> 335.12 | AL29: =VLOOKUP(AL$27,CASHCHART50,MATCH(N$12,BASE50,0),FALSE) ->  | AM29: =AL29*$L$19 -> 
K30: Plan Annuals-55: | L30: =VLOOKUP(L$27,CASHCHART55,MATCH(L$12,BASE55,0),FALSE) -> 602.6 | M30: =VLOOKUP(M$27,CASHCHART55,MATCH(M$12,BASE55,0),FALSE) -> 641.84 | N30: =VLOOKUP(N$27,CASHCHART55,MATCH(N$12,BASE55,0),FALSE) ->  | S30: Plan Annuals-55: | T30: =VLOOKUP(T$27,CASHCHART55,MATCH(L$12,BASE55,0),FALSE) -> 602.6 | U30: =VLOOKUP(U$27,CASHCHART55,MATCH(M$12,BASE55,0),FALSE) -> 641.84 | V30: =VLOOKUP(V$27,CASHCHART55,MATCH(N$12,BASE55,0),FALSE) ->  | AA30: Plan Annuals-55: | AB30: =VLOOKUP(AB$27,CASHCHART55,MATCH(L$12,BASE55,0),FALSE) -> 406.56 | AC30: =VLOOKUP(AC$27,CASHCHART55,MATCH(M$12,BASE55,0),FALSE) -> 437.36 | AD30: =VLOOKUP(AD$27,CASHCHART55,MATCH(N$12,BASE55,0),FALSE) ->  | AI30: Plan Annuals-55: | AJ30: =VLOOKUP(AJ$27,CASHCHART55,MATCH(L$12,BASE55,0),FALSE) -> 268.64 | AK30: =VLOOKUP(AK$27,CASHCHART55,MATCH(M$12,BASE55,0),FALSE) -> 306.72 | AL30: =VLOOKUP(AL$27,CASHCHART55,MATCH(N$12,BASE55,0),FALSE) -> 
J31: 50 for now | K31: Plan Annuals-60: | L31: =VLOOKUP(L$27,CASHCHART50,MATCH(L$12,BASE50,0),FALSE) -> 667.92 | M31: =VLOOKUP(M$27,CASHCHART50,MATCH(M$12,BASE50,0),FALSE) -> 710 | N31: =VLOOKUP(N$27,CASHCHART50,MATCH(N$12,BASE50,0),FALSE) ->  | S31: Plan Annuals-60: | T31: =VLOOKUP(T$27,CASHCHART50,MATCH(L$12,BASE50,0),FALSE) -> 667.92 | U31: =VLOOKUP(U$27,CASHCHART50,MATCH(M$12,BASE50,0),FALSE) -> 710 | V31: =VLOOKUP(V$27,CASHCHART50,MATCH(N$12,BASE50,0),FALSE) ->  | AA31: Plan Annuals-60: | AB31: =VLOOKUP(AB$27,CASHCHART50,MATCH(L$12,BASE50,0),FALSE) -> 450.12 | AC31: =VLOOKUP(AC$27,CASHCHART50,MATCH(M$12,BASE50,0),FALSE) -> 482.8 | AD31: =VLOOKUP(AD$27,CASHCHART50,MATCH(N$12,BASE50,0),FALSE) ->  | AI31: Plan Annuals-60: | AJ31: =VLOOKUP(AJ$27,CASHCHART50,MATCH(L$12,BASE50,0),FALSE) -> 297.68 | AK31: =VLOOKUP(AK$27,CASHCHART50,MATCH(M$12,BASE50,0),FALSE) -> 335.12 | AL31: =VLOOKUP(AL$27,CASHCHART50,MATCH(N$12,BASE50,0),FALSE) -> 
K32: Plan Annuals-65: | L32: =VLOOKUP(L$27,CASHCHART65,MATCH(L$12,BASE65,0),FALSE) -> 508.2 | M32: =VLOOKUP(M$27,CASHCHART65,MATCH(M$12,BASE65,0),FALSE) -> 545.28 | N32: =VLOOKUP(N$27,CASHCHART65,MATCH(N$12,BASE65,0),FALSE) ->  | S32: Plan Annuals-65: | T32: =VLOOKUP(T$27,CASHCHART65,MATCH(L$12,BASE65,0),FALSE) -> 508.2 | U32: =VLOOKUP(U$27,CASHCHART65,MATCH(M$12,BASE65,0),FALSE) -> 545.28 | V32: =VLOOKUP(V$27,CASHCHART65,MATCH(N$12,BASE65,0),FALSE) ->  | AA32: Plan Annuals-65: | AB32: =VLOOKUP(AB$27,CASHCHART65,MATCH(L$12,BASE65,0),FALSE) -> 341.24 | AC32: =VLOOKUP(AC$27,CASHCHART65,MATCH(M$12,BASE65,0),FALSE) -> 369.2 | AD32: =VLOOKUP(AD$27,CASHCHART65,MATCH(N$12,BASE65,0),FALSE) ->  | AI32: Plan Annuals-65: | AJ32: =VLOOKUP(AJ$27,CASHCHART65,MATCH(L$12,BASE65,0),FALSE) -> 225.08 | AK32: =VLOOKUP(AK$27,CASHCHART65,MATCH(M$12,BASE65,0),FALSE) -> 255.6 | AL32: =VLOOKUP(AL$27,CASHCHART65,MATCH(N$12,BASE65,0),FALSE) -> 
K33: Plan Annuals-SD: | L33: =VLOOKUP(L$27,CASHCHARTSD,MATCH(L$12,BASESD,0),FALSE) -> 551.76 | M33: =VLOOKUP(M$27,CASHCHARTSD,MATCH(M$12,BASESD,0),FALSE) -> 590.72 | N33: =VLOOKUP(N$27,CASHCHARTSD,MATCH(N$12,BASESD,0),FALSE) ->  | S33: Plan Annuals-SD: | T33: =VLOOKUP(T$27,CASHCHARTSD,MATCH(L$12,BASESD,0),FALSE) -> 551.76 | U33: =VLOOKUP(U$27,CASHCHARTSD,MATCH(M$12,BASESD,0),FALSE) -> 590.72 | V33: =VLOOKUP(V$27,CASHCHARTSD,MATCH(N$12,BASESD,0),FALSE) ->  | AA33: Plan Annuals-SD: | AB33: =VLOOKUP(AB$27,CASHCHARTSD,MATCH(L$12,BASESD,0),FALSE) -> 370.28 | AC33: =VLOOKUP(AC$27,CASHCHARTSD,MATCH(M$12,BASESD,0),FALSE) -> 403.28 | AD33: =VLOOKUP(AD$27,CASHCHARTSD,MATCH(N$12,BASESD,0),FALSE) ->  | AI33: Plan Annuals-SD: | AJ33: =VLOOKUP(AJ$27,CASHCHARTSD,MATCH(L$12,BASESD,0),FALSE) -> 246.84 | AK33: =VLOOKUP(AK$27,CASHCHARTSD,MATCH(M$12,BASESD,0),FALSE) -> 278.32 | AL33: =VLOOKUP(AL$27,CASHCHARTSD,MATCH(N$12,BASESD,0),FALSE) -> 
K34: Plan Annuals-IN: | L34: =VLOOKUP(L$27,CASHCHARTIN,MATCH(L$12,BASEIN,0),FALSE) -> 610.12 | M34: =VLOOKUP(M$27,CASHCHARTIN,MATCH(M$12,BASEIN,0),FALSE) -> 649.84 | N34: =VLOOKUP(N$27,CASHCHARTIN,MATCH(N$12,BASEIN,0),FALSE) ->  | S34: Plan Annuals-IN: | T34: =VLOOKUP(T$27,CASHCHARTIN,MATCH(L$12,BASEIN,0),FALSE) -> 610.12 | U34: =VLOOKUP(U$27,CASHCHARTIN,MATCH(M$12,BASEIN,0),FALSE) -> 649.84 | V34: =VLOOKUP(V$27,CASHCHARTIN,MATCH(N$12,BASEIN,0),FALSE) ->  | AA34: Plan Annuals-IN: | AB34: =VLOOKUP(AB$27,CASHCHARTIN,MATCH(L$12,BASEIN,0),FALSE) -> 411.64 | AC34: =VLOOKUP(AC$27,CASHCHARTIN,MATCH(M$12,BASEIN,0),FALSE) -> 442.8 | AD34: =VLOOKUP(AD$27,CASHCHARTIN,MATCH(N$12,BASEIN,0),FALSE) ->  | AI34: Plan Annuals-IN: | AJ34: =VLOOKUP(AJ$27,CASHCHARTIN,MATCH(L$12,BASEIN,0),FALSE) -> 271.96 | AK34: =VLOOKUP(AK$27,CASHCHARTIN,MATCH(M$12,BASEIN,0),FALSE) -> 310.6 | AL34: =VLOOKUP(AL$27,CASHCHARTIN,MATCH(N$12,BASEIN,0),FALSE) -> 
M35: times ROP | N35: new ttl | O35: after $25 fee | P35: modal fact. | U35: times ROP | V35: new ttl | W35: after $25 fee | X35: modal fact. | AC35: times ROP | AD35: new ttl | AE35: after $25 fee | AF35: modal fact. | AK35: times ROP | AL35: new ttl | AM35: after $25 fee | AN35: modal fact.
K36: Plan Annuals-50: | L36: =L29+IF($B$17="Yes",$M29,0)+IF($B$18="Yes",$O29,0) -> 667.92 | M36: =IF($L$15="Yes",(IF($L$6="NJ",0,(IF($L$6="MD",0,(IF($L$6="MN",0,(IF($L$6="TX",VLOOKUP($L$50,TXROPFACTORS,2,0),(VLOOKUP($L$26,ROPFACTORS,2,0)))))))))),1) -> 1 | N36: =L36*M36 -> 667.92 | O36: =N36+25 -> 692.92 | P36: =$L$16 -> 1 | S36: Plan Annuals-50: | T36: =T29+IF($B$17="Yes",$U29,0)+IF($B$18="Yes",$W29,0) -> 667.92 | U36: =IF($L$15="Yes",VLOOKUP($L$26,ROPFACTORS,2,0),1) -> 1 | V36: =T36*U36 -> 667.92 | W36: =V36+25 -> 692.92 | X36: =$L$16 -> 1 | AA36: Plan Annuals-50: | AB36: =AB29+IF($B$17="Yes",$AC29,0)+IF($B$18="Yes",$AE29,0) -> 450.12 | AC36: =IF($L$15="Yes",VLOOKUP($L$26,ROPFACTORS,2,0),1) -> 1 | AD36: =AB36*AC36 -> 450.12 | AE36: =AD36+25 -> 475.12 | AF36: =$L$16 -> 1 | AI36: Plan Annuals-50: | AJ36: =AJ29+IF($B$17="Yes",$AK29,0)+IF($B$18="Yes",$AM29,0) -> 297.68 | AK36: =IF($L$15="Yes",VLOOKUP($L$26,ROPFACTORS,2,0),1) -> 1 | AL36: =AJ36*AK36 -> 297.68 | AM36: =AL36+25 -> 322.68 | AN36: =$L$16 -> 1
K37: Plan Annuals-55: | L37: 602.6 | M37: =IF($L$15="Yes",VLOOKUP($L$26,ROPFACTORS,2,0),1) -> 1 | N37: 602.6 | O37: 627.6 | P37: 1 | S37: Plan Annuals-55: | T37: 602.6 | U37: 1 | V37: 602.6 | W37: 627.6 | X37: 1 | AA37: Plan Annuals-55: | AB37: 406.56 | AC37: 1 | AD37: 406.56 | AE37: 431.56 | AF37: 1 | AI37: Plan Annuals-55: | AJ37: 268.64 | AK37: 1 | AL37: 268.64 | AM37: 293.64 | AN37: 1
K38: Plan Annuals-60: | L38: 667.92 | M38: =IF($L$15="Yes",VLOOKUP($L$26,ROPFACTORS,2,0),1) -> 1 | N38: 667.92 | O38: 692.92 | P38: 1 | S38: Plan Annuals-60: | T38: 667.92 | U38: 1 | V38: 667.92 | W38: 692.92 | X38: 1 | AA38: Plan Annuals-60: | AB38: 450.12 | AC38: 1 | AD38: 450.12 | AE38: 475.12 | AF38: 1 | AI38: Plan Annuals-60: | AJ38: 297.68 | AK38: 1 | AL38: 297.68 | AM38: 322.68 | AN38: 1
K39: Plan Annuals-65: | L39: 508.2 | M39: =IF($L$15="Yes",VLOOKUP($L$26,ROPFACTORS,2,0),1) -> 1 | N39: 508.2 | O39: 533.2 | P39: 1 | S39: Plan Annuals-65: | T39: 508.2 | U39: 1 | V39: 508.2 | W39: 533.2 | X39: 1 | AA39: Plan Annuals-65: | AB39: 341.24 | AC39: 1 | AD39: 341.24 | AE39: 366.24 | AF39: 1 | AI39: Plan Annuals-65: | AJ39: 225.08 | AK39: 1 | AL39: 225.08 | AM39: 250.08 | AN39: 1
K40: Plan Annuals-SD: | L40: 551.76 | M40: =IF($L$15="Yes",VLOOKUP($L$26,ROPFACTORS,2,0),1) -> 1 | N40: 551.76 | O40: 576.76 | P40: 1 | S40: Plan Annuals-SD: | T40: 551.76 | U40: 1 | V40: 551.76 | W40: 576.76 | X40: 1 | AA40: Plan Annuals-SD: | AB40: 370.28 | AC40: 1 | AD40: 370.28 | AE40: 395.28 | AF40: 1 | AI40: Plan Annuals-SD: | AJ40: 246.84 | AK40: 1 | AL40: 246.84 | AM40: 271.84 | AN40: 1
K41: Plan Annuals-IN: | L41: 610.12 | M41: =IF($L$15="Yes",VLOOKUP($L$26,ROPFACTORS,2,0),1) -> 1 | N41: 610.12 | O41: 635.12 | P41: 1 | S41: Plan Annuals-IN: | T41: 610.12 | U41: 1 | V41: 610.12 | W41: 635.12 | X41: 1 | AA41: Plan Annuals-IN: | AB41: 411.64 | AC41: 1 | AD41: 411.64 | AE41: 436.64 | AF41: 1 | AI41: Plan Annuals-IN: | AJ41: 271.96 | AK41: 1 | AL41: 271.96 | AM41: 296.96 | AN41: 1
AB42: modal prem | AJ42: modal prem
I43: these are new: | K43: Plan Annuals-KY: | L43: =VLOOKUP(L$27,CASHCHART65,MATCH(L$12,BASE65,0),FALSE) -> 508.2 | M43: =VLOOKUP(M$27,CASHCHART65,MATCH(M$12,BASE65,0),FALSE) -> 545.28 | N43: =VLOOKUP(N$27,CASHCHART65,MATCH(N$12,BASE65,0),FALSE) ->  | O43: =N43*$L$19 ->  | S43: Plan Annuals-KY: | T43: =VLOOKUP(T$27,CASHCHART65,MATCH(L$12,BASE65,0),FALSE) -> 508.2 | U43: =VLOOKUP(U$27,CASHCHART65,MATCH(M$12,BASE65,0),FALSE) -> 545.28 | V43: =VLOOKUP(V$27,CASHCHART65,MATCH(N$12,BASE65,0),FALSE) ->  | W43: =V43*$L$19 ->  | AA43: Plan Annuals-KY: | AB43: =VLOOKUP(AB$27,CASHCHART65,MATCH(L$12,BASE65,0),FALSE) -> 341.24 | AC43: =VLOOKUP(AC$27,CASHCHART65,MATCH(M$12,BASE65,0),FALSE) -> 369.2 | AD43: =VLOOKUP(AD$27,CASHCHART65,MATCH(N$12,BASE65,0),FALSE) ->  | AE43: =AD43*$L$19 ->  | AI43: Plan Annuals-KY: | AJ43: =VLOOKUP(AJ$27,CASHCHART65,MATCH(L$12,BASE65,0),FALSE) -> 225.08 | AK43: =VLOOKUP(AK$27,CASHCHART65,MATCH(M$12,BASE65,0),FALSE) -> 255.6 | AL43: =VLOOKUP(AL$27,CASHCHART65,MATCH(N$12,BASE65,0),FALSE) ->  | AM43: =AL43*$L$19 -> 
K44: Plan Annuals-KS: | L44: =VLOOKUP(L$27,CASHCHARTKS,MATCH(L$12,BASEKS,0),FALSE) -> 667.92 | M44: 710 | S44: Plan Annuals-KS: | T44: =VLOOKUP(T$27,CASHCHARTKS,MATCH(L$12,BASEKS,0),FALSE) -> 667.92 | U44: 710 | AA44: Plan Annuals-KS: | AB44: =VLOOKUP(AB$27,CASHCHARTKS,MATCH(L$12,BASEKS,0),FALSE) -> 450.12 | AC44: 482.8 | AI44: Plan Annuals-KS: | AJ44: =VLOOKUP(AJ$27,CASHCHARTKS,MATCH(L$12,BASEKS,0),FALSE) -> 297.68 | AK44: 335.12
J45: KS for now | K45: Plan Annuals-LA: | L45: 667.92 | M45: 710 | S45: Plan Annuals-LA: | T45: 667.92 | U45: 710 | AA45: Plan Annuals-LA: | AB45: 450.12 | AC45: 482.8 | AI45: Plan Annuals-LA: | AJ45: 297.68 | AK45: 335.12
K46: Plan Annuals-HI: | L46: =VLOOKUP(L$27,CASHCHARTHI,MATCH(L$12,BASEHI,0),FALSE) -> 99999 | M46: =VLOOKUP(M$27,CASHCHARTHI,MATCH(M$12,BASEHI,0),FALSE) -> 99999 | N46: =VLOOKUP(N$27,CASHCHARTHI,MATCH(N$12,BASEHI,0),FALSE) ->  | S46: Plan Annuals-HI: | T46: =VLOOKUP(T$27,CASHCHARTHI,MATCH(L$12,BASEHI,0),FALSE) -> 99999 | U46: =VLOOKUP(U$27,CASHCHARTHI,MATCH(M$12,BASEHI,0),FALSE) -> 99999 | V46: =VLOOKUP(V$27,CASHCHARTHI,MATCH(N$12,BASEHI,0),FALSE) ->  | AA46: Plan Annuals-HI: | AB46: =VLOOKUP(AB$27,CASHCHARTHI,MATCH(L$12,BASEHI,0),FALSE) -> 99999 | AC46: =VLOOKUP(AC$27,CASHCHARTHI,MATCH(M$12,BASEHI,0),FALSE) -> 99999 | AD46: =VLOOKUP(AD$27,CASHCHARTHI,MATCH(N$12,BASEHI,0),FALSE) ->  | AI46: Plan Annuals-HI: | AJ46: =VLOOKUP(AJ$27,CASHCHARTHI,MATCH(L$12,BASEHI,0),FALSE) -> 99999 | AK46: =VLOOKUP(AK$27,CASHCHARTHI,MATCH(M$12,BASEHI,0),FALSE) -> 99999 | AL46: =VLOOKUP(AL$27,CASHCHARTHI,MATCH(N$12,BASEHI,0),FALSE) -> 
K47: Plan Annuals-MN: | L47: =VLOOKUP(L$27,CASHCHARTMN,MATCH(L$12,BASEMN,0),FALSE) -> 1038.56 | M47: =VLOOKUP(M$27,CASHCHARTMN,MATCH(M$12,BASEMN,0),FALSE) -> 995.04 | N47: =VLOOKUP(N$27,CASHCHARTMN,MATCH(N$12,BASEMN,0),FALSE) ->  | S47: Plan Annuals-MN: | T47: =VLOOKUP(T$27,CASHCHARTMN,MATCH(L$12,BASEMN,0),FALSE) -> 1038.56 | U47: =VLOOKUP(U$27,CASHCHARTMN,MATCH(M$12,BASEMN,0),FALSE) -> 995.04 | V47: =VLOOKUP(V$27,CASHCHARTMN,MATCH(N$12,BASEMN,0),FALSE) ->  | AA47: Plan Annuals-MN: | AB47: =VLOOKUP(AB$27,CASHCHARTMN,MATCH(L$12,BASEMN,0),FALSE) -> 710.36 | AC47: =VLOOKUP(AC$27,CASHCHARTMN,MATCH(M$12,BASEMN,0),FALSE) -> 673.52 | AD47: =VLOOKUP(AD$27,CASHCHARTMN,MATCH(N$12,BASEMN,0),FALSE) ->  | AI47: Plan Annuals-MN: | AJ47: =VLOOKUP(AJ$27,CASHCHARTMN,MATCH(L$12,BASEMN,0),FALSE) -> 494.68 | AK47: =VLOOKUP(AK$27,CASHCHARTMN,MATCH(M$12,BASEMN,0),FALSE) -> 488.24 | AL47: =VLOOKUP(AL$27,CASHCHARTMN,MATCH(N$12,BASEMN,0),FALSE) -> 
K48: Plan Annuals-MD: | L48: =VLOOKUP(L$27,CASHCHARTMD,MATCH(L$12,BASEMD,0),FALSE) -> 99999 | M48: =VLOOKUP(M$27,CASHCHARTMD,MATCH(M$12,BASEMD,0),FALSE) -> 590.72 | N48: =VLOOKUP(N$27,CASHCHARTMD,MATCH(N$12,BASEMD,0),FALSE) ->  | S48: Plan Annuals-MD: | T48: =VLOOKUP(T$27,CASHCHARTMD,MATCH(L$12,BASEMD,0),FALSE) -> 99999 | U48: =VLOOKUP(U$27,CASHCHARTMD,MATCH(M$12,BASEMD,0),FALSE) -> 590.72 | V48: =VLOOKUP(V$27,CASHCHARTMD,MATCH(N$12,BASEMD,0),FALSE) ->  | AA48: Plan Annuals-MD: | AB48: =VLOOKUP(AB$27,CASHCHARTMD,MATCH(L$12,BASEMD,0),FALSE) -> 99999 | AC48: =VLOOKUP(AC$27,CASHCHARTMD,MATCH(M$12,BASEMD,0),FALSE) -> 403.28 | AD48: =VLOOKUP(AD$27,CASHCHARTMD,MATCH(N$12,BASEMD,0),FALSE) ->  | AI48: Plan Annuals-MD: | AJ48: =VLOOKUP(AJ$27,CASHCHARTMD,MATCH(L$12,BASEMD,0),FALSE) -> 99999 | AK48: =VLOOKUP(AK$27,CASHCHARTMD,MATCH(M$12,BASEMD,0),FALSE) -> 278.32 | AL48: =VLOOKUP(AL$27,CASHCHARTMD,MATCH(N$12,BASEMD,0),FALSE) -> 
K49: Plan Annuals-NJ: | L49: =VLOOKUP(L$27,CASHCHARTNJ,MATCH(L$12,BASENJ,0),FALSE) -> 551.76 | M49: =VLOOKUP(M$27,CASHCHARTNJ,MATCH(M$12,BASENJ,0),FALSE) -> 590.72 | N49: =VLOOKUP(N$27,CASHCHARTNJ,MATCH(N$12,BASENJ,0),FALSE) ->  | S49: Plan Annuals-NJ: | T49: =VLOOKUP(T$27,CASHCHARTNJ,MATCH(L$12,BASENJ,0),FALSE) -> 551.76 | U49: =VLOOKUP(U$27,CASHCHARTNJ,MATCH(M$12,BASENJ,0),FALSE) -> 590.72 | V49: =VLOOKUP(V$27,CASHCHARTNJ,MATCH(N$12,BASENJ,0),FALSE) ->  | AA49: Plan Annuals-NJ: | AB49: =VLOOKUP(AB$27,CASHCHARTNJ,MATCH(L$12,BASENJ,0),FALSE) -> 370.28 | AC49: =VLOOKUP(AC$27,CASHCHARTNJ,MATCH(M$12,BASENJ,0),FALSE) -> 403.28 | AD49: =VLOOKUP(AD$27,CASHCHARTNJ,MATCH(N$12,BASENJ,0),FALSE) ->  | AI49: Plan Annuals-NJ: | AJ49: =VLOOKUP(AJ$27,CASHCHARTNJ,MATCH(L$12,BASENJ,0),FALSE) -> 246.84 | AK49: =VLOOKUP(AK$27,CASHCHARTNJ,MATCH(M$12,BASENJ,0),FALSE) -> 278.32 | AL49: =VLOOKUP(AL$27,CASHCHARTNJ,MATCH(N$12,BASENJ,0),FALSE) -> 
K50: TX-ROP-AGE-BAND: | L50: =VLOOKUP(B9,TXAGERANGE,2,0) -> 50-54
I52: these are new: | K52: This is "FIRSTANNPREM" | M52: col counts on this line… | O52: 5 | P52: 6 | Q52: 7 | R52: 8 | S52: 9 | T52: 10 | U52: 11 | V52: 12 | W52: 13 | X52: 14 | Y52: 15 | Z52: 16 | AA52: 17 | AB52: 18 | AC52: 19 | AD52: 20 | AE52: 21 | AF52: 22 | AG52: 23 | AH52: 24 | AI52: 25 | AJ52: 26 | AK52: 27 | AL52: 28 | AM52: 29
K53: 50 | L53: =L29+L86 -> 732.32 | M53: 812.4 | O53: =IF($L$19=0,0,(O29+O86)) -> 0 | T53: =T29+T86 -> 732.32 | U53: =U29+U86 -> 812.4 | V53: =V29+V86 ->  | W53: =W29+W86 ->  | AB53: =AB29+AB86 -> 494.32 | AC53: =AC29+AC86 -> 549.8 | AD53: =AD29+AD86 ->  | AE53: =AE29+AE86 ->  | AJ53: =AJ29+AJ86 -> 352.48 | AK53: =AK29+AK86 -> 423.52 | AL53: =AL29+AL86 ->  | AM53: =AM29+AM86 -> 
K54: 55 | L54: 661 | M54: 734.64 | O54: =IF($L$19=0,0,(O30+O87)) -> 0 | T54: =T30+T87 -> 661 | U54: 734.64 | V54: =V30+V87 ->  | AB54: =AB30+AB87 -> 446.56 | AC54: 497.96 | AD54: =AD30+AD87 ->  | AJ54: =AJ30+AJ87 -> 318.24 | AK54: 386.72 | AL54: =AL30+AL87 -> 
K55: 60 | L55: =L31+L88 -> 732.32 | M55: 812.4 | N55: =N31+N88 ->  | O55: =IF($L$19=0,0,(O31+O88)) -> 0 | T55: 732.32 | U55: 812.4 | V55: =V31+V88 ->  | AB55: 494.32 | AC55: 549.8 | AD55: =AD31+AD88 ->  | AJ55: 352.48 | AK55: 423.52 | AL55: =AL31+AL88 -> 
K56: 65 | L56: 557.6 | M56: 623.68 | N56: =N32+N89 ->  | O56: 0 | T56: 557.6 | U56: 623.68 | V56: =V32+V89 ->  | AB56: 374.84 | AC56: 420 | AD56: =AD32+AD89 ->  | AJ56: 266.88 | AK56: 323 | AL56: =AL32+AL89 -> 
K57: SD | L57: 551.76 | M57: 590.72 | N57: =N33+N90 ->  | O57: 0 | T57: 551.76 | U57: 590.72 | V57: =V33+V90 ->  | AB57: 370.28 | AC57: 403.28 | AD57: =AD33+AD90 ->  | AJ57: 246.84 | AK57: 278.32 | AL57: =AL33+AL90 -> 
K58: IN | L58: 669.32 | M58: 752.24 | N58: =N34+N91 ->  | O58: 0 | T58: 669.32 | U58: 752.24 | V58: =V34+V91 ->  | AB58: 452.24 | AC58: 504.2 | AD58: =AD34+AD91 ->  | AJ58: 322.16 | AK58: 391.6 | AL58: =AL34+AL91 -> 
K59: KY | L59: =L43+L92 -> 557.6 | M59: =M43+M92 -> 623.68 | N59: =N43+N92 ->  | O59: =IF($L$19=0,0,(O43+O92)) -> 0 | T59: =T43+T92 -> 557.6 | U59: =U43+U92 -> 623.68 | V59: =V43+V92 ->  | W59: =W43+W92 ->  | AB59: =AB43+AB92 -> 374.84 | AC59: =AC43+AC92 -> 420 | AD59: =AD43+AD92 ->  | AE59: =AE43+AE92 ->  | AJ59: =AJ43+AJ92 -> 266.88 | AK59: =AK43+AK92 -> 323 | AL59: =AL43+AL92 ->  | AM59: =AM43+AM92 -> 
K60: KS | L60: =L44+L93 -> 667.92 | M60: 710 | N60: =N44+N93 ->  | O60: =IF($L$19=0,0,(O44+O93)) -> 0 | T60: =T44+T93 -> 667.92 | U60: 710 | V60: =V44+V93 ->  | AB60: =AB44+AB93 -> 450.12 | AC60: 482.8 | AD60: =AD44+AD93 ->  | AJ60: =AJ44+AJ93 -> 297.68 | AK60: 335.12 | AL60: =AL44+AL93 -> 
K61: LA | L61: 667.92 | M61: 710 | N61: =N45+N94 ->  | O61: 0 | T61: 667.92 | U61: 710 | V61: =V45+V94 ->  | AB61: 450.12 | AC61: 482.8 | AD61: =AD45+AD94 ->  | AJ61: 297.68 | AK61: 335.12 | AL61: =AL45+AL94 -> 
K62: HI | L62: 199998 | M62: 199998 | N62: =N46+N95 ->  | O62: 0 | T62: 199998 | U62: 199998 | V62: =V46+V95 ->  | AB62: 199998 | AC62: 199998 | AD62: =AD46+AD95 ->  | AJ62: 199998 | AK62: 199998 | AL62: =AL46+AL95 -> 
K63: MN | L63: 1038.56 | M63: 995.04 | N63: =N47+N96 ->  | O63: 0 | T63: 1038.56 | U63: 995.04 | V63: =V47+V96 ->  | AB63: 710.36 | AC63: 673.52 | AD63: =AD47+AD96 ->  | AJ63: 494.68 | AK63: 488.24 | AL63: =AL47+AL96 -> 
K64: MD | L64: 199998 | M64: 675.72 | N64: =N48+N97 ->  | O64: 0 | T64: 199998 | U64: 675.72 | V64: =V48+V97 ->  | AB64: 199998 | AC64: 458.48 | AD64: =AD48+AD97 ->  | AJ64: 199998 | AK64: 351.72 | AL64: =AL48+AL97 -> 
K65: NJ | L65: 605.16 | M65: 675.72 | N65: =N49+N98 ->  | O65: 0 | T65: 605.16 | U65: 675.72 | V65: =V49+V98 ->  | AB65: 406.88 | AC65: 458.48 | AD65: =AD49+AD98 ->  | AJ65: 292.24 | AK65: 351.72 | AL65: =AL49+AL98 -> 
M74: ACTUAL NH | U74: PLAN A NH | AC74: PLAN B NH | AK74: PLAN C NH
K75: FOR NH: | S75: FOR NH: | T75: =$L$13 -> 5000 | U75: =$M$13 -> 5000 | V75: =$N$13 -> 500 | AA75: FOR NH: | AB75: =$L$13 -> 5000 | AC75: =$M$13 -> 5000 | AD75: =$N$13 -> 500 | AI75: FOR NH: | AJ75: =$L$13 -> 5000 | AK75: =$M$13 -> 5000 | AL75: =$N$13 -> 500
K76: St Code: | L76: =$L$23 -> 65 | M76: =$L$23 -> 65 | N76: =$L$23 -> 65 | O76: #Dep's | S76: St Code: | T76: =$L$23 -> 65 | U76: =$L$23 -> 65 | V76: =$L$23 -> 65 | W76: #Dep's | AA76: St Code: | AB76: =$L$23 -> 65 | AC76: =$L$23 -> 65 | AD76: =$L$23 -> 65 | AE76: #Dep's | AI76: St Code: | AJ76: =$L$23 -> 65 | AK76: =$L$23 -> 65 | AL76: =$L$23 -> 65 | AM76: #Dep's
K77: Plan Code: | L77: =L$24 -> A | M77: =M$24 -> A | N77: =N$24 -> A | S77: Plan Code: | T77: A | U77: A | V77: A | AA77: Plan Code: | AB77: B | AC77: B | AD77: B | AI77: Plan Code: | AJ77: C | AK77: C | AL77: C
K78: Per Code: | L78: =L$25 -> 24 | M78: =M$25 -> 18 | N78: =N$25 -> 0 | O78: =$L$19 -> 0 | S78: Per Code: | T78: =$L$78 -> 24 | U78: =$M$78 -> 18 | V78: =$N$78 -> 0 | W78: =$O$78 -> 0 | AA78: Per Code: | AB78: =$L$78 -> 24 | AC78: =$M$78 -> 18 | AD78: =$N$78 -> 0 | AE78: =$O$78 -> 0 | AI78: Per Code: | AJ78: =$L$78 -> 24 | AK78: =$M$78 -> 18 | AL78: =$N$78 -> 0 | AM78: =$O$78 -> 0
K79: Age Code: | L79: =L$26 -> 50-54 | M79: =M$26 -> 55-59 | N79: =N$26 -> D | S79: Age Code: | T79: =$L$79 -> 50-54 | U79: =$M$79 -> 55-59 | V79: =$N$79 -> D | AA79: Age Code: | AB79: =$L$79 -> 50-54 | AC79: =$M$79 -> 55-59 | AD79: =$N$79 -> D | AI79: Age Code: | AJ79: =$L$79 -> 50-54 | AK79: =$M$79 -> 55-59 | AL79: =$N$79 -> D
K80: ConCan: | L80: =CONCATENATE(L77,"-",L78,"-NH-",L79) -> A-24-NH-50-54 | M80: =CONCATENATE(M77,"-",M78,"-NH-",M79) -> A-18-NH-55-59 | N80: =CONCATENATE(N77,"-",N78,"-NH-",N79) -> A-0-NH-D | S80: ConCan: | T80: =CONCATENATE(T77,"-",T78,"-NH-",T79) -> A-24-NH-50-54 | U80: =CONCATENATE(U77,"-",U78,"-NH-",U79) -> A-18-NH-55-59 | V80: =CONCATENATE(V77,"-",V78,"-NH-",V79) -> A-0-NH-D | AA80: ConCan: | AB80: =CONCATENATE(AB77,"-",AB78,"-NH-",AB79) -> B-24-NH-50-54 | AC80: =CONCATENATE(AC77,"-",AC78,"-NH-",AC79) -> B-18-NH-55-59 | AD80: =CONCATENATE(AD77,"-",AD78,"-NH-",AD79) -> B-0-NH-D | AI80: ConCan: | AJ80: =CONCATENATE(AJ77,"-",AJ78,"-NH-",AJ79) -> C-24-NH-50-54 | AK80: =CONCATENATE(AK77,"-",AK78,"-NH-",AK79) -> C-18-NH-55-59 | AL80: =CONCATENATE(AL77,"-",AL78,"-NH-",AL79) -> C-0-NH-D
M84: ACTUAL NH | U84: PLAN A NH
L85: Insure1 | M85: Insure2 | N85: Per Depend | O85: DependTTL | T85: Insure1 | U85: Insure2 | V85: Per Depend | W85: DependTTL | AB85: Insure1 | AC85: Insure2 | AD85: Per Depend | AE85: DependTTL | AJ85: Insure1 | AK85: Insure2 | AL85: Per Depend | AM85: DependTTL
K86: NH Annuals-50: | L86: =VLOOKUP(L$80,CASHCHART50,MATCH(L$13,BASE50,0),FALSE) -> 64.4 | M86: =VLOOKUP(M$80,CASHCHART50,MATCH(M$13,BASE50,0),FALSE) -> 102.4 | N86: =VLOOKUP(N$80,CASHCHART50,MATCH(N$13,BASE50,0),FALSE) ->  | O86: =N86*$L$19 ->  | S86: NH Annuals-50: | T86: =VLOOKUP(T$80,CASHCHART50,MATCH(L$13,BASE50,0),FALSE) -> 64.4 | U86: =VLOOKUP(U$80,CASHCHART50,MATCH(M$13,BASE50,0),FALSE) -> 102.4 | V86: =VLOOKUP(V$80,CASHCHART50,MATCH(N$13,BASE50,0),FALSE) ->  | W86: =V86*$W$78 ->  | AA86: NH Annuals-50: | AB86: =VLOOKUP(AB$80,CASHCHART50,MATCH(L$13,BASE50,0),FALSE) -> 44.2 | AC86: =VLOOKUP(AC$80,CASHCHART50,MATCH(M$13,BASE50,0),FALSE) -> 67 | AD86: =VLOOKUP(AD$80,CASHCHART50,MATCH(N$13,BASE50,0),FALSE) ->  | AE86: =AD86*$AE$78 ->  | AI86: NH Annuals-50: | AJ86: =VLOOKUP(AJ$80,CASHCHART50,MATCH(L$13,BASE50,0),FALSE) -> 54.8 | AK86: =VLOOKUP(AK$80,CASHCHART50,MATCH(M$13,BASE50,0),FALSE) -> 88.4 | AL86: =VLOOKUP(AL$80,CASHCHART50,MATCH(N$13,BASE50,0),FALSE) ->  | AM86: =AL86*$AM$78 -> 
K87: NH Annuals-55: | L87: =VLOOKUP(L$80,CASHCHART55,MATCH(L$13,BASE55,0),FALSE) -> 58.4 | M87: =VLOOKUP(M$80,CASHCHART55,MATCH(M$13,BASE55,0),FALSE) -> 92.8 | N87: =VLOOKUP(N$80,CASHCHART55,MATCH(N$13,BASE55,0),FALSE) ->  | O87: =N87*$L$19 ->  | S87: NH Annuals-55: | T87: =VLOOKUP(T$80,CASHCHART55,MATCH(L$13,BASE55,0),FALSE) -> 58.4 | U87: =VLOOKUP(U$80,CASHCHART55,MATCH(M$13,BASE55,0),FALSE) -> 92.8 | V87: =VLOOKUP(V$80,CASHCHART55,MATCH(N$13,BASE55,0),FALSE) ->  | W87: =V87*$W$78 ->  | AA87: NH Annuals-55: | AB87: =VLOOKUP(AB$80,CASHCHART55,MATCH(L$13,BASE55,0),FALSE) -> 40 | AC87: =VLOOKUP(AC$80,CASHCHART55,MATCH(M$13,BASE55,0),FALSE) -> 60.6 | AD87: =VLOOKUP(AD$80,CASHCHART55,MATCH(N$13,BASE55,0),FALSE) ->  | AE87: =AD87*$AE$78 ->  | AI87: NH Annuals-55: | AJ87: =VLOOKUP(AJ$80,CASHCHART55,MATCH(L$13,BASE55,0),FALSE) -> 49.6 | AK87: =VLOOKUP(AK$80,CASHCHART55,MATCH(M$13,BASE55,0),FALSE) -> 80 | AL87: =VLOOKUP(AL$80,CASHCHART55,MATCH(N$13,BASE55,0),FALSE) ->  | AM87: =AL87*$AM$78 -> 
J88: 50 for now | K88: NH Annuals-60: | L88: =VLOOKUP(L$80,CASHCHART50,MATCH(L$13,BASE50,0),FALSE) -> 64.4 | M88: =VLOOKUP(M$80,CASHCHART50,MATCH(M$13,BASE50,0),FALSE) -> 102.4 | N88: =VLOOKUP(N$80,CASHCHART50,MATCH(N$13,BASE50,0),FALSE) ->  | S88: NH Annuals-60: | T88: =VLOOKUP(T$80,CASHCHART50,MATCH(L$13,BASE50,0),FALSE) -> 64.4 | U88: =VLOOKUP(U$80,CASHCHART50,MATCH(M$13,BASE50,0),FALSE) -> 102.4 | V88: =VLOOKUP(V$80,CASHCHART50,MATCH(N$13,BASE50,0),FALSE) ->  | AA88: NH Annuals-60: | AB88: =VLOOKUP(AB$80,CASHCHART50,MATCH(L$13,BASE50,0),FALSE) -> 44.2 | AC88: =VLOOKUP(AC$80,CASHCHART50,MATCH(M$13,BASE50,0),FALSE) -> 67 | AD88: =VLOOKUP(AD$80,CASHCHART50,MATCH(N$13,BASE50,0),FALSE) ->  | AI88: NH Annuals-60: | AJ88: =VLOOKUP(AJ$80,CASHCHART50,MATCH(L$13,BASE50,0),FALSE) -> 54.8 | AK88: =VLOOKUP(AK$80,CASHCHART50,MATCH(M$13,BASE50,0),FALSE) -> 88.4 | AL88: =VLOOKUP(AL$80,CASHCHART50,MATCH(N$13,BASE50,0),FALSE) -> 
K89: NH Annuals-65: | L89: =VLOOKUP(L$80,CASHCHART65,MATCH(L$13,BASE65,0),FALSE) -> 49.4 | M89: =VLOOKUP(M$80,CASHCHART65,MATCH(M$13,BASE65,0),FALSE) -> 78.4 | N89: =VLOOKUP(N$80,CASHCHART65,MATCH(N$13,BASE65,0),FALSE) ->  | S89: NH Annuals-65: | T89: =VLOOKUP(T$80,CASHCHART65,MATCH(L$13,BASE65,0),FALSE) -> 49.4 | U89: =VLOOKUP(U$80,CASHCHART65,MATCH(M$13,BASE65,0),FALSE) -> 78.4 | V89: =VLOOKUP(V$80,CASHCHART65,MATCH(N$13,BASE65,0),FALSE) ->  | AA89: NH Annuals-65: | AB89: =VLOOKUP(AB$80,CASHCHART65,MATCH(L$13,BASE65,0),FALSE) -> 33.6 | AC89: =VLOOKUP(AC$80,CASHCHART65,MATCH(M$13,BASE65,0),FALSE) -> 50.8 | AD89: =VLOOKUP(AD$80,CASHCHART65,MATCH(N$13,BASE65,0),FALSE) ->  | AI89: NH Annuals-65: | AJ89: =VLOOKUP(AJ$80,CASHCHART65,MATCH(L$13,BASE65,0),FALSE) -> 41.8 | AK89: =VLOOKUP(AK$80,CASHCHART65,MATCH(M$13,BASE65,0),FALSE) -> 67.4 | AL89: =VLOOKUP(AL$80,CASHCHART65,MATCH(N$13,BASE65,0),FALSE) -> 
K90: NH Annuals-SD: | L90: 0 | M90: 0 | N90: 0 | O90: 0 | S90: NH Annuals-SD: | T90: 0 | U90: 0 | V90: 0 | W90: 0 | AA90: NH Annuals-SD: | AB90: 0 | AC90: 0 | AD90: 0 | AE90: 0 | AI90: NH Annuals-SD: | AJ90: 0 | AK90: 0 | AL90: 0 | AM90: 0
K91: NH Annuals-IN: | L91: =VLOOKUP(L$80,CASHCHARTIN,MATCH(L$13,BASEIN,0),FALSE) -> 59.2 | M91: =VLOOKUP(M$80,CASHCHARTIN,MATCH(M$13,BASEIN,0),FALSE) -> 102.4 | N91: =VLOOKUP(N$80,CASHCHARTIN,MATCH(N$13,BASEIN,0),FALSE) ->  | S91: NH Annuals-IN: | T91: =VLOOKUP(T$80,CASHCHARTIN,MATCH(L$13,BASEIN,0),FALSE) -> 59.2 | U91: =VLOOKUP(U$80,CASHCHARTIN,MATCH(M$13,BASEIN,0),FALSE) -> 102.4 | V91: =VLOOKUP(V$80,CASHCHARTIN,MATCH(N$13,BASEIN,0),FALSE) ->  | AA91: NH Annuals-IN: | AB91: =VLOOKUP(AB$80,CASHCHARTIN,MATCH(L$13,BASEIN,0),FALSE) -> 40.6 | AC91: =VLOOKUP(AC$80,CASHCHARTIN,MATCH(M$13,BASEIN,0),FALSE) -> 61.4 | AD91: =VLOOKUP(AD$80,CASHCHARTIN,MATCH(N$13,BASEIN,0),FALSE) ->  | AI91: NH Annuals-IN: | AJ91: =VLOOKUP(AJ$80,CASHCHARTIN,MATCH(L$13,BASEIN,0),FALSE) -> 50.2 | AK91: =VLOOKUP(AK$80,CASHCHARTIN,MATCH(M$13,BASEIN,0),FALSE) -> 81 | AL91: =VLOOKUP(AL$80,CASHCHARTIN,MATCH(N$13,BASEIN,0),FALSE) -> 
K92: NH Annuals-KY: | L92: =VLOOKUP(L$80,CASHCHART65,MATCH(L$13,BASE65,0),FALSE) -> 49.4 | M92: =VLOOKUP(M$80,CASHCHART65,MATCH(M$13,BASE65,0),FALSE) -> 78.4 | N92: =VLOOKUP(N$80,CASHCHART65,MATCH(N$13,BASE65,0),FALSE) ->  | S92: NH Annuals-KY: | T92: =VLOOKUP(T$80,CASHCHART65,MATCH(L$13,BASE65,0),FALSE) -> 49.4 | U92: =VLOOKUP(U$80,CASHCHART65,MATCH(M$13,BASE65,0),FALSE) -> 78.4 | V92: =VLOOKUP(V$80,CASHCHART65,MATCH(N$13,BASE65,0),FALSE) ->  | AA92: NH Annuals-KY: | AB92: =VLOOKUP(AB$80,CASHCHART65,MATCH(L$13,BASE65,0),FALSE) -> 33.6 | AC92: =VLOOKUP(AC$80,CASHCHART65,MATCH(M$13,BASE65,0),FALSE) -> 50.8 | AD92: =VLOOKUP(AD$80,CASHCHART65,MATCH(N$13,BASE65,0),FALSE) ->  | AI92: NH Annuals-KY: | AJ92: =VLOOKUP(AJ$80,CASHCHART65,MATCH(L$13,BASE65,0),FALSE) -> 41.8 | AK92: =VLOOKUP(AK$80,CASHCHART65,MATCH(M$13,BASE65,0),FALSE) -> 67.4 | AL92: =VLOOKUP(AL$80,CASHCHART65,MATCH(N$13,BASE65,0),FALSE) -> 
K93: NH Annuals-KS: | L93: 0 | M93: 0 | N93: 0 | O93: 0 | S93: NH Annuals-KS: | T93: 0 | U93: 0 | V93: 0 | W93: 0 | AA93: NH Annuals-KS: | AB93: 0 | AC93: 0 | AD93: 0 | AE93: 0 | AI93: NH Annuals-KS: | AJ93: 0 | AK93: 0 | AL93: 0 | AM93: 0
J94: KS for now | K94: NH Annuals-LA: | L94: 0 | M94: 0 | N94: 0 | O94: 0 | S94: NH Annuals-LA: | T94: 0 | U94: 0 | V94: 0 | W94: 0 | AA94: NH Annuals-LA: | AB94: 0 | AC94: 0 | AD94: 0 | AE94: 0 | AI94: NH Annuals-LA: | AJ94: 0 | AK94: 0 | AL94: 0 | AM94: 0
K95: NH Annuals-HI: | L95: =VLOOKUP(L$80,CASHCHARTHI,MATCH(L$13,BASEHI,0),FALSE) -> 99999 | M95: =VLOOKUP(M$80,CASHCHARTHI,MATCH(M$13,BASEHI,0),FALSE) -> 99999 | N95: =VLOOKUP(N$80,CASHCHARTHI,MATCH(N$13,BASEHI,0),FALSE) ->  | S95: NH Annuals-HI: | T95: =VLOOKUP(T$80,CASHCHARTHI,MATCH(L$13,BASEHI,0),FALSE) -> 99999 | U95: =VLOOKUP(U$80,CASHCHARTHI,MATCH(M$13,BASEHI,0),FALSE) -> 99999 | V95: =VLOOKUP(V$80,CASHCHARTHI,MATCH(N$13,BASEHI,0),FALSE) ->  | AA95: NH Annuals-HI: | AB95: =VLOOKUP(AB$80,CASHCHARTHI,MATCH(L$13,BASEHI,0),FALSE) -> 99999 | AC95: =VLOOKUP(AC$80,CASHCHARTHI,MATCH(M$13,BASEHI,0),FALSE) -> 99999 | AD95: =VLOOKUP(AD$80,CASHCHARTHI,MATCH(N$13,BASEHI,0),FALSE) ->  | AI95: NH Annuals-HI: | AJ95: =VLOOKUP(AJ$80,CASHCHARTHI,MATCH(L$13,BASEHI,0),FALSE) -> 99999 | AK95: =VLOOKUP(AK$80,CASHCHARTHI,MATCH(M$13,BASEHI,0),FALSE) -> 99999 | AL95: =VLOOKUP(AL$80,CASHCHARTHI,MATCH(N$13,BASEHI,0),FALSE) -> 
K96: NH Annuals-MN: | L96: 0 | M96: 0 | N96: 0 | O96: 0 | S96: NH Annuals-MN: | T96: 0 | U96: 0 | V96: 0 | W96: 0 | AA96: NH Annuals-MN: | AB96: 0 | AC96: 0 | AD96: 0 | AE96: 0 | AI96: NH Annuals-MN: | AJ96: 0 | AK96: 0 | AL96: 0 | AM96: 0
K97: NH Annuals-MD: | L97: =VLOOKUP(L$80,CASHCHARTMD,MATCH(L$13,BASEMD,0),FALSE) -> 99999 | M97: =VLOOKUP(M$80,CASHCHARTMD,MATCH(M$13,BASEMD,0),FALSE) -> 85 | N97: =VLOOKUP(N$80,CASHCHARTMD,MATCH(N$13,BASEMD,0),FALSE) ->  | S97: NH Annuals-MD: | T97: =VLOOKUP(T$80,CASHCHARTMD,MATCH(L$13,BASEMD,0),FALSE) -> 99999 | U97: =VLOOKUP(U$80,CASHCHARTMD,MATCH(M$13,BASEMD,0),FALSE) -> 85 | V97: =VLOOKUP(V$80,CASHCHARTMD,MATCH(N$13,BASEMD,0),FALSE) ->  | AA97: NH Annuals-MD: | AB97: =VLOOKUP(AB$80,CASHCHARTMD,MATCH(L$13,BASEMD,0),FALSE) -> 99999 | AC97: =VLOOKUP(AC$80,CASHCHARTMD,MATCH(M$13,BASEMD,0),FALSE) -> 55.2 | AD97: =VLOOKUP(AD$80,CASHCHARTMD,MATCH(N$13,BASEMD,0),FALSE) ->  | AI97: NH Annuals-MD: | AJ97: =VLOOKUP(AJ$80,CASHCHARTMD,MATCH(L$13,BASEMD,0),FALSE) -> 99999 | AK97: =VLOOKUP(AK$80,CASHCHARTMD,MATCH(M$13,BASEMD,0),FALSE) -> 73.4 | AL97: =VLOOKUP(AL$80,CASHCHARTMD,MATCH(N$13,BASEMD,0),FALSE) -> 
K98: NH Annuals-NJ: | L98: =VLOOKUP(L$80,CASHCHARTNJ,MATCH(L$13,BASENJ,0),FALSE) -> 53.4 | M98: =VLOOKUP(M$80,CASHCHARTNJ,MATCH(M$13,BASENJ,0),FALSE) -> 85 | N98: =VLOOKUP(N$80,CASHCHARTNJ,MATCH(N$13,BASENJ,0),FALSE) ->  | S98: NH Annuals-NJ: | T98: =VLOOKUP(T$80,CASHCHARTNJ,MATCH(L$13,BASENJ,0),FALSE) -> 53.4 | U98: =VLOOKUP(U$80,CASHCHARTNJ,MATCH(M$13,BASENJ,0),FALSE) -> 85 | V98: =VLOOKUP(V$80,CASHCHARTNJ,MATCH(N$13,BASENJ,0),FALSE) ->  | AA98: NH Annuals-NJ: | AB98: =VLOOKUP(AB$80,CASHCHARTNJ,MATCH(L$13,BASENJ,0),FALSE) -> 36.6 | AC98: =VLOOKUP(AC$80,CASHCHARTNJ,MATCH(M$13,BASENJ,0),FALSE) -> 55.2 | AD98: =VLOOKUP(AD$80,CASHCHARTNJ,MATCH(N$13,BASENJ,0),FALSE) ->  | AI98: NH Annuals-NJ: | AJ98: =VLOOKUP(AJ$80,CASHCHARTNJ,MATCH(L$13,BASENJ,0),FALSE) -> 45.4 | AK98: =VLOOKUP(AK$80,CASHCHARTNJ,MATCH(M$13,BASENJ,0),FALSE) -> 73.4 | AL98: =VLOOKUP(AL$80,CASHCHARTNJ,MATCH(N$13,BASENJ,0),FALSE) -> 

Sheet One Insured
B1: GTL Critical CashTM Protection Overview | N1: Period | O1: =Input!L14 -> 24 | Q1: Agent: | R1: =Input!B3 -> GoldenCare
B2: Underwritten by Guarantee Trust Life Insurance Company | N2: HHC | O2: =Input!L12 -> 1000 | Q2: Contact: | R2: =Input!C3 -> 800-842-7799
B3: Prepared For: | C3: =CONCATENATE(O7," ",O8) -> Valued Client | D3: Age: | E3: =O9 -> 53 | F3: =IF(O12="Yes","(Tobacco)","") ->  | H3: Prepared By: | I3: =$R$1 -> GoldenCare | N3: ALF | O3: ='Two Insured'!P3 -> 2500
B4: Prem. Mode: | C4: =O11 -> Annual | D4: ST: | E4: =O10 -> KY | H4: Contact Info: | I4: =$R$2 -> 800-842-7799 | N4: NH | O4: ='Two Insured'!P4 -> 5000
N5: POOL | O5: ='Two Insured'!P5 -> 432000
N6: ST Code: | O6: =Input!L23 -> 65 | Q6: =O6 -> 65
N7: First | O7: =Input!B7 -> Valued
B8: Plan: | C8: =CONCATENATE(O13," - ",O1," Months") -> Plan A - Comprehensive - 24 Months | L8: Premium Breakdown | N8: Last | O8: =Input!B8 -> Client
N9: Age | O9: =Input!B9 -> 53
B10: Benefits for: | C10: =IF(OR($O$14="A",$O$14="B"),"Cancer","Heart Attack") -> Cancer | D10: =IF(OR($O$14="A",$O$14="B"),$O$1,3) -> 24 | E10: Months | K10: =CONCATENATE($O$7," - ",$O$11," Premium:") -> Valued - Annual Premium: | L10: =O18 -> 557.6 | N10: State | O10: =Input!B6 -> KY
C11: =IF(OR($O$14="A",$O$14="B"),"Cancer-In-Situ","Coronary Artery Bypass") -> Cancer-In-Situ | D11: =IF(OR($O$14="A",$O$14="B"),3,2) -> 3 | E11: Months | K11: =CONCATENATE("(",$C$8,")") -> (Plan A - Comprehensive - 24 Months) | N11: Mode: | O11: =Input!B16 -> Annual
C12: =IF($O$14="A","Heart Attack",IF($O$14="B","Alzheimer's Disease","Stroke")) -> Heart Attack | D12: =IF($O$14="A",3,IF($O$14="B",$O$1,$O$1)) -> 3 | E12: Months | N12: Tobacco: | O12: =Input!B10 -> No
C13: =IF($O$14="A","Coronary Artery Bypass",IF($O$14="B","Kidney Failure","Alzheimer's Disease")) -> Coronary Artery Bypass | D13: =IF($O$14="A",2,IF($O$14="B",$O$1,$O$1)) -> 2 | E13: Months | K13: =IF(Input!B18="Yes","$500/Mos. Dependent Care:",IF(O20=0,"","Return of Premium:")) ->  | L13: =IF(DEPENDENT="Yes",Q18,IF($O$20=0,"",(L10*$O$20))) ->  | N13: Plan: | O13: =Input!B11 -> Plan A - Comprehensive
C14: =IF($O$14="A","Stroke",IF($O$14="B","Major Organ Transplant","Kidney Failure")) -> Stroke | D14: =IF($O$14="A",$O$1,IF($O$14="B",$O$1,$O$1)) -> 24 | E14: Months | K14: =IF(Input!B18="Yes",CONCATENATE("(",$O$22," - ",$O$23," - ",$O$24,")"),"") ->  | N14: Plan Code: | O14: =Input!L11 -> A
C15: =IF($O$14="A","Alzheimer's Disease",IF($O$14="B","Paralysis","Major Organ Transplant")) -> Alzheimer's Disease | D15: =IF($O$14="A",$O$1,IF($O$14="B",$O$1,$O$1)) -> 24 | E15: Months | N15: Mode Fact. | O15: =Input!L16 -> 1
C16: =IF($O$14="A","Kidney Failure",IF($O$14="B","Coma","Paralysis")) -> Kidney Failure | D16: =IF($O$14="A",$O$1,IF($O$14="B",3,$O$1)) -> 24 | E16: Months | G16: YOUR MAXIMUM | K16: =IF($O$20=0,"",IF(Input!B18="Yes","Return of Premium:","")) ->  | L16: =IF(DEPENDENT="Yes",((L10+L13)*$O$20),"") ->  | N16: Ann. prem: | O16: =VLOOKUP($O$6,FIRSTANNPREM,2,0) -> 557.6 | Q16: =VLOOKUP($O$6,FIRSTANNPREM,5,0) -> 0
C17: =IF($O$14="A","Major Organ Transplant",IF($O$14="B","","Coma")) -> Major Organ Transplant | D17: =IF($O$14="A",$O$1,IF($O$14="B","",3)) -> 24 | E17: =IF($O$14="A","Months",IF($O$14="B","","Months")) -> Months | G17: LIFETIME | N17: Tob. Ann: | O17: =IF($O$12="Yes",($O$16*1.5),$O$16) -> 557.6
C18: =IF($O$14="A","Paralysis",IF($O$14="B","","")) -> Paralysis | D18: =IF($O$14="A",$O$1,IF($O$14="B","","")) -> 24 | E18: =IF($O$14="A","Months",IF($O$14="B","","")) -> Months | G18: BENEFIT: | K18: =IF(O10="IN","One-Time $25 Policy Fee:",IF(O10="KY","KY Has No Policy Fee:","$25 Policy Fee:")) -> KY Has No Policy Fee: | L18: =IF(O10="KY",0,25*$O$15) -> 0 | N18: Mode Pre: | O18: =O17*O15 -> 557.6 | Q18: =Q16*O15 -> 0
C19: =IF($O$14="A","Coma",IF($O$14="B","","")) -> Coma | D19: =IF($O$14="A",3,IF($O$14="B","","")) -> 3 | E19: =IF($O$14="A","Months",IF($O$14="B","","")) -> Months | N19: ROP Fact: | O19: =Input!$M$36 -> 1
C20: Allows for potential of multiple claims over the life of the policy. See the Critical Care sales brochure for details. | G20: =O5 -> 432000 | K20: =CONCATENATE("Total ",$O$11," Premium*:") -> Total Annual Premium*: | L20: =SUM(L10:L18) -> 557.6 | N20: ROP2: | O20: =IF(O19=0,0,O19-1) -> 0
I21: *Premiums may be slightly off due to rounding. | N21: Policy Fee: | O21: =IF(O6="KY",0,25) -> 25
E22: =$O$2 -> 1000 | H22: =O4 -> 5000 | K22: =IF(Input!D17="Yes","Plan A:","") ->  | L22: =IF(Input!$D$17="Yes",(IF($E$4="KY",S28,R28)),"") ->  | N22: No. Dep | O22: =Input!B19 -> 1
E23: Per Month At | H23: =IF(Input!L4="OK","Per Month At","ADDN'L / Month At") -> ADDN'L / Month At | I23: =IF(Input!#REF!="OK","Per Month At","ADDN'L / Month At") ->  | K23: =IF(Input!D17="Yes","Plan B:","") ->  | L23: =IF(Input!$D$17="Yes",(IF($E$4="KY",S31,R31)),"") ->  | N23: Dep plan | O23: =Input!B20 -> Plan A - Comprehensive
E24: HOME | H24: NURSING HOME | K24: =IF(Input!D17="Yes","Plan C:","") ->  | L24: =IF(Input!$D$17="Yes",(IF($E$4="KY",S34,R34)),"") ->  | N24: Dep Per | O24: =Input!B21 -> 12 Months
E25: Or LUMP-SUM! | H25: =IF(AND($E$4="HI",$D$15>6),"(Hawaii NH = 11 Mos. Max./Claim)","") -> 
E26: =CONCATENATE("(Sum = $",O2) -> (Sum = $1000 | G26: =$O$3 -> 2500 | N26: A-Ann Prem
E27: x Ben. Period) | G27: =IF(Input!L4="OK","Per Month At","ADDN'L / Month At") -> ADDN'L / Month At | N27: A-Tob Prem
G28: ASSISTED LIVING FACILITY | N28: A-Mode Prem | O28: ='Two Insured'!P28 -> 557.6 | Q28: =Q18 -> 0 | R28: =ROUND(((O28+Q28)*$O$19)+($O$21*$O$15),2) -> 582.6 | S28: =R28-25 -> 557.6
G29: =IF(AND($E$4="HI",$D$15>6),"(Hawaii ALF = 11 Mos. Max./Claim)","") ->  | N29: B-Ann Prem
C30: =IF(E4="MN","MINNESOTA POLICIES PAY DOUBLE THE MONTHLY BENEFIT SHOWN FOR FIRST MONTH OF CLAIM.","") ->  | N30: B-Tob Prem
N31: B-Mode Prem | O31: ='Two Insured'!P31 -> 374.84 | Q31: =Q28 -> 0 | R31: =ROUND(((O31+Q31)*$O$19)+($O$21*$O$15),2) -> 399.84 | S31: =R31-25 -> 374.84
N32: C-Ann Prem
N33: C-Tob Prem
N34: C-Mode Prem | O34: ='Two Insured'!P34 -> 266.88 | Q34: =Q31 -> 0 | R34: =ROUND(((O34+Q34)*$O$19)+($O$21*$O$15),2) -> 291.88 | S34: 266.88
C36: *Please refer to a Critical Cash sales brochure for a complete description of the plan benefits, including exclusions and limitations.
C39: Form: ADH09-14(R2016-07)

Sheet Two Insured
A1: GTL Critical CashTM Protection Overview | O1: Period | P1: =Input!L14 -> 24 | Q1: =Input!M14 -> 18 | R1: =Input!N14 -> 0 | S1: Agent: | T1: =Input!B3 -> GoldenCare
A2: Underwritten by Guarantee Trust Life Insurance Company | O2: HHC | P2: =Input!L12 -> 1000 | Q2: =Input!M12 -> 1000 | S2: Contact: | T2: =Input!C3 -> 800-842-7799
B3: Prepared For: | C3: =CONCATENATE(P7," ",P8) -> Valued Client | D3: Age: | E3: =$P$9 -> 53 | F3: =IF($P$12="Yes","(Tobacco)","") ->  | H3: State: | I3: =$P$10 -> KY | K3: Prepared By: | L3: =$T$1 -> GoldenCare | O3: ALF | P3: =IF(Input!L4="OK",$P$2,($P$4*0.5)) -> 2500 | Q3: =IF(Input!M4="OK",$Q$2,($Q$4*0.5)) -> 2500
C4: =CONCATENATE(Q7," ",Q8) -> Spouse Prospect | D4: Age: | E4: =$Q$9 -> 55 | F4: =IF($Q$12="Yes","(Tobacco)","") ->  | H4: Prem. Mode: | I4: =$P$11 -> Annual | K4: Contact Info: | L4: =$T$2 -> 800-842-7799 | O4: NH | P4: =IF(Input!L4="OK",$P$2,(Input!L13)) -> 5000 | Q4: =IF(Input!M4="OK",$Q$2,(Input!M13)) -> 5000
C5: =IF(I3="MN","MINNESOTA POLICIES PAY DOUBLE THE MONTHLY BENEFIT SHOWN FOR FIRST MONTH OF CLAIM.","") ->  | O5: POOL | P5: =IF($P$6="MN",((P4*P1*3)+(P4*3)),IF(OR($P$6="KS",$P$6="SD",$P$6="LA"),(P4*P1*3),((P2+P4)*P1*3))) -> 432000 | Q5: =IF($P$6="MN",((Q4*Q1*3)+(Q4*3)),IF(OR($P$6="KS",$P$6="SD",$P$6="LA"),(Q4*Q1*3),((Q4+Q2)*Q1*3))) -> 324000
O6: ST Code: | P6: =Input!L23 -> 65 | Q6: =Input!M23 -> 65 | R6: =Q6 -> 65
O7: First | P7: =Input!B7 -> Valued | Q7: =Input!C7 -> Spouse
B8: =CONCATENATE(P$7,":") -> Valued: | C8: =CONCATENATE(P13," - ",P1," Months") -> Plan A - Comprehensive - 24 Months | M8: Premium Breakdown | O8: Last | P8: =Input!B8 -> Client | Q8: =Input!C8 -> Prospect
O9: Age | P9: =Input!B9 -> 53 | Q9: =Input!C9 -> 55
B10: Covers: | C10: =IF(OR($P$14="A",$P$14="B"),"Cancer","Heart Attack") -> Cancer | D10: =IF(OR($P$14="A",$P$14="B"),$P$1,3) -> 24 | E10: Months | L10: =CONCATENATE($P$11," Premium"," (",P$7,"):") -> Annual Premium (Valued): | M10: =P18 -> 557.6 | O10: State | P10: =Input!B6 -> KY | Q10: =Input!C6 -> Premium Glance: $ 557.6
C11: =IF(OR($P$14="A",$P$14="B"),"Cancer-In-Situ","Coronary Artery Bypass") -> Cancer-In-Situ | D11: =IF(OR($P$14="A",$P$14="B"),3,2) -> 3 | E11: Months | L11: =CONCATENATE("(",$C$8,")") -> (Plan A - Comprehensive - 24 Months) | O11: Mode: | P11: =Input!B16 -> Annual
C12: =IF($P$14="A","Heart Attack",IF($P$14="B","Alzheimer's Disease","Stroke")) -> Heart Attack | D12: =IF($P$14="A",3,IF($P$14="B",$P$1,$P$1)) -> 3 | E12: Months | H12: Lifetime | O12: Tobacco: | P12: =Input!B10 -> No | Q12: =Input!C10 -> No
C13: =IF($P$14="A","Coronary Artery Bypass",IF($P$14="B","Kidney Failure","Alzheimer's Disease")) -> Coronary Artery Bypass | D13: =IF($P$14="A",2,IF($P$14="B",$P$1,$P$1)) -> 2 | E13: Months | H13: Benefit | L13: =CONCATENATE($P$11," Premium"," (",Q$7,"):") -> Annual Premium (Spouse): | M13: =Q18 -> 623.68 | O13: Plan: | P13: =Input!B11 -> Plan A - Comprehensive | Q13: =Input!C11 -> Plan A - Comprehensive | R13: =Input!B20 -> Plan A - Comprehensive
C14: =IF($P$14="A","Stroke",IF($P$14="B","Major Organ Transplant","Kidney Failure")) -> Stroke | D14: =IF($P$14="A",$P$1,IF($P$14="B",$P$1,$P$1)) -> 24 | E14: Months | H14: =CONCATENATE("(",$P$7,")") -> (Valued) | L14: =CONCATENATE("(",$C$23,")") -> (Plan A - Comprehensive - 18 Months) | O14: Plan Code: | P14: =Input!L11 -> A | Q14: =Input!M11 -> A | R14: =Input!N11 -> A
C15: =IF($P$14="A","Alzheimer's Disease",IF($P$14="B","Paralysis","Major Organ Transplant")) -> Alzheimer's Disease | D15: =IF($P$14="A",$P$1,IF($P$14="B",$P$1,$P$1)) -> 24 | E15: Months | H15: =$P$5 -> 432000 | O15: Mode Fact. | P15: =Input!L16 -> 1 | Q15: =P15 -> 1 | R15: =Q15 -> 1
C16: =IF($P$14="A","Kidney Failure",IF($P$14="B","Coma","Paralysis")) -> Kidney Failure | D16: =IF($P$14="A",$P$1,IF($P$14="B",3,$P$1)) -> 24 | E16: Months | L16: =IF(Input!B18="Yes","$500/Mos. Dependent Care:",IF($P$20=0,"","Return of Premium:")) ->  | M16: =IF(Input!B18="Yes",R18,IF($P$20=0,"",(($M$10+$M$13)*$P$20))) ->  | O16: Ann. prem: | P16: =VLOOKUP($P$6,FIRSTANNPREM,2,0) -> 557.6 | Q16: =VLOOKUP($P$6,FIRSTANNPREM,3,0) -> 623.68 | R16: =VLOOKUP($P$6,FIRSTANNPREM,5,0) -> 0
C17: =IF($P$14="A","Major Organ Transplant",IF($P$14="B","","Coma")) -> Major Organ Transplant | D17: =IF($P$14="A",$P$1,IF($P$14="B","",3)) -> 24 | E17: =IF($P$14="A","Months",IF($P$14="B","","Months")) -> Months | F17: =$P$2 -> 1000 | J17: =$P$4 -> 5000 | L17: =IF(Input!B18="Yes",CONCATENATE("(",$P$22," - ",$P$23," - ",$P$24,")"),"") ->  | O17: Tob. Ann: | P17: =IF(P$12="Yes",(P$16*1.5),P$16) -> 557.6 | Q17: =IF(Q$12="Yes",(Q$16*1.5),Q$16) -> 623.68
C18: =IF($P$14="A","Paralysis",IF($P$14="B","","")) -> Paralysis | D18: =IF($P$14="A",$P$1,IF($P$14="B","","")) -> 24 | E18: =IF($P$14="A","Months",IF($P$14="B","","")) -> Months | F18: Per Month At | J18: =IF(Input!L4="OK","Per Month At","ADDN'L / Month At") -> ADDN'L / Month At | O18: Mode Pre: | P18: =P17*P15 -> 557.6 | Q18: =Q17*Q15 -> 623.68 | R18: =R16*R15 -> 0
C19: =IF($P$14="A","Coma",IF($P$14="B","","")) -> Coma | D19: =IF($P$14="A",3,IF($P$14="B","","")) -> 3 | E19: =IF($P$14="A","Months",IF($P$14="B","","")) -> Months | F19: Home | H19: =$P$3 -> 2500 | J19: Nursing Home | L19: =IF($P$20=0,"",IF(Input!B18="Yes","Return of Premium:","")) ->  | M19: =IF($P$20=0,"",IF(Input!B18="Yes",((M10+M13+M16)*$P$20),"")) ->  | O19: ROP Fact: | P19: =Input!$M$36 -> 1 | Q19: =Input!$M$36 -> 1
C20: *See Below. | F20: or LUMP-SUM! | H20: =IF(Input!L4="OK","Per Month At","ADDN'L / Month At") -> ADDN'L / Month At | J20: =IF(AND($I$3="HI",$P$1>6),"*In Hawaii, ALF & NH is Max. 11 Mos./Claim.","") ->  | L20: =IF(P10="IN","One-Time $25 Policy Fee:",IF(P10="KY","KY Has No Policy Fee:","$25 Policy Fee:")) -> KY Has No Policy Fee: | M20: =IF(P10="KY",0,25*P$15) -> 0 | O20: ROP2: | P20: =IF(P19=0,0,P19-1) -> 0 | Q20: =IF(Q19=0,0,Q19-1) -> 0
F21: =CONCATENATE("= $",P2," x Mos.") -> = $1000 x Mos. | H21: Assisted Living | L21: =CONCATENATE("Total ",$P$11," Premium*:") -> Total Annual Premium*: | M21: =ROUND((SUM(M10:M20)),2) -> 1181.28 | O21: Pol Fee: | P21: =IF(P6="KY",0,25) -> 25
L22: *Premiums may be slightly off due to rounding. | O22: No. Dep | P22: =Input!B19 -> 1
B23: =CONCATENATE(Q$7,":") -> Spouse: | C23: =CONCATENATE(Q$13," - ",Q$1," Months") -> Plan A - Comprehensive - 18 Months | L23: =IF(Input!$D$17="Yes","1st & 2nd Client Plan Combinations & Premiums","") ->  | O23: Dep plan | P23: =Input!B20 -> Plan A - Comprehensive
L24: =IF(Input!$D$17="Yes",CONCATENATE(P$7," Plan A & ",Q$7," Plan A ="),"") ->  | M24: =IF(Input!$D$17="Yes",(IF($I$3="KY",ROUND(V26,2),ROUND(T26,2))),"") ->  | O24: Dep Per | P24: =Input!B21 -> 12 Months
B25: Covers: | C25: =IF(OR($Q$14="A",$Q$14="B"),"Cancer","Heart Attack") -> Cancer | D25: =IF(OR($Q$14="A",$Q$14="B"),$Q$1,3) -> 18 | E25: Months | L25: =IF(Input!$D$17="Yes",CONCATENATE(P$7," Plan A & ",Q$7," Plan B ="),"") ->  | M25: =IF(Input!$D$17="Yes",(IF($I$3="KY",ROUND(V27,2),ROUND(T27,2))),"") ->  | V25: KY
C26: =IF(OR($Q$14="A",$Q$14="B"),"Cancer-In-Situ","Coronary Artery Bypass") -> Cancer-In-Situ | D26: =IF(OR($Q$14="A",$Q$14="B"),3,2) -> 3 | E26: Months | L26: =IF(Input!$D$17="Yes",CONCATENATE(P$7," Plan A & ",Q$7," Plan C ="),"") ->  | M26: =IF(Input!$D$17="Yes",(IF($I$3="KY",ROUND(V28,2),ROUND(T28,2))),"") ->  | O26: A-Ann Prem | P26: =VLOOKUP($P$6,FIRSTANNPREM,10,0) -> 557.6 | Q26: =VLOOKUP($P$6,FIRSTANNPREM,11,0) -> 623.68 | R26: =R16 -> 0 | T26: =ROUND((((P28+Q28+R$28)*$P$19)+($P$21*$P$15)),2) -> 1206.28 | U26: A-A | V26: =T26-25 -> 1181.28
C27: =IF($Q$14="A","Heart Attack",IF($Q$14="B","Alzheimer's Disease","Stroke")) -> Heart Attack | D27: =IF($Q$14="A",3,IF($Q$14="B",$Q$1,$Q$1)) -> 3 | E27: Months | H27: Lifetime | L27: =IF(Input!$D$17="Yes",CONCATENATE(P$7," Plan B & ",Q$7," Plan A ="),"") ->  | M27: =IF(Input!$D$17="Yes",(IF($I$3="KY",ROUND(V29,2),ROUND(T29,2))),"") ->  | O27: A-Tob Prem | P27: =IF(P$12="Yes",(P$26*1.5),P$26) -> 557.6 | Q27: =IF(Q$12="Yes",(Q$26*1.5),Q$26) -> 623.68 | T27: =ROUND((((P28+Q31+R$28)*$P$19)+($P$21*$P$15)),2) -> 1002.6 | U27: A-B | V27: =T27-25 -> 977.6
C28: =IF($Q$14="A","Coronary Artery Bypass",IF($Q$14="B","Kidney Failure","Alzheimer's Disease")) -> Coronary Artery Bypass | D28: =IF($Q$14="A",2,IF($Q$14="B",$Q$1,$Q$1)) -> 2 | E28: Months | H28: Benefit | L28: =IF(Input!$D$17="Yes",CONCATENATE(P$7," Plan B & ",Q$7," Plan B ="),"") ->  | M28: =IF(Input!$D$17="Yes",(IF($I$3="KY",ROUND(V30,2),ROUND(T30,2))),"") ->  | O28: A-Mode Prem | P28: =P27*P$15 -> 557.6 | Q28: =Q27*Q$15 -> 623.68 | R28: =R26*R$15 -> 0 | S28: =ROUND((((P28+Q28+R28)*$P$19)+(25*$P$15)),2) -> 1206.28 | T28: =ROUND((((P28+Q34+R$28)*$P$19)+($P$21*$P$15)),2) -> 905.6 | U28: A-C | V28: 880.6
C29: =IF($Q$14="A","Stroke",IF($Q$14="B","Major Organ Transplant","Kidney Failure")) -> Stroke | D29: =IF($Q$14="A",$Q$1,IF($Q$14="B",$Q$1,$Q$1)) -> 18 | E29: Months | H29: =CONCATENATE("(",$Q$7,")") -> (Spouse) | L29: =IF(Input!$D$17="Yes",CONCATENATE(P$7," Plan B & ",Q$7," Plan C ="),"") ->  | M29: =IF(Input!$D$17="Yes",(IF($I$3="KY",ROUND(V31,2),ROUND(T31,2))),"") ->  | O29: B-Ann Prem | P29: =VLOOKUP($P$6,FIRSTANNPREM,18,0) -> 374.84 | Q29: =VLOOKUP($P$6,FIRSTANNPREM,19,0) -> 420 | R29: =R16 -> 0 | T29: =ROUND((((P31+Q28+R$28)*$P$19)+($P$21*$P$15)),2) -> 1023.52 | U29: B-A | V29: 998.52
C30: =IF($Q$14="A","Alzheimer's Disease",IF($Q$14="B","Paralysis","Major Organ Transplant")) -> Alzheimer's Disease | D30: =IF($Q$14="A",$Q$1,IF($Q$14="B",$Q$1,$Q$1)) -> 18 | E30: Months | H30: =$Q$5 -> 324000 | L30: =IF(Input!$D$17="Yes",CONCATENATE(P$7," Plan C & ",Q$7," Plan A ="),"") ->  | M30: =IF(Input!$D$17="Yes",(IF($I$3="KY",ROUND(V32,2),ROUND(T32,2))),"") ->  | O30: B-Tob Prem | P30: =IF(P$12="Yes",(P29*1.5),P29) -> 374.84 | Q30: =IF(Q$12="Yes",(Q29*1.5),Q29) -> 420 | T30: =ROUND((((P31+Q31+R$28)*$P$19)+($P$21*$P$15)),2) -> 819.84 | U30: B-B | V30: 794.84
C31: =IF($Q$14="A","Kidney Failure",IF($Q$14="B","Coma","Paralysis")) -> Kidney Failure | D31: =IF($Q$14="A",$Q$1,IF($Q$14="B",3,$Q$1)) -> 18 | E31: Months | L31: =IF(Input!$D$17="Yes",CONCATENATE(P$7," Plan C & ",Q$7," Plan B ="),"") ->  | M31: =IF(Input!$D$17="Yes",(IF($I$3="KY",ROUND(V33,2),ROUND(T33,2))),"") ->  | O31: B-Mode Prem | P31: =P30*P$15 -> 374.84 | Q31: =Q30*Q$15 -> 420 | R31: =R29*R$15 -> 0 | S31: =ROUND((((P31+Q31+R31)*$P$19)+(25*$P$15)),2) -> 819.84 | T31: =ROUND((((P31+Q34+R$28)*$P$19)+($P$21*$P$15)),2) -> 722.84 | U31: B-C | V31: 697.84
C32: =IF($Q$14="A","Major Organ Transplant",IF($Q$14="B","","Coma")) -> Major Organ Transplant | D32: =IF($Q$14="A",$Q$1,IF($Q$14="B","",3)) -> 18 | E32: =IF($Q$14="A","Months",IF($Q$14="B","","Months")) -> Months | F32: =$Q$2 -> 1000 | J32: =$Q$4 -> 5000 | L32: =IF(Input!$D$17="Yes",CONCATENATE(P$7," Plan C & ",Q$7," Plan C ="),"") ->  | M32: =IF(Input!$D$17="Yes",(IF($I$3="KY",ROUND(V34,2),ROUND(T34,2))),"") ->  | O32: C-Ann Prem | P32: =VLOOKUP($P$6,FIRSTANNPREM,26,0) -> 266.88 | Q32: =VLOOKUP($P$6,FIRSTANNPREM,27,0) -> 323 | R32: =R16 -> 0 | T32: =ROUND((((P34+Q28+R$28)*$P$19)+($P$21*$P$15)),2) -> 915.56 | U32: C-A | V32: 890.56
C33: =IF($Q$14="A","Paralysis",IF($Q$14="B","","")) -> Paralysis | D33: =IF($Q$14="A",$Q$1,IF($Q$14="B","","")) -> 18 | E33: =IF($Q$14="A","Months",IF($Q$14="B","","")) -> Months | F33: Per Month At | J33: =IF(Input!L4="OK","Per Month At","ADDN'L / Month At") -> ADDN'L / Month At | O33: C-Tob Prem | P33: =IF(P$12="Yes",(P32*1.5),P32) -> 266.88 | Q33: =IF(Q$12="Yes",(Q32*1.5),Q32) -> 323 | T33: =ROUND((((P34+Q31+R$28)*$P$19)+($P$21*$P$15)),2) -> 711.88 | U33: C-B | V33: 686.88
C34: =IF($Q$14="A","Coma",IF($Q$14="B","","")) -> Coma | D34: =IF($Q$14="A",3,IF($Q$14="B","","")) -> 3 | E34: =IF($Q$14="A","Months",IF($Q$14="B","","")) -> Months | F34: Home | H34: =$Q$3 -> 2500 | J34: Nursing Home | O34: C-Mode Prem | P34: =P33*P$15 -> 266.88 | Q34: =Q33*Q$15 -> 323 | R34: =R32*R$15 -> 0 | S34: =ROUND((((P34+Q34+R34)*$P$19)+(25*$P$15)),2) -> 614.88 | T34: =ROUND((((P34+Q34+R$28)*$P$19)+($P$21*$P$15)),2) -> 614.88 | U34: C-C | V34: 589.88
F35: or LUMP-SUM! | H35: =IF(Input!L4="OK","Per Month At","ADDN'L / Month At") -> ADDN'L / Month At | J35: =IF(AND($I$3="HI",$P$1>6),"*In Hawaii, ALF & NH is Max. 11 Mos./Claim.","") ->  | P35: =IF(Input!$D$17="No",1,2) -> 1
F36: =CONCATENATE("= $",Q2," x Mos.") -> = $1000 x Mos. | H36: Assisted Living
C38: *Allows for potential of multiple claims over the life of the policy. See the Critical Cash sales brochure for details.
C42: *Please refer to a Critical Cash sales brochure for a complete description of the plan benefits, including exclusions and limitations.
C44: Form: ADH09-14(R2016-07)

Sheet temp1 (hidden)
A1: 432000
A2: 3000
A3: 4500
A4: 6000
D28: 5 | E28: -100
F29: 0.2
F30: 0.15
D31: 0.3 | E31: 0.25 | F31: 0.1 | R31: Adolphus Plan A & Sally Plan A = | S31: ='Two Insured'!T26 -> 1206.28
D32: 0.25 | E32: 0.25 | F32: 0.25 | R32: Adolphus Plan A & Sally Plan B = | S32: ='Two Insured'!T27 -> 1002.6
D33: =IF(C34="Yes","Rates","Claims") -> Rates | R33: Adolphus Plan A & Sally Plan C = | S33: ='Two Insured'!T28 -> 905.6
B34: Yes | C34: Yes | D34: Rates | E34: =IF(C34="YES",D28,E28) -> 5 | F34: =IF(C34="Yes",D28,E28) -> 5 | R34: Adolphus Plan B & Sally Plan A = | S34: ='Two Insured'!T29 -> 1023.52
B35: No | D35: Picture | E35: =IF(C34="No",D28,E28) -> -100 | F35: =IF(C34="No",D28,E28) -> -100 | R35: Adolphus Plan B & Sally Plan B = | S35: 1543
R36: Adolphus Plan B & Sally Plan C = | S36: 123
R37: Adolphus Plan C & Sally Plan A = | S37: 167
R38: Adolphus Plan C & Sally Plan B = | S38: 3245
R39: Adolphus Plan C & Sally Plan C = | S39: 5422
A73: Name | B73: Dept | C73: Age
A74: Henry | B74: 501 | C74: 28
A75: Stan | B75: 201 | C75: 19
A76: Mary | B76: 101 | C76: 22
A77: Larry | B77: 301 | C77: 29
A80: =OFFSET(C74,2,-1) -> 101
A81: =OFFSET(C74,2,-1,1,1) -> 101

Sheet Calcs1 (hidden)
A1: This Is "STATE" and "STATECHART" | F1: This Is "AGE" and "AGERANGE" | J1: This Is "TOBACCO" | M1: This Is "PLAN" and "PLANCHART" | S1: _500 | T1: _750 | U1: _1000 | V1: _1250 | W1: _1500 | X1: _1750 | Y1: _2000 | Z1: _2250 | AA1: _2500 | AB1: _2750 | AC1: _3000 | AD1: _3250 | AE1: _3500 | AF1: _3750 | AG1: _4000 | AH1: _4250 | AI1: _4500 | AJ1: _4750 | AK1: _5000 | AL1: _5250 | AM1: _5500 | AN1: _5750 | AO1: _6000
A2: AL | B2: GoldenCare USA | C2: 50 | D2: YES | F2: 18 | G2: 18-29 | J2: No | M2: Show All 3 Plans | N2: D | O2: not! | S2: 500 | T2: 500 | U2: 500 | V2: 500 | W2: 500 | X2: 500 | Y2: 500 | Z2: 500 | AA2: 500 | AB2: 500 | AC2: 500 | AD2: 500 | AE2: 500 | AF2: 500 | AG2: 500 | AH2: 500 | AI2: 500 | AJ2: 500 | AK2: 500 | AL2: 500 | AM2: 500 | AN2: No Extra (KS/MN/SD) | AO2: No Extra (KS/MN/SD)
A3: AK | B3: AIM | C3: 50 | D3: YES | F3: =F2+1 -> 19 | G3: 18-29 | J3: Yes | M3: Plan A - Comprehensive | N3: A | S3: =S2+250 -> 750 | T3: 750 | U3: 750 | V3: 750 | W3: 750 | X3: 750 | Y3: 750 | Z3: 750 | AA3: 750 | AB3: 750 | AC3: 750 | AD3: 750 | AE3: 750 | AF3: 750 | AG3: 750 | AH3: 750 | AI3: 750 | AJ3: 750 | AK3: 750 | AL3: 750
A4: AR | B4: AIM | C4: 65 | D4: YES | F4: =F3+1 -> 20 | G4: 18-29 | M4: Plan B - Cancer Care+ | N4: B | S4: =S3+250 -> 1000 | T4: =T3+250 -> 1000 | U4: 1000 | V4: 1000 | W4: 1000 | X4: =X3+250 -> 1000 | Y4: 1000 | Z4: 1000 | AA4: 1000 | AB4: 1000 | AC4: 1000 | AD4: =AD3+250 -> 1000 | AE4: 1000 | AF4: 1000 | AG4: 1000 | AH4: 1000 | AI4: 1000 | AJ4: 1000 | AK4: 1000
A5: AZ | B5: AIM | C5: 55 | D5: YES | F5: 21 | G5: 18-29 | M5: Plan C - Cardiac Care+ | N5: C | S5: 1250 | T5: =T4+250 -> 1250 | U5: 1250 | V5: 1250 | W5: 1250 | X5: =X4+250 -> 1250 | Y5: 1250 | Z5: 1250 | AA5: 1250 | AB5: 1250 | AC5: 1250 | AD5: =AD4+250 -> 1250 | AE5: 1250 | AF5: 1250 | AG5: 1250 | AH5: 1250 | AI5: 1250 | AJ5: 1250
A6: CA | B6: AIM | C6: 60 | D6: NO* | F6: 22 | G6: 18-29 | J6: This ALL 3 col is "DROPID" | S6: 1500 | T6: =T5+250 -> 1500 | U6: 1500 | V6: 1500 | W6: 1500 | X6: =X5+250 -> 1500 | Y6: 1500 | Z6: 1500 | AA6: 1500 | AB6: 1500 | AC6: 1500 | AD6: =AD5+250 -> 1500 | AE6: 1500 | AF6: 1500 | AG6: 1500 | AH6: 1500 | AI6: 1500
A7: CO | B7: AIM | C7: NJ | D7: YES | F7: 23 | G7: 18-29 | J7: This is "MOSBEN" and "MOSBENCHART" | M7: This is "BENPER" and "BENPERCHART" | P7: This is "MDBENPER" | S7: 1750 | T7: =T6+250 -> 1750 | U7: 1750 | V7: 1750 | W7: 1750 | X7: =X6+250 -> 1750 | Y7: 1750 | Z7: 1750 | AA7: 1750 | AB7: 1750 | AC7: 1750 | AD7: =AD6+250 -> 1750 | AE7: 1750 | AF7: 1750 | AG7: 1750 | AH7: 1750
A8: CT | B8: GoldenCare USA | C8: TBD | D8: NO* | F8: 24 | G8: 18-29 | J8: 500 | K8: 500 | L8: _500 | M8: 6 Months | N8: 6 | P8: 6 Months | S8: 2000 | T8: =T7+250 -> 2000 | U8: 2000 | V8: 2000 | W8: 2000 | X8: =X7+250 -> 2000 | Y8: 2000 | Z8: 2000 | AA8: 2000 | AB8: 2000 | AC8: 2000 | AD8: =AD7+250 -> 2000 | AE8: 2000 | AF8: 2000 | AG8: 2000
A9: DE | B9: GoldenCare USA | C9: 50 | D9: YES | F9: 25 | G9: 18-29 | J9: =J8+250 -> 750 | K9: =K8+250 -> 750 | L9: _750 | M9: 12 Months | N9: 12 | P9: 12 Months | S9: 2250 | T9: =T8+250 -> 2250 | U9: 2250 | V9: 2250 | W9: 2250 | X9: =X8+250 -> 2250 | Y9: 2250 | Z9: 2250 | AA9: 2250 | AB9: 2250 | AC9: 2250 | AD9: =AD8+250 -> 2250 | AE9: 2250 | AF9: 2250
A10: DC | B10: GoldenCare USA | C10: 50 | D10: YES | F10: 26 | G10: 18-29 | J10: =J9+250 -> 1000 | K10: =K9+250 -> 1000 | L10: _1000 | M10: 18 Months | N10: 18 | P10: 18 Months | S10: 2500 | T10: =T9+250 -> 2500 | U10: 2500 | V10: 2500 | W10: 2500 | X10: =X9+250 -> 2500 | Y10: 2500 | Z10: 2500 | AA10: 2500 | AB10: 2500 | AC10: 2500 | AD10: =AD9+250 -> 2500 | AE10: 2500
A11: FL | B11: GoldenCare USA | C11: 60 | D11: NO* | F11: 27 | G11: 18-29 | J11: 1250 | K11: 1250 | L11: _1250 | M11: 24 Months | N11: 24 | S11: 2750 | T11: =T10+250 -> 2750 | U11: 2750 | V11: 2750 | W11: 2750 | X11: =X10+250 -> 2750 | Y11: 2750 | Z11: 2750 | AA11: 2750 | AB11: 2750 | AC11: 2750 | AD11: =AD10+250 -> 2750
A12: GA | B12: GoldenCare USA | C12: 50 | D12: NO* | F12: 28 | G12: 18-29 | J12: 1500 | K12: 1500 | L12: _1500 | S12: 3000 | T12: =T11+250 -> 3000 | U12: 3000 | V12: 3000 | W12: 3000 | X12: =X11+250 -> 3000 | Y12: 3000 | Z12: 3000 | AA12: 3000 | AB12: 3000 | AC12: 3000
A13: HI | B13: AIM | C13: HI | D13: YES | F13: 29 | G13: 18-29 | J13: 1750 | K13: 1750 | L13: _1750 | M13: This is "MODE" and "MODECHART" | S13: =S12+250 -> 3250 | T13: =T12+250 -> 3250 | U13: 3250 | V13: 3250 | W13: 3250 | X13: =X12+250 -> 3250 | Y13: 3250 | Z13: 3250 | AA13: 3250 | AB13: 3250
A14: ID | B14: AIM | C14: 50 | D14: YES | F14: 30 | G14: 30-39 | J14: 2000 | K14: 2000 | L14: _2000 | M14: Monthly | N14: 0.09 | O14: 0.08333 | S14: =S13+250 -> 3500 | T14: =T13+250 -> 3500 | U14: 3500 | V14: 3500 | W14: 3500 | X14: =X13+250 -> 3500 | Y14: 3500 | Z14: 3500 | AA14: 3500
A15: IL | B15: GoldenCare USA | C15: 50 | D15: YES | F15: 31 | G15: 30-39 | J15: 2250 | K15: 2250 | L15: _2250 | M15: Quarterly | N15: 0.265 | O15: 0.25 | S15: =S14+250 -> 3750 | T15: =T14+250 -> 3750 | U15: 3750 | V15: 3750 | W15: 3750 | X15: =X14+250 -> 3750 | Y15: 3750 | Z15: 3750
A16: IN | B16: GoldenCare USA | C16: IN | D16: YES | F16: 32 | G16: 30-39 | J16: 2500 | K16: 2500 | L16: _2500 | M16: Semi-Annual | N16: 0.52 | O16: 0.5 | S16: =S15+250 -> 4000 | T16: =T15+250 -> 4000 | U16: 4000 | V16: 4000 | W16: 4000 | X16: =X15+250 -> 4000 | Y16: 4000
A17: IA | B17: GoldenCare USA | C17: 50 | D17: YES | F17: 33 | G17: 30-39 | J17: 2750 | K17: 2750 | L17: _2750 | M17: Annual | N17: 1 | O17: 1 | S17: =S16+250 -> 4250 | T17: =T16+250 -> 4250 | U17: 4250 | V17: 4250 | W17: 4250 | X17: =X16+250 -> 4250
A18: KS | B18: AIM | C18: KS | D18: YES | F18: 34 | G18: 30-39 | J18: 3000 | K18: 3000 | L18: _3000 | S18: =S17+250 -> 4500 | T18: =T17+250 -> 4500 | U18: 4500 | V18: 4500 | W18: 4500
A19: KY | B19: GoldenCare USA | C19: 65 | D19: YES | F19: 35 | G19: 30-39 | J19: 3250 | K19: 3250 | L19: _3250 | S19: =S18+250 -> 4750 | T19: =T18+250 -> 4750 | U19: 4750 | V19: 4750
A20: LA | B20: AIM | C20: LA | D20: NO | F20: 36 | G20: 30-39 | J20: 3500 | K20: 3500 | L20: _3500 | M20: This is "DEPEND" and "DEPENDCHART" | S20: =S19+250 -> 5000 | T20: =T19+250 -> 5000 | U20: 5000
A21: ME | B21: AIM | C21: 65 | D21: YES | F21: 37 | G21: 30-39 | J21: 3750 | K21: 3750 | L21: _3750 | M21: 1 | N21: 1 | S21: =S20+250 -> 5250 | T21: =T20+250 -> 5250
A22: MD | B22: GoldenCare USA | C22: MD | D22: YES | F22: 38 | G22: 30-39 | J22: 4000 | K22: 4000 | L22: _4000 | M22: 2 | N22: 2 | S22: =S21+250 -> 5500
A23: MA | B23: GoldenCare USA | C23: TBD | D23: NO* | F23: 39 | G23: 30-39 | J23: 4250 | K23: 4250 | L23: _4250 | M23: 3 | N23: 3
A24: MI | B24: AIM | C24: 55 | D24: YES | F24: 40 | G24: 40-49 | J24: 4500 | K24: 4500 | L24: _4500 | M24: 4 | N24: 4
A25: MN | B25: GoldenCare USA | C25: MN | D25: YES | F25: 41 | G25: 40-49 | J25: 4750 | K25: 4750 | L25: _4750 | M25: 5 | N25: 5
A26: MS | B26: GoldenCare USA | C26: 50 | D26: YES | F26: 42 | G26: 40-49 | J26: 5000 | K26: 5000 | L26: _5000
A27: MO | B27: GoldenCare USA | C27: 50 | D27: YES | F27: 43 | G27: 40-49 | J27: 5250 | K27: 5250 | L27: _5250 | M27: This is "ROPFACTORS"
A28: MT | B28: AIM | C28: 50 | D28: YES | F28: 44 | G28: 40-49 | J28: 5500 | K28: 5500 | L28: _5500 | M28: D | N28: 1.1
A29: NE | B29: AIM | C29: 50 | D29: YES | F29: 45 | G29: 40-49 | J29: $5,750 (KS/MN/SD) | K29: 5750 | L29: _5750 | M29: 18-29 | N29: 1.1
A30: NV | B30: AIM | C30: 50 | D30: YES | F30: 46 | G30: 40-49 | J30: $6,000 (KS/MN/SD) | K30: 6000 | L30: _6000 | M30: 30-39 | N30: 1.1
A31: NH | B31: AIM | C31: 60 | D31: NO* | F31: 47 | G31: 40-49 | M31: 40-49 | N31: 1.15
A32: NJ | B32: GoldenCare USA | C32: NJ | D32: YES | F32: 48 | G32: 40-49 | M32: 50-54 | N32: 1.15
A33: NM | B33: AIM | C33: 50 | D33: YES | F33: 49 | G33: 40-49 | J33: This is "NHBEN" and "NHBENCHART" | M33: 55-59 | N33: 1.2
A34: NY | B34: AIM | C34: TBD | D34: NO* | F34: 50 | G34: 50-54 | J34: No Extra (KS/MN/SD) | K34: 0 | M34: 60-64 | N34: 1.25
A35: NC | B35: GoldenCare USA | C35: 55 | D35: YES | F35: 51 | G35: 50-54 | J35: 500 | K35: 500 | M35: 65-69 | N35: 1.25
A36: ND | B36: GoldenCare USA | C36: 55 | D36: YES | F36: 52 | G36: 50-54 | J36: =J35+250 -> 750 | K36: =K35+250 -> 750 | M36: 70-74 | N36: 0
A37: OH | B37: GoldenCare USA | C37: OH | D37: NO | F37: 53 | G37: 50-54 | J37: =J36+250 -> 1000 | K37: 1000 | M37: 75-79 | N37: 0
A38: OK | B38: AIM | C38: 50 | D38: YES | F38: 54 | G38: 50-54 | J38: 1250 | K38: 1250 | M38: 80-84 | N38: 0
A39: OR | B39: AIM | C39: 50 | D39: YES | F39: 55 | G39: 55-59 | J39: 1500 | K39: 1500
A40: PA | B40: GoldenCare USA | C40: 50 | D40: NO* | F40: 56 | G40: 55-59 | J40: 1750 | K40: 1750
A41: RI | B41: GoldenCare USA | C41: 50 | D41: NO* | F41: 57 | G41: 55-59 | J41: 2000 | K41: 2000 | M41: This is "TXROPFACTORS"
A42: SC | B42: GoldenCare USA | C42: 55 | D42: YES | F42: 58 | G42: 55-59 | J42: 2250 | K42: 2250 | M42: D | N42: 1.65
A43: SD | B43: GoldenCare USA | C43: SD | D43: YES | F43: 59 | G43: 55-59 | J43: 2500 | K43: 2500 | M43: 18-29 | N43: 1.65
A44: TN | B44: GoldenCare USA | C44: 50 | D44: YES | F44: 60 | G44: 60-64 | J44: 2750 | K44: 2750 | M44: 30-39 | N44: 1.65
A45: TX | B45: AIM | C45: 50 | D45: YES | F45: 61 | G45: 60-64 | J45: 3000 | K45: 3000 | M45: 40-44 | N45: 1.65
A46: UT | B46: AIM | C46: TBD | D46: NO* | F46: 62 | G46: 60-64 | J46: =J45+250 -> 3250 | K46: 3250 | M46: 45-49 | N46: 1.85
A47: VT | B47: AIM | C47: 55 | D47: NO* | F47: 63 | G47: 60-64 | J47: =J46+250 -> 3500 | K47: 3500 | M47: 50-54 | N47: 2.98
A48: VA | B48: GoldenCare USA | C48: 50 | D48: NO* | F48: 64 | G48: 60-64 | J48: =J47+250 -> 3750 | K48: 3750 | M48: 55-59 | N48: 0
A49: WA | B49: AIM | C49: NJ | D49: YES | F49: 65 | G49: 65-69 | J49: =J48+250 -> 4000 | K49: 4000 | M49: 60-64 | N49: 0
A50: WV | B50: GoldenCare USA | C50: 50 | D50: YES | F50: 66 | G50: 65-69 | J50: =J49+250 -> 4250 | K50: 4250 | M50: 65-69 | N50: 0
A51: WI | B51: GoldenCare USA | C51: 50 | D51: YES | F51: 67 | G51: 65-69 | J51: =J50+250 -> 4500 | K51: 4500 | M51: 70-74 | N51: 0
A52: WY | B52: AIM | C52: 50 | D52: YES | F52: 68 | G52: 65-69 | J52: =J51+250 -> 4750 | K52: 4750 | M52: 75-79 | N52: 0
F53: 69 | G53: 65-69 | J53: =J52+250 -> 5000 | K53: 5000 | M53: 80-84 | N53: 0
F54: 70 | G54: 70-74 | J54: =J53+250 -> 5250 | K54: 5250
F55: 71 | G55: 70-74 | J55: =J54+250 -> 5500 | K55: 5500 | M55: This Is "TXAGERANGE"
F56: 72 | G56: 70-74 | M56: 18 | N56: 18-29
F57: 73 | G57: 70-74 | M57: =M56+1 -> 19 | N57: 18-29
F58: 74 | G58: 70-74 | M58: =M57+1 -> 20 | N58: 18-29
F59: 75 | G59: 75-79 | M59: 21 | N59: 18-29
F60: 76 | G60: 75-79 | M60: 22 | N60: 18-29
F61: 77 | G61: 75-79 | M61: 23 | N61: 18-29
F62: 78 | G62: 75-79 | M62: 24 | N62: 18-29
F63: 79 | G63: 75-79 | M63: 25 | N63: 18-29
F64: 80 | G64: 80-84 | M64: 26 | N64: 18-29
F65: 81 | G65: 80-84 | M65: 27 | N65: 18-29
F66: 82 | G66: 80-84 | M66: 28 | N66: 18-29
F67: 83 | G67: 80-84 | M67: 29 | N67: 18-29
F68: =F67+1 -> 84 | G68: 80-84 | M68: 30 | N68: 30-39
M69: 31 | N69: 30-39
M70: 32 | N70: 30-39
M71: 33 | N71: 30-39
M72: 34 | N72: 30-39
M73: 35 | N73: 30-39
M74: 36 | N74: 30-39
M75: 37 | N75: 30-39
M76: 38 | N76: 30-39
M77: 39 | N77: 30-39
M78: 40 | N78: 40-44
M79: 41 | N79: 40-44
M80: 42 | N80: 40-44
M81: 43 | N81: 40-44
M82: 44 | N82: 40-44
M83: 45 | N83: 45-49
M84: 46 | N84: 45-49
M85: 47 | N85: 45-49
M86: 48 | N86: 45-49
M87: 49 | N87: 45-49
M88: 50 | N88: 50-54
M89: 51 | N89: 50-54
M90: 52 | N90: 50-54
M91: 53 | N91: 50-54
M92: 54 | N92: 50-54
M93: 55 | N93: 55-59
M94: 56 | N94: 55-59
M95: 57 | N95: 55-59
M96: 58 | N96: 55-59
M97: 59 | N97: 55-59
M98: 60 | N98: 60-64
M99: 61 | N99: 60-64
M100: 62 | N100: 60-64
M101: 63 | N101: 60-64
M102: 64 | N102: 60-64
M103: 65 | N103: 65-69
M104: 66 | N104: 65-69
M105: 67 | N105: 65-69
M106: 68 | N106: 65-69
M107: 69 | N107: 65-69
M108: 70 | N108: 70-74
M109: 71 | N109: 70-74
M110: 72 | N110: 70-74
M111: 73 | N111: 70-74
M112: 74 | N112: 70-74
M113: 75 | N113: 75-79
M114: 76 | N114: 75-79
M115: 77 | N115: 75-79
M116: 78 | N116: 75-79
M117: 79 | N117: 75-79
M118: 80 | N118: 80-84
M119: 81 | N119: 80-84
M120: 82 | N120: 80-84
M121: 83 | N121: 80-84
M122: =M121+1 -> 84 | N122: 80-84

Sheet Calcs2 (hidden)
D1: 0.5 | E1: 50 | W1: 0.55 | AP1: 0.6 | BI1: 0.65 | CB1: SD | DG1: IN | DZ1: KY | ES1: KS | ET1: and LA | FX1: HI | GQ1: MN
C2: above 3K chk: | D2: Plan A - Critical Care | W2: Plan A - Critical Care | AP2: Plan A - Critical Care | BI2: Critical Care | CB2: Plan A - Critical Care | DG2: Plan A - Critical Care | DZ2: Plan A - Critical Care | ES2: Plan A - Critical Care | FX2: Plan A - Critical Care | GQ2: Plan A - Critical Care
B3: NO | C3: NO | D3: Annual Rates | W3: Annual Rates | AP3: Annual Rates | BI3: Annual Rates | CB3: Annual Rates | DG3: Annual Rates | DZ3: Annual Rates | ES3: Annual Rates | FX3: Annual Rates | GQ3: Annual Rates
B4: YES | C4: YES | D4: Rates include the Monthly Base Benefit Amount, ALF Benefit and NH Benefit | W4: Rates include the Monthly Base Benefit Amount, ALF Benefit and NH Benefit | AP4: Rates include the Monthly Base Benefit Amount, ALF Benefit and NH Benefit | BI4: Rates include the Monthly Base Benefit Amount, ALF Benefit and NH Benefit | DG4: Rates include the Monthly Base Benefit Amount, ALF Benefit and NH Benefit | DZ4: Rates include the Monthly Base Benefit Amount, ALF Benefit and NH Benefit | FX4: Rates include the Monthly Base Benefit Amount, ALF Benefit and NH Benefit
B5: AL | C5: AL
B6: Joe | C6: Sally | D6: 6 month Benefit Period | W6: 6 month Benefit Period | AP6: 6 month Benefit Period | BI6: 6 month Benefit Period | CB6: 6 month Benefit Period | DG6: 6 month Benefit Period | DZ6: 6 month Benefit Period | ES6: 6 month Benefit Period | FX6: 6 month Benefit Period | GQ6: 6 month Benefit Period
B7: Test | C7: Test | J7: 500 | K7: 750 | L7: 1000 | M7: 1250 | N7: 1500 | O7: 1750 | P7: 2000 | Q7: 2250 | R7: 2500 | S7: 2750 | T7: 3000 | U7: ROP | AC7: 500 | AD7: 750 | AE7: 1000 | AF7: 1250 | AG7: 1500 | AH7: 1750 | AI7: 2000 | AJ7: 2250 | AK7: 2500 | AL7: 2750 | AM7: 3000 | AN7: ROP | AV7: 500 | AW7: 750 | AX7: 1000 | AY7: 1250 | AZ7: 1500 | BA7: 1750 | BB7: 2000 | BC7: 2250 | BD7: 2500 | BE7: 2750 | BF7: 3000 | BG7: ROP | BO7: 500 | BP7: 750 | BQ7: 1000 | BR7: 1250 | BS7: 1500 | BT7: 1750 | BU7: 2000 | BV7: 2250 | BW7: 2500 | BX7: 2750 | BY7: 3000 | BZ7: ROP | CH7: 500 | CI7: 750 | CJ7: 1000 | CK7: 1250 | CL7: 1500 | CM7: 1750 | CN7: 2000 | CO7: 2250 | CP7: 2500 | CQ7: 2750 | CR7: 3000 | CS7: ROP | CT7: 3250 | CU7: 3500 | CV7: 3750 | CW7: 4000 | CX7: 4250 | CY7: 4500 | CZ7: 4750 | DA7: 5000 | DB7: 5250 | DC7: 5500 | DD7: 5750 | DE7: 6000 | DM7: 500 | DN7: 750 | DO7: 1000 | DP7: 1250 | DQ7: 1500 | DR7: 1750 | DS7: 2000 | DT7: 2250 | DU7: 2500 | DV7: 2750 | DW7: 3000 | DX7: ROP | EF7: 500 | EG7: 750 | EH7: 1000 | EI7: 1250 | EJ7: 1500 | EK7: 1750 | EL7: 2000 | EM7: 2250 | EN7: 2500 | EO7: 2750 | EP7: 3000 | EQ7: ROP | EY7: 500 | EZ7: 750 | FA7: 1000 | FB7: 1250 | FC7: 1500 | FD7: 1750 | FE7: 2000 | FF7: 2250 | FG7: 2500 | FH7: 2750 | FI7: 3000 | FJ7: ROP | FK7: 3250 | FL7: 3500 | FM7: 3750 | FN7: 4000 | FO7: 4250 | FP7: 4500 | FQ7: 4750 | FR7: 5000 | FS7: 5250 | FT7: 5500 | FU7: 5750 | FV7: 6000 | GD7: 500 | GE7: 750 | GF7: 1000 | GG7: 1250 | GH7: 1500 | GI7: 1750 | GJ7: 2000 | GK7: 2250 | GL7: 2500 | GM7: 2750 | GN7: 3000 | GO7: ROP | GW7: 500 | GX7: 750 | GY7: 1000 | GZ7: 1250 | HA7: 1500 | HB7: 1750 | HC7: 2000 | HD7: 2250 | HE7: 2500 | HF7: 2750 | HG7: 3000 | HH7: ROP | HI7: 3250 | HJ7: 3500 | HK7: 3750 | HL7: 4000 | HM7: 4250 | HN7: 4500 | HO7: 4750 | HP7: 5000 | HQ7: 5250 | HR7: 5500 | HS7: 5750 | HT7: 6000
B8: 40-49 | C8: 55-59 | I8: A-6 | J8: 2 | K8: 3 | L8: 4 | M8: 5 | N8: 6 | O8: 7 | P8: 8 | Q8: 9 | R8: 10 | S8: 11 | T8: 12 | AB8: A-6 | AC8: 2 | AD8: 3 | AE8: 4 | AF8: 5 | AG8: 6 | AH8: 7 | AI8: 8 | AJ8: 9 | AK8: 10 | AL8: 11 | AM8: 12 | AU8: A-6 | AV8: 2 | AW8: 3 | AX8: 4 | AY8: 5 | AZ8: 6 | BA8: 7 | BB8: 8 | BC8: 9 | BD8: 10 | BE8: 11 | BF8: 12 | BN8: A-6 | BO8: 2 | BP8: 3 | BQ8: 4 | BR8: 5 | BS8: 6 | BT8: 7 | BU8: 8 | BV8: 9 | BW8: 10 | BX8: 11 | BY8: 12 | CG8: A-6 | CH8: 2 | CI8: 3 | CJ8: 4 | CK8: 5 | CL8: 6 | CM8: 7 | CN8: 8 | CO8: 9 | CP8: 10 | CQ8: 11 | CR8: 12 | CT8: 13 | CU8: 14 | CV8: 15 | CW8: 16 | CX8: 17 | CY8: 18 | CZ8: 19 | DA8: 20 | DB8: 21 | DC8: 22 | DD8: 23 | DE8: 24 | DL8: A-6 | DM8: 2 | DN8: 3 | DO8: 4 | DP8: 5 | DQ8: 6 | DR8: 7 | DS8: 8 | DT8: 9 | DU8: 10 | DV8: 11 | DW8: 12 | EE8: A-6 | EF8: 2 | EG8: 3 | EH8: 4 | EI8: 5 | EJ8: 6 | EK8: 7 | EL8: 8 | EM8: 9 | EN8: 10 | EO8: 11 | EP8: 12 | EX8: A-6 | EY8: 2 | EZ8: 3 | FA8: 4 | FB8: 5 | FC8: 6 | FD8: 7 | FE8: 8 | FF8: 9 | FG8: 10 | FH8: 11 | FI8: 12 | FK8: 13 | FL8: 14 | FM8: 15 | FN8: 16 | FO8: 17 | FP8: 18 | FQ8: 19 | FR8: 20 | FS8: 21 | FT8: 22 | FU8: 23 | FV8: 24 | GC8: A-6 | GD8: 2 | GE8: 3 | GF8: 4 | GG8: 5 | GH8: 6 | GI8: 7 | GJ8: 8 | GK8: 9 | GL8: 10 | GM8: 11 | GN8: 12 | GV8: A-6 | GW8: 2 | GX8: 3 | GY8: 4 | GZ8: 5 | HA8: 6 | HB8: 7 | HC8: 8 | HD8: 9 | HE8: 10 | HF8: 11 | HG8: 12 | HI8: 13 | HJ8: 14 | HK8: 15 | HL8: 16 | HM8: 17 | HN8: 18 | HO8: 19 | HP8: 20 | HQ8: 21 | HR8: 22 | HS8: 23 | HT8: 24
B9: No | C9: No | D9: Dependents | F9: 4.16 | G9: 0.14 | H9: D | I9: =CONCATENATE(I$8,"-",H9) -> A-6-D | J9: 8.6 | K9: Dependent benefit is $500 | U9: 1.1 | W9: Dependents | Y9: 3.77 | Z9: 0.12 | AA9: D | AB9: =CONCATENATE(AB$8,"-",AA9) -> A-6-D | AC9: 7.78 | AD9: Dependent benefit is $500 | AN9: 1.1 | AP9: Dependents | AR9: 3.46 | AS9: 0.11 | AT9: D | AU9: =CONCATENATE(AU$8,"-",AT9) -> A-6-D | AV9: 7.14 | AW9: Dependent benefit is $500 | BG9: 1.1 | BI9: Dependents | BK9: 3.19 | BL9: 0.11 | BM9: D | BN9: =CONCATENATE(BN$8,"-",BM9) -> A-6-D | BO9: 6.6 | BP9: Dependent benefit is $500 | BZ9: 1.1 | CB9: Dependents | CD9: 3.46 | CE9: 0 | CF9: D | CG9: =CONCATENATE(CG$8,"-",CF9) -> A-6-D | CH9: 6.92 | CI9: Dependent benefit is $500 | CS9: 1.1 | CU9: Dependent benefit is $500 | DG9: Dependents | DI9: 3.82 | DJ9: 0.12 | DK9: D | DL9: =CONCATENATE(DL$8,"-",DK9) -> A-6-D | DM9: 7.88 | DN9: Dependent benefit is $500 | DX9: 1.1 | DZ9: Dependents | EB9: 3.82 | EC9: 0.12 | ED9: D | EE9: =CONCATENATE(EE$8,"-",ED9) -> A-6-D | EF9: 6.7 | EG9: Dependent benefit is $500 | EQ9: 1.1 | ES9: Dependents | EU9: 3.46 | EV9: 0 | EW9: D | EX9: =CONCATENATE(EX$8,"-",EW9) -> A-6-D | EY9: 8.32 | EZ9: Dependent benefit is $500 | FJ9: 1.1 | FL9: Dependent benefit is $500 | FX9: Dependents | FZ9: 3.82 | GA9: 0.12 | GB9: D | GC9: =CONCATENATE(GC$8,"-",GB9) -> A-6-D | GD9: 99999 | GE9: Dependent benefit is $500 | GO9: 100 | GQ9: Dependents | GS9: 3.46 | GT9: 0 | GU9: D | GV9: =CONCATENATE(GV$8,"-",GU9) -> A-6-D | GW9: 8.58 | GX9: Dependent benefit is $500 | HH9: 100 | HJ9: Dependent benefit is $500
B10: A | C10: C | D10: 18 | E10: 29 | F10: 9.99 | G10: 0.14 | H10: 18-29 | I10: =CONCATENATE(I$8,"-",H10) -> A-6-18-29 | J10: 20.26 | K10: 30.39 | L10: 40.52 | M10: 50.65 | N10: 60.78 | O10: 70.91 | P10: 77.044 | Q10: 86.67 | R10: 96.3 | S10: 105.93 | T10: 115.56 | U10: 1.1 | W10: 18 | X10: 29 | Y10: 8.88 | Z10: 0.12 | AA10: 18-29 | AB10: =CONCATENATE(AB$8,"-",AA10) -> A-6-18-29 | AC10: 18 | AD10: 27 | AE10: 36 | AF10: 45 | AG10: 54 | AH10: 63 | AI10: 68.48 | AJ10: 77.04 | AK10: 85.6 | AL10: 94.16 | AM10: 102.72 | AN10: 1.1 | AP10: 18 | AQ10: 29 | AR10: 8.33 | AS10: 0.11 | AT10: 18-29 | AU10: =CONCATENATE(AU$8,"-",AT10) -> A-6-18-29 | AV10: 16.88 | AW10: 25.32 | AX10: 33.76 | AY10: 42.2 | AZ10: 50.64 | BA10: 59.08 | BB10: 64.16 | BC10: 72.18 | BD10: 80.2 | BE10: 88.22 | BF10: 96.24 | BG10: 1.1 | BI10: 18 | BJ10: 29 | BK10: 7.77 | BL10: 0.11 | BM10: 18-29 | BN10: =CONCATENATE(BN$8,"-",BM10) -> A-6-18-29 | BO10: 15.76 | BP10: 23.64 | BQ10: 31.52 | BR10: 39.4 | BS10: 47.28 | BT10: 55.16 | BU10: 59.92 | BV10: 67.41 | BW10: 74.9 | BX10: 82.39 | BY10: 89.88 | BZ10: 1.1 | CB10: 18 | CC10: 29 | CD10: 8.33 | CE10: 0 | CF10: 18-29 | CG10: =CONCATENATE(CG$8,"-",CF10) -> A-6-18-29 | CH10: 16.66 | CI10: 24.99 | CJ10: 33.32 | CK10: 41.65 | CL10: 49.98 | CM10: 58.31 | CN10: 63.28 | CO10: 71.19 | CP10: 79.1 | CQ10: 87.01 | CR10: 94.92 | CS10: 1.1 | CT10: 102.83 | CU10: 110.74 | CV10: 118.65 | CW10: 126.56 | CX10: 134.47 | CY10: 142.38 | CZ10: 150.29 | DA10: 158.2 | DB10: 166.11 | DC10: 174.02 | DD10: 181.93 | DE10: 189.84 | DG10: 18 | DH10: 29 | DI10: 8.99 | DJ10: 0.12 | DK10: 18-29 | DL10: =CONCATENATE(DL$8,"-",DK10) -> A-6-18-29 | DM10: 18.22 | DN10: 27.33 | DO10: 36.44 | DP10: 45.55 | DQ10: 54.66 | DR10: 63.77 | DS10: 69.28 | DT10: 77.94 | DU10: 86.6 | DV10: 95.26 | DW10: 103.92 | DX10: 1.1 | DZ10: 18 | EA10: 29 | EB10: 8.99 | EC10: 0.12 | ED10: 18-29 | EE10: =CONCATENATE(EE$8,"-",ED10) -> A-6-18-29 | EF10: 16 | EG10: 24 | EH10: 32 | EI10: 40 | EJ10: 48 | EK10: 56 | EL10: 60.88 | EM10: 68.49 | EN10: 76.1 | EO10: 83.71 | EP10: 91.32 | EQ10: 1.1 | ES10: 18 | ET10: 29 | EU10: 8.33 | EV10: 0 | EW10: 18-29 | EX10: =CONCATENATE(EX$8,"-",EW10) -> A-6-18-29 | EY10: 19.98 | EZ10: 29.97 | FA10: 39.96 | FB10: 49.95 | FC10: 59.94 | FD10: 69.93 | FE10: 75.92 | FF10: 85.41 | FG10: 94.9 | FH10: 104.39 | FI10: 113.88 | FJ10: 1.1 | FK10: 123.37 | FL10: 132.86 | FM10: 142.35 | FN10: 151.84 | FO10: 161.33 | FP10: 170.82 | FQ10: 180.31 | FR10: 189.8 | FS10: 199.29 | FT10: 208.78 | FU10: 218.27 | FV10: 227.76 | FX10: 18 | FY10: 29 | FZ10: 8.99 | GA10: 0.12 | GB10: 18-29 | GC10: =CONCATENATE(GC$8,"-",GB10) -> A-6-18-29 | GD10: 99999 | GE10: 99999 | GF10: 99999 | GG10: 99999 | GH10: 99999 | GI10: 99999 | GJ10: 99999 | GK10: 99999 | GL10: 99999 | GM10: 99999 | GN10: 99999 | GO10: 100 | GQ10: 18 | GR10: 29 | GS10: 8.33 | GT10: 0 | GU10: 18-29 | GV10: =CONCATENATE(GV$8,"-",GU10) -> A-6-18-29 | GW10: 28.26 | GX10: 42.39 | GY10: 56.52 | GZ10: 70.65 | HA10: 84.78 | HB10: 98.91 | HC10: 107.39 | HD10: 120.81 | HE10: 134.24 | HF10: 147.66 | HG10: 161.08 | HH10: 100 | HI10: 174.51 | HJ10: 187.93 | HK10: 201.35 | HL10: 214.78 | HM10: 228.2 | HN10: 241.62 | HO10: 255.05 | HP10: 268.47 | HQ10: 281.89 | HR10: 295.32 | HS10: 308.74 | HT10: 322.16
B11: 3000 | C11: 2500 | D11: 30 | E11: 39 | F11: 14.99 | G11: 0.17 | H11: 30-39 | I11: A-6-30-39 | J11: 30.32 | K11: 45.48 | L11: 60.64 | M11: 75.8 | N11: 90.96 | O11: 106.12 | P11: 115.284 | Q11: 129.69 | R11: 144.1 | S11: 158.51 | T11: 172.92 | U11: 1.1 | W11: 30 | X11: 39 | Y11: 13.88 | Z11: 0.15 | AA11: 30-39 | AB11: A-6-30-39 | AC11: 28.06 | AD11: 42.09 | AE11: 56.12 | AF11: 70.15 | AG11: 84.18 | AH11: 98.21 | AI11: 106.72 | AJ11: 120.06 | AK11: 133.4 | AL11: 146.74 | AM11: 160.08 | AN11: 1.1 | AP11: 30 | AQ11: 39 | AR11: 12.77 | AS11: 0.14 | AT11: 30-39 | AU11: A-6-30-39 | AV11: 25.82 | AW11: 38.73 | AX11: 51.64 | AY11: 64.55 | AZ11: 77.46 | BA11: 90.37 | BB11: 98.16 | BC11: 110.43 | BD11: 122.7 | BE11: 134.97 | BF11: 147.24 | BG11: 1.1 | BI11: 30 | BJ11: 39 | BK11: 11.66 | BL11: 0.13 | BM11: 30-39 | BN11: A-6-30-39 | BO11: 23.58 | BP11: 35.37 | BQ11: 47.16 | BR11: 58.95 | BS11: 70.74 | BT11: 82.53 | BU11: 89.68 | BV11: 100.89 | BW11: 112.1 | BX11: 123.31 | BY11: 134.52 | BZ11: 1.1 | CB11: 30 | CC11: 39 | CD11: 12.77 | CE11: 0 | CF11: 30-39 | CG11: A-6-30-39 | CH11: 25.54 | CI11: 38.31 | CJ11: 51.08 | CK11: 63.85 | CL11: 76.62 | CM11: 89.39 | CN11: 97.04 | CO11: 109.17 | CP11: 121.3 | CQ11: 133.43 | CR11: 145.56 | CS11: 1.1 | CT11: 157.69 | CU11: 169.82 | CV11: 181.95 | CW11: 194.08 | CX11: 206.21 | CY11: 218.34 | CZ11: 230.47 | DA11: 242.6 | DB11: 254.73 | DC11: 266.86 | DD11: 278.99 | DE11: 291.12 | DG11: 30 | DH11: 39 | DI11: 14.05 | DJ11: 0.15 | DK11: 30-39 | DL11: A-6-30-39 | DM11: 28.4 | DN11: 42.6 | DO11: 56.8 | DP11: 71 | DQ11: 85.2 | DR11: 99.4 | DS11: 108 | DT11: 121.5 | DU11: 135 | DV11: 148.5 | DW11: 162 | DX11: 1.1 | DZ11: 30 | EA11: 39 | EB11: 14.05 | EC11: 0.15 | ED11: 30-39 | EE11: A-6-30-39 | EF11: 23.92 | EG11: 35.88 | EH11: 47.84 | EI11: 59.8 | EJ11: 71.76 | EK11: 83.72 | EL11: 90.96 | EM11: 102.33 | EN11: 113.7 | EO11: 125.07 | EP11: 136.44 | EQ11: 1.1 | ES11: 30 | ET11: 39 | EU11: 12.77 | EV11: 0 | EW11: 30-39 | EX11: A-6-30-39 | EY11: 29.98 | EZ11: 44.97 | FA11: 59.96 | FB11: 74.95 | FC11: 89.94 | FD11: 104.93 | FE11: 113.92 | FF11: 128.16 | FG11: 142.4 | FH11: 156.64 | FI11: 170.88 | FJ11: 1.1 | FK11: 185.12 | FL11: 199.36 | FM11: 213.6 | FN11: 227.84 | FO11: 242.08 | FP11: 256.32 | FQ11: 270.56 | FR11: 284.8 | FS11: 299.04 | FT11: 313.28 | FU11: 327.52 | FV11: 341.76 | FX11: 30 | FY11: 39 | FZ11: 14.05 | GA11: 0.15 | GB11: 30-39 | GC11: A-6-30-39 | GD11: 99999 | GE11: 99999 | GF11: 99999 | GG11: 99999 | GH11: 99999 | GI11: 99999 | GJ11: 99999 | GK11: 99999 | GL11: 99999 | GM11: 99999 | GN11: 99999 | GO11: 100 | GQ11: 30 | GR11: 39 | GS11: 12.77 | GT11: 0 | GU11: 30-39 | GV11: A-6-30-39 | GW11: 61.78 | GX11: 92.67 | GY11: 123.56 | GZ11: 154.45 | HA11: 185.34 | HB11: 216.23 | HC11: 234.76 | HD11: 264.11 | HE11: 293.46 | HF11: 322.8 | HG11: 352.15 | HH11: 100 | HI11: 381.49 | HJ11: 410.84 | HK11: 440.18 | HL11: 469.53 | HM11: 498.87 | HN11: 528.22 | HO11: 557.56 | HP11: 586.91 | HQ11: 616.26 | HR11: 645.6 | HS11: 674.95 | HT11: 704.29
B12: 24 | C12: 24 | D12: 40 | E12: 49 | F12: 31.08 | G12: 0.34 | H12: 40-49 | I12: A-6-40-49 | J12: 62.84 | K12: 94.26 | L12: 125.68 | M12: 157.1 | N12: 188.52 | O12: 219.94 | P12: 238.96 | Q12: 268.83 | R12: 298.7 | S12: 328.57 | T12: 358.44 | U12: 1.15 | W12: 40 | X12: 49 | Y12: 28.31 | Z12: 0.31 | AA12: 40-49 | AB12: A-6-40-49 | AC12: 57.24 | AD12: 85.86 | AE12: 114.48 | AF12: 143.1 | AG12: 171.72 | AH12: 200.34 | AI12: 217.6 | AJ12: 244.8 | AK12: 272 | AL12: 299.2 | AM12: 326.4 | AN12: 1.15 | AP12: 40 | AQ12: 49 | AR12: 25.53 | AS12: 0.28 | AT12: 40-49 | AU12: A-6-40-49 | AV12: 51.62 | AW12: 77.43 | AX12: 103.24 | AY12: 129.05 | AZ12: 154.86 | BA12: 180.67 | BB12: 196.24 | BC12: 220.77 | BD12: 245.3 | BE12: 269.83 | BF12: 294.36 | BG12: 1.15 | BI12: 40 | BJ12: 49 | BK12: 23.87 | BL12: 0.26 | BM12: 40-49 | BN12: A-6-40-49 | BO12: 48.26 | BP12: 72.39 | BQ12: 96.52 | BR12: 120.65 | BS12: 144.78 | BT12: 168.91 | BU12: 183.52 | BV12: 206.46 | BW12: 229.4 | BX12: 252.34 | BY12: 275.28 | BZ12: 1.15 | CB12: 40 | CC12: 49 | CD12: 25.53 | CE12: 0 | CF12: 40-49 | CG12: A-6-40-49 | CH12: 51.06 | CI12: 76.59 | CJ12: 102.12 | CK12: 127.65 | CL12: 153.18 | CM12: 178.71 | CN12: 194 | CO12: 218.25 | CP12: 242.5 | CQ12: 266.75 | CR12: 291 | CS12: 1.15 | CT12: 315.25 | CU12: 339.5 | CV12: 363.75 | CW12: 388 | CX12: 412.25 | CY12: 436.5 | CZ12: 460.75 | DA12: 485 | DB12: 509.25 | DC12: 533.5 | DD12: 557.75 | DE12: 582 | DG12: 40 | DH12: 49 | DI12: 28.66 | DJ12: 0.31 | DK12: 40-49 | DL12: A-6-40-49 | DM12: 57.94 | DN12: 86.91 | DO12: 115.88 | DP12: 144.85 | DQ12: 173.82 | DR12: 202.79 | DS12: 220.32 | DT12: 247.86 | DU12: 275.4 | DV12: 302.94 | DW12: 330.48 | DX12: 1.15 | DZ12: 40 | EA12: 49 | EB12: 28.66 | EC12: 0.31 | ED12: 40-49 | EE12: A-6-40-49 | EF12: 48.98 | EG12: 73.47 | EH12: 97.96 | EI12: 122.45 | EJ12: 146.94 | EK12: 171.43 | EL12: 186.24 | EM12: 209.52 | EN12: 232.8 | EO12: 256.08 | EP12: 279.36 | EQ12: 1.15 | ES12: 40 | ET12: 49 | EU12: 25.53 | EV12: 0 | EW12: 40-49 | EX12: A-6-40-49 | EY12: 62.16 | EZ12: 93.24 | FA12: 124.32 | FB12: 155.4 | FC12: 186.48 | FD12: 217.56 | FE12: 236.24 | FF12: 265.77 | FG12: 295.3 | FH12: 324.83 | FI12: 354.36 | FJ12: 1.15 | FK12: 383.89 | FL12: 413.42 | FM12: 442.95 | FN12: 472.48 | FO12: 502.01 | FP12: 531.54 | FQ12: 561.07 | FR12: 590.6 | FS12: 620.13 | FT12: 649.66 | FU12: 679.19 | FV12: 708.72 | FX12: 40 | FY12: 49 | FZ12: 28.66 | GA12: 0.31 | GB12: 40-49 | GC12: A-6-40-49 | GD12: 99999 | GE12: 99999 | GF12: 99999 | GG12: 99999 | GH12: 99999 | GI12: 99999 | GJ12: 99999 | GK12: 99999 | GL12: 99999 | GM12: 99999 | GN12: 99999 | GO12: 100 | GQ12: 40 | GR12: 49 | GS12: 25.53 | GT12: 0 | GU12: 40-49 | GV12: A-6-40-49 | GW12: 118.81 | GX12: 178.23 | GY12: 237.64 | GZ12: 297.05 | HA12: 356.46 | HB12: 415.87 | HC12: 451.52 | HD12: 507.96 | HE12: 564.4 | HF12: 620.83 | HG12: 677.27 | HH12: 100 | HI12: 733.71 | HJ12: 790.15 | HK12: 846.59 | HL12: 903.03 | HM12: 959.47 | HN12: 1015.91 | HO12: 1072.35 | HP12: 1128.79 | HQ12: 1185.23 | HR12: 1241.67 | HS12: 1298.11 | HT12: 1354.55
B13: Yes | C13: Yes | D13: 50 | E13: 54 | F13: 51.06 | G13: 0.99 | H13: 50-54 | I13: A-6-50-54 | J13: 104.1 | K13: 156.15 | L13: 208.2 | M13: 260.25 | N13: 312.3 | O13: 364.35 | P13: 396 | Q13: 445.5 | R13: 495 | S13: 544.5 | T13: 594 | U13: 1.15 | W13: 50 | X13: 54 | Y13: 46.07 | Z13: 0.89 | AA13: 50-54 | AB13: A-6-50-54 | AC13: 93.92 | AD13: 140.88 | AE13: 187.84 | AF13: 234.8 | AG13: 281.76 | AH13: 328.72 | AI13: 357.28 | AJ13: 401.94 | AK13: 446.6 | AL13: 491.26 | AM13: 535.92 | AN13: 1.15 | AP13: 50 | AQ13: 54 | AR13: 42.18 | AS13: 0.82 | AT13: 50-54 | AU13: A-6-50-54 | AV13: 86 | AW13: 129 | AX13: 172 | AY13: 215 | AZ13: 258 | BA13: 301 | BB13: 327.12 | BC13: 368.01 | BD13: 408.9 | BE13: 449.79 | BF13: 490.68 | BG13: 1.15 | BI13: 50 | BJ13: 54 | BK13: 38.85 | BL13: 0.75 | BM13: 50-54 | BN13: A-6-50-54 | BO13: 79.2 | BP13: 118.8 | BQ13: 158.4 | BR13: 198 | BS13: 237.6 | BT13: 277.2 | BU13: 301.28 | BV13: 338.94 | BW13: 376.6 | BX13: 414.26 | BY13: 451.92 | BZ13: 1.15 | CB13: 50 | CC13: 54 | CD13: 42.18 | CE13: 0 | CF13: 50-54 | CG13: A-6-50-54 | CH13: 84.36 | CI13: 126.54 | CJ13: 168.72 | CK13: 210.9 | CL13: 253.08 | CM13: 295.26 | CN13: 320.56 | CO13: 360.63 | CP13: 400.7 | CQ13: 440.77 | CR13: 480.84 | CS13: 1.15 | CT13: 520.91 | CU13: 560.98 | CV13: 601.05 | CW13: 641.12 | CX13: 681.19 | CY13: 721.26 | CZ13: 761.33 | DA13: 801.4 | DB13: 841.47 | DC13: 881.54 | DD13: 921.61 | DE13: 961.68 | DG13: 50 | DH13: 54 | DI13: 46.64 | DJ13: 0.9 | DK13: 50-54 | DL13: A-6-50-54 | DM13: 95.08 | DN13: 142.62 | DO13: 190.16 | DP13: 237.7 | DQ13: 285.24 | DR13: 332.78 | DS13: 361.68 | DT13: 406.89 | DU13: 452.1 | DV13: 497.31 | DW13: 542.52 | DX13: 1.15 | DZ13: 50 | EA13: 54 | EB13: 46.64 | EC13: 0.9 | ED13: 50-54 | EE13: A-6-50-54 | EF13: 80.38 | EG13: 120.57 | EH13: 160.76 | EI13: 200.95 | EJ13: 241.14 | EK13: 281.33 | EL13: 305.76 | EM13: 343.98 | EN13: 382.2 | EO13: 420.42 | EP13: 458.64 | EQ13: 1.15 | ES13: 50 | ET13: 54 | EU13: 42.18 | EV13: 0 | EW13: 50-54 | EX13: A-6-50-54 | EY13: 102.12 | EZ13: 153.18 | FA13: 204.24 | FB13: 255.3 | FC13: 306.36 | FD13: 357.42 | FE13: 388.08 | FF13: 436.59 | FG13: 485.1 | FH13: 533.61 | FI13: 582.12 | FJ13: 1.15 | FK13: 630.63 | FL13: 679.14 | FM13: 727.65 | FN13: 776.16 | FO13: 824.67 | FP13: 873.18 | FQ13: 921.69 | FR13: 970.2 | FS13: 1018.71 | FT13: 1067.22 | FU13: 1115.73 | FV13: 1164.24 | FX13: 50 | FY13: 54 | FZ13: 46.64 | GA13: 0.9 | GB13: 50-54 | GC13: A-6-50-54 | GD13: 99999 | GE13: 99999 | GF13: 99999 | GG13: 99999 | GH13: 99999 | GI13: 99999 | GJ13: 99999 | GK13: 99999 | GL13: 99999 | GM13: 99999 | GN13: 99999 | GO13: 100 | GQ13: 50 | GR13: 54 | GS13: 42.18 | GT13: 0 | GU13: 50-54 | GV13: A-6-50-54 | GW13: 171.1 | GX13: 256.65 | GY13: 342.2 | GZ13: 427.75 | HA13: 513.3 | HB13: 598.85 | HC13: 650.18 | HD13: 731.45 | HE13: 812.73 | HF13: 894 | HG13: 975.27 | HH13: 100 | HI13: 1056.54 | HJ13: 1137.82 | HK13: 1219.09 | HL13: 1300.36 | HM13: 1381.63 | HN13: 1462.91 | HO13: 1544.18 | HP13: 1625.45 | HQ13: 1706.72 | HR13: 1788 | HS13: 1869.27 | HT13: 1950.54
B14: 1 | C14: 1 | D14: 55 | E14: 59 | F14: 69.38 | G14: 2 | H14: 55-59 | I14: A-6-55-59 | J14: 142.76 | K14: 214.14 | L14: 285.52 | M14: 356.9 | N14: 428.28 | O14: 499.66 | P14: 543.28 | Q14: 611.19 | R14: 679.1 | S14: 747.01 | T14: 814.92 | U14: 1.2 | W14: 55 | X14: 59 | Y14: 62.72 | Z14: 1.81 | AA14: 55-59 | AB14: A-6-55-59 | AC14: 129.06 | AD14: 193.59 | AE14: 258.12 | AF14: 322.65 | AG14: 387.18 | AH14: 451.71 | AI14: 491.12 | AJ14: 552.51 | AK14: 613.9 | AL14: 675.29 | AM14: 736.68 | AN14: 1.2 | AP14: 55 | AQ14: 59 | AR14: 57.72 | AS14: 1.66 | AT14: 55-59 | AU14: A-6-55-59 | AV14: 118.76 | AW14: 178.14 | AX14: 237.52 | AY14: 296.9 | AZ14: 356.28 | BA14: 415.66 | BB14: 451.92 | BC14: 508.41 | BD14: 564.9 | BE14: 621.39 | BF14: 677.88 | BG14: 1.2 | BI14: 55 | BJ14: 59 | BK14: 53.28 | BL14: 1.53 | BM14: 55-59 | BN14: A-6-55-59 | BO14: 109.62 | BP14: 164.43 | BQ14: 219.24 | BR14: 274.05 | BS14: 328.86 | BT14: 383.67 | BU14: 417.2 | BV14: 469.35 | BW14: 521.5 | BX14: 573.65 | BY14: 625.8 | BZ14: 1.2 | CB14: 55 | CC14: 59 | CD14: 57.72 | CE14: 0 | CF14: 55-59 | CG14: A-6-55-59 | CH14: 115.44 | CI14: 173.16 | CJ14: 230.88 | CK14: 288.6 | CL14: 346.32 | CM14: 404.04 | CN14: 438.64 | CO14: 493.47 | CP14: 548.3 | CQ14: 603.13 | CR14: 657.96 | CS14: 1.2 | CT14: 712.79 | CU14: 767.62 | CV14: 822.45 | CW14: 877.28 | CX14: 932.11 | CY14: 986.94 | CZ14: 1041.77 | DA14: 1096.6 | DB14: 1151.43 | DC14: 1206.26 | DD14: 1261.09 | DE14: 1315.92 | DG14: 55 | DH14: 59 | DI14: 63.5 | DJ14: 1.83 | DK14: 55-59 | DL14: A-6-55-59 | DM14: 130.66 | DN14: 195.99 | DO14: 261.32 | DP14: 326.65 | DQ14: 391.98 | DR14: 457.31 | DS14: 497.28 | DT14: 559.44 | DU14: 621.6 | DV14: 683.76 | DW14: 745.92 | DX14: 1.2 | DZ14: 55 | EA14: 59 | EB14: 63.5 | EC14: 1.83 | ED14: 55-59 | EE14: A-6-55-59 | EF14: 111.26 | EG14: 166.89 | EH14: 222.52 | EI14: 278.15 | EJ14: 333.78 | EK14: 389.41 | EL14: 423.44 | EM14: 476.37 | EN14: 529.3 | EO14: 582.23 | EP14: 635.16 | EQ14: 1.2 | ES14: 55 | ET14: 59 | EU14: 57.72 | EV14: 0 | EW14: 55-59 | EX14: A-6-55-59 | EY14: 138.76 | EZ14: 208.14 | FA14: 277.52 | FB14: 346.9 | FC14: 416.28 | FD14: 485.66 | FE14: 527.28 | FF14: 593.19 | FG14: 659.1 | FH14: 725.01 | FI14: 790.92 | FJ14: 1.2 | FK14: 856.83 | FL14: 922.74 | FM14: 988.65 | FN14: 1054.56 | FO14: 1120.47 | FP14: 1186.38 | FQ14: 1252.29 | FR14: 1318.2 | FS14: 1384.11 | FT14: 1450.02 | FU14: 1515.93 | FV14: 1581.84 | FX14: 55 | FY14: 59 | FZ14: 63.5 | GA14: 1.83 | GB14: 55-59 | GC14: A-6-55-59 | GD14: 99999 | GE14: 99999 | GF14: 99999 | GG14: 99999 | GH14: 99999 | GI14: 99999 | GJ14: 99999 | GK14: 99999 | GL14: 99999 | GM14: 99999 | GN14: 99999 | GO14: 100 | GQ14: 55 | GR14: 59 | GS14: 57.72 | GT14: 0 | GU14: 55-59 | GV14: A-6-55-59 | GW14: 210.86 | GX14: 316.29 | GY14: 421.72 | GZ14: 527.15 | HA14: 632.58 | HB14: 738.01 | HC14: 801.27 | HD14: 901.43 | HE14: 1001.59 | HF14: 1101.74 | HG14: 1201.9 | HH14: 100 | HI14: 1302.06 | HJ14: 1402.22 | HK14: 1502.38 | HL14: 1602.54 | HM14: 1702.69 | HN14: 1802.85 | HO14: 1903.01 | HP14: 2003.17 | HQ14: 2103.33 | HR14: 2203.49 | HS14: 2303.65 | HT14: 2403.8
B15: Yes | D15: 60 | E15: 64 | F15: 91.02 | G15: 3.64 | H15: 60-64 | I15: A-6-60-64 | J15: 189.32 | K15: 283.98 | L15: 378.64 | M15: 473.3 | N15: 567.96 | O15: 662.62 | P15: 720.88 | Q15: 810.99 | R15: 901.1 | S15: 991.21 | T15: 1081.32 | U15: 1.25 | W15: 60 | X15: 64 | Y15: 82.7 | Z15: 3.29 | AA15: 60-64 | AB15: A-6-60-64 | AC15: 171.98 | AD15: 257.97 | AE15: 343.96 | AF15: 429.95 | AG15: 515.94 | AH15: 601.93 | AI15: 654.88 | AJ15: 736.74 | AK15: 818.6 | AL15: 900.46 | AM15: 982.32 | AN15: 1.25 | AP15: 60 | AQ15: 64 | AR15: 75.48 | AS15: 3.02 | AT15: 60-64 | AU15: A-6-60-64 | AV15: 157 | AW15: 235.5 | AX15: 314 | AY15: 392.5 | AZ15: 471 | BA15: 549.5 | BB15: 597.84 | BC15: 672.57 | BD15: 747.3 | BE15: 822.03 | BF15: 896.76 | BG15: 1.25 | BI15: 60 | BJ15: 64 | BK15: 69.93 | BL15: 2.78 | BM15: 60-64 | BN15: A-6-60-64 | BO15: 145.42 | BP15: 218.13 | BQ15: 290.84 | BR15: 363.55 | BS15: 436.26 | BT15: 508.97 | BU15: 553.68 | BV15: 622.89 | BW15: 692.1 | BX15: 761.31 | BY15: 830.52 | BZ15: 1.22 | CB15: 60 | CC15: 64 | CD15: 75.48 | CE15: 0 | CF15: 60-64 | CG15: A-6-60-64 | CH15: 150.96 | CI15: 226.44 | CJ15: 301.92 | CK15: 377.4 | CL15: 452.88 | CM15: 528.36 | CN15: 573.68 | CO15: 645.39 | CP15: 717.1 | CQ15: 788.81 | CR15: 860.52 | CS15: 1.25 | CT15: 932.23 | CU15: 1003.94 | CV15: 1075.65 | CW15: 1147.36 | CX15: 1219.07 | CY15: 1290.78 | CZ15: 1362.49 | DA15: 1434.2 | DB15: 1505.91 | DC15: 1577.62 | DD15: 1649.33 | DE15: 1721.04 | DG15: 60 | DH15: 64 | DI15: 83.73 | DJ15: 3.33 | DK15: 60-64 | DL15: A-6-60-64 | DM15: 174.12 | DN15: 261.18 | DO15: 348.24 | DP15: 435.3 | DQ15: 522.36 | DR15: 609.42 | DS15: 662.96 | DT15: 745.83 | DU15: 828.7 | DV15: 911.57 | DW15: 994.44 | DX15: 1.25 | DZ15: 60 | EA15: 64 | EB15: 83.73 | EC15: 3.33 | ED15: 60-64 | EE15: A-6-60-64 | EF15: 147.6 | EG15: 221.4 | EH15: 295.2 | EI15: 369 | EJ15: 442.8 | EK15: 516.6 | EL15: 562 | EM15: 632.25 | EN15: 702.5 | EO15: 772.75 | EP15: 843 | EQ15: 1.25 | ES15: 60 | ET15: 64 | EU15: 75.48 | EV15: 0 | EW15: 60-64 | EX15: A-6-60-64 | EY15: 182.04 | EZ15: 273.06 | FA15: 364.08 | FB15: 455.1 | FC15: 546.12 | FD15: 637.14 | FE15: 691.76 | FF15: 778.23 | FG15: 864.7 | FH15: 951.17 | FI15: 1037.64 | FJ15: 1.25 | FK15: 1124.11 | FL15: 1210.58 | FM15: 1297.05 | FN15: 1383.52 | FO15: 1469.99 | FP15: 1556.46 | FQ15: 1642.93 | FR15: 1729.4 | FS15: 1815.87 | FT15: 1902.34 | FU15: 1988.81 | FV15: 2075.28 | FX15: 60 | FY15: 64 | FZ15: 83.73 | GA15: 3.33 | GB15: 60-64 | GC15: A-6-60-64 | GD15: 198.6 | GE15: 297.9 | GF15: 397.2 | GG15: 496.5 | GH15: 595.8 | GI15: 695.1 | GJ15: 756.16 | GK15: 850.68 | GL15: 945.2 | GM15: 1039.72 | GN15: 1134.24 | GO15: 1.25 | GQ15: 60 | GR15: 64 | GS15: 75.48 | GT15: 0 | GU15: 60-64 | GV15: A-6-60-64 | GW15: 252.88 | GX15: 379.32 | GY15: 505.76 | GZ15: 632.2 | HA15: 758.64 | HB15: 885.08 | HC15: 960.94 | HD15: 1081.06 | HE15: 1201.18 | HF15: 1321.3 | HG15: 1441.42 | HH15: 100 | HI15: 1561.53 | HJ15: 1681.65 | HK15: 1801.77 | HL15: 1921.89 | HM15: 2042.01 | HN15: 2162.12 | HO15: 2282.24 | HP15: 2402.36 | HQ15: 2522.48 | HR15: 2642.6 | HS15: 2762.71 | HT15: 2882.83
B16: Yes | D16: 65 | E16: 69 | F16: 114.89 | G16: 6.85 | H16: 65-69 | I16: A-6-65-69 | J16: 243.48 | K16: 365.22 | L16: 486.96 | M16: 608.7 | N16: 730.44 | O16: 852.18 | P16: 928 | Q16: 1044 | R16: 1160 | S16: 1276 | T16: 1392 | U16: 1.25 | W16: 65 | X16: 69 | Y16: 104.34 | Z16: 6.2 | AA16: 65-69 | AB16: A-6-65-69 | AC16: 221.08 | AD16: 331.62 | AE16: 442.16 | AF16: 552.7 | AG16: 663.24 | AH16: 773.78 | AI16: 842.56 | AJ16: 947.88 | AK16: 1053.2 | AL16: 1158.52 | AM16: 1263.84 | AN16: 1.25 | AP16: 65 | AQ16: 69 | AR16: 95.46 | AS16: 5.69 | AT16: 65-69 | AU16: A-6-65-69 | AV16: 202.3 | AW16: 303.45 | AX16: 404.6 | AY16: 505.75 | AZ16: 606.9 | BA16: 708.05 | BB16: 771.04 | BC16: 867.42 | BD16: 963.8 | BE16: 1060.18 | BF16: 1156.56 | BG16: 1.25 | BI16: 65 | BJ16: 69 | BK16: 88.25 | BL16: 5.24 | BM16: 65-69 | BN16: A-6-65-69 | BO16: 186.98 | BP16: 280.47 | BQ16: 373.96 | BR16: 467.45 | BS16: 560.94 | BT16: 654.43 | BU16: 712.64 | BV16: 801.72 | BW16: 890.8 | BX16: 979.88 | BY16: 1068.96 | BZ16: 1.22 | CB16: 65 | CC16: 69 | CD16: 95.46 | CE16: 0 | CF16: 65-69 | CG16: A-6-65-69 | CH16: 190.92 | CI16: 286.38 | CJ16: 381.84 | CK16: 477.3 | CL16: 572.76 | CM16: 668.22 | CN16: 725.52 | CO16: 816.21 | CP16: 906.9 | CQ16: 997.59 | CR16: 1088.28 | CS16: 1.25 | CT16: 1178.97 | CU16: 1269.66 | CV16: 1360.35 | CW16: 1451.04 | CX16: 1541.73 | CY16: 1632.42 | CZ16: 1723.11 | DA16: 1813.8 | DB16: 1904.49 | DC16: 1995.18 | DD16: 2085.87 | DE16: 2176.56 | DG16: 65 | DH16: 69 | DI16: 105.64 | DJ16: 6.28 | DK16: 65-69 | DL16: A-6-65-69 | DM16: 223.84 | DN16: 335.76 | DO16: 447.68 | DP16: 559.6 | DQ16: 671.52 | DR16: 783.44 | DS16: 853.12 | DT16: 959.76 | DU16: 1066.4 | DV16: 1173.04 | DW16: 1279.68 | DX16: 1.25 | DZ16: 65 | EA16: 69 | EB16: 105.64 | EC16: 6.28 | ED16: 65-69 | EE16: A-6-65-69 | EF16: 189.78 | EG16: 284.67 | EH16: 379.56 | EI16: 474.45 | EJ16: 569.34 | EK16: 664.23 | EL16: 723.28 | EM16: 813.69 | EN16: 904.1 | EO16: 994.51 | EP16: 1084.92 | EQ16: 1.25 | ES16: 65 | ET16: 69 | EU16: 95.46 | EV16: 0 | EW16: 65-69 | EX16: A-6-65-69 | EY16: 229.78 | EZ16: 344.67 | FA16: 459.56 | FB16: 574.45 | FC16: 689.34 | FD16: 804.23 | FE16: 873.2 | FF16: 982.35 | FG16: 1091.5 | FH16: 1200.65 | FI16: 1309.8 | FJ16: 1.25 | FK16: 1418.95 | FL16: 1528.1 | FM16: 1637.25 | FN16: 1746.4 | FO16: 1855.55 | FP16: 1964.7 | FQ16: 2073.85 | FR16: 2183 | FS16: 2292.15 | FT16: 2401.3 | FU16: 2510.45 | FV16: 2619.6 | FX16: 65 | FY16: 69 | FZ16: 105.64 | GA16: 6.28 | GB16: 65-69 | GC16: A-6-65-69 | GD16: 255.22 | GE16: 382.83 | GF16: 510.44 | GG16: 638.05 | GH16: 765.66 | GI16: 893.27 | GJ16: 972.56 | GK16: 1094.13 | GL16: 1215.7 | GM16: 1337.27 | GN16: 1458.84 | GO16: 1.25 | GQ16: 65 | GR16: 69 | GS16: 95.46 | GT16: 0 | GU16: 65-69 | GV16: A-6-65-69 | GW16: 285.4 | GX16: 428.1 | GY16: 570.8 | GZ16: 713.5 | HA16: 856.2 | HB16: 998.9 | HC16: 1084.52 | HD16: 1220.09 | HE16: 1355.65 | HF16: 1491.22 | HG16: 1626.78 | HH16: 100 | HI16: 1762.35 | HJ16: 1897.91 | HK16: 2033.48 | HL16: 2169.04 | HM16: 2304.61 | HN16: 2440.17 | HO16: 2575.74 | HP16: 2711.3 | HQ16: 2846.87 | HR16: 2982.43 | HS16: 3118 | HT16: 3253.56
B17: 2 | D17: 70 | E17: 74 | F17: 137.64 | G17: 11.77 | H17: 70-74 | I17: A-6-70-74 | J17: 298.82 | K17: 448.23 | L17: 597.64 | M17: 747.05 | N17: 896.46 | O17: 1045.87 | P17: 1140.24 | Q17: 1282.77 | R17: 1425.3 | S17: 1567.83 | T17: 1710.36 | U17: N/A | W17: 70 | X17: 74 | Y17: 124.88 | Z17: 10.66 | AA17: 70-74 | AB17: A-6-70-74 | AC17: 271.08 | AD17: 406.62 | AE17: 542.16 | AF17: 677.7 | AG17: 813.24 | AH17: 948.78 | AI17: 1034.4 | AJ17: 1163.7 | AK17: 1293 | AL17: 1422.3 | AM17: 1551.6 | AN17: N/A | AP17: 70 | AQ17: 74 | AR17: 114.33 | AS17: 9.78 | AT17: 70-74 | AU17: A-6-70-74 | AV17: 248.22 | AW17: 372.33 | AX17: 496.44 | AY17: 620.55 | AZ17: 744.66 | BA17: 868.77 | BB17: 947.12 | BC17: 1065.51 | BD17: 1183.9 | BE17: 1302.29 | BF17: 1420.68 | BG17: N/A | BI17: 70 | BJ17: 74 | BK17: 105.45 | BL17: 9.01 | BM17: 70-74 | BN17: A-6-70-74 | BO17: 228.92 | BP17: 343.38 | BQ17: 457.84 | BR17: 572.3 | BS17: 686.76 | BT17: 801.22 | BU17: 873.52 | BV17: 982.71 | BW17: 1091.9 | BX17: 1201.09 | BY17: 1310.28 | BZ17: N/A | CB17: 70 | CC17: 74 | CD17: 114.33 | CE17: 0 | CF17: 70-74 | CG17: A-6-70-74 | CH17: 228.66 | CI17: 342.99 | CJ17: 457.32 | CK17: 571.65 | CL17: 685.98 | CM17: 800.31 | CN17: 868.88 | CO17: 977.49 | CP17: 1086.1 | CQ17: 1194.71 | CR17: 1303.32 | CS17: N/A | CT17: 1411.93 | CU17: 1520.54 | CV17: 1629.15 | CW17: 1737.76 | CX17: 1846.37 | CY17: 1954.98 | CZ17: 2063.59 | DA17: 2172.2 | DB17: 2280.81 | DC17: 2389.42 | DD17: 2498.03 | DE17: 2606.64 | DG17: 70 | DH17: 74 | DI17: 126.43 | DJ17: 10.79 | DK17: 70-74 | DL17: A-6-70-74 | DM17: 274.44 | DN17: 411.66 | DO17: 548.88 | DP17: 686.1 | DQ17: 823.32 | DR17: 960.54 | DS17: 1047.2 | DT17: 1178.1 | DU17: 1309 | DV17: 1439.9 | DW17: 1570.8 | DX17: N/A | DZ17: 70 | EA17: 74 | EB17: 126.43 | EC17: 10.79 | ED17: 70-74 | EE17: A-6-70-74 | EF17: 232.36 | EG17: 348.54 | EH17: 464.72 | EI17: 580.9 | EJ17: 697.08 | EK17: 813.26 | EL17: 886.64 | EM17: 997.47 | EN17: 1108.3 | EO17: 1219.13 | EP17: 1329.96 | EQ17: N/A | ES17: 70 | ET17: 74 | EU17: 114.33 | EV17: 0 | EW17: 70-74 | EX17: A-6-70-74 | EY17: 275.28 | EZ17: 412.92 | FA17: 550.56 | FB17: 688.2 | FC17: 825.84 | FD17: 963.48 | FE17: 1046.08 | FF17: 1176.84 | FG17: 1307.6 | FH17: 1438.36 | FI17: 1569.12 | FJ17: N/A | FK17: 1699.88 | FL17: 1830.64 | FM17: 1961.4 | FN17: 2092.16 | FO17: 2222.92 | FP17: 2353.68 | FQ17: 2484.44 | FR17: 2615.2 | FS17: 2745.96 | FT17: 2876.72 | FU17: 3007.48 | FV17: 3138.24 | FX17: 70 | FY17: 74 | FZ17: 126.43 | GA17: 10.79 | GB17: 70-74 | GC17: A-6-70-74 | GD17: 312.64 | GE17: 468.96 | GF17: 625.28 | GG17: 781.6 | GH17: 937.92 | GI17: 1094.24 | GJ17: 1192.72 | GK17: 1341.81 | GL17: 1490.9 | GM17: 1639.99 | GN17: 1789.08 | GO17: N/A | GQ17: 70 | GR17: 74 | GS17: 114.33 | GT17: 0 | GU17: 70-74 | GV17: A-6-70-74 | GW17: 305.92 | GX17: 458.88 | GY17: 611.84 | GZ17: 764.8 | HA17: 917.76 | HB17: 1070.72 | HC17: 1162.5 | HD17: 1307.81 | HE17: 1453.12 | HF17: 1598.43 | HG17: 1743.74 | HH17: N/A | HI17: 1889.06 | HJ17: 2034.37 | HK17: 2179.68 | HL17: 2324.99 | HM17: 2470.3 | HN17: 2615.62 | HO17: 2760.93 | HP17: 2906.24 | HQ17: 3051.55 | HR17: 3196.86 | HS17: 3342.18 | HT17: 3487.49
B18: 18 | D18: 75 | E18: 79 | F18: 157.07 | G18: 19.25 | H18: 75-79 | I18: A-6-75-79 | J18: 352.64 | K18: 528.96 | L18: 705.28 | M18: 881.6 | N18: 1057.92 | O18: 1234.24 | P18: 1347.76 | Q18: 1516.23 | R18: 1684.7 | S18: 1853.17 | T18: 2021.64 | U18: N/A | W18: 75 | X18: 79 | Y18: 142.64 | Z18: 17.44 | AA18: 75-79 | AB18: A-6-75-79 | AC18: 320.16 | AD18: 480.24 | AE18: 640.32 | AF18: 800.4 | AG18: 960.48 | AH18: 1120.56 | AI18: 1223.6 | AJ18: 1376.55 | AK18: 1529.5 | AL18: 1682.45 | AM18: 1835.4 | AN18: N/A | AP18: 75 | AQ18: 79 | AR18: 130.98 | AS18: 16 | AT18: 75-79 | AU18: A-6-75-79 | AV18: 293.96 | AW18: 440.94 | AX18: 587.92 | AY18: 734.9 | AZ18: 881.88 | BA18: 1028.86 | BB18: 1123.44 | BC18: 1263.87 | BD18: 1404.3 | BE18: 1544.73 | BF18: 1685.16 | BG18: N/A | BI18: 75 | BJ18: 79 | BK18: 120.44 | BL18: 14.75 | BM18: 75-79 | BN18: A-6-75-79 | BO18: 270.38 | BP18: 405.57 | BQ18: 540.76 | BR18: 675.95 | BS18: 811.14 | BT18: 946.33 | BU18: 1033.36 | BV18: 1162.53 | BW18: 1291.7 | BX18: 1420.87 | BY18: 1550.04 | BZ18: N/A | CB18: 75 | CC18: 79 | CD18: 130.98 | CE18: 0 | CF18: 75-79 | CG18: A-6-75-79 | CH18: 261.96 | CI18: 392.94 | CJ18: 523.92 | CK18: 654.9 | CL18: 785.88 | CM18: 916.86 | CN18: 995.44 | CO18: 1119.87 | CP18: 1244.3 | CQ18: 1368.73 | CR18: 1493.16 | CS18: N/A | CT18: 1617.59 | CU18: 1742.02 | CV18: 1866.45 | CW18: 1990.88 | CX18: 2115.31 | CY18: 2239.74 | CZ18: 2364.17 | DA18: 2488.6 | DB18: 2613.03 | DC18: 2737.46 | DD18: 2861.89 | DE18: 2986.32 | DG18: 75 | DH18: 79 | DI18: 144.42 | DJ18: 17.66 | DK18: 75-79 | DL18: A-6-75-79 | DM18: 324.16 | DN18: 486.24 | DO18: 648.32 | DP18: 810.4 | DQ18: 972.48 | DR18: 1134.56 | DS18: 1238.88 | DT18: 1393.74 | DU18: 1548.6 | DV18: 1703.46 | DW18: 1858.32 | DX18: N/A | DZ18: 75 | EA18: 79 | EB18: 144.42 | EC18: 17.66 | ED18: 75-79 | EE18: A-6-75-79 | EF18: 274.42 | EG18: 411.63 | EH18: 548.84 | EI18: 686.05 | EJ18: 823.26 | EK18: 960.47 | EL18: 1048.8 | EM18: 1179.9 | EN18: 1311 | EO18: 1442.1 | EP18: 1573.2 | EQ18: N/A | ES18: 75 | ET18: 79 | EU18: 130.98 | EV18: 0 | EW18: 75-79 | EX18: A-6-75-79 | EY18: 314.14 | EZ18: 471.21 | FA18: 628.28 | FB18: 785.35 | FC18: 942.42 | FD18: 1099.49 | FE18: 1193.76 | FF18: 1342.98 | FG18: 1492.2 | FH18: 1641.42 | FI18: 1790.64 | FJ18: N/A | FK18: 1939.86 | FL18: 2089.08 | FM18: 2238.3 | FN18: 2387.52 | FO18: 2536.74 | FP18: 2685.96 | FQ18: 2835.18 | FR18: 2984.4 | FS18: 3133.62 | FT18: 3282.84 | FU18: 3432.06 | FV18: 3581.28 | FX18: 75 | FY18: 79 | FZ18: 144.42 | GA18: 17.66 | GB18: 75-79 | GC18: A-6-75-79 | GD18: 368.82 | GE18: 553.23 | GF18: 737.64 | GG18: 922.05 | GH18: 1106.46 | GI18: 1290.87 | GJ18: 1409.2 | GK18: 1585.35 | GL18: 1761.5 | GM18: 1937.65 | GN18: 2113.8 | GO18: N/A | GQ18: 75 | GR18: 79 | GS18: 130.98 | GT18: 0 | GU18: 75-79 | GV18: A-6-75-79 | GW18: 318.92 | GX18: 478.38 | GY18: 637.84 | GZ18: 797.3 | HA18: 956.76 | HB18: 1116.22 | HC18: 1211.9 | HD18: 1363.38 | HE18: 1514.87 | HF18: 1666.36 | HG18: 1817.84 | HH18: N/A | HI18: 1969.33 | HJ18: 2120.82 | HK18: 2272.31 | HL18: 2423.79 | HM18: 2575.28 | HN18: 2726.77 | HO18: 2878.25 | HP18: 3029.74 | HQ18: 3181.23 | HR18: 3332.71 | HS18: 3484.2 | HT18: 3635.69
D19: 80 | E19: 84 | F19: 166.5 | G19: 29.1 | H19: 80-84 | I19: A-6-80-84 | J19: 391.2 | K19: 586.8 | L19: 782.4 | M19: 978 | N19: 1173.6 | O19: 1369.2 | P19: 1498.24 | Q19: 1685.52 | R19: 1872.8 | S19: 2060.08 | T19: 2247.36 | U19: N/A | W19: 80 | X19: 84 | Y19: 150.96 | Z19: 26.36 | AA19: 80-84 | AB19: A-6-80-84 | AC19: 354.64 | AD19: 531.96 | AE19: 709.28 | AF19: 886.6 | AG19: 1063.92 | AH19: 1241.24 | AI19: 1358.16 | AJ19: 1527.93 | AK19: 1697.7 | AL19: 1867.47 | AM19: 2037.24 | AN19: N/A | AP19: 80 | AQ19: 84 | AR19: 138.2 | AS19: 24.18 | AT19: 80-84 | AU19: A-6-80-84 | AV19: 324.76 | AW19: 487.14 | AX19: 649.52 | AY19: 811.9 | AZ19: 974.28 | BA19: 1136.66 | BB19: 1243.76 | BC19: 1399.23 | BD19: 1554.7 | BE19: 1710.17 | BF19: 1865.64 | BG19: N/A | BI19: 80 | BJ19: 84 | BK19: 127.65 | BL19: 22.29 | BM19: 80-84 | BN19: A-6-80-84 | BO19: 299.88 | BP19: 449.82 | BQ19: 599.76 | BR19: 749.7 | BS19: 899.64 | BT19: 1049.58 | BU19: 1148.48 | BV19: 1292.04 | BW19: 1435.6 | BX19: 1579.16 | BY19: 1722.72 | BZ19: N/A | CB19: 80 | CC19: 84 | CD19: 138.2 | CE19: 0 | CF19: 80-84 | CG19: A-6-80-84 | CH19: 276.4 | CI19: 414.6 | CJ19: 552.8 | CK19: 691 | CL19: 829.2 | CM19: 967.4 | CN19: 1050.32 | CO19: 1181.61 | CP19: 1312.9 | CQ19: 1444.19 | CR19: 1575.48 | CS19: N/A | CT19: 1706.77 | CU19: 1838.06 | CV19: 1969.35 | CW19: 2100.64 | CX19: 2231.93 | CY19: 2363.22 | CZ19: 2494.51 | DA19: 2625.8 | DB19: 2757.09 | DC19: 2888.38 | DD19: 3019.67 | DE19: 3150.96 | DG19: 80 | DH19: 84 | DI19: 152.85 | DJ19: 26.69 | DK19: 80-84 | DL19: A-6-80-84 | DM19: 359.08 | DN19: 538.62 | DO19: 718.16 | DP19: 897.7 | DQ19: 1077.24 | DR19: 1256.78 | DS19: 1375.2 | DT19: 1547.1 | DU19: 1719 | DV19: 1890.9 | DW19: 2062.8 | DX19: N/A | DZ19: 80 | EA19: 84 | EB19: 152.85 | EC19: 26.69 | ED19: 80-84 | EE19: A-6-80-84 | EF19: 304.36 | EG19: 456.54 | EH19: 608.72 | EI19: 760.9 | EJ19: 913.08 | EK19: 1065.26 | EL19: 1165.6 | EM19: 1311.3 | EN19: 1457 | EO19: 1602.7 | EP19: 1748.4 | EQ19: N/A | ES19: 80 | ET19: 84 | EU19: 138.2 | EV19: 0 | EW19: 80-84 | EX19: A-6-80-84 | EY19: 333 | EZ19: 499.5 | FA19: 666 | FB19: 832.5 | FC19: 999 | FD19: 1165.5 | FE19: 1265.44 | FF19: 1423.62 | FG19: 1581.8 | FH19: 1739.98 | FI19: 1898.16 | FJ19: N/A | FK19: 2056.34 | FL19: 2214.52 | FM19: 2372.7 | FN19: 2530.88 | FO19: 2689.06 | FP19: 2847.24 | FQ19: 3005.42 | FR19: 3163.6 | FS19: 3321.78 | FT19: 3479.96 | FU19: 3638.14 | FV19: 3796.32 | FX19: 80 | FY19: 84 | FZ19: 152.85 | GA19: 26.69 | GB19: 80-84 | GC19: A-6-80-84 | GD19: 407.54 | GE19: 611.31 | GF19: 815.08 | GG19: 1018.85 | GH19: 1222.62 | GI19: 1426.39 | GJ19: 1560.32 | GK19: 1755.36 | GL19: 1950.4 | GM19: 2145.44 | GN19: 2340.48 | GO19: N/A | GQ19: 80 | GR19: 84 | GS19: 138.2 | GT19: 0 | GU19: 80-84 | GV19: A-6-80-84 | GW19: 322.42 | GX19: 483.63 | GY19: 644.84 | GZ19: 806.05 | HA19: 967.26 | HB19: 1128.47 | HC19: 1225.2 | HD19: 1378.35 | HE19: 1531.5 | HF19: 1684.64 | HG19: 1837.79 | HH19: N/A | HI19: 1990.94 | HJ19: 2144.09 | HK19: 2297.24 | HL19: 2450.39 | HM19: 2603.54 | HN19: 2756.69 | HO19: 2909.84 | HP19: 3062.99 | HQ19: 3216.14 | HR19: 3369.29 | HS19: 3522.44 | HT19: 3675.59
A20: ST Code | B20: 50 | C20: 50
B21: 24 | C21: 24 | J21: 500 | K21: 750 | L21: 1000 | M21: 1250 | N21: 1500 | O21: 1750 | P21: 2000 | Q21: 2250 | R21: 2500 | S21: 2750 | T21: 3000 | U21: ROP | AC21: 500 | AD21: 750 | AE21: 1000 | AF21: 1250 | AG21: 1500 | AH21: 1750 | AI21: 2000 | AJ21: 2250 | AK21: 2500 | AL21: 2750 | AM21: 3000 | AN21: ROP | AV21: 500 | AW21: 750 | AX21: 1000 | AY21: 1250 | AZ21: 1500 | BA21: 1750 | BB21: 2000 | BC21: 2250 | BD21: 2500 | BE21: 2750 | BF21: 3000 | BG21: ROP | BO21: 500 | BP21: 750 | BQ21: 1000 | BR21: 1250 | BS21: 1500 | BT21: 1750 | BU21: 2000 | BV21: 2250 | BW21: 2500 | BX21: 2750 | BY21: 3000 | BZ21: ROP | CH21: 500 | CI21: 750 | CJ21: 1000 | CK21: 1250 | CL21: 1500 | CM21: 1750 | CN21: 2000 | CO21: 2250 | CP21: 2500 | CQ21: 2750 | CR21: 3000 | CS21: ROP | CT21: 3250 | CU21: 3500 | CV21: 3750 | CW21: 4000 | CX21: 4250 | CY21: 4500 | CZ21: 4750 | DA21: 5000 | DB21: 5250 | DC21: 5500 | DD21: 5750 | DE21: 6000 | DM21: 500 | DN21: 750 | DO21: 1000 | DP21: 1250 | DQ21: 1500 | DR21: 1750 | DS21: 2000 | DT21: 2250 | DU21: 2500 | DV21: 2750 | DW21: 3000 | DX21: ROP | EF21: 500 | EG21: 750 | EH21: 1000 | EI21: 1250 | EJ21: 1500 | EK21: 1750 | EL21: 2000 | EM21: 2250 | EN21: 2500 | EO21: 2750 | EP21: 3000 | EQ21: ROP | EY21: 500 | EZ21: 750 | FA21: 1000 | FB21: 1250 | FC21: 1500 | FD21: 1750 | FE21: 2000 | FF21: 2250 | FG21: 2500 | FH21: 2750 | FI21: 3000 | FJ21: ROP | FK21: 3250 | FL21: 3500 | FM21: 3750 | FN21: 4000 | FO21: 4250 | FP21: 4500 | FQ21: 4750 | FR21: 5000 | FS21: 5250 | FT21: 5500 | FU21: 5750 | FV21: 6000 | GD21: 500 | GE21: 750 | GF21: 1000 | GG21: 1250 | GH21: 1500 | GI21: 1750 | GJ21: 2000 | GK21: 2250 | GL21: 2500 | GM21: 2750 | GN21: 3000 | GO21: ROP | GW21: 500 | GX21: 750 | GY21: 1000 | GZ21: 1250 | HA21: 1500 | HB21: 1750 | HC21: 2000 | HD21: 2250 | HE21: 2500 | HF21: 2750 | HG21: 3000 | HH21: ROP | HI21: 3250 | HJ21: 3500 | HK21: 3750 | HL21: 4000 | HM21: 4250 | HN21: 4500 | HO21: 4750 | HP21: 5000 | HQ21: 5250 | HR21: 5500 | HS21: 5750 | HT21: 6000
B22: 40-49 | C22: 55-59 | I22: A-12 | J22: 2 | K22: 3 | L22: 4 | M22: 5 | N22: 6 | O22: 7 | P22: 8 | Q22: 9 | R22: 10 | S22: 11 | T22: 12 | AB22: A-12 | AC22: 2 | AD22: 3 | AE22: 4 | AF22: 5 | AG22: 6 | AH22: 7 | AI22: 8 | AJ22: 9 | AK22: 10 | AL22: 11 | AM22: 12 | AU22: A-12 | AV22: 2 | AW22: 3 | AX22: 4 | AY22: 5 | AZ22: 6 | BA22: 7 | BB22: 8 | BC22: 9 | BD22: 10 | BE22: 11 | BF22: 12 | BN22: A-12 | BO22: 2 | BP22: 3 | BQ22: 4 | BR22: 5 | BS22: 6 | BT22: 7 | BU22: 8 | BV22: 9 | BW22: 10 | BX22: 11 | BY22: 12 | CG22: A-12 | CH22: 2 | CI22: 3 | CJ22: 4 | CK22: 5 | CL22: 6 | CM22: 7 | CN22: 8 | CO22: 9 | CP22: 10 | CQ22: 11 | CR22: 12 | CT22: 13 | CU22: 14 | CV22: 15 | CW22: 16 | CX22: 17 | CY22: 18 | CZ22: 19 | DA22: 20 | DB22: 21 | DC22: 22 | DD22: 23 | DE22: 24 | DL22: A-12 | DM22: 2 | DN22: 3 | DO22: 4 | DP22: 5 | DQ22: 6 | DR22: 7 | DS22: 8 | DT22: 9 | DU22: 10 | DV22: 11 | DW22: 12 | EE22: A-12 | EF22: 2 | EG22: 3 | EH22: 4 | EI22: 5 | EJ22: 6 | EK22: 7 | EL22: 8 | EM22: 9 | EN22: 10 | EO22: 11 | EP22: 12 | EX22: A-12 | EY22: 2 | EZ22: 3 | FA22: 4 | FB22: 5 | FC22: 6 | FD22: 7 | FE22: 8 | FF22: 9 | FG22: 10 | FH22: 11 | FI22: 12 | FK22: 13 | FL22: 14 | FM22: 15 | FN22: 16 | FO22: 17 | FP22: 18 | FQ22: 19 | FR22: 20 | FS22: 21 | FT22: 22 | FU22: 23 | FV22: 24 | GC22: A-12 | GD22: 2 | GE22: 3 | GF22: 4 | GG22: 5 | GH22: 6 | GI22: 7 | GJ22: 8 | GK22: 9 | GL22: 10 | GM22: 11 | GN22: 12 | GV22: A-12 | GW22: 2 | GX22: 3 | GY22: 4 | GZ22: 5 | HA22: 6 | HB22: 7 | HC22: 8 | HD22: 9 | HE22: 10 | HF22: 11 | HG22: 12 | HI22: 13 | HJ22: 14 | HK22: 15 | HL22: 16 | HM22: 17 | HN22: 18 | HO22: 19 | HP22: 20 | HQ22: 21 | HR22: 22 | HS22: 23 | HT22: 24
B23: 50-A-24-40-49 | C23: 50-C-24-55-59 | D23: Dependent | F23: 7.5 | G23: 0.25 | H23: D | I23: =CONCATENATE(I$22,"-",H23) -> A-12-D | J23: 15.5 | K23: Dependent benefit is $500 | U23: 1.1 | W23: Dependent | Y23: 6.8 | Z23: 0.23 | AA23: D | AB23: =CONCATENATE(AB$22,"-",AA23) -> A-12-D | AC23: 14.06 | AD23: Dependent benefit is $500 | AN23: 1.1 | AP23: Dependent | AR23: 6.23 | AS23: 0.2 | AT23: D | AU23: =CONCATENATE(AU$22,"-",AT23) -> A-12-D | AV23: 12.86 | AW23: Dependent benefit is $500 | BG23: 1.1 | BI23: Dependent | BK23: 5.75 | BL23: 0.19 | BM23: D | BN23: =CONCATENATE(BN$22,"-",BM23) -> A-12-D | BO23: 11.88 | BP23: Dependent benefit is $500 | BZ23: 1.1 | CB23: Dependent | CD23: 6.23 | CE23: 0 | CF23: D | CG23: =CONCATENATE(CG$22,"-",CF23) -> A-12-D | CH23: 12.46 | CI23: Dependent benefit is $500 | CS23: 1.1 | CU23: Dependent benefit is $500 | DG23: Dependent | DI23: 6.89 | DJ23: 0.23 | DK23: D | DL23: =CONCATENATE(DL$22,"-",DK23) -> A-12-D | DM23: 14.24 | DN23: Dependent benefit is $500 | DX23: 1.1 | DZ23: Dependent | EB23: 6.89 | EC23: 0.23 | ED23: D | EE23: =CONCATENATE(EE$22,"-",ED23) -> A-12-D | EF23: 12.06 | EG23: Dependent benefit is $500 | EQ23: 1.1 | ES23: Dependent | EU23: 6.23 | EV23: 0 | EW23: D | EX23: =CONCATENATE(EX$22,"-",EW23) -> A-12-D | EY23: 15 | EZ23: Dependent benefit is $500 | FJ23: 1.1 | FL23: Dependent benefit is $500 | FX23: Dependent | FZ23: 6.89 | GA23: 0.23 | GB23: D | GC23: =CONCATENATE(GC$22,"-",GB23) -> A-12-D | GD23: 99999 | GE23: Dependent benefit is $500 | GO23: 100 | GQ23: Dependent | GS23: 6.23 | GT23: 0 | GU23: D | GV23: =CONCATENATE(GV$22,"-",GU23) -> A-12-D | GW23: 14.26 | GX23: Dependent benefit is $500 | HH23: 100 | HJ23: Dependent benefit is $500
A24: test | B24: 2500 | D24: 18 | E24: 29 | F24: 18 | G24: 0.25 | H24: 18-29 | I24: =CONCATENATE(I$22,"-",H24) -> A-12-18-29 | J24: 36.5 | K24: 54.75 | L24: 73 | M24: 91.25 | N24: 109.5 | O24: 127.75 | P24: 138.8 | Q24: 156.15 | R24: 173.5 | S24: 190.85 | T24: 208.2 | U24: 1.1 | W24: 18 | X24: 29 | Y24: 16 | Z24: 0.23 | AA24: 18-29 | AB24: =CONCATENATE(AB$22,"-",AA24) -> A-12-18-29 | AC24: 32.46 | AD24: 48.69 | AE24: 64.92 | AF24: 81.15 | AG24: 97.38 | AH24: 113.61 | AI24: 123.44 | AJ24: 138.87 | AK24: 154.3 | AL24: 169.73 | AM24: 185.16 | AN24: 1.1 | AP24: 18 | AQ24: 29 | AR24: 15 | AS24: 0.2 | AT24: 18-29 | AU24: =CONCATENATE(AU$22,"-",AT24) -> A-12-18-29 | AV24: 30.4 | AW24: 45.6 | AX24: 60.8 | AY24: 76 | AZ24: 91.2 | BA24: 106.4 | BB24: 115.6 | BC24: 130.05 | BD24: 144.5 | BE24: 158.95 | BF24: 173.4 | BG24: 1.1 | BI24: 18 | BJ24: 29 | BK24: 14 | BL24: 0.19 | BM24: 18-29 | BN24: =CONCATENATE(BN$22,"-",BM24) -> A-12-18-29 | BO24: 28.38 | BP24: 42.57 | BQ24: 56.76 | BR24: 70.95 | BS24: 85.14 | BT24: 99.33 | BU24: 107.92 | BV24: 121.41 | BW24: 134.9 | BX24: 148.39 | BY24: 161.88 | BZ24: 1.1 | CB24: 18 | CC24: 29 | CD24: 15 | CE24: 0 | CF24: 18-29 | CG24: =CONCATENATE(CG$22,"-",CF24) -> A-12-18-29 | CH24: 30 | CI24: 45 | CJ24: 60 | CK24: 75 | CL24: 90 | CM24: 105 | CN24: 114 | CO24: 128.25 | CP24: 142.5 | CQ24: 156.75 | CR24: 171 | CS24: 1.1 | CT24: 185.25 | CU24: 199.5 | CV24: 213.75 | CW24: 228 | CX24: 242.25 | CY24: 256.5 | CZ24: 270.75 | DA24: 285 | DB24: 299.25 | DC24: 313.5 | DD24: 327.75 | DE24: 342 | DG24: 18 | DH24: 29 | DI24: 16.2 | DJ24: 0.23 | DK24: 18-29 | DL24: =CONCATENATE(DL$22,"-",DK24) -> A-12-18-29 | DM24: 32.86 | DN24: 49.29 | DO24: 65.72 | DP24: 82.15 | DQ24: 98.58 | DR24: 115.01 | DS24: 124.96 | DT24: 140.58 | DU24: 156.2 | DV24: 171.82 | DW24: 187.44 | DX24: 1.1 | DZ24: 18 | EA24: 29 | EB24: 16.2 | EC24: 0.23 | ED24: 18-29 | EE24: =CONCATENATE(EE$22,"-",ED24) -> A-12-18-29 | EF24: 28.8 | EG24: 43.2 | EH24: 57.6 | EI24: 72 | EJ24: 86.4 | EK24: 100.8 | EL24: 109.52 | EM24: 123.21 | EN24: 136.9 | EO24: 150.59 | EP24: 164.28 | EQ24: 1.1 | ES24: 18 | ET24: 29 | EU24: 15 | EV24: 0 | EW24: 18-29 | EX24: =CONCATENATE(EX$22,"-",EW24) -> A-12-18-29 | EY24: 36 | EZ24: 54 | FA24: 72 | FB24: 90 | FC24: 108 | FD24: 126 | FE24: 136.8 | FF24: 153.9 | FG24: 171 | FH24: 188.1 | FI24: 205.2 | FJ24: 1.1 | FK24: 222.3 | FL24: 239.4 | FM24: 256.5 | FN24: 273.6 | FO24: 290.7 | FP24: 307.8 | FQ24: 324.9 | FR24: 342 | FS24: 359.1 | FT24: 376.2 | FU24: 393.3 | FV24: 410.4 | FX24: 18 | FY24: 29 | FZ24: 16.2 | GA24: 0.23 | GB24: 18-29 | GC24: =CONCATENATE(GC$22,"-",GB24) -> A-12-18-29 | GD24: 99999 | GE24: 99999 | GF24: 99999 | GG24: 99999 | GH24: 99999 | GI24: 99999 | GJ24: 99999 | GK24: 99999 | GL24: 99999 | GM24: 99999 | GN24: 99999 | GO24: 100 | GQ24: 18 | GR24: 29 | GS24: 15 | GT24: 0 | GU24: 18-29 | GV24: =CONCATENATE(GV$22,"-",GU24) -> A-12-18-29 | GW24: 47.02 | GX24: 70.53 | GY24: 94.04 | GZ24: 117.55 | HA24: 141.06 | HB24: 164.57 | HC24: 178.68 | HD24: 201.01 | HE24: 223.35 | HF24: 245.68 | HG24: 268.01 | HH24: 100 | HI24: 290.35 | HJ24: 312.68 | HK24: 335.02 | HL24: 357.35 | HM24: 379.69 | HN24: 402.02 | HO24: 424.36 | HP24: 446.69 | HQ24: 469.02 | HR24: 491.36 | HS24: 513.69 | HT24: 536.03
B25: C-24-40-49 | D25: 30 | E25: 39 | F25: 27 | G25: 0.3 | H25: 30-39 | I25: A-12-30-39 | J25: 54.6 | K25: 81.9 | L25: 109.2 | M25: 136.5 | N25: 163.8 | O25: 191.1 | P25: 207.6 | Q25: 233.55 | R25: 259.5 | S25: 285.45 | T25: 311.4 | U25: 1.1 | W25: 30 | X25: 39 | Y25: 25 | Z25: 0.27 | AA25: 30-39 | AB25: A-12-30-39 | AC25: 50.54 | AD25: 75.81 | AE25: 101.08 | AF25: 126.35 | AG25: 151.62 | AH25: 176.89 | AI25: 192.16 | AJ25: 216.18 | AK25: 240.2 | AL25: 264.22 | AM25: 288.24 | AN25: 1.1 | AP25: 30 | AQ25: 39 | AR25: 23 | AS25: 0.25 | AT25: 30-39 | AU25: A-12-30-39 | AV25: 46.5 | AW25: 69.75 | AX25: 93 | AY25: 116.25 | AZ25: 139.5 | BA25: 162.75 | BB25: 176.8 | BC25: 198.9 | BD25: 221 | BE25: 243.1 | BF25: 265.2 | BG25: 1.1 | BI25: 30 | BJ25: 39 | BK25: 21 | BL25: 0.23 | BM25: 30-39 | BN25: A-12-30-39 | BO25: 42.46 | BP25: 63.69 | BQ25: 84.92 | BR25: 106.15 | BS25: 127.38 | BT25: 148.61 | BU25: 161.44 | BV25: 181.62 | BW25: 201.8 | BX25: 221.98 | BY25: 242.16 | BZ25: 1.1 | CB25: 30 | CC25: 39 | CD25: 23 | CE25: 0 | CF25: 30-39 | CG25: A-12-30-39 | CH25: 46 | CI25: 69 | CJ25: 92 | CK25: 115 | CL25: 138 | CM25: 161 | CN25: 174.8 | CO25: 196.65 | CP25: 218.5 | CQ25: 240.35 | CR25: 262.2 | CS25: 1.1 | CT25: 284.05 | CU25: 305.9 | CV25: 327.75 | CW25: 349.6 | CX25: 371.45 | CY25: 393.3 | CZ25: 415.15 | DA25: 437 | DB25: 458.85 | DC25: 480.7 | DD25: 502.55 | DE25: 524.4 | DG25: 30 | DH25: 39 | DI25: 25.31 | DJ25: 0.27 | DK25: 30-39 | DL25: A-12-30-39 | DM25: 51.16 | DN25: 76.74 | DO25: 102.32 | DP25: 127.9 | DQ25: 153.48 | DR25: 179.06 | DS25: 194.48 | DT25: 218.79 | DU25: 243.1 | DV25: 267.41 | DW25: 291.72 | DX25: 1.1 | DZ25: 30 | EA25: 39 | EB25: 25.31 | EC25: 0.27 | ED25: 30-39 | EE25: A-12-30-39 | EF25: 43.1 | EG25: 64.65 | EH25: 86.2 | EI25: 107.75 | EJ25: 129.3 | EK25: 150.85 | EL25: 163.84 | EM25: 184.32 | EN25: 204.8 | EO25: 225.28 | EP25: 245.76 | EQ25: 1.1 | ES25: 30 | ET25: 39 | EU25: 23 | EV25: 0 | EW25: 30-39 | EX25: A-12-30-39 | EY25: 54 | EZ25: 81 | FA25: 108 | FB25: 135 | FC25: 162 | FD25: 189 | FE25: 205.2 | FF25: 230.85 | FG25: 256.5 | FH25: 282.15 | FI25: 307.8 | FJ25: 1.1 | FK25: 333.45 | FL25: 359.1 | FM25: 384.75 | FN25: 410.4 | FO25: 436.05 | FP25: 461.7 | FQ25: 487.35 | FR25: 513 | FS25: 538.65 | FT25: 564.3 | FU25: 589.95 | FV25: 615.6 | FX25: 30 | FY25: 39 | FZ25: 25.31 | GA25: 0.27 | GB25: 30-39 | GC25: A-12-30-39 | GD25: 99999 | GE25: 99999 | GF25: 99999 | GG25: 99999 | GH25: 99999 | GI25: 99999 | GJ25: 99999 | GK25: 99999 | GL25: 99999 | GM25: 99999 | GN25: 99999 | GO25: 100 | GQ25: 30 | GR25: 39 | GS25: 23 | GT25: 0 | GU25: 30-39 | GV25: A-12-30-39 | GW25: 103.56 | GX25: 155.34 | GY25: 207.12 | GZ25: 258.9 | HA25: 310.68 | HB25: 362.46 | HC25: 393.53 | HD25: 442.72 | HE25: 491.91 | HF25: 541.1 | HG25: 590.29 | HH25: 100 | HI25: 639.48 | HJ25: 688.67 | HK25: 737.87 | HL25: 787.06 | HM25: 836.25 | HN25: 885.44 | HO25: 934.63 | HP25: 983.82 | HQ25: 1033.01 | HR25: 1082.2 | HS25: 1131.39 | HT25: 1180.58
B26: =VLOOKUP(B25,TEST2,MATCH(B24,I50:U50,0),FALSE) ->  | D26: 40 | E26: 49 | F26: 56 | G26: 0.62 | H26: 40-49 | I26: A-12-40-49 | J26: 113.24 | K26: 169.86 | L26: 226.48 | M26: 283.1 | N26: 339.72 | O26: 396.34 | P26: 430.56 | Q26: 484.38 | R26: 538.2 | S26: 592.02 | T26: 645.84 | U26: 1.15 | W26: 40 | X26: 49 | Y26: 51 | Z26: 0.56 | AA26: 40-49 | AB26: A-12-40-49 | AC26: 103.12 | AD26: 154.68 | AE26: 206.24 | AF26: 257.8 | AG26: 309.36 | AH26: 360.92 | AI26: 392.08 | AJ26: 441.09 | AK26: 490.1 | AL26: 539.11 | AM26: 588.12 | AN26: 1.15 | AP26: 40 | AQ26: 49 | AR26: 46 | AS26: 0.51 | AT26: 40-49 | AU26: A-12-40-49 | AV26: 93.02 | AW26: 139.53 | AX26: 186.04 | AY26: 232.55 | AZ26: 279.06 | BA26: 325.57 | BB26: 353.68 | BC26: 397.89 | BD26: 442.1 | BE26: 486.31 | BF26: 530.52 | BG26: 1.15 | BI26: 40 | BJ26: 49 | BK26: 43 | BL26: 0.47 | BM26: 40-49 | BN26: A-12-40-49 | BO26: 86.94 | BP26: 130.41 | BQ26: 173.88 | BR26: 217.35 | BS26: 260.82 | BT26: 304.29 | BU26: 330.56 | BV26: 371.88 | BW26: 413.2 | BX26: 454.52 | BY26: 495.84 | BZ26: 1.15 | CB26: 40 | CC26: 49 | CD26: 46 | CE26: 0 | CF26: 40-49 | CG26: A-12-40-49 | CH26: 92 | CI26: 138 | CJ26: 184 | CK26: 230 | CL26: 276 | CM26: 322 | CN26: 349.6 | CO26: 393.3 | CP26: 437 | CQ26: 480.7 | CR26: 524.4 | CS26: 1.15 | CT26: 568.1 | CU26: 611.8 | CV26: 655.5 | CW26: 699.2 | CX26: 742.9 | CY26: 786.6 | CZ26: 830.3 | DA26: 874 | DB26: 917.7 | DC26: 961.4 | DD26: 1005.1 | DE26: 1048.8 | DG26: 40 | DH26: 49 | DI26: 51.64 | DJ26: 0.57 | DK26: 40-49 | DL26: A-12-40-49 | DM26: 104.42 | DN26: 156.63 | DO26: 208.84 | DP26: 261.05 | DQ26: 313.26 | DR26: 365.47 | DS26: 397.04 | DT26: 446.67 | DU26: 496.3 | DV26: 545.93 | DW26: 595.56 | DX26: 1.15 | DZ26: 40 | EA26: 49 | EB26: 51.64 | EC26: 0.57 | ED26: 40-49 | EE26: A-12-40-49 | EF26: 88.26 | EG26: 132.39 | EH26: 176.52 | EI26: 220.65 | EJ26: 264.78 | EK26: 308.91 | EL26: 335.6 | EM26: 377.55 | EN26: 419.5 | EO26: 461.45 | EP26: 503.4 | EQ26: 1.15 | ES26: 40 | ET26: 49 | EU26: 46 | EV26: 0 | EW26: 40-49 | EX26: A-12-40-49 | EY26: 112 | EZ26: 168 | FA26: 224 | FB26: 280 | FC26: 336 | FD26: 392 | FE26: 425.6 | FF26: 478.8 | FG26: 532 | FH26: 585.2 | FI26: 638.4 | FJ26: 1.15 | FK26: 691.6 | FL26: 744.8 | FM26: 798 | FN26: 851.2 | FO26: 904.4 | FP26: 957.6 | FQ26: 1010.8 | FR26: 1064 | FS26: 1117.2 | FT26: 1170.4 | FU26: 1223.6 | FV26: 1276.8 | FX26: 40 | FY26: 49 | FZ26: 51.64 | GA26: 0.57 | GB26: 40-49 | GC26: A-12-40-49 | GD26: 99999 | GE26: 99999 | GF26: 99999 | GG26: 99999 | GH26: 99999 | GI26: 99999 | GJ26: 99999 | GK26: 99999 | GL26: 99999 | GM26: 99999 | GN26: 99999 | GO26: 100 | GQ26: 40 | GR26: 49 | GS26: 46 | GT26: 0 | GU26: 40-49 | GV26: A-12-40-49 | GW26: 199.36 | GX26: 299.04 | GY26: 398.72 | GZ26: 498.4 | HA26: 598.08 | HB26: 697.76 | HC26: 757.57 | HD26: 852.26 | HE26: 946.96 | HF26: 1041.66 | HG26: 1136.35 | HH26: 100 | HI26: 1231.05 | HJ26: 1325.74 | HK26: 1420.44 | HL26: 1515.14 | HM26: 1609.83 | HN26: 1704.53 | HO26: 1799.22 | HP26: 1893.92 | HQ26: 1988.62 | HR26: 2083.31 | HS26: 2178.01 | HT26: 2272.7
D27: 50 | E27: 54 | F27: 92 | G27: 1.77 | H27: 50-54 | I27: A-12-50-54 | J27: 187.54 | K27: 281.31 | L27: 375.08 | M27: 468.85 | N27: 562.62 | O27: 656.39 | P27: 713.36 | Q27: 802.53 | R27: 891.7 | S27: 980.87 | T27: 1070.04 | U27: 1.15 | W27: 50 | X27: 54 | Y27: 83 | Z27: 1.61 | AA27: 50-54 | AB27: A-12-50-54 | AC27: 169.22 | AD27: 253.83 | AE27: 338.44 | AF27: 423.05 | AG27: 507.66 | AH27: 592.27 | AI27: 643.68 | AJ27: 724.14 | AK27: 804.6 | AL27: 885.06 | AM27: 965.52 | AN27: 1.15 | AP27: 50 | AQ27: 54 | AR27: 76 | AS27: 1.47 | AT27: 50-54 | AU27: A-12-50-54 | AV27: 154.94 | AW27: 232.41 | AX27: 309.88 | AY27: 387.35 | AZ27: 464.82 | BA27: 542.29 | BB27: 589.36 | BC27: 663.03 | BD27: 736.7 | BE27: 810.37 | BF27: 884.04 | BG27: 1.15 | BI27: 50 | BJ27: 54 | BK27: 70 | BL27: 1.36 | BM27: 50-54 | BN27: A-12-50-54 | BO27: 142.72 | BP27: 214.08 | BQ27: 285.44 | BR27: 356.8 | BS27: 428.16 | BT27: 499.52 | BU27: 542.88 | BV27: 610.74 | BW27: 678.6 | BX27: 746.46 | BY27: 814.32 | BZ27: 1.15 | CB27: 50 | CC27: 54 | CD27: 76 | CE27: 0 | CF27: 50-54 | CG27: A-12-50-54 | CH27: 152 | CI27: 228 | CJ27: 304 | CK27: 380 | CL27: 456 | CM27: 532 | CN27: 577.6 | CO27: 649.8 | CP27: 722 | CQ27: 794.2 | CR27: 866.4 | CS27: 1.15 | CT27: 938.6 | CU27: 1010.8 | CV27: 1083 | CW27: 1155.2 | CX27: 1227.4 | CY27: 1299.6 | CZ27: 1371.8 | DA27: 1444 | DB27: 1516.2 | DC27: 1588.4 | DD27: 1660.6 | DE27: 1732.8 | DG27: 50 | DH27: 54 | DI27: 84.04 | DJ27: 1.63 | DK27: 50-54 | DL27: A-12-50-54 | DM27: 171.34 | DN27: 257.01 | DO27: 342.68 | DP27: 428.35 | DQ27: 514.02 | DR27: 599.69 | DS27: 651.76 | DT27: 733.23 | DU27: 814.7 | DV27: 896.17 | DW27: 977.64 | DX27: 1.15 | DZ27: 50 | EA27: 54 | EB27: 84.04 | EC27: 1.63 | ED27: 50-54 | EE27: A-12-50-54 | EF27: 144.86 | EG27: 217.29 | EH27: 289.72 | EI27: 362.15 | EJ27: 434.58 | EK27: 507.01 | EL27: 551.04 | EM27: 619.92 | EN27: 688.8 | EO27: 757.68 | EP27: 826.56 | EQ27: 1.15 | ES27: 50 | ET27: 54 | EU27: 76 | EV27: 0 | EW27: 50-54 | EX27: A-12-50-54 | EY27: 184 | EZ27: 276 | FA27: 368 | FB27: 460 | FC27: 552 | FD27: 644 | FE27: 699.2 | FF27: 786.6 | FG27: 874 | FH27: 961.4 | FI27: 1048.8 | FJ27: 1.15 | FK27: 1136.2 | FL27: 1223.6 | FM27: 1311 | FN27: 1398.4 | FO27: 1485.8 | FP27: 1573.2 | FQ27: 1660.6 | FR27: 1748 | FS27: 1835.4 | FT27: 1922.8 | FU27: 2010.2 | FV27: 2097.6 | FX27: 50 | FY27: 54 | FZ27: 84.04 | GA27: 1.63 | GB27: 50-54 | GC27: A-12-50-54 | GD27: 99999 | GE27: 99999 | GF27: 99999 | GG27: 99999 | GH27: 99999 | GI27: 99999 | GJ27: 99999 | GK27: 99999 | GL27: 99999 | GM27: 99999 | GN27: 99999 | GO27: 100 | GQ27: 50 | GR27: 54 | GS27: 76 | GT27: 0 | GU27: 50-54 | GV27: A-12-50-54 | GW27: 287.16 | GX27: 430.74 | GY27: 574.32 | GZ27: 717.9 | HA27: 861.48 | HB27: 1005.06 | HC27: 1091.21 | HD27: 1227.61 | HE27: 1364.01 | HF27: 1500.41 | HG27: 1636.81 | HH27: 100 | HI27: 1773.21 | HJ27: 1909.61 | HK27: 2046.02 | HL27: 2182.42 | HM27: 2318.82 | HN27: 2455.22 | HO27: 2591.62 | HP27: 2728.02 | HQ27: 2864.42 | HR27: 3000.82 | HS27: 3137.22 | HT27: 3273.62
A28: use: | B28: =VLOOKUP(B25,TEST1,MATCH(B24,I7:U7,0),FALSE) ->  | D28: 55 | E28: 59 | F28: 125 | G28: 3.6 | H28: 55-59 | I28: A-12-55-59 | J28: 257.2 | K28: 385.8 | L28: 514.4 | M28: 643 | N28: 771.6 | O28: 900.2 | P28: 978.8 | Q28: 1101.15 | R28: 1223.5 | S28: 1345.85 | T28: 1468.2 | U28: 1.2 | W28: 55 | X28: 59 | Y28: 113 | Z28: 3.26 | AA28: 55-59 | AB28: A-12-55-59 | AC28: 232.52 | AD28: 348.78 | AE28: 465.04 | AF28: 581.3 | AG28: 697.56 | AH28: 813.82 | AI28: 884.88 | AJ28: 995.49 | AK28: 1106.1 | AL28: 1216.71 | AM28: 1327.32 | AN28: 1.2 | AP28: 55 | AQ28: 59 | AR28: 104 | AS28: 3 | AT28: 55-59 | AU28: A-12-55-59 | AV28: 214 | AW28: 321 | AX28: 428 | AY28: 535 | AZ28: 642 | BA28: 749 | BB28: 814.4 | BC28: 916.2 | BD28: 1018 | BE28: 1119.8 | BF28: 1221.6 | BG28: 1.2 | BI28: 55 | BJ28: 59 | BK28: 96 | BL28: 2.76 | BM28: 55-59 | BN28: A-12-55-59 | BO28: 197.52 | BP28: 296.28 | BQ28: 395.04 | BR28: 493.8 | BS28: 592.56 | BT28: 691.32 | BU28: 751.68 | BV28: 845.64 | BW28: 939.6 | BX28: 1033.56 | BY28: 1127.52 | BZ28: 1.2 | CB28: 55 | CC28: 59 | CD28: 104 | CE28: 0 | CF28: 55-59 | CG28: A-12-55-59 | CH28: 208 | CI28: 312 | CJ28: 416 | CK28: 520 | CL28: 624 | CM28: 728 | CN28: 790.4 | CO28: 889.2 | CP28: 988 | CQ28: 1086.8 | CR28: 1185.6 | CS28: 1.2 | CT28: 1284.4 | CU28: 1383.2 | CV28: 1482 | CW28: 1580.8 | CX28: 1679.6 | CY28: 1778.4 | CZ28: 1877.2 | DA28: 1976 | DB28: 2074.8 | DC28: 2173.6 | DD28: 2272.4 | DE28: 2371.2 | DG28: 55 | DH28: 59 | DI28: 114.41 | DJ28: 3.3 | DK28: 55-59 | DL28: A-12-55-59 | DM28: 235.42 | DN28: 353.13 | DO28: 470.84 | DP28: 588.55 | DQ28: 706.26 | DR28: 823.97 | DS28: 895.92 | DT28: 1007.91 | DU28: 1119.9 | DV28: 1231.89 | DW28: 1343.88 | DX28: 1.2 | DZ28: 55 | EA28: 59 | EB28: 114.41 | EC28: 3.3 | ED28: 55-59 | EE28: A-12-55-59 | EF28: 200.48 | EG28: 300.72 | EH28: 400.96 | EI28: 501.2 | EJ28: 601.44 | EK28: 701.68 | EL28: 762.96 | EM28: 858.33 | EN28: 953.7 | EO28: 1049.07 | EP28: 1144.44 | EQ28: 1.2 | ES28: 55 | ET28: 59 | EU28: 104 | EV28: 0 | EW28: 55-59 | EX28: A-12-55-59 | EY28: 250 | EZ28: 375 | FA28: 500 | FB28: 625 | FC28: 750 | FD28: 875 | FE28: 950 | FF28: 1068.75 | FG28: 1187.5 | FH28: 1306.25 | FI28: 1425 | FJ28: 1.2 | FK28: 1543.75 | FL28: 1662.5 | FM28: 1781.25 | FN28: 1900 | FO28: 2018.75 | FP28: 2137.5 | FQ28: 2256.25 | FR28: 2375 | FS28: 2493.75 | FT28: 2612.5 | FU28: 2731.25 | FV28: 2850 | FX28: 55 | FY28: 59 | FZ28: 114.41 | GA28: 3.3 | GB28: 55-59 | GC28: A-12-55-59 | GD28: 99999 | GE28: 99999 | GF28: 99999 | GG28: 99999 | GH28: 99999 | GI28: 99999 | GJ28: 99999 | GK28: 99999 | GL28: 99999 | GM28: 99999 | GN28: 99999 | GO28: 100 | GQ28: 55 | GR28: 59 | GS28: 104 | GT28: 0 | GU28: 55-59 | GV28: A-12-55-59 | GW28: 354.2 | GX28: 531.3 | GY28: 708.4 | GZ28: 885.5 | HA28: 1062.6 | HB28: 1239.7 | HC28: 1345.96 | HD28: 1514.21 | HE28: 1682.45 | HF28: 1850.7 | HG28: 2018.94 | HH28: 100 | HI28: 2187.19 | HJ28: 2355.43 | HK28: 2523.68 | HL28: 2691.92 | HM28: 2860.17 | HN28: 3028.41 | HO28: 3196.66 | HP28: 3364.9 | HQ28: 3533.15 | HR28: 3701.39 | HS28: 3869.64 | HT28: 4037.88
D29: 60 | E29: 64 | F29: 164 | G29: 6.55 | H29: 60-64 | I29: A-12-60-64 | J29: 341.1 | K29: 511.65 | L29: 682.2 | M29: 852.75 | N29: 1023.3 | O29: 1193.85 | P29: 1298.8 | Q29: 1461.15 | R29: 1623.5 | S29: 1785.85 | T29: 1948.2 | U29: 1.25 | W29: 60 | X29: 64 | Y29: 149 | Z29: 5.94 | AA29: 60-64 | AB29: A-12-60-64 | AC29: 309.88 | AD29: 464.82 | AE29: 619.76 | AF29: 774.7 | AG29: 929.64 | AH29: 1084.58 | AI29: 1179.92 | AJ29: 1327.41 | AK29: 1474.9 | AL29: 1622.39 | AM29: 1769.88 | AN29: 1.25 | AP29: 60 | AQ29: 64 | AR29: 136 | AS29: 5.44 | AT29: 60-64 | AU29: A-12-60-64 | AV29: 282.88 | AW29: 424.32 | AX29: 565.76 | AY29: 707.2 | AZ29: 848.64 | BA29: 990.08 | BB29: 1077.12 | BC29: 1211.76 | BD29: 1346.4 | BE29: 1481.04 | BF29: 1615.68 | BG29: 1.25 | BI29: 60 | BJ29: 64 | BK29: 126 | BL29: 5.02 | BM29: 60-64 | BN29: A-12-60-64 | BO29: 262.04 | BP29: 393.06 | BQ29: 524.08 | BR29: 655.1 | BS29: 786.12 | BT29: 917.14 | BU29: 997.76 | BV29: 1122.48 | BW29: 1247.2 | BX29: 1371.92 | BY29: 1496.64 | BZ29: 1.22 | CB29: 60 | CC29: 64 | CD29: 136 | CE29: 0 | CF29: 60-64 | CG29: A-12-60-64 | CH29: 272 | CI29: 408 | CJ29: 544 | CK29: 680 | CL29: 816 | CM29: 952 | CN29: 1033.6 | CO29: 1162.8 | CP29: 1292 | CQ29: 1421.2 | CR29: 1550.4 | CS29: 1.25 | CT29: 1679.6 | CU29: 1808.8 | CV29: 1938 | CW29: 2067.2 | CX29: 2196.4 | CY29: 2325.6 | CZ29: 2454.8 | DA29: 2584 | DB29: 2713.2 | DC29: 2842.4 | DD29: 2971.6 | DE29: 3100.8 | DG29: 60 | DH29: 64 | DI29: 150.86 | DJ29: 6.01 | DK29: 60-64 | DL29: A-12-60-64 | DM29: 313.74 | DN29: 470.61 | DO29: 627.48 | DP29: 784.35 | DQ29: 941.22 | DR29: 1098.09 | DS29: 1194.64 | DT29: 1343.97 | DU29: 1493.3 | DV29: 1642.63 | DW29: 1791.96 | DX29: 1.25 | DZ29: 60 | EA29: 64 | EB29: 150.86 | EC29: 6.01 | ED29: 60-64 | EE29: A-12-60-64 | EF29: 265.98 | EG29: 398.97 | EH29: 531.96 | EI29: 664.95 | EJ29: 797.94 | EK29: 930.93 | EL29: 1012.8 | EM29: 1139.4 | EN29: 1266 | EO29: 1392.6 | EP29: 1519.2 | EQ29: 1.25 | ES29: 60 | ET29: 64 | EU29: 136 | EV29: 0 | EW29: 60-64 | EX29: A-12-60-64 | EY29: 328 | EZ29: 492 | FA29: 656 | FB29: 820 | FC29: 984 | FD29: 1148 | FE29: 1246.4 | FF29: 1402.2 | FG29: 1558 | FH29: 1713.8 | FI29: 1869.6 | FJ29: 1.25 | FK29: 2025.4 | FL29: 2181.2 | FM29: 2337 | FN29: 2492.8 | FO29: 2648.6 | FP29: 2804.4 | FQ29: 2960.2 | FR29: 3116 | FS29: 3271.8 | FT29: 3427.6 | FU29: 3583.4 | FV29: 3739.2 | FX29: 60 | FY29: 64 | FZ29: 150.86 | GA29: 6.01 | GB29: 60-64 | GC29: A-12-60-64 | GD29: 357.48 | GE29: 536.22 | GF29: 714.96 | GG29: 893.7 | GH29: 1072.44 | GI29: 1251.18 | GJ29: 1361.04 | GK29: 1531.17 | GL29: 1701.3 | GM29: 1871.43 | GN29: 2041.56 | GO29: 1.25 | GQ29: 60 | GR29: 64 | GS29: 136 | GT29: 0 | GU29: 60-64 | GV29: A-12-60-64 | GW29: 426.22 | GX29: 639.33 | GY29: 852.44 | GZ29: 1065.55 | HA29: 1278.66 | HB29: 1491.77 | HC29: 1619.64 | HD29: 1822.09 | HE29: 2024.55 | HF29: 2227 | HG29: 2429.45 | HH29: 100 | HI29: 2631.91 | HJ29: 2834.36 | HK29: 3036.82 | HL29: 3239.27 | HM29: 3441.73 | HN29: 3644.18 | HO29: 3846.64 | HP29: 4049.09 | HQ29: 4251.54 | HR29: 4454 | HS29: 4656.45 | HT29: 4858.91
A30: use | B30: =VLOOKUP(B25,CHART50,MATCH(B24,I7:U7,0),FALSE) -> 423.2 | D30: 65 | E30: 69 | F30: 207 | G30: 12.33 | H30: 65-69 | I30: A-12-65-69 | J30: 438.66 | K30: 657.99 | L30: 877.32 | M30: 1096.65 | N30: 1315.98 | O30: 1535.31 | P30: 1671.84 | Q30: 1880.82 | R30: 2089.8 | S30: 2298.78 | T30: 2507.76 | U30: 1.25 | W30: 65 | X30: 69 | Y30: 188 | Z30: 11.18 | AA30: 65-69 | AB30: A-12-65-69 | AC30: 398.36 | AD30: 597.54 | AE30: 796.72 | AF30: 995.9 | AG30: 1195.08 | AH30: 1394.26 | AI30: 1518.24 | AJ30: 1708.02 | AK30: 1897.8 | AL30: 2087.58 | AM30: 2277.36 | AN30: 1.25 | AP30: 65 | AQ30: 69 | AR30: 172 | AS30: 10.25 | AT30: 65-69 | AU30: A-12-65-69 | AV30: 364.5 | AW30: 546.75 | AX30: 729 | AY30: 911.25 | AZ30: 1093.5 | BA30: 1275.75 | BB30: 1389.2 | BC30: 1562.85 | BD30: 1736.5 | BE30: 1910.15 | BF30: 2083.8 | BG30: 1.25 | BI30: 65 | BJ30: 69 | BK30: 159 | BL30: 9.45 | BM30: 65-69 | BN30: A-12-65-69 | BO30: 336.9 | BP30: 505.35 | BQ30: 673.8 | BR30: 842.25 | BS30: 1010.7 | BT30: 1179.15 | BU30: 1284 | BV30: 1444.5 | BW30: 1605 | BX30: 1765.5 | BY30: 1926 | BZ30: 1.22 | CB30: 65 | CC30: 69 | CD30: 172 | CE30: 0 | CF30: 65-69 | CG30: A-12-65-69 | CH30: 344 | CI30: 516 | CJ30: 688 | CK30: 860 | CL30: 1032 | CM30: 1204 | CN30: 1307.2 | CO30: 1470.6 | CP30: 1634 | CQ30: 1797.4 | CR30: 1960.8 | CS30: 1.25 | CT30: 2124.2 | CU30: 2287.6 | CV30: 2451 | CW30: 2614.4 | CX30: 2777.8 | CY30: 2941.2 | CZ30: 3104.6 | DA30: 3268 | DB30: 3431.4 | DC30: 3594.8 | DD30: 3758.2 | DE30: 3921.6 | DG30: 65 | DH30: 69 | DI30: 190.35 | DJ30: 11.32 | DK30: 65-69 | DL30: A-12-65-69 | DM30: 403.34 | DN30: 605.01 | DO30: 806.68 | DP30: 1008.35 | DQ30: 1210.02 | DR30: 1411.69 | DS30: 1537.2 | DT30: 1729.35 | DU30: 1921.5 | DV30: 2113.65 | DW30: 2305.8 | DX30: 1.25 | DZ30: 65 | EA30: 69 | EB30: 190.35 | EC30: 11.32 | ED30: 65-69 | EE30: A-12-65-69 | EF30: 341.96 | EG30: 512.94 | EH30: 683.92 | EI30: 854.9 | EJ30: 1025.88 | EK30: 1196.86 | EL30: 1303.28 | EM30: 1466.19 | EN30: 1629.1 | EO30: 1792.01 | EP30: 1954.92 | EQ30: 1.25 | ES30: 65 | ET30: 69 | EU30: 172 | EV30: 0 | EW30: 65-69 | EX30: A-12-65-69 | EY30: 414 | EZ30: 621 | FA30: 828 | FB30: 1035 | FC30: 1242 | FD30: 1449 | FE30: 1573.2 | FF30: 1769.85 | FG30: 1966.5 | FH30: 2163.15 | FI30: 2359.8 | FJ30: 1.25 | FK30: 2556.45 | FL30: 2753.1 | FM30: 2949.75 | FN30: 3146.4 | FO30: 3343.05 | FP30: 3539.7 | FQ30: 3736.35 | FR30: 3933 | FS30: 4129.65 | FT30: 4326.3 | FU30: 4522.95 | FV30: 4719.6 | FX30: 65 | FY30: 69 | FZ30: 190.35 | GA30: 11.32 | GB30: 65-69 | GC30: A-12-65-69 | GD30: 459.4 | GE30: 689.1 | GF30: 918.8 | GG30: 1148.5 | GH30: 1378.2 | GI30: 1607.9 | GJ30: 1750.64 | GK30: 1969.47 | GL30: 2188.3 | GM30: 2407.13 | GN30: 2625.96 | GO30: 1.25 | GQ30: 65 | GR30: 69 | GS30: 172 | GT30: 0 | GU30: 65-69 | GV30: A-12-65-69 | GW30: 483.52 | GX30: 725.28 | GY30: 967.04 | GZ30: 1208.8 | HA30: 1450.56 | HB30: 1692.32 | HC30: 1837.38 | HD30: 2067.05 | HE30: 2296.72 | HF30: 2526.39 | HG30: 2756.06 | HH30: 100 | HI30: 2985.74 | HJ30: 3215.41 | HK30: 3445.08 | HL30: 3674.75 | HM30: 3904.42 | HN30: 4134.1 | HO30: 4363.77 | HP30: 4593.44 | HQ30: 4823.11 | HR30: 5052.78 | HS30: 5282.46 | HT30: 5512.13
D31: 70 | E31: 74 | F31: 248 | G31: 21.2 | H31: 70-74 | I31: A-12-70-74 | J31: 538.4 | K31: 807.6 | L31: 1076.8 | M31: 1346 | N31: 1615.2 | O31: 1884.4 | P31: 2054.4 | Q31: 2311.2 | R31: 2568 | S31: 2824.8 | T31: 3081.6 | U31: N/A | W31: 70 | X31: 74 | Y31: 225 | Z31: 19.21 | AA31: 70-74 | AB31: A-12-70-74 | AC31: 488.42 | AD31: 732.63 | AE31: 976.84 | AF31: 1221.05 | AG31: 1465.26 | AH31: 1709.47 | AI31: 1863.68 | AJ31: 2096.64 | AK31: 2329.6 | AL31: 2562.56 | AM31: 2795.52 | AN31: N/A | AP31: 70 | AQ31: 74 | AR31: 206 | AS31: 17.62 | AT31: 70-74 | AU31: A-12-70-74 | AV31: 447.24 | AW31: 670.86 | AX31: 894.48 | AY31: 1118.1 | AZ31: 1341.72 | BA31: 1565.34 | BB31: 1706.56 | BC31: 1919.88 | BD31: 2133.2 | BE31: 2346.52 | BF31: 2559.84 | BG31: N/A | BI31: 70 | BJ31: 74 | BK31: 190 | BL31: 16.24 | BM31: 70-74 | BN31: A-12-70-74 | BO31: 412.48 | BP31: 618.72 | BQ31: 824.96 | BR31: 1031.2 | BS31: 1237.44 | BT31: 1443.68 | BU31: 1573.92 | BV31: 1770.66 | BW31: 1967.4 | BX31: 2164.14 | BY31: 2360.88 | BZ31: N/A | CB31: 70 | CC31: 74 | CD31: 206 | CE31: 0 | CF31: 70-74 | CG31: A-12-70-74 | CH31: 412 | CI31: 618 | CJ31: 824 | CK31: 1030 | CL31: 1236 | CM31: 1442 | CN31: 1565.6 | CO31: 1761.3 | CP31: 1957 | CQ31: 2152.7 | CR31: 2348.4 | CS31: N/A | CT31: 2544.1 | CU31: 2739.8 | CV31: 2935.5 | CW31: 3131.2 | CX31: 3326.9 | CY31: 3522.6 | CZ31: 3718.3 | DA31: 3914 | DB31: 4109.7 | DC31: 4305.4 | DD31: 4501.1 | DE31: 4696.8 | DG31: 70 | DH31: 74 | DI31: 227.81 | DJ31: 19.45 | DK31: 70-74 | DL31: A-12-70-74 | DM31: 494.52 | DN31: 741.78 | DO31: 989.04 | DP31: 1236.3 | DQ31: 1483.56 | DR31: 1730.82 | DS31: 1886.96 | DT31: 2122.83 | DU31: 2358.7 | DV31: 2594.57 | DW31: 2830.44 | DX31: N/A | DZ31: 70 | EA31: 74 | EB31: 227.81 | EC31: 19.45 | ED31: 70-74 | EE31: A-12-70-74 | EF31: 418.66 | EG31: 627.99 | EH31: 837.32 | EI31: 1046.65 | EJ31: 1255.98 | EK31: 1465.31 | EL31: 1597.52 | EM31: 1797.21 | EN31: 1996.9 | EO31: 2196.59 | EP31: 2396.28 | EQ31: N/A | ES31: 70 | ET31: 74 | EU31: 206 | EV31: 0 | EW31: 70-74 | EX31: A-12-70-74 | EY31: 496 | EZ31: 744 | FA31: 992 | FB31: 1240 | FC31: 1488 | FD31: 1736 | FE31: 1884.8 | FF31: 2120.4 | FG31: 2356 | FH31: 2591.6 | FI31: 2827.2 | FJ31: N/A | FK31: 3062.8 | FL31: 3298.4 | FM31: 3534 | FN31: 3769.6 | FO31: 4005.2 | FP31: 4240.8 | FQ31: 4476.4 | FR31: 4712 | FS31: 4947.6 | FT31: 5183.2 | FU31: 5418.8 | FV31: 5654.4 | FX31: 70 | FY31: 74 | FZ31: 227.81 | GA31: 19.45 | GB31: 70-74 | GC31: A-12-70-74 | GD31: 562.76 | GE31: 844.14 | GF31: 1125.52 | GG31: 1406.9 | GH31: 1688.28 | GI31: 1969.66 | GJ31: 2146.96 | GK31: 2415.33 | GL31: 2683.7 | GM31: 2952.07 | GN31: 3220.44 | GO31: N/A | GQ31: 70 | GR31: 74 | GS31: 206 | GT31: 0 | GU31: 70-74 | GV31: A-12-70-74 | GW31: 521.78 | GX31: 782.67 | GY31: 1043.56 | GZ31: 1304.45 | HA31: 1565.34 | HB31: 1826.23 | HC31: 1982.76 | HD31: 2230.61 | HE31: 2478.46 | HF31: 2726.3 | HG31: 2974.15 | HH31: N/A | HI31: 3221.99 | HJ31: 3469.84 | HK31: 3717.68 | HL31: 3965.53 | HM31: 4213.37 | HN31: 4461.22 | HO31: 4709.06 | HP31: 4956.91 | HQ31: 5204.76 | HR31: 5452.6 | HS31: 5700.45 | HT31: 5948.29
D32: 75 | E32: 79 | F32: 283 | G32: 34.69 | H32: 75-79 | I32: A-12-75-79 | J32: 635.38 | K32: 953.07 | L32: 1270.76 | M32: 1588.45 | N32: 1906.14 | O32: 2223.83 | P32: 2428.32 | Q32: 2731.86 | R32: 3035.4 | S32: 3338.94 | T32: 3642.48 | U32: N/A | W32: 75 | X32: 79 | Y32: 257 | Z32: 31.43 | AA32: 75-79 | AB32: A-12-75-79 | AC32: 576.86 | AD32: 865.29 | AE32: 1153.72 | AF32: 1442.15 | AG32: 1730.58 | AH32: 2019.01 | AI32: 2204.64 | AJ32: 2480.22 | AK32: 2755.8 | AL32: 3031.38 | AM32: 3306.96 | AN32: N/A | AP32: 75 | AQ32: 79 | AR32: 236 | AS32: 28.83 | AT32: 75-79 | AU32: A-12-75-79 | AV32: 529.66 | AW32: 794.49 | AX32: 1059.32 | AY32: 1324.15 | AZ32: 1588.98 | BA32: 1853.81 | BB32: 2024.24 | BC32: 2277.27 | BD32: 2530.3 | BE32: 2783.33 | BF32: 3036.36 | BG32: N/A | BI32: 75 | BJ32: 79 | BK32: 217 | BL32: 26.58 | BM32: 75-79 | BN32: A-12-75-79 | BO32: 487.16 | BP32: 730.74 | BQ32: 974.32 | BR32: 1217.9 | BS32: 1461.48 | BT32: 1705.06 | BU32: 1861.84 | BV32: 2094.57 | BW32: 2327.3 | BX32: 2560.03 | BY32: 2792.76 | BZ32: N/A | CB32: 75 | CC32: 79 | CD32: 236 | CE32: 0 | CF32: 75-79 | CG32: A-12-75-79 | CH32: 472 | CI32: 708 | CJ32: 944 | CK32: 1180 | CL32: 1416 | CM32: 1652 | CN32: 1793.6 | CO32: 2017.8 | CP32: 2242 | CQ32: 2466.2 | CR32: 2690.4 | CS32: N/A | CT32: 2914.6 | CU32: 3138.8 | CV32: 3363 | CW32: 3587.2 | CX32: 3811.4 | CY32: 4035.6 | CZ32: 4259.8 | DA32: 4484 | DB32: 4708.2 | DC32: 4932.4 | DD32: 5156.6 | DE32: 5380.8 | DG32: 75 | DH32: 79 | DI32: 260.21 | DJ32: 31.82 | DK32: 75-79 | DL32: A-12-75-79 | DM32: 584.06 | DN32: 876.09 | DO32: 1168.12 | DP32: 1460.15 | DQ32: 1752.18 | DR32: 2044.21 | DS32: 2232.16 | DT32: 2511.18 | DU32: 2790.2 | DV32: 3069.22 | DW32: 3348.24 | DX32: N/A | DZ32: 75 | EA32: 79 | EB32: 260.21 | EC32: 31.82 | ED32: 75-79 | EE32: A-12-75-79 | EF32: 494.48 | EG32: 741.72 | EH32: 988.96 | EI32: 1236.2 | EJ32: 1483.44 | EK32: 1730.68 | EL32: 1889.84 | EM32: 2126.07 | EN32: 2362.3 | EO32: 2598.53 | EP32: 2834.76 | EQ32: N/A | ES32: 75 | ET32: 79 | EU32: 236 | EV32: 0 | EW32: 75-79 | EX32: A-12-75-79 | EY32: 566 | EZ32: 849 | FA32: 1132 | FB32: 1415 | FC32: 1698 | FD32: 1981 | FE32: 2150.8 | FF32: 2419.65 | FG32: 2688.5 | FH32: 2957.35 | FI32: 3226.2 | FJ32: N/A | FK32: 3495.05 | FL32: 3763.9 | FM32: 4032.75 | FN32: 4301.6 | FO32: 4570.45 | FP32: 4839.3 | FQ32: 5108.15 | FR32: 5377 | FS32: 5645.85 | FT32: 5914.7 | FU32: 6183.55 | FV32: 6452.4 | FX32: 75 | FY32: 79 | FZ32: 260.21 | GA32: 31.82 | GB32: 75-79 | GC32: A-12-75-79 | GD32: 663.94 | GE32: 995.91 | GF32: 1327.88 | GG32: 1659.85 | GH32: 1991.82 | GI32: 2323.79 | GJ32: 2536.88 | GK32: 2853.99 | GL32: 3171.1 | GM32: 3488.21 | GN32: 3805.32 | GO32: N/A | GQ32: 75 | GR32: 79 | GS32: 236 | GT32: 0 | GU32: 75-79 | GV32: A-12-75-79 | GW32: 546.8 | GX32: 820.2 | GY32: 1093.6 | GZ32: 1367 | HA32: 1640.4 | HB32: 1913.8 | HC32: 2077.84 | HD32: 2337.57 | HE32: 2597.3 | HF32: 2857.03 | HG32: 3116.76 | HH32: N/A | HI32: 3376.49 | HJ32: 3636.22 | HK32: 3895.95 | HL32: 4155.68 | HM32: 4415.41 | HN32: 4675.14 | HO32: 4934.87 | HP32: 5194.6 | HQ32: 5454.33 | HR32: 5714.06 | HS32: 5973.79 | HT32: 6233.52
D33: 80 | E33: 84 | F33: 300 | G33: 52.42 | H33: 80-84 | I33: A-12-80-84 | J33: 704.84 | K33: 1057.26 | L33: 1409.68 | M33: 1762.1 | N33: 2114.52 | O33: 2466.94 | P33: 2699.36 | Q33: 3036.78 | R33: 3374.2 | S33: 3711.62 | T33: 4049.04 | U33: N/A | W33: 80 | X33: 84 | Y33: 272 | Z33: 47.49 | AA33: 80-84 | AB33: A-12-80-84 | AC33: 638.98 | AD33: 958.47 | AE33: 1277.96 | AF33: 1597.45 | AG33: 1916.94 | AH33: 2236.43 | AI33: 2447.12 | AJ33: 2753.01 | AK33: 3058.9 | AL33: 3364.79 | AM33: 3670.68 | AN33: N/A | AP33: 80 | AQ33: 84 | AR33: 249 | AS33: 43.56 | AT33: 80-84 | AU33: A-12-80-84 | AV33: 585.12 | AW33: 877.68 | AX33: 1170.24 | AY33: 1462.8 | AZ33: 1755.36 | BA33: 2047.92 | BB33: 2240.88 | BC33: 2520.99 | BD33: 2801.1 | BE33: 3081.21 | BF33: 3361.32 | BG33: N/A | BI33: 80 | BJ33: 84 | BK33: 230 | BL33: 40.16 | BM33: 80-84 | BN33: A-12-80-84 | BO33: 540.32 | BP33: 810.48 | BQ33: 1080.64 | BR33: 1350.8 | BS33: 1620.96 | BT33: 1891.12 | BU33: 2069.28 | BV33: 2327.94 | BW33: 2586.6 | BX33: 2845.26 | BY33: 3103.92 | BZ33: N/A | CB33: 80 | CC33: 84 | CD33: 249 | CE33: 0 | CF33: 80-84 | CG33: A-12-80-84 | CH33: 498 | CI33: 747 | CJ33: 996 | CK33: 1245 | CL33: 1494 | CM33: 1743 | CN33: 1892.4 | CO33: 2128.95 | CP33: 2365.5 | CQ33: 2602.05 | CR33: 2838.6 | CS33: N/A | CT33: 3075.15 | CU33: 3311.7 | CV33: 3548.25 | CW33: 3784.8 | CX33: 4021.35 | CY33: 4257.9 | CZ33: 4494.45 | DA33: 4731 | DB33: 4967.55 | DC33: 5204.1 | DD33: 5440.65 | DE33: 5677.2 | DG33: 80 | DH33: 84 | DI33: 275.4 | DJ33: 48.08 | DK33: 80-84 | DL33: A-12-80-84 | DM33: 646.96 | DN33: 970.44 | DO33: 1293.92 | DP33: 1617.4 | DQ33: 1940.88 | DR33: 2264.36 | DS33: 2477.68 | DT33: 2787.39 | DU33: 3097.1 | DV33: 3406.81 | DW33: 3716.52 | DX33: N/A | DZ33: 80 | EA33: 84 | EB33: 275.4 | EC33: 48.08 | ED33: 80-84 | EE33: A-12-80-84 | EF33: 548.42 | EG33: 822.63 | EH33: 1096.84 | EI33: 1371.05 | EJ33: 1645.26 | EK33: 1919.47 | EL33: 2100.32 | EM33: 2362.86 | EN33: 2625.4 | EO33: 2887.94 | EP33: 3150.48 | EQ33: N/A | ES33: 80 | ET33: 84 | EU33: 249 | EV33: 0 | EW33: 80-84 | EX33: A-12-80-84 | EY33: 600 | EZ33: 900 | FA33: 1200 | FB33: 1500 | FC33: 1800 | FD33: 2100 | FE33: 2280 | FF33: 2565 | FG33: 2850 | FH33: 3135 | FI33: 3420 | FJ33: N/A | FK33: 3705 | FL33: 3990 | FM33: 4275 | FN33: 4560 | FO33: 4845 | FP33: 5130 | FQ33: 5415 | FR33: 5700 | FS33: 5985 | FT33: 6270 | FU33: 6555 | FV33: 6840 | FX33: 80 | FY33: 84 | FZ33: 275.4 | GA33: 48.08 | GB33: 80-84 | GC33: A-12-80-84 | GD33: 733.64 | GE33: 1100.46 | GF33: 1467.28 | GG33: 1834.1 | GH33: 2200.92 | GI33: 2567.74 | GJ33: 2808.8 | GK33: 3159.9 | GL33: 3511 | GM33: 3862.1 | GN33: 4213.2 | GO33: N/A | GQ33: 80 | GR33: 84 | GS33: 249 | GT33: 0 | GU33: 80-84 | GV33: A-12-80-84 | GW33: 554.04 | GX33: 831.06 | GY33: 1108.08 | GZ33: 1385.1 | HA33: 1662.12 | HB33: 1939.14 | HC33: 2105.35 | HD33: 2368.52 | HE33: 2631.69 | HF33: 2894.86 | HG33: 3158.03 | HH33: N/A | HI33: 3421.2 | HJ33: 3684.37 | HK33: 3947.54 | HL33: 4210.7 | HM33: 4473.87 | HN33: 4737.04 | HO33: 5000.21 | HP33: 5263.38 | HQ33: 5526.55 | HR33: 5789.72 | HS33: 6052.89 | HT33: 6316.06
J36: 500 | K36: 750 | L36: 1000 | M36: 1250 | N36: 1500 | O36: 1750 | P36: 2000 | Q36: 2250 | R36: 2500 | S36: 2750 | T36: 3000 | U36: ROP | AC36: 500 | AD36: 750 | AE36: 1000 | AF36: 1250 | AG36: 1500 | AH36: 1750 | AI36: 2000 | AJ36: 2250 | AK36: 2500 | AL36: 2750 | AM36: 3000 | AN36: ROP | AV36: 500 | AW36: 750 | AX36: 1000 | AY36: 1250 | AZ36: 1500 | BA36: 1750 | BB36: 2000 | BC36: 2250 | BD36: 2500 | BE36: 2750 | BF36: 3000 | BG36: ROP | BO36: 500 | BP36: 750 | BQ36: 1000 | BR36: 1250 | BS36: 1500 | BT36: 1750 | BU36: 2000 | BV36: 2250 | BW36: 2500 | BX36: 2750 | BY36: 3000 | BZ36: ROP | CH36: 500 | CI36: 750 | CJ36: 1000 | CK36: 1250 | CL36: 1500 | CM36: 1750 | CN36: 2000 | CO36: 2250 | CP36: 2500 | CQ36: 2750 | CR36: 3000 | CS36: ROP | CT36: 3250 | CU36: 3500 | CV36: 3750 | CW36: 4000 | CX36: 4250 | CY36: 4500 | CZ36: 4750 | DA36: 5000 | DB36: 5250 | DC36: 5500 | DD36: 5750 | DE36: 6000 | DM36: 500 | DN36: 750 | DO36: 1000 | DP36: 1250 | DQ36: 1500 | DR36: 1750 | DS36: 2000 | DT36: 2250 | DU36: 2500 | DV36: 2750 | DW36: 3000 | DX36: ROP | EF36: 500 | EG36: 750 | EH36: 1000 | EI36: 1250 | EJ36: 1500 | EK36: 1750 | EL36: 2000 | EM36: 2250 | EN36: 2500 | EO36: 2750 | EP36: 3000 | EQ36: ROP | EY36: 500 | EZ36: 750 | FA36: 1000 | FB36: 1250 | FC36: 1500 | FD36: 1750 | FE36: 2000 | FF36: 2250 | FG36: 2500 | FH36: 2750 | FI36: 3000 | FJ36: ROP | FK36: 3250 | FL36: 3500 | FM36: 3750 | FN36: 4000 | FO36: 4250 | FP36: 4500 | FQ36: 4750 | FR36: 5000 | FS36: 5250 | FT36: 5500 | FU36: 5750 | FV36: 6000 | GD36: 500 | GE36: 750 | GF36: 1000 | GG36: 1250 | GH36: 1500 | GI36: 1750 | GJ36: 2000 | GK36: 2250 | GL36: 2500 | GM36: 2750 | GN36: 3000 | GO36: ROP | GW36: 500 | GX36: 750 | GY36: 1000 | GZ36: 1250 | HA36: 1500 | HB36: 1750 | HC36: 2000 | HD36: 2250 | HE36: 2500 | HF36: 2750 | HG36: 3000 | HH36: ROP | HI36: 3250 | HJ36: 3500 | HK36: 3750 | HL36: 4000 | HM36: 4250 | HN36: 4500 | HO36: 4750 | HP36: 5000 | HQ36: 5250 | HR36: 5500 | HS36: 5750 | HT36: 6000
I37: A-18 | J37: 2 | K37: 3 | L37: 4 | M37: 5 | N37: 6 | O37: 7 | P37: 8 | Q37: 9 | R37: 10 | S37: 11 | T37: 12 | AB37: A-18 | AC37: 2 | AD37: 3 | AE37: 4 | AF37: 5 | AG37: 6 | AH37: 7 | AI37: 8 | AJ37: 9 | AK37: 10 | AL37: 11 | AM37: 12 | AU37: A-18 | AV37: 2 | AW37: 3 | AX37: 4 | AY37: 5 | AZ37: 6 | BA37: 7 | BB37: 8 | BC37: 9 | BD37: 10 | BE37: 11 | BF37: 12 | BN37: A-18 | BO37: 2 | BP37: 3 | BQ37: 4 | BR37: 5 | BS37: 6 | BT37: 7 | BU37: 8 | BV37: 9 | BW37: 10 | BX37: 11 | BY37: 12 | CG37: A-18 | CH37: 2 | CI37: 3 | CJ37: 4 | CK37: 5 | CL37: 6 | CM37: 7 | CN37: 8 | CO37: 9 | CP37: 10 | CQ37: 11 | CR37: 12 | CT37: 13 | CU37: 14 | CV37: 15 | CW37: 16 | CX37: 17 | CY37: 18 | CZ37: 19 | DA37: 20 | DB37: 21 | DC37: 22 | DD37: 23 | DE37: 24 | DL37: A-18 | DM37: 2 | DN37: 3 | DO37: 4 | DP37: 5 | DQ37: 6 | DR37: 7 | DS37: 8 | DT37: 9 | DU37: 10 | DV37: 11 | DW37: 12 | EE37: A-18 | EF37: 2 | EG37: 3 | EH37: 4 | EI37: 5 | EJ37: 6 | EK37: 7 | EL37: 8 | EM37: 9 | EN37: 10 | EO37: 11 | EP37: 12 | EX37: A-18 | EY37: 2 | EZ37: 3 | FA37: 4 | FB37: 5 | FC37: 6 | FD37: 7 | FE37: 8 | FF37: 9 | FG37: 10 | FH37: 11 | FI37: 12 | FK37: 13 | FL37: 14 | FM37: 15 | FN37: 16 | FO37: 17 | FP37: 18 | FQ37: 19 | FR37: 20 | FS37: 21 | FT37: 22 | FU37: 23 | FV37: 24 | GC37: A-18 | GD37: 2 | GE37: 3 | GF37: 4 | GG37: 5 | GH37: 6 | GI37: 7 | GJ37: 8 | GK37: 9 | GL37: 10 | GM37: 11 | GN37: 12 | GV37: A-18 | GW37: 2 | GX37: 3 | GY37: 4 | GZ37: 5 | HA37: 6 | HB37: 7 | HC37: 8 | HD37: 9 | HE37: 10 | HF37: 11 | HG37: 12 | HI37: 13 | HJ37: 14 | HK37: 15 | HL37: 16 | HM37: 17 | HN37: 18 | HO37: 19 | HP37: 20 | HQ37: 21 | HR37: 22 | HS37: 23 | HT37: 24
D38: Dependent | F38: 10.65 | G38: 0.35 | H38: D | I38: =CONCATENATE(I$37,"-",H38) -> A-18-D | J38: 22 | K38: Dependent benefit is $500 | U38: 1.1 | W38: Dependent | Y38: 9.66 | Z38: 0.32 | AA38: D | AB38: =CONCATENATE(AB$37,"-",AA38) -> A-18-D | AC38: 19.96 | AD38: Dependent benefit is $500 | AN38: 1.1 | AP38: Dependent | AR38: 8.85 | AS38: 0.29 | AT38: D | AU38: =CONCATENATE(AU$37,"-",AT38) -> A-18-D | AV38: 18.28 | AW38: Dependent benefit is $500 | BG38: 1.1 | BI38: Dependent | BK38: 8.17 | BL38: 0.27 | BM38: D | BN38: =CONCATENATE(BN$37,"-",BM38) -> A-18-D | BO38: 16.88 | BP38: Dependent benefit is $500 | BZ38: 1.1 | CB38: Dependent | CD38: 8.85 | CE38: 0 | CF38: D | CG38: =CONCATENATE(CG$37,"-",CF38) -> A-18-D | CH38: 17.7 | CI38: Dependent benefit is $500 | CS38: 1.1 | CU38: Dependent benefit is $500 | DG38: Dependent | DI38: 9.78 | DJ38: 0.32 | DK38: D | DL38: =CONCATENATE(DL$37,"-",DK38) -> A-18-D | DM38: 20.2 | DN38: Dependent benefit is $500 | DX38: 1.1 | DZ38: Dependent | EB38: 9.78 | EC38: 0.32 | ED38: D | EE38: =CONCATENATE(EE$37,"-",ED38) -> A-18-D | EF38: 17.12 | EG38: Dependent benefit is $500 | EQ38: 1.1 | ES38: Dependent | EU38: 8.85 | EV38: 0 | EW38: D | EX38: =CONCATENATE(EX$37,"-",EW38) -> A-18-D | EY38: 21.3 | EZ38: Dependent benefit is $500 | FJ38: 1.1 | FL38: Dependent benefit is $500 | FX38: Dependent | FZ38: 9.78 | GA38: 0.32 | GB38: D | GC38: =CONCATENATE(GC$37,"-",GB38) -> A-18-D | GD38: 99999 | GE38: Dependent benefit is $500 | GO38: 100 | GQ38: Dependent | GS38: 8.85 | GT38: 0 | GU38: D | GV38: =CONCATENATE(GV$37,"-",GU38) -> A-18-D | GW38: 20.04 | GX38: Dependent benefit is $500 | HH38: 100 | HJ38: Dependent benefit is $500
D39: 18 | E39: 29 | F39: 25.56 | G39: 0.35 | H39: 18-29 | I39: =CONCATENATE(I$37,"-",H39) -> A-18-18-29 | J39: 51.82 | K39: 77.73 | L39: 103.64 | M39: 129.55 | N39: 155.46 | O39: 181.37 | P39: 197.06 | Q39: 221.69 | R39: 246.3 | S39: 270.93 | T39: 295.56 | U39: 1.1 | W39: 18 | X39: 29 | Y39: 22.72 | Z39: 0.32 | AA39: 18-29 | AB39: =CONCATENATE(AB$37,"-",AA39) -> A-18-18-29 | AC39: 46.08 | AD39: 69.12 | AE39: 92.16 | AF39: 115.2 | AG39: 138.24 | AH39: 161.28 | AI39: 175.2 | AJ39: 197.1 | AK39: 219 | AL39: 240.9 | AM39: 262.8 | AN39: 1.1 | AP39: 18 | AQ39: 29 | AR39: 21.3 | AS39: 0.29 | AT39: 18-29 | AU39: =CONCATENATE(AU$37,"-",AT39) -> A-18-18-29 | AV39: 43.18 | AW39: 64.77 | AX39: 86.36 | AY39: 107.95 | AZ39: 129.54 | BA39: 151.13 | BB39: 164.24 | BC39: 184.77 | BD39: 205.3 | BE39: 225.83 | BF39: 246.36 | BG39: 1.1 | BI39: 18 | BJ39: 29 | BK39: 19.88 | BL39: 0.27 | BM39: 18-29 | BN39: =CONCATENATE(BN$37,"-",BM39) -> A-18-18-29 | BO39: 40.3 | BP39: 60.45 | BQ39: 80.6 | BR39: 100.75 | BS39: 120.9 | BT39: 141.05 | BU39: 153.28 | BV39: 172.44 | BW39: 191.6 | BX39: 210.76 | BY39: 229.92 | BZ39: 1.1 | CB39: 18 | CC39: 29 | CD39: 21.3 | CE39: 0 | CF39: 18-29 | CG39: =CONCATENATE(CG$37,"-",CF39) -> A-18-18-29 | CH39: 42.6 | CI39: 63.9 | CJ39: 85.2 | CK39: 106.5 | CL39: 127.8 | CM39: 149.1 | CN39: 161.92 | CO39: 182.16 | CP39: 202.4 | CQ39: 222.64 | CR39: 242.88 | CS39: 1.1 | CT39: 263.12 | CU39: 283.36 | CV39: 303.6 | CW39: 323.84 | CX39: 344.08 | CY39: 364.32 | CZ39: 384.56 | DA39: 404.8 | DB39: 425.04 | DC39: 445.28 | DD39: 465.52 | DE39: 485.76 | DG39: 18 | DH39: 29 | DI39: 23 | DJ39: 0.32 | DK39: 18-29 | DL39: =CONCATENATE(DL$37,"-",DK39) -> A-18-18-29 | DM39: 46.64 | DN39: 69.96 | DO39: 93.28 | DP39: 116.6 | DQ39: 139.92 | DR39: 163.24 | DS39: 177.36 | DT39: 199.53 | DU39: 221.7 | DV39: 243.87 | DW39: 266.04 | DX39: 1.1 | DZ39: 18 | EA39: 29 | EB39: 23 | EC39: 0.32 | ED39: 18-29 | EE39: =CONCATENATE(EE$37,"-",ED39) -> A-18-18-29 | EF39: 40.9 | EG39: 61.35 | EH39: 81.8 | EI39: 102.25 | EJ39: 122.7 | EK39: 143.15 | EL39: 155.52 | EM39: 174.96 | EN39: 194.4 | EO39: 213.84 | EP39: 233.28 | EQ39: 1.1 | ES39: 18 | ET39: 29 | EU39: 21.3 | EV39: 0 | EW39: 18-29 | EX39: =CONCATENATE(EX$37,"-",EW39) -> A-18-18-29 | EY39: 51.12 | EZ39: 76.68 | FA39: 102.24 | FB39: 127.8 | FC39: 153.36 | FD39: 178.92 | FE39: 194.24 | FF39: 218.52 | FG39: 242.8 | FH39: 267.08 | FI39: 291.36 | FJ39: 1.1 | FK39: 315.64 | FL39: 339.92 | FM39: 364.2 | FN39: 388.48 | FO39: 412.76 | FP39: 437.04 | FQ39: 461.32 | FR39: 485.6 | FS39: 509.88 | FT39: 534.16 | FU39: 558.44 | FV39: 582.72 | FX39: 18 | FY39: 29 | FZ39: 23 | GA39: 0.32 | GB39: 18-29 | GC39: =CONCATENATE(GC$37,"-",GB39) -> A-18-18-29 | GD39: 99999 | GE39: 99999 | GF39: 99999 | GG39: 99999 | GH39: 99999 | GI39: 99999 | GJ39: 99999 | GK39: 99999 | GL39: 99999 | GM39: 99999 | GN39: 99999 | GO39: 100 | GQ39: 18 | GR39: 29 | GS39: 21.3 | GT39: 0 | GU39: 18-29 | GV39: =CONCATENATE(GV$37,"-",GU39) -> A-18-18-29 | GW39: 66.04 | GX39: 99.06 | GY39: 132.08 | GZ39: 165.1 | HA39: 198.12 | HB39: 231.14 | HC39: 250.95 | HD39: 282.32 | HE39: 313.69 | HF39: 345.06 | HG39: 376.43 | HH39: 100 | HI39: 407.8 | HJ39: 439.17 | HK39: 470.54 | HL39: 501.9 | HM39: 533.27 | HN39: 564.64 | HO39: 596.01 | HP39: 627.38 | HQ39: 658.75 | HR39: 690.12 | HS39: 721.49 | HT39: 752.86
D40: 30 | E40: 39 | F40: 38.34 | G40: 0.43 | H40: 30-39 | I40: A-18-30-39 | J40: 77.54 | K40: 116.31 | L40: 155.08 | M40: 193.85 | N40: 232.62 | O40: 271.39 | P40: 294.8 | Q40: 331.65 | R40: 368.53 | S40: 405.35 | T40: 442.2 | U40: 1.1 | W40: 30 | X40: 39 | Y40: 35.5 | Z40: 0.39 | AA40: 30-39 | AB40: A-18-30-39 | AC40: 71.78 | AD40: 107.67 | AE40: 143.56 | AF40: 179.45 | AG40: 215.34 | AH40: 251.23 | AI40: 272.96 | AJ40: 307.08 | AK40: 341.2 | AL40: 375.32 | AM40: 409.44 | AN40: 1.1 | AP40: 30 | AQ40: 39 | AR40: 32.66 | AS40: 0.35 | AT40: 30-39 | AU40: A-18-30-39 | AV40: 66.02 | AW40: 99.03 | AX40: 132.04 | AY40: 165.05 | AZ40: 198.06 | BA40: 231.07 | BB40: 251.04 | BC40: 282.42 | BD40: 313.8 | BE40: 345.18 | BF40: 376.56 | BG40: 1.1 | BI40: 30 | BJ40: 39 | BK40: 29.82 | BL40: 0.33 | BM40: 30-39 | BN40: A-18-30-39 | BO40: 60.3 | BP40: 90.45 | BQ40: 120.6 | BR40: 150.75 | BS40: 180.9 | BT40: 211.05 | BU40: 229.28 | BV40: 257.94 | BW40: 286.6 | BX40: 315.26 | BY40: 343.92 | BZ40: 1.1 | CB40: 30 | CC40: 39 | CD40: 32.66 | CE40: 0 | CF40: 30-39 | CG40: A-18-30-39 | CH40: 65.32 | CI40: 97.98 | CJ40: 130.64 | CK40: 163.3 | CL40: 195.96 | CM40: 228.62 | CN40: 248.24 | CO40: 279.27 | CP40: 310.3 | CQ40: 341.33 | CR40: 372.36 | CS40: 1.1 | CT40: 403.39 | CU40: 434.42 | CV40: 465.45 | CW40: 496.48 | CX40: 527.51 | CY40: 558.54 | CZ40: 589.57 | DA40: 620.6 | DB40: 651.63 | DC40: 682.66 | DD40: 713.69 | DE40: 744.72 | DG40: 30 | DH40: 39 | DI40: 35.94 | DJ40: 0.39 | DK40: 30-39 | DL40: A-18-30-39 | DM40: 72.66 | DN40: 108.99 | DO40: 145.32 | DP40: 181.65 | DQ40: 217.98 | DR40: 254.31 | DS40: 276.24 | DT40: 310.77 | DU40: 345.3 | DV40: 379.83 | DW40: 414.36 | DX40: 1.1 | DZ40: 30 | EA40: 39 | EB40: 35.94 | EC40: 0.39 | ED40: 30-39 | EE40: A-18-30-39 | EF40: 61.2 | EG40: 91.8 | EH40: 122.4 | EI40: 153 | EJ40: 183.6 | EK40: 214.2 | EL40: 232.72 | EM40: 261.81 | EN40: 290.9 | EO40: 319.99 | EP40: 349.08 | EQ40: 1.1 | ES40: 30 | ET40: 39 | EU40: 32.66 | EV40: 0 | EW40: 30-39 | EX40: A-18-30-39 | EY40: 76.68 | EZ40: 115.02 | FA40: 153.36 | FB40: 191.7 | FC40: 230.04 | FD40: 268.38 | FE40: 291.36 | FF40: 327.78 | FG40: 364.2 | FH40: 400.62 | FI40: 437.04 | FJ40: 1.1 | FK40: 473.46 | FL40: 509.88 | FM40: 546.3 | FN40: 582.72 | FO40: 619.14 | FP40: 655.56 | FQ40: 691.98 | FR40: 728.4 | FS40: 764.82 | FT40: 801.24 | FU40: 837.66 | FV40: 874.08 | FX40: 30 | FY40: 39 | FZ40: 35.94 | GA40: 0.39 | GB40: 30-39 | GC40: A-18-30-39 | GD40: 99999 | GE40: 99999 | GF40: 99999 | GG40: 99999 | GH40: 99999 | GI40: 99999 | GJ40: 99999 | GK40: 99999 | GL40: 99999 | GM40: 99999 | GN40: 99999 | GO40: 100 | GQ40: 30 | GR40: 39 | GS40: 32.66 | GT40: 0 | GU40: 30-39 | GV40: A-18-30-39 | GW40: 145.32 | GX40: 217.98 | GY40: 290.64 | GZ40: 363.3 | HA40: 435.96 | HB40: 508.62 | HC40: 552.22 | HD40: 621.24 | HE40: 690.27 | HF40: 759.3 | HG40: 828.32 | HH40: 100 | HI40: 897.35 | HJ40: 966.38 | HK40: 1035.41 | HL40: 1104.43 | HM40: 1173.46 | HN40: 1242.49 | HO40: 1311.51 | HP40: 1380.54 | HQ40: 1449.57 | HR40: 1518.59 | HS40: 1587.62 | HT40: 1656.65
D41: 40 | E41: 49 | F41: 79.52 | G41: 0.88 | H41: 40-49 | I41: A-18-40-49 | J41: 160.8 | K41: 241.2 | L41: 321.6 | M41: 402 | N41: 482.4 | O41: 562.8 | P41: 611.36 | Q41: 687.78 | R41: 764.2 | S41: 840.62 | T41: 917.04 | U41: 1.15 | W41: 40 | X41: 49 | Y41: 72.42 | Z41: 0.79 | AA41: 40-49 | AB41: A-18-40-49 | AC41: 146.42 | AD41: 219.63 | AE41: 292.84 | AF41: 366.05 | AG41: 439.26 | AH41: 512.47 | AI41: 556.72 | AJ41: 626.31 | AK41: 695.9 | AL41: 765.49 | AM41: 835.08 | AN41: 1.15 | AP41: 40 | AQ41: 49 | AR41: 65.32 | AS41: 0.73 | AT41: 40-49 | AU41: A-18-40-49 | AV41: 132.1 | AW41: 198.15 | AX41: 264.2 | AY41: 330.25 | AZ41: 396.3 | BA41: 462.35 | BB41: 502.24 | BC41: 565.02 | BD41: 627.8 | BE41: 690.58 | BF41: 753.36 | BG41: 1.15 | BI41: 40 | BJ41: 49 | BK41: 61.06 | BL41: 0.67 | BM41: 40-49 | BN41: A-18-40-49 | BO41: 123.46 | BP41: 185.19 | BQ41: 246.92 | BR41: 308.65 | BS41: 370.38 | BT41: 432.11 | BU41: 469.44 | BV41: 528.12 | BW41: 586.8 | BX41: 645.48 | BY41: 704.16 | BZ41: 1.15 | CB41: 40 | CC41: 49 | CD41: 65.32 | CE41: 0 | CF41: 40-49 | CG41: A-18-40-49 | CH41: 130.64 | CI41: 195.96 | CJ41: 261.28 | CK41: 326.6 | CL41: 391.92 | CM41: 457.24 | CN41: 496.4 | CO41: 558.45 | CP41: 620.5 | CQ41: 682.55 | CR41: 744.6 | CS41: 1.15 | CT41: 806.65 | CU41: 868.7 | CV41: 930.75 | CW41: 992.8 | CX41: 1054.85 | CY41: 1116.9 | CZ41: 1178.95 | DA41: 1241 | DB41: 1303.05 | DC41: 1365.1 | DD41: 1427.15 | DE41: 1489.2 | DG41: 40 | DH41: 49 | DI41: 73.33 | DJ41: 0.8 | DK41: 40-49 | DL41: A-18-40-49 | DM41: 148.26 | DN41: 222.39 | DO41: 296.52 | DP41: 370.65 | DQ41: 444.78 | DR41: 518.91 | DS41: 563.68 | DT41: 634.14 | DU41: 704.6 | DV41: 775.06 | DW41: 845.52 | DX41: 1.15 | DZ41: 40 | EA41: 49 | EB41: 73.33 | EC41: 0.8 | ED41: 40-49 | EE41: A-18-40-49 | EF41: 125.32 | EG41: 187.98 | EH41: 250.64 | EI41: 313.3 | EJ41: 375.96 | EK41: 438.62 | EL41: 476.48 | EM41: 536.04 | EN41: 595.6 | EO41: 655.16 | EP41: 714.72 | EQ41: 1.15 | ES41: 40 | ET41: 49 | EU41: 65.32 | EV41: 0 | EW41: 40-49 | EX41: A-18-40-49 | EY41: 159.04 | EZ41: 238.56 | FA41: 318.08 | FB41: 397.6 | FC41: 477.12 | FD41: 556.64 | FE41: 604.32 | FF41: 679.86 | FG41: 755.4 | FH41: 830.94 | FI41: 906.48 | FJ41: 1.15 | FK41: 982.02 | FL41: 1057.56 | FM41: 1133.1 | FN41: 1208.64 | FO41: 1284.18 | FP41: 1359.72 | FQ41: 1435.26 | FR41: 1510.8 | FS41: 1586.34 | FT41: 1661.88 | FU41: 1737.42 | FV41: 1812.96 | FX41: 40 | FY41: 49 | FZ41: 73.33 | GA41: 0.8 | GB41: 40-49 | GC41: A-18-40-49 | GD41: 99999 | GE41: 99999 | GF41: 99999 | GG41: 99999 | GH41: 99999 | GI41: 99999 | GJ41: 99999 | GK41: 99999 | GL41: 99999 | GM41: 99999 | GN41: 99999 | GO41: 100 | GQ41: 40 | GR41: 49 | GS41: 65.32 | GT41: 0 | GU41: 40-49 | GV41: A-18-40-49 | GW41: 279.9 | GX41: 419.85 | GY41: 559.8 | GZ41: 699.75 | HA41: 839.7 | HB41: 979.65 | HC41: 1063.62 | HD41: 1196.57 | HE41: 1329.53 | HF41: 1462.48 | HG41: 1595.43 | HH41: 100 | HI41: 1728.38 | HJ41: 1861.34 | HK41: 1994.29 | HL41: 2127.24 | HM41: 2260.19 | HN41: 2393.15 | HO41: 2526.1 | HP41: 2659.05 | HQ41: 2792 | HR41: 2924.96 | HS41: 3057.91 | HT41: 3190.86
D42: 50 | E42: 54 | F42: 130.64 | G42: 2.52 | H42: 50-54 | I42: A-18-50-54 | J42: 266.32 | K42: 399.48 | L42: 532.64 | M42: 665.8 | N42: 798.96 | O42: 932.12 | P42: 1013.04 | Q42: 1139.67 | R42: 1266.3 | S42: 1392.93 | T42: 1519.56 | U42: 1.15 | W42: 50 | X42: 54 | Y42: 117.86 | Z42: 2.28 | AA42: 50-54 | AB42: A-18-50-54 | AC42: 240.28 | AD42: 360.42 | AE42: 480.56 | AF42: 600.7 | AG42: 720.84 | AH42: 840.98 | AI42: 914 | AJ42: 1028.25 | AK42: 1142.5 | AL42: 1256.75 | AM42: 1371 | AN42: 1.15 | AP42: 50 | AQ42: 54 | AR42: 107.92 | AS42: 2.09 | AT42: 50-54 | AU42: A-18-50-54 | AV42: 220.02 | AW42: 330.03 | AX42: 440.04 | AY42: 550.05 | AZ42: 660.06 | BA42: 770.07 | BB42: 836.88 | BC42: 941.49 | BD42: 1046.1 | BE42: 1150.71 | BF42: 1255.32 | BG42: 1.15 | BI42: 50 | BJ42: 54 | BK42: 99.4 | BL42: 1.93 | BM42: 50-54 | BN42: A-18-50-54 | BO42: 202.66 | BP42: 303.99 | BQ42: 405.32 | BR42: 506.65 | BS42: 607.98 | BT42: 709.31 | BU42: 770.88 | BV42: 867.24 | BW42: 963.6 | BX42: 1059.96 | BY42: 1156.32 | BZ42: 1.15 | CB42: 50 | CC42: 54 | CD42: 107.92 | CE42: 0 | CF42: 50-54 | CG42: A-18-50-54 | CH42: 215.84 | CI42: 323.76 | CJ42: 431.68 | CK42: 539.6 | CL42: 647.52 | CM42: 755.44 | CN42: 820.16 | CO42: 922.68 | CP42: 1025.2 | CQ42: 1127.72 | CR42: 1230.24 | CS42: 1.15 | CT42: 1332.76 | CU42: 1435.28 | CV42: 1537.8 | CW42: 1640.32 | CX42: 1742.84 | CY42: 1845.36 | CZ42: 1947.88 | DA42: 2050.4 | DB42: 2152.92 | DC42: 2255.44 | DD42: 2357.96 | DE42: 2460.48 | DG42: 50 | DH42: 54 | DI42: 119.34 | DJ42: 2.31 | DK42: 50-54 | DL42: A-18-50-54 | DM42: 243.3 | DN42: 364.95 | DO42: 486.6 | DP42: 608.25 | DQ42: 729.9 | DR42: 851.55 | DS42: 925.44 | DT42: 1041.12 | DU42: 1156.8 | DV42: 1272.48 | DW42: 1388.16 | DX42: 1.15 | DZ42: 50 | EA42: 54 | EB42: 119.34 | EC42: 2.31 | ED42: 50-54 | EE42: A-18-50-54 | EF42: 205.7 | EG42: 308.55 | EH42: 411.4 | EI42: 514.25 | EJ42: 617.1 | EK42: 719.95 | EL42: 782.48 | EM42: 880.29 | EN42: 978.1 | EO42: 1075.91 | EP42: 1173.72 | EQ42: 1.15 | ES42: 50 | ET42: 54 | EU42: 107.92 | EV42: 0 | EW42: 50-54 | EX42: A-18-50-54 | EY42: 261.28 | EZ42: 391.92 | FA42: 522.56 | FB42: 653.2 | FC42: 783.84 | FD42: 914.48 | FE42: 992.88 | FF42: 1116.99 | FG42: 1241.1 | FH42: 1365.21 | FI42: 1489.32 | FJ42: 1.15 | FK42: 1613.43 | FL42: 1737.54 | FM42: 1861.65 | FN42: 1985.76 | FO42: 2109.87 | FP42: 2233.98 | FQ42: 2358.09 | FR42: 2482.2 | FS42: 2606.31 | FT42: 2730.42 | FU42: 2854.53 | FV42: 2978.64 | FX42: 50 | FY42: 54 | FZ42: 119.34 | GA42: 2.31 | GB42: 50-54 | GC42: A-18-50-54 | GD42: 99999 | GE42: 99999 | GF42: 99999 | GG42: 99999 | GH42: 99999 | GI42: 99999 | GJ42: 99999 | GK42: 99999 | GL42: 99999 | GM42: 99999 | GN42: 99999 | GO42: 100 | GQ42: 50 | GR42: 54 | GS42: 107.92 | GT42: 0 | GU42: 50-54 | GV42: A-18-50-54 | GW42: 403.22 | GX42: 604.83 | GY42: 806.44 | GZ42: 1008.05 | HA42: 1209.66 | HB42: 1411.27 | HC42: 1532.24 | HD42: 1723.77 | HE42: 1915.3 | HF42: 2106.82 | HG42: 2298.35 | HH42: 100 | HI42: 2489.88 | HJ42: 2681.41 | HK42: 2872.94 | HL42: 3064.47 | HM42: 3256 | HN42: 3447.53 | HO42: 3639.06 | HP42: 3830.59 | HQ42: 4022.12 | HR42: 4213.65 | HS42: 4405.18 | HT42: 4596.71
D43: 55 | E43: 59 | F43: 177.5 | G43: 5.12 | H43: 55-59 | I43: A-18-55-59 | J43: 365.24 | K43: 547.86 | L43: 730.48 | M43: 913.1 | N43: 1095.72 | O43: 1278.34 | P43: 1390 | Q43: 1563.75 | R43: 1737.5 | S43: 1911.25 | T43: 2085 | U43: 1.2 | W43: 55 | X43: 59 | Y43: 160.46 | Z43: 4.64 | AA43: 55-59 | AB43: A-18-55-59 | AC43: 330.2 | AD43: 495.3 | AE43: 660.4 | AF43: 825.5 | AG43: 990.6 | AH43: 1155.7 | AI43: 1256.64 | AJ43: 1413.72 | AK43: 1570.8 | AL43: 1727.88 | AM43: 1884.96 | AN43: 1.2 | AP43: 55 | AQ43: 59 | AR43: 147.68 | AS43: 4.25 | AT43: 55-59 | AU43: A-18-55-59 | AV43: 303.86 | AW43: 455.79 | AX43: 607.72 | AY43: 759.65 | AZ43: 911.58 | BA43: 1063.51 | BB43: 1156.4 | BC43: 1300.95 | BD43: 1445.5 | BE43: 1590.05 | BF43: 1734.6 | BG43: 1.2 | BI43: 55 | BJ43: 59 | BK43: 136.32 | BL43: 3.92 | BM43: 55-59 | BN43: A-18-55-59 | BO43: 280.48 | BP43: 420.72 | BQ43: 560.96 | BR43: 701.2 | BS43: 841.44 | BT43: 981.68 | BU43: 1067.36 | BV43: 1200.78 | BW43: 1334.2 | BX43: 1467.62 | BY43: 1601.04 | BZ43: 1.2 | CB43: 55 | CC43: 59 | CD43: 147.68 | CE43: 0 | CF43: 55-59 | CG43: A-18-55-59 | CH43: 295.36 | CI43: 443.04 | CJ43: 590.72 | CK43: 738.4 | CL43: 886.08 | CM43: 1033.76 | CN43: 1122.4 | CO43: 1262.7 | CP43: 1403 | CQ43: 1543.3 | CR43: 1683.6 | CS43: 1.2 | CT43: 1823.9 | CU43: 1964.2 | CV43: 2104.5 | CW43: 2244.8 | CX43: 2385.1 | CY43: 2525.4 | CZ43: 2665.7 | DA43: 2806 | DB43: 2946.3 | DC43: 3086.6 | DD43: 3226.9 | DE43: 3367.2 | DG43: 55 | DH43: 59 | DI43: 162.46 | DJ43: 4.7 | DK43: 55-59 | DL43: A-18-55-59 | DM43: 334.32 | DN43: 501.48 | DO43: 668.64 | DP43: 835.8 | DQ43: 1002.96 | DR43: 1170.12 | DS43: 1272.32 | DT43: 1431.36 | DU43: 1590.4 | DV43: 1749.44 | DW43: 1908.48 | DX43: 1.2 | DZ43: 55 | EA43: 59 | EB43: 162.46 | EC43: 4.7 | ED43: 55-59 | EE43: A-18-55-59 | EF43: 284.68 | EG43: 427.02 | EH43: 569.36 | EI43: 711.7 | EJ43: 854.04 | EK43: 996.38 | EL43: 1083.36 | EM43: 1218.78 | EN43: 1354.2 | EO43: 1489.62 | EP43: 1625.04 | EQ43: 1.2 | ES43: 55 | ET43: 59 | EU43: 147.68 | EV43: 0 | EW43: 55-59 | EX43: A-18-55-59 | EY43: 355 | EZ43: 532.5 | FA43: 710 | FB43: 887.5 | FC43: 1065 | FD43: 1242.5 | FE43: 1349.04 | FF43: 1517.67 | FG43: 1686.3 | FH43: 1854.93 | FI43: 2023.56 | FJ43: 1.2 | FK43: 2192.19 | FL43: 2360.82 | FM43: 2529.45 | FN43: 2698.08 | FO43: 2866.71 | FP43: 3035.34 | FQ43: 3203.97 | FR43: 3372.6 | FS43: 3541.23 | FT43: 3709.86 | FU43: 3878.49 | FV43: 4047.12 | FX43: 55 | FY43: 59 | FZ43: 162.46 | GA43: 4.7 | GB43: 55-59 | GC43: A-18-55-59 | GD43: 99999 | GE43: 99999 | GF43: 99999 | GG43: 99999 | GH43: 99999 | GI43: 99999 | GJ43: 99999 | GK43: 99999 | GL43: 99999 | GM43: 99999 | GN43: 99999 | GO43: 100 | GQ43: 55 | GR43: 59 | GS43: 147.68 | GT43: 0 | GU43: 55-59 | GV43: A-18-55-59 | GW43: 497.52 | GX43: 746.28 | GY43: 995.04 | GZ43: 1243.8 | HA43: 1492.56 | HB43: 1741.32 | HC43: 1890.58 | HD43: 2126.9 | HE43: 2363.22 | HF43: 2599.54 | HG43: 2835.86 | HH43: 100 | HI43: 3072.19 | HJ43: 3308.51 | HK43: 3544.83 | HL43: 3781.15 | HM43: 4017.47 | HN43: 4253.8 | HO43: 4490.12 | HP43: 4726.44 | HQ43: 4962.76 | HR43: 5199.08 | HS43: 5435.41 | HT43: 5671.73
D44: 60 | E44: 64 | F44: 232.88 | G44: 9.3 | H44: 60-64 | I44: A-18-60-64 | J44: 484.36 | K44: 726.54 | L44: 968.72 | M44: 1210.9 | N44: 1453.08 | O44: 1695.26 | P44: 1844.32 | Q44: 2074.86 | R44: 2305.4 | S44: 2535.94 | T44: 2766.48 | U44: 1.25 | W44: 60 | X44: 64 | Y44: 211.58 | Z44: 8.43 | AA44: 60-64 | AB44: A-18-60-64 | AC44: 440.02 | AD44: 660.03 | AE44: 880.04 | AF44: 1100.05 | AG44: 1320.06 | AH44: 1540.07 | AI44: 1675.44 | AJ44: 1884.87 | AK44: 2094.3 | AL44: 2303.73 | AM44: 2513.16 | AN44: 1.25 | AP44: 60 | AQ44: 64 | AR44: 193.12 | AS44: 7.73 | AT44: 60-64 | AU44: A-18-60-64 | AV44: 401.7 | AW44: 602.55 | AX44: 803.4 | AY44: 1004.25 | AZ44: 1205.1 | BA44: 1405.95 | BB44: 1529.52 | BC44: 1720.71 | BD44: 1911.9 | BE44: 2103.09 | BF44: 2294.28 | BG44: 1.25 | BI44: 60 | BJ44: 64 | BK44: 178.92 | BL44: 7.13 | BM44: 60-64 | BN44: A-18-60-64 | BO44: 372.1 | BP44: 558.15 | BQ44: 744.2 | BR44: 930.25 | BS44: 1116.3 | BT44: 1302.35 | BU44: 1416.8 | BV44: 1593.9 | BW44: 1771 | BX44: 1948.1 | BY44: 2125.2 | BZ44: 1.22 | CB44: 60 | CC44: 64 | CD44: 193.12 | CE44: 0 | CF44: 60-64 | CG44: A-18-60-64 | CH44: 386.24 | CI44: 579.36 | CJ44: 772.48 | CK44: 965.6 | CL44: 1158.72 | CM44: 1351.84 | CN44: 1467.68 | CO44: 1651.14 | CP44: 1834.6 | CQ44: 2018.06 | CR44: 2201.52 | CS44: 1.25 | CT44: 2384.98 | CU44: 2568.44 | CV44: 2751.9 | CW44: 2935.36 | CX44: 3118.82 | CY44: 3302.28 | CZ44: 3485.74 | DA44: 3669.2 | DB44: 3852.66 | DC44: 4036.12 | DD44: 4219.58 | DE44: 4403.04 | DG44: 60 | DH44: 64 | DI44: 214.22 | DJ44: 8.54 | DK44: 60-64 | DL44: A-18-60-64 | DM44: 445.52 | DN44: 668.28 | DO44: 891.04 | DP44: 1113.8 | DQ44: 1336.56 | DR44: 1559.32 | DS44: 1696.4 | DT44: 1908.45 | DU44: 2120.5 | DV44: 2332.55 | DW44: 2544.6 | DX44: 1.25 | DZ44: 60 | EA44: 64 | EB44: 214.22 | EC44: 8.54 | ED44: 60-64 | EE44: A-18-60-64 | EF44: 377.68 | EG44: 566.52 | EH44: 755.36 | EI44: 944.2 | EJ44: 1133.04 | EK44: 1321.88 | EL44: 1438.08 | EM44: 1617.84 | EN44: 1797.6 | EO44: 1977.36 | EP44: 2157.12 | EQ44: 1.25 | ES44: 60 | ET44: 64 | EU44: 193.12 | EV44: 0 | EW44: 60-64 | EX44: A-18-60-64 | EY44: 465.76 | EZ44: 698.64 | FA44: 931.52 | FB44: 1164.4 | FC44: 1397.28 | FD44: 1630.16 | FE44: 1769.92 | FF44: 1991.16 | FG44: 2212.4 | FH44: 2433.64 | FI44: 2654.88 | FJ44: 1.25 | FK44: 2876.12 | FL44: 3097.36 | FM44: 3318.6 | FN44: 3539.84 | FO44: 3761.08 | FP44: 3982.32 | FQ44: 4203.56 | FR44: 4424.8 | FS44: 4646.04 | FT44: 4867.28 | FU44: 5088.52 | FV44: 5309.76 | FX44: 60 | FY44: 64 | FZ44: 214.22 | GA44: 8.54 | GB44: 60-64 | GC44: A-18-60-64 | GD44: 502.1 | GE44: 753.15 | GF44: 1004.2 | GG44: 1255.25 | GH44: 1506.3 | GI44: 1757.35 | GJ44: 1910.64 | GK44: 2149.47 | GL44: 2388.3 | GM44: 2627.13 | GN44: 2865.96 | GO44: 1.25 | GQ44: 60 | GR44: 64 | GS44: 193.12 | GT44: 0 | GU44: 60-64 | GV44: A-18-60-64 | GW44: 599.58 | GX44: 899.37 | GY44: 1199.16 | GZ44: 1498.95 | HA44: 1798.74 | HB44: 2098.53 | HC44: 2278.4 | HD44: 2563.2 | HE44: 2848.01 | HF44: 3132.81 | HG44: 3417.61 | HH44: 100 | HI44: 3702.41 | HJ44: 3987.21 | HK44: 4272.01 | HL44: 4556.81 | HM44: 4841.61 | HN44: 5126.41 | HO44: 5411.21 | HP44: 5696.01 | HQ44: 5980.81 | HR44: 6265.61 | HS44: 6550.41 | HT44: 6835.21
D45: 65 | E45: 69 | F45: 293.94 | G45: 17.51 | H45: 65-69 | I45: A-18-65-69 | J45: 622.9 | K45: 934.35 | L45: 1245.8 | M45: 1557.25 | N45: 1868.7 | O45: 2180.15 | P45: 2374 | Q45: 2670.75 | R45: 2967.5 | S45: 3264.25 | T45: 3561 | U45: 1.25 | W45: 65 | X45: 69 | Y45: 266.96 | Z45: 15.87 | AA45: 65-69 | AB45: A-18-65-69 | AC45: 565.66 | AD45: 848.49 | AE45: 1131.32 | AF45: 1414.15 | AG45: 1696.98 | AH45: 1979.81 | AI45: 2155.84 | AJ45: 2425.32 | AK45: 2694.8 | AL45: 2964.28 | AM45: 3233.76 | AN45: 1.25 | AP45: 65 | AQ45: 69 | AR45: 244.24 | AS45: 14.56 | AT45: 65-69 | AU45: A-18-65-69 | AV45: 517.6 | AW45: 776.4 | AX45: 1035.2 | AY45: 1294 | AZ45: 1552.8 | BA45: 1811.6 | BB45: 1972.72 | BC45: 2219.31 | BD45: 2465.9 | BE45: 2712.49 | BF45: 2959.08 | BG45: 1.25 | BI45: 65 | BJ45: 69 | BK45: 225.78 | BL45: 13.42 | BM45: 65-69 | BN45: A-18-65-69 | BO45: 478.4 | BP45: 717.6 | BQ45: 956.8 | BR45: 1196 | BS45: 1435.2 | BT45: 1674.4 | BU45: 1823.28 | BV45: 2051.19 | BW45: 2279.1 | BX45: 2507.01 | BY45: 2734.92 | BZ45: 1.22 | CB45: 65 | CC45: 69 | CD45: 244.24 | CE45: 0 | CF45: 65-69 | CG45: A-18-65-69 | CH45: 488.48 | CI45: 732.72 | CJ45: 976.96 | CK45: 1221.2 | CL45: 1465.44 | CM45: 1709.68 | CN45: 1856.24 | CO45: 2088.27 | CP45: 2320.3 | CQ45: 2552.33 | CR45: 2784.36 | CS45: 1.25 | CT45: 3016.39 | CU45: 3248.42 | CV45: 3480.45 | CW45: 3712.48 | CX45: 3944.51 | CY45: 4176.54 | CZ45: 4408.57 | DA45: 4640.6 | DB45: 4872.63 | DC45: 5104.66 | DD45: 5336.69 | DE45: 5568.72 | DG45: 65 | DH45: 69 | DI45: 270.3 | DJ45: 16.07 | DK45: 65-69 | DL45: A-18-65-69 | DM45: 572.74 | DN45: 859.11 | DO45: 1145.48 | DP45: 1431.85 | DQ45: 1718.22 | DR45: 2004.59 | DS45: 2182.88 | DT45: 2455.74 | DU45: 2728.6 | DV45: 3001.46 | DW45: 3274.32 | DX45: 1.25 | DZ45: 65 | EA45: 69 | EB45: 270.3 | EC45: 16.07 | ED45: 65-69 | EE45: A-18-65-69 | EF45: 485.58 | EG45: 728.37 | EH45: 971.16 | EI45: 1213.95 | EJ45: 1456.74 | EK45: 1699.53 | EL45: 1850.64 | EM45: 2081.97 | EN45: 2313.3 | EO45: 2544.63 | EP45: 2775.96 | EQ45: 1.25 | ES45: 65 | ET45: 69 | EU45: 244.24 | EV45: 0 | EW45: 65-69 | EX45: A-18-65-69 | EY45: 587.88 | EZ45: 881.82 | FA45: 1175.76 | FB45: 1469.7 | FC45: 1763.64 | FD45: 2057.58 | FE45: 2233.92 | FF45: 2513.16 | FG45: 2792.4 | FH45: 3071.64 | FI45: 3350.88 | FJ45: 1.25 | FK45: 3630.12 | FL45: 3909.36 | FM45: 4188.6 | FN45: 4467.84 | FO45: 4747.08 | FP45: 5026.32 | FQ45: 5305.56 | FR45: 5584.8 | FS45: 5864.04 | FT45: 6143.28 | FU45: 6422.52 | FV45: 6701.76 | FX45: 65 | FY45: 69 | FZ45: 270.3 | GA45: 16.07 | GB45: 65-69 | GC45: A-18-65-69 | GD45: 642 | GE45: 963 | GF45: 1284 | GG45: 1605 | GH45: 1926 | GI45: 2247 | GJ45: 2444.56 | GK45: 2750.13 | GL45: 3055.7 | GM45: 3361.27 | GN45: 3666.84 | GO45: 1.25 | GQ45: 65 | GR45: 69 | GS45: 244.24 | GT45: 0 | GU45: 65-69 | GV45: A-18-65-69 | GW45: 681.36 | GX45: 1022.04 | GY45: 1362.72 | GZ45: 1703.4 | HA45: 2044.08 | HB45: 2384.76 | HC45: 2589.17 | HD45: 2912.81 | HE45: 3236.46 | HF45: 3560.11 | HG45: 3883.75 | HH45: 100 | HI45: 4207.4 | HJ45: 4531.04 | HK45: 4854.69 | HL45: 5178.34 | HM45: 5501.98 | HN45: 5825.63 | HO45: 6149.27 | HP45: 6472.92 | HQ45: 6796.57 | HR45: 7120.21 | HS45: 7443.86 | HT45: 7767.5
D46: 70 | E46: 74 | F46: 352.16 | G46: 30.1 | H46: 70-74 | I46: A-18-70-74 | J46: 764.52 | K46: 1146.78 | L46: 1529.04 | M46: 1911.3 | N46: 2293.56 | O46: 2675.82 | P46: 2917.2 | Q46: 3281.85 | R46: 3646.5 | S46: 4011.15 | T46: 4375.8 | U46: N/A | W46: 70 | X46: 74 | Y46: 319.5 | Z46: 27.28 | AA46: 70-74 | AB46: A-18-70-74 | AC46: 693.56 | AD46: 1040.34 | AE46: 1387.12 | AF46: 1733.9 | AG46: 2080.68 | AH46: 2427.46 | AI46: 2646.48 | AJ46: 2977.29 | AK46: 3308.1 | AL46: 3638.91 | AM46: 3969.72 | AN46: N/A | AP46: 70 | AQ46: 74 | AR46: 292.52 | AS46: 25.02 | AT46: 70-74 | AU46: A-18-70-74 | AV46: 635.08 | AW46: 952.62 | AX46: 1270.16 | AY46: 1587.7 | AZ46: 1905.24 | BA46: 2222.78 | BB46: 2423.28 | BC46: 2726.19 | BD46: 3029.1 | BE46: 3332.01 | BF46: 3634.92 | BG46: N/A | BI46: 70 | BJ46: 74 | BK46: 269.8 | BL46: 23.06 | BM46: 70-74 | BN46: A-18-70-74 | BO46: 585.72 | BP46: 878.58 | BQ46: 1171.44 | BR46: 1464.3 | BS46: 1757.16 | BT46: 2050.02 | BU46: 2234.96 | BV46: 2514.33 | BW46: 2793.7 | BX46: 3073.07 | BY46: 3352.44 | BZ46: N/A | CB46: 70 | CC46: 74 | CD46: 292.52 | CE46: 0 | CF46: 70-74 | CG46: A-18-70-74 | CH46: 585.04 | CI46: 877.56 | CJ46: 1170.08 | CK46: 1462.6 | CL46: 1755.12 | CM46: 2047.64 | CN46: 2223.12 | CO46: 2501.01 | CP46: 2778.9 | CQ46: 3056.79 | CR46: 3334.68 | CS46: N/A | CT46: 3612.57 | CU46: 3890.46 | CV46: 4168.35 | CW46: 4446.24 | CX46: 4724.13 | CY46: 5002.02 | CZ46: 5279.91 | DA46: 5557.8 | DB46: 5835.69 | DC46: 6113.58 | DD46: 6391.47 | DE46: 6669.36 | DG46: 70 | DH46: 74 | DI46: 323.49 | DJ46: 27.62 | DK46: 70-74 | DL46: A-18-70-74 | DM46: 702.22 | DN46: 1053.33 | DO46: 1404.44 | DP46: 1755.55 | DQ46: 2106.66 | DR46: 2457.77 | DS46: 2679.52 | DT46: 3014.46 | DU46: 3349.4 | DV46: 3684.34 | DW46: 4019.28 | DX46: N/A | DZ46: 70 | EA46: 74 | EB46: 323.49 | EC46: 27.62 | ED46: 70-74 | EE46: A-18-70-74 | EF46: 594.52 | EG46: 891.78 | EH46: 1189.04 | EI46: 1486.3 | EJ46: 1783.56 | EK46: 2080.82 | EL46: 2268.56 | EM46: 2552.13 | EN46: 2835.7 | EO46: 3119.27 | EP46: 3402.84 | EQ46: N/A | ES46: 70 | ET46: 74 | EU46: 292.52 | EV46: 0 | EW46: 70-74 | EX46: A-18-70-74 | EY46: 704.32 | EZ46: 1056.48 | FA46: 1408.64 | FB46: 1760.8 | FC46: 2112.96 | FD46: 2465.12 | FE46: 2676.4 | FF46: 3010.95 | FG46: 3345.5 | FH46: 3680.05 | FI46: 4014.6 | FJ46: N/A | FK46: 4349.15 | FL46: 4683.7 | FM46: 5018.25 | FN46: 5352.8 | FO46: 5687.35 | FP46: 6021.9 | FQ46: 6356.45 | FR46: 6691 | FS46: 7025.55 | FT46: 7360.1 | FU46: 7694.65 | FV46: 8029.2 | FX46: 70 | FY46: 74 | FZ46: 323.49 | GA46: 27.62 | GB46: 70-74 | GC46: A-18-70-74 | GD46: 781.3 | GE46: 1171.95 | GF46: 1562.6 | GG46: 1953.25 | GH46: 2343.9 | GI46: 2734.55 | GJ46: 2977.44 | GK46: 3349.62 | GL46: 3721.8 | GM46: 4093.98 | GN46: 4466.16 | GO46: N/A | GQ46: 70 | GR46: 74 | GS46: 292.52 | GT46: 0 | GU46: 70-74 | GV46: A-18-70-74 | GW46: 737.4 | GX46: 1106.1 | GY46: 1474.8 | GZ46: 1843.5 | HA46: 2212.2 | HB46: 2580.9 | HC46: 2802.12 | HD46: 3152.39 | HE46: 3502.65 | HF46: 3852.92 | HG46: 4203.18 | HH46: N/A | HI46: 4553.45 | HJ46: 4903.71 | HK46: 5253.98 | HL46: 5604.24 | HM46: 5954.51 | HN46: 6304.77 | HO46: 6655.04 | HP46: 7005.3 | HQ46: 7355.57 | HR46: 7705.83 | HS46: 8056.1 | HT46: 8406.36
D47: 75 | E47: 79 | F47: 401.86 | G47: 49.26 | H47: 75-79 | I47: A-18-75-79 | J47: 902.24 | K47: 1353.36 | L47: 1804.48 | M47: 2255.6 | N47: 2706.72 | O47: 3157.84 | P47: 3448.24 | Q47: 3879.27 | R47: 4310.3 | S47: 4741.33 | T47: 5172.36 | U47: N/A | W47: 75 | X47: 79 | Y47: 364.94 | Z47: 44.63 | AA47: 75-79 | AB47: A-18-75-79 | AC47: 819.14 | AD47: 1228.71 | AE47: 1638.28 | AF47: 2047.85 | AG47: 2457.42 | AH47: 2866.99 | AI47: 3130.56 | AJ47: 3521.88 | AK47: 3913.2 | AL47: 4304.52 | AM47: 4695.84 | AN47: N/A | AP47: 75 | AQ47: 79 | AR47: 335.12 | AS47: 40.94 | AT47: 75-79 | AU47: A-18-75-79 | AV47: 752.12 | AW47: 1128.18 | AX47: 1504.24 | AY47: 1880.3 | AZ47: 2256.36 | BA47: 2632.42 | BB47: 2874.4 | BC47: 3233.7 | BD47: 3593 | BE47: 3952.3 | BF47: 4311.6 | BG47: N/A | BI47: 75 | BJ47: 79 | BK47: 308.14 | BL47: 37.74 | BM47: 75-79 | BN47: A-18-75-79 | BO47: 691.76 | BP47: 1037.64 | BQ47: 1383.52 | BR47: 1729.4 | BS47: 2075.28 | BT47: 2421.16 | BU47: 2643.76 | BV47: 2974.23 | BW47: 3304.7 | BX47: 3635.17 | BY47: 3965.64 | BZ47: N/A | CB47: 75 | CC47: 79 | CD47: 335.12 | CE47: 0 | CF47: 75-79 | CG47: A-18-75-79 | CH47: 670.24 | CI47: 1005.36 | CJ47: 1340.48 | CK47: 1675.6 | CL47: 2010.72 | CM47: 2345.84 | CN47: 2546.88 | CO47: 2865.24 | CP47: 3183.6 | CQ47: 3501.96 | CR47: 3820.32 | CS47: N/A | CT47: 4138.68 | CU47: 4457.04 | CV47: 4775.4 | CW47: 5093.76 | CX47: 5412.12 | CY47: 5730.48 | CZ47: 6048.84 | DA47: 6367.2 | DB47: 6685.56 | DC47: 7003.92 | DD47: 7322.28 | DE47: 7640.64 | DG47: 75 | DH47: 79 | DI47: 369.5 | DJ47: 45.19 | DK47: 75-79 | DL47: A-18-75-79 | DM47: 829.38 | DN47: 1244.07 | DO47: 1658.76 | DP47: 2073.45 | DQ47: 2488.14 | DR47: 2902.83 | DS47: 3169.76 | DT47: 3565.98 | DU47: 3962.2 | DV47: 4358.42 | DW47: 4754.64 | DX47: N/A | DZ47: 75 | EA47: 79 | EB47: 369.5 | EC47: 45.19 | ED47: 75-79 | EE47: A-18-75-79 | EF47: 702.16 | EG47: 1053.24 | EH47: 1404.32 | EI47: 1755.4 | EJ47: 2106.48 | EK47: 2457.56 | EL47: 2683.52 | EM47: 3018.96 | EN47: 3354.4 | EO47: 3689.84 | EP47: 4025.28 | EQ47: N/A | ES47: 75 | ET47: 79 | EU47: 335.12 | EV47: 0 | EW47: 75-79 | EX47: A-18-75-79 | EY47: 803.72 | EZ47: 1205.58 | FA47: 1607.44 | FB47: 2009.3 | FC47: 2411.16 | FD47: 2813.02 | FE47: 3054.16 | FF47: 3435.93 | FG47: 3817.7 | FH47: 4199.47 | FI47: 4581.24 | FJ47: N/A | FK47: 4963.01 | FL47: 5344.78 | FM47: 5726.55 | FN47: 6108.32 | FO47: 6490.09 | FP47: 6871.86 | FQ47: 7253.63 | FR47: 7635.4 | FS47: 8017.17 | FT47: 8398.94 | FU47: 8780.71 | FV47: 9162.48 | FX47: 75 | FY47: 79 | FZ47: 369.5 | GA47: 45.19 | GB47: 75-79 | GC47: A-18-75-79 | GD47: 913.66 | GE47: 1370.49 | GF47: 1827.32 | GG47: 2284.15 | GH47: 2740.98 | GI47: 3197.81 | GJ47: 3485.76 | GK47: 3921.48 | GL47: 4357.2 | GM47: 4792.92 | GN47: 5228.64 | GO47: N/A | GQ47: 75 | GR47: 79 | GS47: 335.12 | GT47: 0 | GU47: 75-79 | GV47: A-18-75-79 | GW47: 774.42 | GX47: 1161.63 | GY47: 1548.84 | GZ47: 1936.05 | HA47: 2323.26 | HB47: 2710.47 | HC47: 2942.8 | HD47: 3310.65 | HE47: 3678.5 | HF47: 4046.34 | HG47: 4414.19 | HH47: N/A | HI47: 4782.04 | HJ47: 5149.89 | HK47: 5517.74 | HL47: 5885.59 | HM47: 6253.44 | HN47: 6621.29 | HO47: 6989.14 | HP47: 7356.99 | HQ47: 7724.84 | HR47: 8092.69 | HS47: 8460.54 | HT47: 8828.39
D48: 80 | E48: 84 | F48: 426 | G48: 74.44 | H48: 80-84 | I48: A-18-80-84 | J48: 1000.88 | K48: 1501.32 | L48: 2001.76 | M48: 2502.2 | N48: 3002.64 | O48: 3503.08 | P48: 3833.12 | Q48: 4312.26 | R48: 4791.4 | S48: 5270.54 | T48: 5749.68 | U48: N/A | W48: 80 | X48: 84 | Y48: 386.24 | Z48: 67.44 | AA48: 80-84 | AB48: A-18-80-84 | AC48: 907.36 | AD48: 1361.04 | AE48: 1814.72 | AF48: 2268.4 | AG48: 2722.08 | AH48: 3175.76 | AI48: 3474.96 | AJ48: 3909.33 | AK48: 4343.7 | AL48: 4778.07 | AM48: 5212.44 | AN48: N/A | AP48: 80 | AQ48: 84 | AR48: 353.58 | AS48: 61.86 | AT48: 80-84 | AU48: A-18-80-84 | AV48: 830.88 | AW48: 1246.32 | AX48: 1661.76 | AY48: 2077.2 | AZ48: 2492.64 | BA48: 2908.08 | BB48: 3182.08 | BC48: 3579.84 | BD48: 3977.6 | BE48: 4375.36 | BF48: 4773.12 | BG48: N/A | BI48: 80 | BJ48: 84 | BK48: 326.6 | BL48: 57.02 | BM48: 80-84 | BN48: A-18-80-84 | BO48: 767.24 | BP48: 1150.86 | BQ48: 1534.48 | BR48: 1918.1 | BS48: 2301.72 | BT48: 2685.34 | BU48: 2938.32 | BV48: 3305.61 | BW48: 3672.9 | BX48: 4040.19 | BY48: 4407.48 | BZ48: N/A | CB48: 80 | CC48: 84 | CD48: 353.58 | CE48: 0 | CF48: 80-84 | CG48: A-18-80-84 | CH48: 707.16 | CI48: 1060.74 | CJ48: 1414.32 | CK48: 1767.9 | CL48: 2121.48 | CM48: 2475.06 | CN48: 2687.2 | CO48: 3023.1 | CP48: 3359 | CQ48: 3694.9 | CR48: 4030.8 | CS48: N/A | CT48: 4366.7 | CU48: 4702.6 | CV48: 5038.5 | CW48: 5374.4 | CX48: 5710.3 | CY48: 6046.2 | CZ48: 6382.1 | DA48: 6718 | DB48: 7053.9 | DC48: 7389.8 | DD48: 7725.7 | DE48: 8061.6 | DG48: 80 | DH48: 84 | DI48: 391.07 | DJ48: 68.28 | DK48: 80-84 | DL48: A-18-80-84 | DM48: 918.7 | DN48: 1378.05 | DO48: 1837.4 | DP48: 2296.75 | DQ48: 2756.1 | DR48: 3215.45 | DS48: 3518.4 | DT48: 3958.2 | DU48: 4398 | DV48: 4837.8 | DW48: 5277.6 | DX48: N/A | DZ48: 80 | EA48: 84 | EB48: 391.07 | EC48: 68.28 | ED48: 80-84 | EE48: A-18-80-84 | EF48: 778.76 | EG48: 1168.14 | EH48: 1557.52 | EI48: 1946.9 | EJ48: 2336.28 | EK48: 2725.66 | EL48: 2982.48 | EM48: 3355.29 | EN48: 3728.1 | EO48: 4100.91 | EP48: 4473.72 | EQ48: N/A | ES48: 80 | ET48: 84 | EU48: 353.58 | EV48: 0 | EW48: 80-84 | EX48: A-18-80-84 | EY48: 852 | EZ48: 1278 | FA48: 1704 | FB48: 2130 | FC48: 2556 | FD48: 2982 | FE48: 3237.6 | FF48: 3642.3 | FG48: 4047 | FH48: 4451.7 | FI48: 4856.4 | FJ48: N/A | FK48: 5261.1 | FL48: 5665.8 | FM48: 6070.5 | FN48: 6475.2 | FO48: 6879.9 | FP48: 7284.6 | FQ48: 7689.3 | FR48: 8094 | FS48: 8498.7 | FT48: 8903.4 | FU48: 9308.1 | FV48: 9712.8 | FX48: 80 | FY48: 84 | FZ48: 391.07 | GA48: 68.28 | GB48: 80-84 | GC48: A-18-80-84 | GD48: 997.74 | GE48: 1496.61 | GF48: 1995.48 | GG48: 2494.35 | GH48: 2993.22 | GI48: 3492.09 | GJ48: 3812.4 | GK48: 4288.95 | GL48: 4765.5 | GM48: 5242.05 | GN48: 5718.6 | GO48: N/A | GQ48: 80 | GR48: 84 | GS48: 353.58 | GT48: 0 | GU48: 80-84 | GV48: A-18-80-84 | GW48: 785.68 | GX48: 1178.52 | GY48: 1571.36 | GZ48: 1964.2 | HA48: 2357.04 | HB48: 2749.88 | HC48: 2985.58 | HD48: 3358.78 | HE48: 3731.98 | HF48: 4105.18 | HG48: 4478.38 | HH48: N/A | HI48: 4851.57 | HJ48: 5224.77 | HK48: 5597.97 | HL48: 5971.17 | HM48: 6344.37 | HN48: 6717.56 | HO48: 7090.76 | HP48: 7463.96 | HQ48: 7837.16 | HR48: 8210.36 | HS48: 8583.55 | HT48: 8956.75
J50: 500 | K50: 750 | L50: 1000 | M50: 1250 | N50: 1500 | O50: 1750 | P50: 2000 | Q50: 2250 | R50: 2500 | S50: 2750 | T50: 3000 | U50: ROP | AC50: 500 | AD50: 750 | AE50: 1000 | AF50: 1250 | AG50: 1500 | AH50: 1750 | AI50: 2000 | AJ50: 2250 | AK50: 2500 | AL50: 2750 | AM50: 3000 | AN50: ROP | AV50: 500 | AW50: 750 | AX50: 1000 | AY50: 1250 | AZ50: 1500 | BA50: 1750 | BB50: 2000 | BC50: 2250 | BD50: 2500 | BE50: 2750 | BF50: 3000 | BG50: ROP | BO50: 500 | BP50: 750 | BQ50: 1000 | BR50: 1250 | BS50: 1500 | BT50: 1750 | BU50: 2000 | BV50: 2250 | BW50: 2500 | BX50: 2750 | BY50: 3000 | BZ50: ROP | CH50: 500 | CI50: 750 | CJ50: 1000 | CK50: 1250 | CL50: 1500 | CM50: 1750 | CN50: 2000 | CO50: 2250 | CP50: 2500 | CQ50: 2750 | CR50: 3000 | CS50: ROP | CT50: 3250 | CU50: 3500 | CV50: 3750 | CW50: 4000 | CX50: 4250 | CY50: 4500 | CZ50: 4750 | DA50: 5000 | DB50: 5250 | DC50: 5500 | DD50: 5750 | DE50: 6000 | DM50: 500 | DN50: 750 | DO50: 1000 | DP50: 1250 | DQ50: 1500 | DR50: 1750 | DS50: 2000 | DT50: 2250 | DU50: 2500 | DV50: 2750 | DW50: 3000 | DX50: ROP | EF50: 500 | EG50: 750 | EH50: 1000 | EI50: 1250 | EJ50: 1500 | EK50: 1750 | EL50: 2000 | EM50: 2250 | EN50: 2500 | EO50: 2750 | EP50: 3000 | EQ50: ROP | EY50: 500 | EZ50: 750 | FA50: 1000 | FB50: 1250 | FC50: 1500 | FD50: 1750 | FE50: 2000 | FF50: 2250 | FG50: 2500 | FH50: 2750 | FI50: 3000 | FJ50: ROP | FK50: 3250 | FL50: 3500 | FM50: 3750 | FN50: 4000 | FO50: 4250 | FP50: 4500 | FQ50: 4750 | FR50: 5000 | FS50: 5250 | FT50: 5500 | FU50: 5750 | FV50: 6000 | GD50: 500 | GE50: 750 | GF50: 1000 | GG50: 1250 | GH50: 1500 | GI50: 1750 | GJ50: 2000 | GK50: 2250 | GL50: 2500 | GM50: 2750 | GN50: 3000 | GO50: ROP | GW50: 500 | GX50: 750 | GY50: 1000 | GZ50: 1250 | HA50: 1500 | HB50: 1750 | HC50: 2000 | HD50: 2250 | HE50: 2500 | HF50: 2750 | HG50: 3000 | HH50: ROP | HI50: 3250 | HJ50: 3500 | HK50: 3750 | HL50: 4000 | HM50: 4250 | HN50: 4500 | HO50: 4750 | HP50: 5000 | HQ50: 5250 | HR50: 5500 | HS50: 5750 | HT50: 6000
I51: A-24 | J51: 2 | K51: 3 | L51: 4 | M51: 5 | N51: 6 | O51: 7 | P51: 8 | Q51: 9 | R51: 10 | S51: 11 | T51: 12 | AB51: A-24 | AC51: 2 | AD51: 3 | AE51: 4 | AF51: 5 | AG51: 6 | AH51: 7 | AI51: 8 | AJ51: 9 | AK51: 10 | AL51: 11 | AM51: 12 | AU51: A-24 | AV51: 2 | AW51: 3 | AX51: 4 | AY51: 5 | AZ51: 6 | BA51: 7 | BB51: 8 | BC51: 9 | BD51: 10 | BE51: 11 | BF51: 12 | BN51: A-24 | BO51: 2 | BP51: 3 | BQ51: 4 | BR51: 5 | BS51: 6 | BT51: 7 | BU51: 8 | BV51: 9 | BW51: 10 | BX51: 11 | BY51: 12 | CG51: A-24 | CH51: 2 | CI51: 3 | CJ51: 4 | CK51: 5 | CL51: 6 | CM51: 7 | CN51: 8 | CO51: 9 | CP51: 10 | CQ51: 11 | CR51: 12 | CT51: 13 | CU51: 14 | CV51: 15 | CW51: 16 | CX51: 17 | CY51: 18 | CZ51: 19 | DA51: 20 | DB51: 21 | DC51: 22 | DD51: 23 | DE51: 24 | DL51: A-24 | DM51: 2 | DN51: 3 | DO51: 4 | DP51: 5 | DQ51: 6 | DR51: 7 | DS51: 8 | DT51: 9 | DU51: 10 | DV51: 11 | DW51: 12 | EE51: A-24 | EF51: 2 | EG51: 3 | EH51: 4 | EI51: 5 | EJ51: 6 | EK51: 7 | EL51: 8 | EM51: 9 | EN51: 10 | EO51: 11 | EP51: 12 | EX51: A-24 | EY51: 2 | EZ51: 3 | FA51: 4 | FB51: 5 | FC51: 6 | FD51: 7 | FE51: 8 | FF51: 9 | FG51: 10 | FH51: 11 | FI51: 12 | FK51: 13 | FL51: 14 | FM51: 15 | FN51: 16 | FO51: 17 | FP51: 18 | FQ51: 19 | FR51: 20 | FS51: 21 | FT51: 22 | FU51: 23 | FV51: 24 | GC51: A-24 | GD51: 2 | GE51: 3 | GF51: 4 | GG51: 5 | GH51: 6 | GI51: 7 | GJ51: 8 | GK51: 9 | GL51: 10 | GM51: 11 | GN51: 12 | GV51: A-24 | GW51: 2 | GX51: 3 | GY51: 4 | GZ51: 5 | HA51: 6 | HB51: 7 | HC51: 8 | HD51: 9 | HE51: 10 | HF51: 11 | HG51: 12 | HI51: 13 | HJ51: 14 | HK51: 15 | HL51: 16 | HM51: 17 | HN51: 18 | HO51: 19 | HP51: 20 | HQ51: 21 | HR51: 22 | HS51: 23 | HT51: 24
D52: Dependent | F52: 13.61 | G52: 0.45 | H52: D | I52: =CONCATENATE(I$51,"-",H52) -> A-24-D | J52: 28.12 | K52: Dependent benefit is $500 | U52: 1.1 | W52: Dependent | Y52: 12.34 | Z52: 0.4 | AA52: D | AB52: =CONCATENATE(AB$51,"-",AA52) -> A-24-D | AC52: 25.48 | AD52: Dependent benefit is $500 | AN52: 1.1 | AP52: Dependent | AR52: 11.31 | AS52: 0.37 | AT52: D | AU52: =CONCATENATE(AU$51,"-",AT52) -> A-24-D | AV52: 23.36 | AW52: Dependent benefit is $500 | BG52: 1.1 | BI52: Dependent | BK52: 10.44 | BL52: 0.34 | BM52: D | BN52: =CONCATENATE(BN$51,"-",BM52) -> A-24-D | BO52: 21.56 | BP52: Dependent benefit is $500 | BZ52: 1.1 | CB52: Dependent | CD52: 11.31 | CE52: 0 | CF52: D | CG52: =CONCATENATE(CG$51,"-",CF52) -> A-24-D | CH52: 22.62 | CI52: Dependent benefit is $500 | CS52: 1.1 | CU52: Dependent benefit is $500 | DG52: Dependent | DI52: 12.51 | DJ52: 0.41 | DK52: D | DL52: =CONCATENATE(DL$51,"-",DK52) -> A-24-D | DM52: 25.84 | DN52: Dependent benefit is $500 | DX52: 1.1 | DZ52: Dependent | EB52: 12.51 | EC52: 0.41 | ED52: D | EE52: =CONCATENATE(EE$51,"-",ED52) -> A-24-D | EF52: 21.9 | EG52: Dependent benefit is $500 | EQ52: 1.1 | ES52: Dependent | EU52: 11.31 | EV52: 0 | EW52: D | EX52: =CONCATENATE(EX$51,"-",EW52) -> A-24-D | EY52: 27.22 | EZ52: Dependent benefit is $500 | FJ52: 1.1 | FL52: Dependent benefit is $500 | FX52: Dependent | FZ52: 12.51 | GA52: 0.41 | GB52: D | GC52: =CONCATENATE(GC$51,"-",GB52) -> A-24-D | GD52: 99999 | GE52: Dependent benefit is $500 | GO52: 100 | GQ52: Dependent | GS52: 11.31 | GT52: 0 | GU52: D | GV52: =CONCATENATE(GV$51,"-",GU52) -> A-24-D | GW52: 25.78 | GX52: Dependent benefit is $500 | HH52: 100 | HJ52: Dependent benefit is $500
D53: 18 | E53: 29 | F53: 32.67 | G53: 0.45 | H53: 18-29 | I53: =CONCATENATE(I$51,"-",H53) -> A-24-18-29 | J53: 66.24 | K53: 99.36 | L53: 132.48 | M53: 165.6 | N53: 198.72 | O53: 231.84 | P53: 251.92 | Q53: 283.41 | R53: 314.9 | S53: 346.39 | T53: 377.88 | U53: 1.1 | W53: 18 | X53: 29 | Y53: 29.04 | Z53: 0.4 | AA53: 18-29 | AB53: =CONCATENATE(AB$51,"-",AA53) -> A-24-18-29 | AC53: 58.88 | AD53: 88.32 | AE53: 117.76 | AF53: 147.2 | AG53: 176.64 | AH53: 206.08 | AI53: 223.92 | AJ53: 251.91 | AK53: 279.9 | AL53: 307.89 | AM53: 335.88 | AN53: 1.1 | AP53: 18 | AQ53: 29 | AR53: 27.23 | AS53: 0.37 | AT53: 18-29 | AU53: =CONCATENATE(AU$51,"-",AT53) -> A-24-18-29 | AV53: 55.2 | AW53: 82.8 | AX53: 110.4 | AY53: 138 | AZ53: 165.6 | BA53: 193.2 | BB53: 209.92 | BC53: 236.16 | BD53: 262.4 | BE53: 288.64 | BF53: 314.88 | BG53: 1.1 | BI53: 18 | BJ53: 29 | BK53: 25.41 | BL53: 0.34 | BM53: 18-29 | BN53: =CONCATENATE(BN$51,"-",BM53) -> A-24-18-29 | BO53: 51.5 | BP53: 77.25 | BQ53: 103 | BR53: 128.75 | BS53: 154.5 | BT53: 180.25 | BU53: 195.84 | BV53: 220.32 | BW53: 244.8 | BX53: 269.28 | BY53: 293.76 | BZ53: 1.1 | CB53: 18 | CC53: 29 | CD53: 27.23 | CE53: 0 | CF53: 18-29 | CG53: =CONCATENATE(CG$51,"-",CF53) -> A-24-18-29 | CH53: 54.46 | CI53: 81.69 | CJ53: 108.92 | CK53: 136.15 | CL53: 163.38 | CM53: 190.61 | CN53: 206.96 | CO53: 232.83 | CP53: 258.7 | CQ53: 284.57 | CR53: 310.44 | CS53: 1.1 | CT53: 336.31 | CU53: 362.18 | CV53: 388.05 | CW53: 413.92 | CX53: 439.79 | CY53: 465.66 | CZ53: 491.53 | DA53: 517.4 | DB53: 543.27 | DC53: 569.14 | DD53: 595.01 | DE53: 620.88 | DG53: 18 | DH53: 29 | DI53: 29.4 | DJ53: 0.41 | DK53: 18-29 | DL53: =CONCATENATE(DL$51,"-",DK53) -> A-24-18-29 | DM53: 59.62 | DN53: 89.43 | DO53: 119.24 | DP53: 149.05 | DQ53: 178.86 | DR53: 208.67 | DS53: 226.72 | DT53: 255.06 | DU53: 283.4 | DV53: 311.74 | DW53: 340.08 | DX53: 1.1 | DZ53: 18 | EA53: 29 | EB53: 29.4 | EC53: 0.41 | ED53: 18-29 | EE53: =CONCATENATE(EE$51,"-",ED53) -> A-24-18-29 | EF53: 52.28 | EG53: 78.42 | EH53: 104.56 | EI53: 130.7 | EJ53: 156.84 | EK53: 182.98 | EL53: 198.8 | EM53: 223.65 | EN53: 248.5 | EO53: 273.35 | EP53: 298.2 | EQ53: 1.1 | ES53: 18 | ET53: 29 | EU53: 27.23 | EV53: 0 | EW53: 18-29 | EX53: =CONCATENATE(EX$51,"-",EW53) -> A-24-18-29 | EY53: 65.34 | EZ53: 98.01 | FA53: 130.68 | FB53: 163.35 | FC53: 196.02 | FD53: 228.69 | FE53: 248.32 | FF53: 279.36 | FG53: 310.4 | FH53: 341.44 | FI53: 372.48 | FJ53: 1.1 | FK53: 403.52 | FL53: 434.56 | FM53: 465.6 | FN53: 496.64 | FO53: 527.68 | FP53: 558.72 | FQ53: 589.76 | FR53: 620.8 | FS53: 651.84 | FT53: 682.88 | FU53: 713.92 | FV53: 744.96 | FX53: 18 | FY53: 29 | FZ53: 29.4 | GA53: 0.41 | GB53: 18-29 | GC53: =CONCATENATE(GC$51,"-",GB53) -> A-24-18-29 | GD53: 99999 | GE53: 99999 | GF53: 99999 | GG53: 99999 | GH53: 99999 | GI53: 99999 | GJ53: 99999 | GK53: 99999 | GL53: 99999 | GM53: 99999 | GN53: 99999 | GO53: 100 | GQ53: 18 | GR53: 29 | GS53: 27.23 | GT53: 0 | GU53: 18-29 | GV53: =CONCATENATE(GV$51,"-",GU53) -> A-24-18-29 | GW53: 85.04 | GX53: 127.56 | GY53: 170.08 | GZ53: 212.6 | HA53: 255.12 | HB53: 297.64 | HC53: 323.15 | HD53: 363.55 | HE53: 403.94 | HF53: 444.33 | HG53: 484.73 | HH53: 100 | HI53: 525.12 | HJ53: 565.52 | HK53: 605.91 | HL53: 646.3 | HM53: 686.7 | HN53: 727.09 | HO53: 767.49 | HP53: 807.88 | HQ53: 848.27 | HR53: 888.67 | HS53: 929.06 | HT53: 969.46
D54: 30 | E54: 39 | F54: 49.01 | G54: 0.54 | H54: 30-39 | I54: A-24-30-39 | J54: 99.1 | K54: 148.65 | L54: 198.2 | M54: 247.75 | N54: 297.3 | O54: 346.85 | P54: 376.8 | Q54: 423.9 | R54: 471 | S54: 518.1 | T54: 565.2 | U54: 1.1 | W54: 30 | X54: 39 | Y54: 45.38 | Z54: 0.49 | AA54: 30-39 | AB54: A-24-30-39 | AC54: 91.74 | AD54: 137.61 | AE54: 183.48 | AF54: 229.35 | AG54: 275.22 | AH54: 321.09 | AI54: 348.8 | AJ54: 392.4 | AK54: 436 | AL54: 479.6 | AM54: 523.2 | AN54: 1.1 | AP54: 30 | AQ54: 39 | AR54: 41.75 | AS54: 0.45 | AT54: 30-39 | AU54: A-24-30-39 | AV54: 84.4 | AW54: 126.6 | AX54: 168.8 | AY54: 211 | AZ54: 253.2 | BA54: 295.4 | BB54: 320.88 | BC54: 360.99 | BD54: 401.1 | BE54: 441.21 | BF54: 481.32 | BG54: 1.1 | BI54: 30 | BJ54: 39 | BK54: 38.12 | BL54: 0.42 | BM54: 30-39 | BN54: A-24-30-39 | BO54: 77.08 | BP54: 115.62 | BQ54: 154.16 | BR54: 192.7 | BS54: 231.24 | BT54: 269.78 | BU54: 293.04 | BV54: 329.67 | BW54: 366.3 | BX54: 402.93 | BY54: 439.56 | BZ54: 1.1 | CB54: 30 | CC54: 39 | CD54: 41.75 | CE54: 0 | CF54: 30-39 | CG54: A-24-30-39 | CH54: 83.5 | CI54: 125.25 | CJ54: 167 | CK54: 208.75 | CL54: 250.5 | CM54: 292.25 | CN54: 317.28 | CO54: 356.94 | CP54: 396.6 | CQ54: 436.26 | CR54: 475.92 | CS54: 1.1 | CT54: 515.58 | CU54: 555.24 | CV54: 594.9 | CW54: 634.56 | CX54: 674.22 | CY54: 713.88 | CZ54: 753.54 | DA54: 793.2 | DB54: 832.86 | DC54: 872.52 | DD54: 912.18 | DE54: 951.84 | DG54: 30 | DH54: 39 | DI54: 45.94 | DJ54: 0.5 | DK54: 30-39 | DL54: A-24-30-39 | DM54: 92.88 | DN54: 139.32 | DO54: 185.76 | DP54: 232.2 | DQ54: 278.64 | DR54: 325.08 | DS54: 353.12 | DT54: 397.26 | DU54: 441.4 | DV54: 485.54 | DW54: 529.68 | DX54: 1.1 | DZ54: 30 | EA54: 39 | EB54: 45.94 | EC54: 0.5 | ED54: 30-39 | EE54: A-24-30-39 | EF54: 78.26 | EG54: 117.39 | EH54: 156.52 | EI54: 195.65 | EJ54: 234.78 | EK54: 273.91 | EL54: 297.6 | EM54: 334.8 | EN54: 372 | EO54: 409.2 | EP54: 446.4 | EQ54: 1.1 | ES54: 30 | ET54: 39 | EU54: 41.75 | EV54: 0 | EW54: 30-39 | EX54: A-24-30-39 | EY54: 98.02 | EZ54: 147.03 | FA54: 196.04 | FB54: 245.05 | FC54: 294.06 | FD54: 343.07 | FE54: 372.48 | FF54: 419.04 | FG54: 465.6 | FH54: 512.16 | FI54: 558.72 | FJ54: 1.1 | FK54: 605.28 | FL54: 651.84 | FM54: 698.4 | FN54: 744.96 | FO54: 791.52 | FP54: 838.08 | FQ54: 884.64 | FR54: 931.2 | FS54: 977.76 | FT54: 1024.32 | FU54: 1070.88 | FV54: 1117.44 | FX54: 30 | FY54: 39 | FZ54: 45.94 | GA54: 0.5 | GB54: 30-39 | GC54: A-24-30-39 | GD54: 99999 | GE54: 99999 | GF54: 99999 | GG54: 99999 | GH54: 99999 | GI54: 99999 | GJ54: 99999 | GK54: 99999 | GL54: 99999 | GM54: 99999 | GN54: 99999 | GO54: 100 | GQ54: 30 | GR54: 39 | GS54: 41.75 | GT54: 0 | GU54: 30-39 | GV54: A-24-30-39 | GW54: 187.1 | GX54: 280.65 | GY54: 374.2 | GZ54: 467.75 | HA54: 561.3 | HB54: 654.85 | HC54: 710.98 | HD54: 799.85 | HE54: 888.73 | HF54: 977.6 | HG54: 1066.47 | HH54: 100 | HI54: 1155.34 | HJ54: 1244.22 | HK54: 1333.09 | HL54: 1421.96 | HM54: 1510.83 | HN54: 1599.71 | HO54: 1688.58 | HP54: 1777.45 | HQ54: 1866.32 | HR54: 1955.2 | HS54: 2044.07 | HT54: 2132.94
D55: 40 | E55: 49 | F55: 101.64 | G55: 1.12 | H55: 40-49 | I55: A-24-40-49 | J55: 205.52 | K55: 308.28 | L55: 411.04 | M55: 513.8 | N55: 616.56 | O55: 719.32 | P55: 781.44 | Q55: 879.12 | R55: 976.8 | S55: 1074.48 | T55: 1172.16 | U55: 1.15 | W55: 40 | X55: 49 | Y55: 92.57 | Z55: 1.02 | AA55: 40-49 | AB55: A-24-40-49 | AC55: 187.18 | AD55: 280.77 | AE55: 374.36 | AF55: 467.95 | AG55: 561.54 | AH55: 655.13 | AI55: 711.68 | AJ55: 800.64 | AK55: 889.6 | AL55: 978.56 | AM55: 1067.52 | AN55: 1.15 | AP55: 40 | AQ55: 49 | AR55: 83.49 | AS55: 0.93 | AT55: 40-49 | AU55: A-24-40-49 | AV55: 168.84 | AW55: 253.26 | AX55: 337.68 | AY55: 422.1 | AZ55: 506.52 | BA55: 590.94 | BB55: 642 | BC55: 722.25 | BD55: 802.5 | BE55: 882.75 | BF55: 963 | BG55: 1.15 | BI55: 40 | BJ55: 49 | BK55: 78.05 | BL55: 0.86 | BM55: 40-49 | BN55: A-24-40-49 | BO55: 157.82 | BP55: 236.73 | BQ55: 315.64 | BR55: 394.55 | BS55: 473.46 | BT55: 552.37 | BU55: 600.08 | BV55: 675.09 | BW55: 750.1 | BX55: 825.11 | BY55: 900.12 | BZ55: 1.15 | CB55: 40 | CC55: 49 | CD55: 83.49 | CE55: 0 | CF55: 40-49 | CG55: A-24-40-49 | CH55: 166.98 | CI55: 250.47 | CJ55: 333.96 | CK55: 417.45 | CL55: 500.94 | CM55: 584.43 | CN55: 634.56 | CO55: 713.88 | CP55: 793.2 | CQ55: 872.52 | CR55: 951.84 | CS55: 1.15 | CT55: 1031.16 | CU55: 1110.48 | CV55: 1189.8 | CW55: 1269.12 | CX55: 1348.44 | CY55: 1427.76 | CZ55: 1507.08 | DA55: 1586.4 | DB55: 1665.72 | DC55: 1745.04 | DD55: 1824.36 | DE55: 1903.68 | DG55: 40 | DH55: 49 | DI55: 93.73 | DJ55: 1.03 | DK55: 40-49 | DL55: A-24-40-49 | DM55: 189.52 | DN55: 284.28 | DO55: 379.04 | DP55: 473.8 | DQ55: 568.56 | DR55: 663.32 | DS55: 720.56 | DT55: 810.63 | DU55: 900.7 | DV55: 990.77 | DW55: 1080.84 | DX55: 1.15 | DZ55: 40 | EA55: 49 | EB55: 93.73 | EC55: 1.03 | ED55: 40-49 | EE55: A-24-40-49 | EF55: 160.18 | EG55: 240.27 | EH55: 320.36 | EI55: 400.45 | EJ55: 480.54 | EK55: 560.63 | EL55: 609.04 | EM55: 685.17 | EN55: 761.3 | EO55: 837.43 | EP55: 913.56 | EQ55: 1.15 | ES55: 40 | ET55: 49 | EU55: 83.49 | EV55: 0 | EW55: 40-49 | EX55: A-24-40-49 | EY55: 203.28 | EZ55: 304.92 | FA55: 406.56 | FB55: 508.2 | FC55: 609.84 | FD55: 711.48 | FE55: 772.48 | FF55: 869.04 | FG55: 965.6 | FH55: 1062.16 | FI55: 1158.72 | FJ55: 1.15 | FK55: 1255.28 | FL55: 1351.84 | FM55: 1448.4 | FN55: 1544.96 | FO55: 1641.52 | FP55: 1738.08 | FQ55: 1834.64 | FR55: 1931.2 | FS55: 2027.76 | FT55: 2124.32 | FU55: 2220.88 | FV55: 2317.44 | FX55: 40 | FY55: 49 | FZ55: 93.73 | GA55: 1.03 | GB55: 40-49 | GC55: A-24-40-49 | GD55: 99999 | GE55: 99999 | GF55: 99999 | GG55: 99999 | GH55: 99999 | GI55: 99999 | GJ55: 99999 | GK55: 99999 | GL55: 99999 | GM55: 99999 | GN55: 99999 | GO55: 100 | GQ55: 40 | GR55: 49 | GS55: 83.49 | GT55: 0 | GU55: 40-49 | GV55: A-24-40-49 | GW55: 360.7 | GX55: 541.05 | GY55: 721.4 | GZ55: 901.75 | HA55: 1082.1 | HB55: 1262.45 | HC55: 1370.66 | HD55: 1541.99 | HE55: 1713.33 | HF55: 1884.66 | HG55: 2055.99 | HH55: 100 | HI55: 2227.32 | HJ55: 2398.66 | HK55: 2569.99 | HL55: 2741.32 | HM55: 2912.65 | HN55: 3083.99 | HO55: 3255.32 | HP55: 3426.65 | HQ55: 3597.98 | HR55: 3769.32 | HS55: 3940.65 | HT55: 4111.98
D56: 50 | E56: 54 | F56: 166.98 | G56: 3.22 | H56: 50-54 | I56: A-24-50-54 | J56: 340.4 | K56: 510.6 | L56: 680.8 | M56: 851 | N56: 1021.2 | O56: 1191.4 | P56: 1294.8 | Q56: 1456.65 | R56: 1618.5 | S56: 1780.35 | T56: 1942.2 | U56: 1.15 | W56: 50 | X56: 54 | Y56: 150.65 | Z56: 2.92 | AA56: 50-54 | AB56: A-24-50-54 | AC56: 307.14 | AD56: 460.71 | AE56: 614.28 | AF56: 767.85 | AG56: 921.42 | AH56: 1074.99 | AI56: 1168.32 | AJ56: 1314.36 | AK56: 1460.4 | AL56: 1606.44 | AM56: 1752.48 | AN56: 1.15 | AP56: 50 | AQ56: 54 | AR56: 137.94 | AS56: 2.67 | AT56: 50-54 | AU56: A-24-50-54 | AV56: 281.22 | AW56: 421.83 | AX56: 562.44 | AY56: 703.05 | AZ56: 843.66 | BA56: 984.27 | BB56: 1069.68 | BC56: 1203.39 | BD56: 1337.1 | BE56: 1470.81 | BF56: 1604.52 | BG56: 1.15 | BI56: 50 | BJ56: 54 | BK56: 127.05 | BL56: 2.47 | BM56: 50-54 | BN56: A-24-50-54 | BO56: 259.04 | BP56: 388.56 | BQ56: 518.08 | BR56: 647.6 | BS56: 777.12 | BT56: 906.64 | BU56: 985.36 | BV56: 1108.53 | BW56: 1231.7 | BX56: 1354.87 | BY56: 1478.04 | BZ56: 1.15 | CB56: 50 | CC56: 54 | CD56: 137.94 | CE56: 0 | CF56: 50-54 | CG56: A-24-50-54 | CH56: 275.88 | CI56: 413.82 | CJ56: 551.76 | CK56: 689.7 | CL56: 827.64 | CM56: 965.58 | CN56: 1048.32 | CO56: 1179.36 | CP56: 1310.4 | CQ56: 1441.44 | CR56: 1572.48 | CS56: 1.15 | CT56: 1703.52 | CU56: 1834.56 | CV56: 1965.6 | CW56: 2096.64 | CX56: 2227.68 | CY56: 2358.72 | CZ56: 2489.76 | DA56: 2620.8 | DB56: 2751.84 | DC56: 2882.88 | DD56: 3013.92 | DE56: 3144.96 | DG56: 50 | DH56: 54 | DI56: 152.53 | DJ56: 2.96 | DK56: 50-54 | DL56: A-24-50-54 | DM56: 310.98 | DN56: 466.47 | DO56: 621.96 | DP56: 777.45 | DQ56: 932.94 | DR56: 1088.43 | DS56: 1182.88 | DT56: 1330.74 | DU56: 1478.6 | DV56: 1626.46 | DW56: 1774.32 | DX56: 1.15 | DZ56: 50 | EA56: 54 | EB56: 152.53 | EC56: 2.96 | ED56: 50-54 | EE56: A-24-50-54 | EF56: 262.94 | EG56: 394.41 | EH56: 525.88 | EI56: 657.35 | EJ56: 788.82 | EK56: 920.29 | EL56: 1000.16 | EM56: 1125.18 | EN56: 1250.2 | EO56: 1375.22 | EP56: 1500.24 | EQ56: 1.15 | ES56: 50 | ET56: 54 | EU56: 137.94 | EV56: 0 | EW56: 50-54 | EX56: A-24-50-54 | EY56: 333.96 | EZ56: 500.94 | FA56: 667.92 | FB56: 834.9 | FC56: 1001.88 | FD56: 1168.86 | FE56: 1269.04 | FF56: 1427.67 | FG56: 1586.3 | FH56: 1744.93 | FI56: 1903.56 | FJ56: 1.15 | FK56: 2062.19 | FL56: 2220.82 | FM56: 2379.45 | FN56: 2538.08 | FO56: 2696.71 | FP56: 2855.34 | FQ56: 3013.97 | FR56: 3172.6 | FS56: 3331.23 | FT56: 3489.86 | FU56: 3648.49 | FV56: 3807.12 | FX56: 50 | FY56: 54 | FZ56: 152.53 | GA56: 2.96 | GB56: 50-54 | GC56: A-24-50-54 | GD56: 99999 | GE56: 99999 | GF56: 99999 | GG56: 99999 | GH56: 99999 | GI56: 99999 | GJ56: 99999 | GK56: 99999 | GL56: 99999 | GM56: 99999 | GN56: 99999 | GO56: 100 | GQ56: 50 | GR56: 54 | GS56: 137.94 | GT56: 0 | GU56: 50-54 | GV56: A-24-50-54 | GW56: 519.28 | GX56: 778.92 | GY56: 1038.56 | GZ56: 1298.2 | HA56: 1557.84 | HB56: 1817.48 | HC56: 1973.26 | HD56: 2219.92 | HE56: 2466.58 | HF56: 2713.24 | HG56: 2959.9 | HH56: 100 | HI56: 3206.55 | HJ56: 3453.21 | HK56: 3699.87 | HL56: 3946.53 | HM56: 4193.19 | HN56: 4439.84 | HO56: 4686.5 | HP56: 4933.16 | HQ56: 5179.82 | HR56: 5426.48 | HS56: 5673.13 | HT56: 5919.79
D57: 55 | E57: 59 | F57: 226.88 | G57: 6.54 | H57: 55-59 | I57: A-24-55-59 | J57: 466.84 | K57: 700.26 | L57: 933.68 | M57: 1167.1 | N57: 1400.52 | O57: 1633.94 | P57: 1776.64 | Q57: 1998.72 | R57: 2220.8 | S57: 2442.88 | T57: 2664.96 | U57: 1.2 | W57: 55 | X57: 59 | Y57: 205.1 | Z57: 5.92 | AA57: 55-59 | AB57: A-24-55-59 | AC57: 422.04 | AD57: 633.06 | AE57: 844.08 | AF57: 1055.1 | AG57: 1266.12 | AH57: 1477.14 | AI57: 1606.16 | AJ57: 1806.93 | AK57: 2007.7 | AL57: 2208.47 | AM57: 2409.24 | AN57: 1.2 | AP57: 55 | AQ57: 59 | AR57: 188.76 | AS57: 5.44 | AT57: 55-59 | AU57: A-24-55-59 | AV57: 388.4 | AW57: 582.6 | AX57: 776.8 | AY57: 971 | AZ57: 1165.2 | BA57: 1359.4 | BB57: 1478.08 | BC57: 1662.84 | BD57: 1847.6 | BE57: 2032.36 | BF57: 2217.12 | BG57: 1.2 | BI57: 55 | BJ57: 59 | BK57: 174.24 | BL57: 5.01 | BM57: 55-59 | BN57: A-24-55-59 | BO57: 358.5 | BP57: 537.75 | BQ57: 717 | BR57: 896.25 | BS57: 1075.5 | BT57: 1254.75 | BU57: 1364.32 | BV57: 1534.86 | BW57: 1705.4 | BX57: 1875.94 | BY57: 2046.48 | BZ57: 1.2 | CB57: 55 | CC57: 59 | CD57: 188.76 | CE57: 0 | CF57: 55-59 | CG57: A-24-55-59 | CH57: 377.52 | CI57: 566.28 | CJ57: 755.04 | CK57: 943.8 | CL57: 1132.56 | CM57: 1321.32 | CN57: 1434.56 | CO57: 1613.88 | CP57: 1793.2 | CQ57: 1972.52 | CR57: 2151.84 | CS57: 1.2 | CT57: 2331.16 | CU57: 2510.48 | CV57: 2689.8 | CW57: 2869.12 | CX57: 3048.44 | CY57: 3227.76 | CZ57: 3407.08 | DA57: 3586.4 | DB57: 3765.72 | DC57: 3945.04 | DD57: 4124.36 | DE57: 4303.68 | DG57: 55 | DH57: 59 | DI57: 207.65 | DJ57: 5.99 | DK57: 55-59 | DL57: A-24-55-59 | DM57: 427.28 | DN57: 640.92 | DO57: 854.56 | DP57: 1068.2 | DQ57: 1281.84 | DR57: 1495.48 | DS57: 1626.08 | DT57: 1829.34 | DU57: 2032.6 | DV57: 2235.86 | DW57: 2439.12 | DX57: 1.2 | DZ57: 55 | EA57: 59 | EB57: 207.65 | EC57: 5.99 | ED57: 55-59 | EE57: A-24-55-59 | EF57: 363.88 | EG57: 545.82 | EH57: 727.76 | EI57: 909.7 | EJ57: 1091.64 | EK57: 1273.58 | EL57: 1384.8 | EM57: 1557.9 | EN57: 1731 | EO57: 1904.1 | EP57: 2077.2 | EQ57: 1.2 | ES57: 55 | ET57: 59 | EU57: 188.76 | EV57: 0 | EW57: 55-59 | EX57: A-24-55-59 | EY57: 453.76 | EZ57: 680.64 | FA57: 907.52 | FB57: 1134.4 | FC57: 1361.28 | FD57: 1588.16 | FE57: 1724.32 | FF57: 1939.86 | FG57: 2155.4 | FH57: 2370.94 | FI57: 2586.48 | FJ57: 1.2 | FK57: 2802.02 | FL57: 3017.56 | FM57: 3233.1 | FN57: 3448.64 | FO57: 3664.18 | FP57: 3879.72 | FQ57: 4095.26 | FR57: 4310.8 | FS57: 4526.34 | FT57: 4741.88 | FU57: 4957.42 | FV57: 5172.96 | FX57: 55 | FY57: 59 | FZ57: 207.65 | GA57: 5.99 | GB57: 55-59 | GC57: A-24-55-59 | GD57: 99999 | GE57: 99999 | GF57: 99999 | GG57: 99999 | GH57: 99999 | GI57: 99999 | GJ57: 99999 | GK57: 99999 | GL57: 99999 | GM57: 99999 | GN57: 99999 | GO57: 100 | GQ57: 55 | GR57: 59 | GS57: 188.76 | GT57: 0 | GU57: 55-59 | GV57: A-24-55-59 | GW57: 640.84 | GX57: 961.26 | GY57: 1281.68 | GZ57: 1602.1 | HA57: 1922.52 | HB57: 2242.94 | HC57: 2435.19 | HD57: 2739.59 | HE57: 3043.99 | HF57: 3348.39 | HG57: 3652.79 | HH57: 100 | HI57: 3957.19 | HJ57: 4261.59 | HK57: 4565.99 | HL57: 4870.38 | HM57: 5174.78 | HN57: 5479.18 | HO57: 5783.58 | HP57: 6087.98 | HQ57: 6392.38 | HR57: 6696.78 | HS57: 7001.18 | HT57: 7305.58
D58: 60 | E58: 64 | F58: 297.66 | G58: 11.89 | H58: 60-64 | I58: A-24-60-64 | J58: 619.1 | K58: 928.65 | L58: 1238.2 | M58: 1547.75 | N58: 1857.3 | O58: 2166.85 | P58: 2357.36 | Q58: 2652.03 | R58: 2946.7 | S58: 3241.37 | T58: 3536.04 | U58: 1.25 | W58: 60 | X58: 64 | Y58: 270.44 | Z58: 10.77 | AA58: 60-64 | AB58: A-24-60-64 | AC58: 562.42 | AD58: 843.63 | AE58: 1124.84 | AF58: 1406.05 | AG58: 1687.26 | AH58: 1968.47 | AI58: 2141.52 | AJ58: 2409.21 | AK58: 2676.9 | AL58: 2944.59 | AM58: 3212.28 | AN58: 1.25 | AP58: 60 | AQ58: 64 | AR58: 246.84 | AS58: 9.89 | AT58: 60-64 | AU58: A-24-60-64 | AV58: 513.46 | AW58: 770.19 | AX58: 1026.92 | AY58: 1283.65 | AZ58: 1540.38 | BA58: 1797.11 | BB58: 1955.12 | BC58: 2199.51 | BD58: 2443.9 | BE58: 2688.29 | BF58: 2932.68 | BG58: 1.25 | BI58: 60 | BJ58: 64 | BK58: 228.69 | BL58: 9.11 | BM58: 60-64 | BN58: A-24-60-64 | BO58: 475.6 | BP58: 713.4 | BQ58: 951.2 | BR58: 1189 | BS58: 1426.8 | BT58: 1664.6 | BU58: 1810.96 | BV58: 2037.33 | BW58: 2263.7 | BX58: 2490.07 | BY58: 2716.44 | BZ58: 1.22 | CB58: 60 | CC58: 64 | CD58: 246.84 | CE58: 0 | CF58: 60-64 | CG58: A-24-60-64 | CH58: 493.68 | CI58: 740.52 | CJ58: 987.36 | CK58: 1234.2 | CL58: 1481.04 | CM58: 1727.88 | CN58: 1876 | CO58: 2110.5 | CP58: 2345 | CQ58: 2579.5 | CR58: 2814 | CS58: 1.25 | CT58: 3048.5 | CU58: 3283 | CV58: 3517.5 | CW58: 3752 | CX58: 3986.5 | CY58: 4221 | CZ58: 4455.5 | DA58: 4690 | DB58: 4924.5 | DC58: 5159 | DD58: 5393.5 | DE58: 5628 | DG58: 60 | DH58: 64 | DI58: 273.81 | DJ58: 10.9 | DK58: 60-64 | DL58: A-24-60-64 | DM58: 569.42 | DN58: 854.13 | DO58: 1138.84 | DP58: 1423.55 | DQ58: 1708.26 | DR58: 1992.97 | DS58: 2168.16 | DT58: 2439.18 | DU58: 2710.2 | DV58: 2981.22 | DW58: 3252.24 | DX58: 1.25 | DZ58: 60 | EA58: 64 | EB58: 273.81 | EC58: 10.9 | ED58: 60-64 | EE58: A-24-60-64 | EF58: 482.74 | EG58: 724.11 | EH58: 965.48 | EI58: 1206.85 | EJ58: 1448.22 | EK58: 1689.59 | EL58: 1838.08 | EM58: 2067.84 | EN58: 2297.6 | EO58: 2527.36 | EP58: 2757.12 | EQ58: 1.25 | ES58: 60 | ET58: 64 | EU58: 246.84 | EV58: 0 | EW58: 60-64 | EX58: A-24-60-64 | EY58: 595.32 | EZ58: 892.98 | FA58: 1190.64 | FB58: 1488.3 | FC58: 1785.96 | FD58: 2083.62 | FE58: 2262.24 | FF58: 2545.02 | FG58: 2827.8 | FH58: 3110.58 | FI58: 3393.36 | FJ58: 1.25 | FK58: 3676.14 | FL58: 3958.92 | FM58: 4241.7 | FN58: 4524.48 | FO58: 4807.26 | FP58: 5090.04 | FQ58: 5372.82 | FR58: 5655.6 | FS58: 5938.38 | FT58: 6221.16 | FU58: 6503.94 | FV58: 6786.72 | FX58: 60 | FY58: 64 | FZ58: 273.81 | GA58: 10.9 | GB58: 60-64 | GC58: A-24-60-64 | GD58: 638.14 | GE58: 957.21 | GF58: 1276.28 | GG58: 1595.35 | GH58: 1914.42 | GI58: 2233.49 | GJ58: 2427.52 | GK58: 2730.96 | GL58: 3034.4 | GM58: 3337.84 | GN58: 3641.28 | GO58: 1.25 | GQ58: 60 | GR58: 64 | GS58: 246.84 | GT58: 0 | GU58: 60-64 | GV58: A-24-60-64 | GW58: 772.66 | GX58: 1158.99 | GY58: 1545.32 | GZ58: 1931.65 | HA58: 2317.98 | HB58: 2704.31 | HC58: 2936.11 | HD58: 3303.12 | HE58: 3670.14 | HF58: 4037.15 | HG58: 4404.16 | HH58: 100 | HI58: 4771.18 | HJ58: 5138.19 | HK58: 5505.2 | HL58: 5872.22 | HM58: 6239.23 | HN58: 6606.24 | HO58: 6973.26 | HP58: 7340.27 | HQ58: 7707.28 | HR58: 8074.3 | HS58: 8441.31 | HT58: 8808.32
D59: 65 | E59: 69 | F59: 375.71 | G59: 22.39 | H59: 65-69 | I59: A-24-65-69 | J59: 796.2 | K59: 1194.3 | L59: 1592.4 | M59: 1990.5 | N59: 2388.6 | O59: 2786.7 | P59: 3034.48 | Q59: 3413.79 | R59: 3793.1 | S59: 4172.41 | T59: 4551.72 | U59: 1.25 | W59: 65 | X59: 69 | Y59: 341.22 | Z59: 20.29 | AA59: 65-69 | AB59: A-24-65-69 | AC59: 723.02 | AD59: 1084.53 | AE59: 1446.04 | AF59: 1807.55 | AG59: 2169.06 | AH59: 2530.57 | AI59: 2755.6 | AJ59: 3100.05 | AK59: 3444.5 | AL59: 3788.95 | AM59: 4133.4 | AN59: 1.25 | AP59: 65 | AQ59: 69 | AR59: 312.18 | AS59: 18.6 | AT59: 65-69 | AU59: A-24-65-69 | AV59: 661.56 | AW59: 992.34 | AX59: 1323.12 | AY59: 1653.9 | AZ59: 1984.68 | BA59: 2315.46 | BB59: 2521.36 | BC59: 2836.53 | BD59: 3151.7 | BE59: 3466.87 | BF59: 3782.04 | BG59: 1.25 | BI59: 65 | BJ59: 69 | BK59: 288.59 | BL59: 17.15 | BM59: 65-69 | BN59: A-24-65-69 | BO59: 611.48 | BP59: 917.22 | BQ59: 1222.96 | BR59: 1528.7 | BS59: 1834.44 | BT59: 2140.18 | BU59: 2330.48 | BV59: 2621.79 | BW59: 2913.1 | BX59: 3204.41 | BY59: 3495.72 | BZ59: 1.22 | CB59: 65 | CC59: 69 | CD59: 312.18 | CE59: 0 | CF59: 65-69 | CG59: A-24-65-69 | CH59: 624.36 | CI59: 936.54 | CJ59: 1248.72 | CK59: 1560.9 | CL59: 1873.08 | CM59: 2185.26 | CN59: 2372.56 | CO59: 2669.13 | CP59: 2965.7 | CQ59: 3262.27 | CR59: 3558.84 | CS59: 1.25 | CT59: 3855.41 | CU59: 4151.98 | CV59: 4448.55 | CW59: 4745.12 | CX59: 5041.69 | CY59: 5338.26 | CZ59: 5634.83 | DA59: 5931.4 | DB59: 6227.97 | DC59: 6524.54 | DD59: 6821.11 | DE59: 7117.68 | DG59: 65 | DH59: 69 | DI59: 345.49 | DJ59: 20.54 | DK59: 65-69 | DL59: A-24-65-69 | DM59: 732.06 | DN59: 1098.09 | DO59: 1464.12 | DP59: 1830.15 | DQ59: 2196.18 | DR59: 2562.21 | DS59: 2790.08 | DT59: 3138.84 | DU59: 3487.6 | DV59: 3836.36 | DW59: 4185.12 | DX59: 1.25 | DZ59: 65 | EA59: 69 | EB59: 345.49 | EC59: 20.54 | ED59: 65-69 | EE59: A-24-65-69 | EF59: 620.66 | EG59: 930.99 | EH59: 1241.32 | EI59: 1551.65 | EJ59: 1861.98 | EK59: 2172.31 | EL59: 2365.44 | EM59: 2661.12 | EN59: 2956.8 | EO59: 3252.48 | EP59: 3548.16 | EQ59: 1.25 | ES59: 65 | ET59: 69 | EU59: 312.18 | EV59: 0 | EW59: 65-69 | EX59: A-24-65-69 | EY59: 751.42 | EZ59: 1127.13 | FA59: 1502.84 | FB59: 1878.55 | FC59: 2254.26 | FD59: 2629.97 | FE59: 2855.36 | FF59: 3212.28 | FG59: 3569.2 | FH59: 3926.12 | FI59: 4283.04 | FJ59: 1.25 | FK59: 4639.96 | FL59: 4996.88 | FM59: 5353.8 | FN59: 5710.72 | FO59: 6067.64 | FP59: 6424.56 | FQ59: 6781.48 | FR59: 7138.4 | FS59: 7495.32 | FT59: 7852.24 | FU59: 8209.16 | FV59: 8566.08 | FX59: 65 | FY59: 69 | FZ59: 345.49 | GA59: 20.54 | GB59: 65-69 | GC59: A-24-65-69 | GD59: 813.72 | GE59: 1220.58 | GF59: 1627.44 | GG59: 2034.3 | GH59: 2441.16 | GI59: 2848.02 | GJ59: 3097.04 | GK59: 3484.17 | GL59: 3871.3 | GM59: 4258.43 | GN59: 4645.56 | GO59: 1.25 | GQ59: 65 | GR59: 69 | GS59: 312.18 | GT59: 0 | GU59: 65-69 | GV59: A-24-65-69 | GW59: 879.48 | GX59: 1319.22 | GY59: 1758.96 | GZ59: 2198.7 | HA59: 2638.44 | HB59: 3078.18 | HC59: 3342.02 | HD59: 3759.78 | HE59: 4177.53 | HF59: 4595.28 | HG59: 5013.04 | HH59: 100 | HI59: 5430.79 | HJ59: 5848.54 | HK59: 6266.3 | HL59: 6684.05 | HM59: 7101.8 | HN59: 7519.55 | HO59: 7937.31 | HP59: 8355.06 | HQ59: 8772.81 | HR59: 9190.57 | HS59: 9608.32 | HT59: 10026.07
D60: 70 | E60: 74 | F60: 450.12 | G60: 38.48 | H60: 70-74 | I60: A-24-70-74 | J60: 977.2 | K60: 1465.8 | L60: 1954.4 | M60: 2443 | N60: 2931.6 | O60: 3420.2 | P60: 3728.72 | Q60: 4194.81 | R60: 4660.9 | S60: 5126.99 | T60: 5593.08 | U60: N/A | W60: 70 | X60: 74 | Y60: 408.38 | Z60: 34.86 | AA60: 70-74 | AB60: A-24-70-74 | AC60: 886.48 | AD60: 1329.72 | AE60: 1772.96 | AF60: 2216.2 | AG60: 2659.44 | AH60: 3102.68 | AI60: 3382.56 | AJ60: 3805.38 | AK60: 4228.2 | AL60: 4651.02 | AM60: 5073.84 | AN60: N/A | AP60: 70 | AQ60: 74 | AR60: 373.89 | AS60: 31.98 | AT60: 70-74 | AU60: A-24-70-74 | AV60: 811.74 | AW60: 1217.61 | AX60: 1623.48 | AY60: 2029.35 | AZ60: 2435.22 | BA60: 2841.09 | BB60: 3097.44 | BC60: 3484.62 | BD60: 3871.8 | BE60: 4258.98 | BF60: 4646.16 | BG60: N/A | BI60: 70 | BJ60: 74 | BK60: 344.85 | BL60: 29.47 | BM60: 70-74 | BN60: A-24-70-74 | BO60: 748.64 | BP60: 1122.96 | BQ60: 1497.28 | BR60: 1871.6 | BS60: 2245.92 | BT60: 2620.24 | BU60: 2856.64 | BV60: 3213.72 | BW60: 3570.8 | BX60: 3927.88 | BY60: 4284.96 | BZ60: N/A | CB60: 70 | CC60: 74 | CD60: 373.89 | CE60: 0 | CF60: 70-74 | CG60: A-24-70-74 | CH60: 747.78 | CI60: 1121.67 | CJ60: 1495.56 | CK60: 1869.45 | CL60: 2243.34 | CM60: 2617.23 | CN60: 2841.6 | CO60: 3196.8 | CP60: 3552 | CQ60: 3907.2 | CR60: 4262.4 | CS60: N/A | CT60: 4617.6 | CU60: 4972.8 | CV60: 5328 | CW60: 5683.2 | CX60: 6038.4 | CY60: 6393.6 | CZ60: 6748.8 | DA60: 7104 | DB60: 7459.2 | DC60: 7814.4 | DD60: 8169.6 | DE60: 8524.8 | DG60: 70 | DH60: 74 | DI60: 413.48 | DJ60: 35.3 | DK60: 70-74 | DL60: A-24-70-74 | DM60: 897.56 | DN60: 1346.34 | DO60: 1795.12 | DP60: 2243.9 | DQ60: 2692.68 | DR60: 3141.46 | DS60: 3424.88 | DT60: 3852.99 | DU60: 4281.1 | DV60: 4709.21 | DW60: 5137.32 | DX60: N/A | DZ60: 70 | EA60: 74 | EB60: 413.48 | EC60: 35.3 | ED60: 70-74 | EE60: A-24-70-74 | EF60: 759.86 | EG60: 1139.79 | EH60: 1519.72 | EI60: 1899.65 | EJ60: 2279.58 | EK60: 2659.51 | EL60: 2899.44 | EM60: 3261.87 | EN60: 3624.3 | EO60: 3986.73 | EP60: 4349.16 | EQ60: N/A | ES60: 70 | ET60: 74 | EU60: 373.89 | EV60: 0 | EW60: 70-74 | EX60: A-24-70-74 | EY60: 900.24 | EZ60: 1350.36 | FA60: 1800.48 | FB60: 2250.6 | FC60: 2700.72 | FD60: 3150.84 | FE60: 3420.88 | FF60: 3848.49 | FG60: 4276.1 | FH60: 4703.71 | FI60: 5131.32 | FJ60: N/A | FK60: 5558.93 | FL60: 5986.54 | FM60: 6414.15 | FN60: 6841.76 | FO60: 7269.37 | FP60: 7696.98 | FQ60: 8124.59 | FR60: 8552.2 | FS60: 8979.81 | FT60: 9407.42 | FU60: 9835.03 | FV60: 10262.64 | FX60: 70 | FY60: 74 | FZ60: 413.48 | GA60: 35.3 | GB60: 70-74 | GC60: A-24-70-74 | GD60: 986.84 | GE60: 1480.26 | GF60: 1973.68 | GG60: 2467.1 | GH60: 2960.52 | GI60: 3453.94 | GJ60: 3758.48 | GK60: 4228.29 | GL60: 4698.1 | GM60: 5167.91 | GN60: 5637.72 | GO60: N/A | GQ60: 70 | GR60: 74 | GS60: 373.89 | GT60: 0 | GU60: 70-74 | GV60: A-24-70-74 | GW60: 953.26 | GX60: 1429.89 | GY60: 1906.52 | GZ60: 2383.15 | HA60: 2859.78 | HB60: 3336.41 | HC60: 3622.39 | HD60: 4075.19 | HE60: 4527.99 | HF60: 4980.78 | HG60: 5433.58 | HH60: N/A | HI60: 5886.38 | HJ60: 6339.18 | HK60: 6791.98 | HL60: 7244.78 | HM60: 7697.57 | HN60: 8150.37 | HO60: 8603.17 | HP60: 9055.97 | HQ60: 9508.77 | HR60: 9961.57 | HS60: 10414.37 | HT60: 10867.16
D61: 75 | E61: 79 | F61: 513.65 | G61: 62.96 | H61: 75-79 | I61: A-24-75-79 | J61: 1153.22 | K61: 1729.83 | L61: 2306.44 | M61: 2883.05 | N61: 3459.66 | O61: 4036.27 | P61: 4407.44 | Q61: 4958.37 | R61: 5509.3 | S61: 6060.23 | T61: 6611.16 | U61: N/A | W61: 75 | X61: 79 | Y61: 466.46 | Z61: 57.05 | AA61: 75-79 | AB61: A-24-75-79 | AC61: 1047.02 | AD61: 1570.53 | AE61: 2094.04 | AF61: 2617.55 | AG61: 3141.06 | AH61: 3664.57 | AI61: 4001.52 | AJ61: 4501.71 | AK61: 5001.9 | AL61: 5502.09 | AM61: 6002.28 | AN61: N/A | AP61: 75 | AQ61: 79 | AR61: 428.34 | AS61: 52.33 | AT61: 75-79 | AU61: A-24-75-79 | AV61: 961.34 | AW61: 1442.01 | AX61: 1922.68 | AY61: 2403.35 | AZ61: 2884.02 | BA61: 3364.69 | BB61: 3674 | BC61: 4133.25 | BD61: 4592.5 | BE61: 5051.75 | BF61: 5511 | BG61: N/A | BI61: 75 | BJ61: 79 | BK61: 393.86 | BL61: 48.23 | BM61: 75-79 | BN61: A-24-75-79 | BO61: 884.18 | BP61: 1326.27 | BQ61: 1768.36 | BR61: 2210.45 | BS61: 2652.54 | BT61: 3094.63 | BU61: 3379.2 | BV61: 3801.6 | BW61: 4224 | BX61: 4646.4 | BY61: 5068.8 | BZ61: N/A | CB61: 75 | CC61: 79 | CD61: 428.34 | CE61: 0 | CF61: 75-79 | CG61: A-24-75-79 | CH61: 856.68 | CI61: 1285.02 | CJ61: 1713.36 | CK61: 2141.7 | CL61: 2570.04 | CM61: 2998.38 | CN61: 3255.36 | CO61: 3662.28 | CP61: 4069.2 | CQ61: 4476.12 | CR61: 4883.04 | CS61: N/A | CT61: 5289.96 | CU61: 5696.88 | CV61: 6103.8 | CW61: 6510.72 | CX61: 6917.64 | CY61: 7324.56 | CZ61: 7731.48 | DA61: 8138.4 | DB61: 8545.32 | DC61: 8952.24 | DD61: 9359.16 | DE61: 9766.08 | DG61: 75 | DH61: 79 | DI61: 472.28 | DJ61: 57.76 | DK61: 75-79 | DL61: A-24-75-79 | DM61: 1060.08 | DN61: 1590.12 | DO61: 2120.16 | DP61: 2650.2 | DQ61: 3180.24 | DR61: 3710.28 | DS61: 4051.44 | DT61: 4557.87 | DU61: 5064.3 | DV61: 5570.73 | DW61: 6077.16 | DX61: N/A | DZ61: 75 | EA61: 79 | EB61: 472.28 | EC61: 57.76 | ED61: 75-79 | EE61: A-24-75-79 | EF61: 897.44 | EG61: 1346.16 | EH61: 1794.88 | EI61: 2243.6 | EJ61: 2692.32 | EK61: 3141.04 | EL61: 3429.84 | EM61: 3858.57 | EN61: 4287.3 | EO61: 4716.03 | EP61: 5144.76 | EQ61: N/A | ES61: 75 | ET61: 79 | EU61: 428.34 | EV61: 0 | EW61: 75-79 | EX61: A-24-75-79 | EY61: 1027.3 | EZ61: 1540.95 | FA61: 2054.6 | FB61: 2568.25 | FC61: 3081.9 | FD61: 3595.55 | FE61: 3903.76 | FF61: 4391.73 | FG61: 4879.7 | FH61: 5367.67 | FI61: 5855.64 | FJ61: N/A | FK61: 6343.61 | FL61: 6831.58 | FM61: 7319.55 | FN61: 7807.52 | FO61: 8295.49 | FP61: 8783.46 | FQ61: 9271.43 | FR61: 9759.4 | FS61: 10247.37 | FT61: 10735.34 | FU61: 11223.31 | FV61: 11711.28 | FX61: 75 | FY61: 79 | FZ61: 472.28 | GA61: 57.76 | GB61: 75-79 | GC61: A-24-75-79 | GD61: 1148.5 | GE61: 1722.75 | GF61: 2297 | GG61: 2871.25 | GH61: 3445.5 | GI61: 4019.75 | GJ61: 4378.16 | GK61: 4925.43 | GL61: 5472.7 | GM61: 6019.97 | GN61: 6567.24 | GO61: N/A | GQ61: 75 | GR61: 79 | GS61: 428.34 | GT61: 0 | GU61: 75-79 | GV61: A-24-75-79 | GW61: 1002.04 | GX61: 1503.06 | GY61: 2004.08 | GZ61: 2505.1 | HA61: 3006.12 | HB61: 3507.14 | HC61: 3807.75 | HD61: 4283.72 | HE61: 4759.69 | HF61: 5235.66 | HG61: 5711.63 | HH61: N/A | HI61: 6187.6 | HJ61: 6663.57 | HK61: 7139.54 | HL61: 7615.5 | HM61: 8091.47 | HN61: 8567.44 | HO61: 9043.41 | HP61: 9519.38 | HQ61: 9995.35 | HR61: 10471.32 | HS61: 10947.29 | HT61: 11423.26
D62: 80 | E62: 84 | F62: 544.5 | G62: 95.15 | H62: 80-84 | I62: A-24-80-84 | J62: 1279.3 | K62: 1918.95 | L62: 2558.6 | M62: 3198.25 | N62: 3837.9 | O62: 4477.55 | P62: 4899.44 | Q62: 5511.87 | R62: 6124.3 | S62: 6736.73 | T62: 7349.16 | U62: N/A | W62: 80 | X62: 84 | Y62: 493.68 | Z62: 86.2 | AA62: 80-84 | AB62: A-24-80-84 | AC62: 1159.76 | AD62: 1739.64 | AE62: 2319.52 | AF62: 2899.4 | AG62: 3479.28 | AH62: 4059.16 | AI62: 4441.6 | AJ62: 4996.8 | AK62: 5552 | AL62: 6107.2 | AM62: 6662.4 | AN62: N/A | AP62: 80 | AQ62: 84 | AR62: 451.94 | AS62: 79.07 | AT62: 80-84 | AU62: A-24-80-84 | AV62: 1062.02 | AW62: 1593.03 | AX62: 2124.04 | AY62: 2655.05 | AZ62: 3186.06 | BA62: 3717.07 | BB62: 4067.28 | BC62: 4575.69 | BD62: 5084.1 | BE62: 5592.51 | BF62: 6100.92 | BG62: N/A | BI62: 80 | BJ62: 84 | BK62: 417.45 | BL62: 72.88 | BM62: 80-84 | BN62: A-24-80-84 | BO62: 980.66 | BP62: 1470.99 | BQ62: 1961.32 | BR62: 2451.65 | BS62: 2941.98 | BT62: 3432.31 | BU62: 3755.68 | BV62: 4225.14 | BW62: 4694.6 | BX62: 5164.06 | BY62: 5633.52 | BZ62: N/A | CB62: 80 | CC62: 84 | CD62: 451.94 | CE62: 0 | CF62: 80-84 | CG62: A-24-80-84 | CH62: 903.88 | CI62: 1355.82 | CJ62: 1807.76 | CK62: 2259.7 | CL62: 2711.64 | CM62: 3163.58 | CN62: 3434.72 | CO62: 3864.06 | CP62: 4293.4 | CQ62: 4722.74 | CR62: 5152.08 | CS62: N/A | CT62: 5581.42 | CU62: 6010.76 | CV62: 6440.1 | CW62: 6869.44 | CX62: 7298.78 | CY62: 7728.12 | CZ62: 8157.46 | DA62: 8586.8 | DB62: 9016.14 | DC62: 9445.48 | DD62: 9874.82 | DE62: 10304.16 | DG62: 80 | DH62: 84 | DI62: 499.85 | DJ62: 87.28 | DK62: 80-84 | DL62: A-24-80-84 | DM62: 1174.26 | DN62: 1761.39 | DO62: 2348.52 | DP62: 2935.65 | DQ62: 3522.78 | DR62: 4109.91 | DS62: 4497.12 | DT62: 5059.26 | DU62: 5621.4 | DV62: 6183.54 | DW62: 6745.68 | DX62: N/A | DZ62: 80 | EA62: 84 | EB62: 499.85 | EC62: 87.28 | ED62: 80-84 | EE62: A-24-80-84 | EF62: 995.36 | EG62: 1493.04 | EH62: 1990.72 | EI62: 2488.4 | EJ62: 2986.08 | EK62: 3483.76 | EL62: 3811.92 | EM62: 4288.41 | EN62: 4764.9 | EO62: 5241.39 | EP62: 5717.88 | EQ62: N/A | ES62: 80 | ET62: 84 | EU62: 451.94 | EV62: 0 | EW62: 80-84 | EX62: A-24-80-84 | EY62: 1089 | EZ62: 1633.5 | FA62: 2178 | FB62: 2722.5 | FC62: 3267 | FD62: 3811.5 | FE62: 4138.24 | FF62: 4655.52 | FG62: 5172.8 | FH62: 5690.08 | FI62: 6207.36 | FJ62: N/A | FK62: 6724.64 | FL62: 7241.92 | FM62: 7759.2 | FN62: 8276.48 | FO62: 8793.76 | FP62: 9311.04 | FQ62: 9828.32 | FR62: 10345.6 | FS62: 10862.88 | FT62: 11380.16 | FU62: 11897.44 | FV62: 12414.72 | FX62: 80 | FY62: 84 | FZ62: 499.85 | GA62: 87.28 | GB62: 80-84 | GC62: A-24-80-84 | GD62: 1246.12 | GE62: 1869.18 | GF62: 2492.24 | GG62: 3115.3 | GH62: 3738.36 | GI62: 4361.42 | GJ62: 4756.24 | GK62: 5350.77 | GL62: 5945.3 | GM62: 6539.83 | GN62: 7134.36 | GO62: N/A | GQ62: 80 | GR62: 84 | GS62: 451.94 | GT62: 0 | GU62: 80-84 | GV62: A-24-80-84 | GW62: 1017.3 | GX62: 1525.95 | GY62: 2034.6 | GZ62: 2543.25 | HA62: 3051.9 | HB62: 3560.55 | HC62: 3865.74 | HD62: 4348.96 | HE62: 4832.18 | HF62: 5315.39 | HG62: 5798.61 | HH62: N/A | HI62: 6281.83 | HJ62: 6765.05 | HK62: 7248.26 | HL62: 7731.48 | HM62: 8214.7 | HN62: 8697.92 | HO62: 9181.13 | HP62: 9664.35 | HQ62: 10147.57 | HR62: 10630.79 | HS62: 11114 | HT62: 11597.22
J66: 500 | K66: 750 | L66: 1000 | M66: 1250 | N66: 1500 | O66: 1750 | P66: 2000 | Q66: 2250 | R66: 2500 | S66: 2750 | T66: 3000 | U66: ROP | AC66: 500 | AD66: 750 | AE66: 1000 | AF66: 1250 | AG66: 1500 | AH66: 1750 | AI66: 2000 | AJ66: 2250 | AK66: 2500 | AL66: 2750 | AM66: 3000 | AN66: ROP | AV66: 500 | AW66: 750 | AX66: 1000 | AY66: 1250 | AZ66: 1500 | BA66: 1750 | BB66: 2000 | BC66: 2250 | BD66: 2500 | BE66: 2750 | BF66: 3000 | BG66: ROP | BO66: 500 | BP66: 750 | BQ66: 1000 | BR66: 1250 | BS66: 1500 | BT66: 1750 | BU66: 2000 | BV66: 2250 | BW66: 2500 | BX66: 2750 | BY66: 3000 | BZ66: ROP | CH66: 500 | CI66: 750 | CJ66: 1000 | CK66: 1250 | CL66: 1500 | CM66: 1750 | CN66: 2000 | CO66: 2250 | CP66: 2500 | CQ66: 2750 | CR66: 3000 | CS66: ROP | CT66: 3250 | CU66: 3500 | CV66: 3750 | CW66: 4000 | CX66: 4250 | CY66: 4500 | CZ66: 4750 | DA66: 5000 | DB66: 5250 | DC66: 5500 | DD66: 5750 | DE66: 6000 | DM66: 500 | DN66: 750 | DO66: 1000 | DP66: 1250 | DQ66: 1500 | DR66: 1750 | DS66: 2000 | DT66: 2250 | DU66: 2500 | DV66: 2750 | DW66: 3000 | DX66: ROP | EF66: 500 | EG66: 750 | EH66: 1000 | EI66: 1250 | EJ66: 1500 | EK66: 1750 | EL66: 2000 | EM66: 2250 | EN66: 2500 | EO66: 2750 | EP66: 3000 | EQ66: ROP | EY66: 500 | EZ66: 750 | FA66: 1000 | FB66: 1250 | FC66: 1500 | FD66: 1750 | FE66: 2000 | FF66: 2250 | FG66: 2500 | FH66: 2750 | FI66: 3000 | FJ66: ROP | FK66: 3250 | FL66: 3500 | FM66: 3750 | FN66: 4000 | FO66: 4250 | FP66: 4500 | FQ66: 4750 | FR66: 5000 | FS66: 5250 | FT66: 5500 | FU66: 5750 | FV66: 6000 | GD66: 500 | GE66: 750 | GF66: 1000 | GG66: 1250 | GH66: 1500 | GI66: 1750 | GJ66: 2000 | GK66: 2250 | GL66: 2500 | GM66: 2750 | GN66: 3000 | GO66: ROP | GW66: 500 | GX66: 750 | GY66: 1000 | GZ66: 1250 | HA66: 1500 | HB66: 1750 | HC66: 2000 | HD66: 2250 | HE66: 2500 | HF66: 2750 | HG66: 3000 | HH66: ROP | HI66: 3250 | HJ66: 3500 | HK66: 3750 | HL66: 4000 | HM66: 4250 | HN66: 4500 | HO66: 4750 | HP66: 5000 | HQ66: 5250 | HR66: 5500 | HS66: 5750 | HT66: 6000
I67: B-6 | J67: 2 | K67: 3 | L67: 4 | M67: 5 | N67: 6 | O67: 7 | P67: 8 | Q67: 9 | R67: 10 | S67: 11 | T67: 12 | AB67: B-6 | AC67: 2 | AD67: 3 | AE67: 4 | AF67: 5 | AG67: 6 | AH67: 7 | AI67: 8 | AJ67: 9 | AK67: 10 | AL67: 11 | AM67: 12 | AU67: B-6 | AV67: 2 | AW67: 3 | AX67: 4 | AY67: 5 | AZ67: 6 | BA67: 7 | BB67: 8 | BC67: 9 | BD67: 10 | BE67: 11 | BF67: 12 | BN67: B-6 | BO67: 2 | BP67: 3 | BQ67: 4 | BR67: 5 | BS67: 6 | BT67: 7 | BU67: 8 | BV67: 9 | BW67: 10 | BX67: 11 | BY67: 12 | CG67: B-6 | CH67: 2 | CI67: 3 | CJ67: 4 | CK67: 5 | CL67: 6 | CM67: 7 | CN67: 8 | CO67: 9 | CP67: 10 | CQ67: 11 | CR67: 12 | CT67: 13 | CU67: 14 | CV67: 15 | CW67: 16 | CX67: 17 | CY67: 18 | CZ67: 19 | DA67: 20 | DB67: 21 | DC67: 22 | DD67: 23 | DE67: 24 | DL67: B-6 | DM67: 2 | DN67: 3 | DO67: 4 | DP67: 5 | DQ67: 6 | DR67: 7 | DS67: 8 | DT67: 9 | DU67: 10 | DV67: 11 | DW67: 12 | EE67: B-6 | EF67: 2 | EG67: 3 | EH67: 4 | EI67: 5 | EJ67: 6 | EK67: 7 | EL67: 8 | EM67: 9 | EN67: 10 | EO67: 11 | EP67: 12 | EX67: B-6 | EY67: 2 | EZ67: 3 | FA67: 4 | FB67: 5 | FC67: 6 | FD67: 7 | FE67: 8 | FF67: 9 | FG67: 10 | FH67: 11 | FI67: 12 | FK67: 13 | FL67: 14 | FM67: 15 | FN67: 16 | FO67: 17 | FP67: 18 | FQ67: 19 | FR67: 20 | FS67: 21 | FT67: 22 | FU67: 23 | FV67: 24 | GC67: B-6 | GD67: 2 | GE67: 3 | GF67: 4 | GG67: 5 | GH67: 6 | GI67: 7 | GJ67: 8 | GK67: 9 | GL67: 10 | GM67: 11 | GN67: 12 | GV67: B-6 | GW67: 2 | GX67: 3 | GY67: 4 | GZ67: 5 | HA67: 6 | HB67: 7 | HC67: 8 | HD67: 9 | HE67: 10 | HF67: 11 | HG67: 12 | HI67: 13 | HJ67: 14 | HK67: 15 | HL67: 16 | HM67: 17 | HN67: 18 | HO67: 19 | HP67: 20 | HQ67: 21 | HR67: 22 | HS67: 23 | HT67: 24
D68: Dependent | F68: 2.78 | G68: 0.09 | H68: D | I68: =CONCATENATE(I$67,"-",H68) -> B-6-D | J68: 5.74 | K68: Dependent benefit is $500 | U68: 1.1 | W68: Dependent | Y68: 2.51 | Z68: 0.08 | AA68: D | AB68: =CONCATENATE(AB$67,"-",AA68) -> B-6-D | AC68: 5.18 | AD68: Dependent benefit is $500 | AN68: 1.1 | AP68: Dependent | AR68: 2.3 | AS68: 0.07 | AT68: D | AU68: =CONCATENATE(AU$67,"-",AT68) -> B-6-D | AV68: 4.74 | AW68: Dependent benefit is $500 | BG68: 1.1 | BI68: Dependent | BK68: 2.11 | BL68: 0.07 | BM68: D | BN68: =CONCATENATE(BN$67,"-",BM68) -> B-6-D | BO68: 4.36 | BP68: Dependent benefit is $500 | BZ68: 1.1 | CB68: Dependent | CD68: 2.3 | CE68: 0 | CF68: D | CG68: =CONCATENATE(CG$67,"-",CF68) -> B-6-D | CH68: 4.6 | CI68: Dependent benefit is $500 | CS68: 1.1 | CU68: Dependent benefit is $500 | DG68: Dependent | DI68: 2.54 | DJ68: 0.08 | DK68: D | DL68: =CONCATENATE(DL$67,"-",DK68) -> B-6-D | DM68: 5.24 | DN68: Dependent benefit is $500 | DX68: 1.1 | DZ68: Dependent | EB68: 2.54 | EC68: 0.08 | ED68: D | EE68: =CONCATENATE(EE$67,"-",ED68) -> B-6-D | EF68: 4.44 | EG68: Dependent benefit is $500 | EQ68: 1.1 | ES68: Dependent | EU68: 2.3 | EV68: 0 | EW68: D | EX68: =CONCATENATE(EX$67,"-",EW68) -> B-6-D | EY68: 5.56 | EZ68: Dependent benefit is $500 | FJ68: 1.1 | FL68: Dependent benefit is $500 | FX68: Dependent | FZ68: 2.54 | GA68: 0.08 | GB68: D | GC68: =CONCATENATE(GC$67,"-",GB68) -> B-6-D | GD68: 99999 | GE68: Dependent benefit is $500 | GO68: 100 | GQ68: Dependent | GS68: 2.3 | GT68: 0 | GU68: D | GV68: =CONCATENATE(GV$67,"-",GU68) -> B-6-D | GW68: 5.14 | GX68: Dependent benefit is $500 | HH68: 100 | HJ68: Dependent benefit is $500
D69: 18 | E69: 29 | F69: 6.11 | G69: 0.09 | H69: 18-29 | I69: =CONCATENATE(I$67,"-",H69) -> B-6-18-29 | J69: 12.4 | K69: 18.6 | L69: 24.8 | M69: 31 | N69: 37.2 | O69: 43.4 | P69: 47.12 | Q69: 53.01 | R69: 58.9 | S69: 64.79 | T69: 70.68 | U69: 1.1 | W69: 18 | X69: 29 | Y69: 5.55 | Z69: 0.08 | AA69: 18-29 | AB69: =CONCATENATE(AB$67,"-",AA69) -> B-6-18-29 | AC69: 11.26 | AD69: 16.89 | AE69: 22.52 | AF69: 28.15 | AG69: 33.78 | AH69: 39.41 | AI69: 42.8 | AJ69: 48.15 | AK69: 53.5 | AL69: 58.85 | AM69: 64.2 | AN69: 1.1 | AP69: 18 | AQ69: 29 | AR69: 5 | AS69: 0.07 | AT69: 18-29 | AU69: =CONCATENATE(AU$67,"-",AT69) -> B-6-18-29 | AV69: 10.14 | AW69: 15.21 | AX69: 20.28 | AY69: 25.35 | AZ69: 30.42 | BA69: 35.49 | BB69: 38.56 | BC69: 43.38 | BD69: 48.2 | BE69: 53.02 | BF69: 57.84 | BG69: 1.1 | BI69: 18 | BJ69: 29 | BK69: 5 | BL69: 0.07 | BM69: 18-29 | BN69: =CONCATENATE(BN$67,"-",BM69) -> B-6-18-29 | BO69: 10.14 | BP69: 15.21 | BQ69: 20.28 | BR69: 25.35 | BS69: 30.42 | BT69: 35.49 | BU69: 38.56 | BV69: 43.38 | BW69: 48.2 | BX69: 53.02 | BY69: 57.84 | BZ69: 1.1 | CB69: 18 | CC69: 29 | CD69: 5 | CE69: 0 | CF69: 18-29 | CG69: =CONCATENATE(CG$67,"-",CF69) -> B-6-18-29 | CH69: 10 | CI69: 15 | CJ69: 20 | CK69: 25 | CL69: 30 | CM69: 35 | CN69: 38 | CO69: 42.75 | CP69: 47.5 | CQ69: 52.25 | CR69: 57 | CS69: 1.1 | CT69: 61.75 | CU69: 66.5 | CV69: 71.25 | CW69: 76 | CX69: 80.75 | CY69: 85.5 | CZ69: 90.25 | DA69: 95 | DB69: 99.75 | DC69: 104.5 | DD69: 109.25 | DE69: 114 | DG69: 18 | DH69: 29 | DI69: 5.62 | DJ69: 0.08 | DK69: 18-29 | DL69: =CONCATENATE(DL$67,"-",DK69) -> B-6-18-29 | DM69: 11.4 | DN69: 17.1 | DO69: 22.8 | DP69: 28.5 | DQ69: 34.2 | DR69: 39.9 | DS69: 43.36 | DT69: 48.78 | DU69: 54.2 | DV69: 59.62 | DW69: 65.04 | DX69: 1.1 | DZ69: 18 | EA69: 29 | EB69: 5.62 | EC69: 0.08 | ED69: 18-29 | EE69: =CONCATENATE(EE$67,"-",ED69) -> B-6-18-29 | EF69: 10.28 | EG69: 15.42 | EH69: 20.56 | EI69: 25.7 | EJ69: 30.84 | EK69: 35.98 | EL69: 39.12 | EM69: 44.01 | EN69: 48.9 | EO69: 53.79 | EP69: 58.68 | EQ69: 1.1 | ES69: 18 | ET69: 29 | EU69: 5 | EV69: 0 | EW69: 18-29 | EX69: =CONCATENATE(EX$67,"-",EW69) -> B-6-18-29 | EY69: 12.22 | EZ69: 18.33 | FA69: 24.44 | FB69: 30.55 | FC69: 36.66 | FD69: 42.77 | FE69: 46.4 | FF69: 52.2 | FG69: 58 | FH69: 63.8 | FI69: 69.6 | FJ69: 1.1 | FK69: 75.4 | FL69: 81.2 | FM69: 87 | FN69: 92.8 | FO69: 98.6 | FP69: 104.4 | FQ69: 110.2 | FR69: 116 | FS69: 121.8 | FT69: 127.6 | FU69: 133.4 | FV69: 139.2 | FX69: 18 | FY69: 29 | FZ69: 5.62 | GA69: 0.08 | GB69: 18-29 | GC69: =CONCATENATE(GC$67,"-",GB69) -> B-6-18-29 | GD69: 99999 | GE69: 99999 | GF69: 99999 | GG69: 99999 | GH69: 99999 | GI69: 99999 | GJ69: 99999 | GK69: 99999 | GL69: 99999 | GM69: 99999 | GN69: 99999 | GO69: 100 | GQ69: 18 | GR69: 29 | GS69: 5 | GT69: 0 | GU69: 18-29 | GV69: =CONCATENATE(GV$67,"-",GU69) -> B-6-18-29 | GW69: 16.68 | GX69: 25.02 | GY69: 33.36 | GZ69: 41.7 | HA69: 50.04 | HB69: 58.38 | HC69: 63.38 | HD69: 71.31 | HE69: 79.23 | HF69: 87.15 | HG69: 95.08 | HH69: 100 | HI69: 103 | HJ69: 110.92 | HK69: 118.85 | HL69: 126.77 | HM69: 134.69 | HN69: 142.61 | HO69: 150.54 | HP69: 158.46 | HQ69: 166.38 | HR69: 174.31 | HS69: 182.23 | HT69: 190.15
D70: 30 | E70: 39 | F70: 8.88 | G70: 0.13 | H70: 30-39 | I70: B-6-30-39 | J70: 18.02 | K70: 27.03 | L70: 36.04 | M70: 45.05 | N70: 54.06 | O70: 63.07 | P70: 68.56 | Q70: 77.13 | R70: 85.7 | S70: 94.27 | T70: 102.84 | U70: 1.1 | W70: 30 | X70: 39 | Y70: 7.77 | Z70: 0.12 | AA70: 30-39 | AB70: B-6-30-39 | AC70: 15.78 | AD70: 23.67 | AE70: 31.56 | AF70: 39.45 | AG70: 47.34 | AH70: 55.23 | AI70: 60 | AJ70: 67.5 | AK70: 75 | AL70: 82.5 | AM70: 90 | AN70: 1.1 | AP70: 30 | AQ70: 39 | AR70: 7.22 | AS70: 0.11 | AT70: 30-39 | AU70: B-6-30-39 | AV70: 14.66 | AW70: 21.99 | AX70: 29.32 | AY70: 36.65 | AZ70: 43.98 | BA70: 51.31 | BB70: 55.76 | BC70: 62.73 | BD70: 69.7 | BE70: 76.67 | BF70: 83.64 | BG70: 1.1 | BI70: 30 | BJ70: 39 | BK70: 6.66 | BL70: 0.1 | BM70: 30-39 | BN70: B-6-30-39 | BO70: 13.52 | BP70: 20.28 | BQ70: 27.04 | BR70: 33.8 | BS70: 40.56 | BT70: 47.32 | BU70: 51.44 | BV70: 57.87 | BW70: 64.3 | BX70: 70.73 | BY70: 77.16 | BZ70: 1.1 | CB70: 30 | CC70: 39 | CD70: 7.22 | CE70: 0 | CF70: 30-39 | CG70: B-6-30-39 | CH70: 14.44 | CI70: 21.66 | CJ70: 28.88 | CK70: 36.1 | CL70: 43.32 | CM70: 50.54 | CN70: 54.88 | CO70: 61.74 | CP70: 68.6 | CQ70: 75.46 | CR70: 82.32 | CS70: 1.1 | CT70: 89.18 | CU70: 96.04 | CV70: 102.9 | CW70: 109.76 | CX70: 116.62 | CY70: 123.48 | CZ70: 130.34 | DA70: 137.2 | DB70: 144.06 | DC70: 150.92 | DD70: 157.78 | DE70: 164.64 | DG70: 30 | DH70: 39 | DI70: 7.87 | DJ70: 0.12 | DK70: 30-39 | DL70: B-6-30-39 | DM70: 15.98 | DN70: 23.97 | DO70: 31.96 | DP70: 39.95 | DQ70: 47.94 | DR70: 55.93 | DS70: 60.8 | DT70: 68.4 | DU70: 76 | DV70: 83.6 | DW70: 91.2 | DX70: 1.1 | DZ70: 30 | EA70: 39 | EB70: 7.87 | EC70: 0.12 | ED70: 30-39 | EE70: B-6-30-39 | EF70: 13.72 | EG70: 20.58 | EH70: 27.44 | EI70: 34.3 | EJ70: 41.16 | EK70: 48.02 | EL70: 52.16 | EM70: 58.68 | EN70: 65.2 | EO70: 71.72 | EP70: 78.24 | EQ70: 1.1 | ES70: 30 | ET70: 39 | EU70: 7.22 | EV70: 0 | EW70: 30-39 | EX70: B-6-30-39 | EY70: 17.76 | EZ70: 26.64 | FA70: 35.52 | FB70: 44.4 | FC70: 53.28 | FD70: 62.16 | FE70: 67.52 | FF70: 75.96 | FG70: 84.4 | FH70: 92.84 | FI70: 101.28 | FJ70: 1.1 | FK70: 109.72 | FL70: 118.16 | FM70: 126.6 | FN70: 135.04 | FO70: 143.48 | FP70: 151.92 | FQ70: 160.36 | FR70: 168.8 | FS70: 177.24 | FT70: 185.68 | FU70: 194.12 | FV70: 202.56 | FX70: 30 | FY70: 39 | FZ70: 7.87 | GA70: 0.12 | GB70: 30-39 | GC70: B-6-30-39 | GD70: 99999 | GE70: 99999 | GF70: 99999 | GG70: 99999 | GH70: 99999 | GI70: 99999 | GJ70: 99999 | GK70: 99999 | GL70: 99999 | GM70: 99999 | GN70: 99999 | GO70: 100 | GQ70: 30 | GR70: 39 | GS70: 7.22 | GT70: 0 | GU70: 30-39 | GV70: B-6-30-39 | GW70: 36.36 | GX70: 54.54 | GY70: 72.72 | GZ70: 90.9 | HA70: 109.08 | HB70: 127.26 | HC70: 138.17 | HD70: 155.44 | HE70: 172.71 | HF70: 189.98 | HG70: 207.25 | HH70: 100 | HI70: 224.52 | HJ70: 241.79 | HK70: 259.07 | HL70: 276.34 | HM70: 293.61 | HN70: 310.88 | HO70: 328.15 | HP70: 345.42 | HQ70: 362.69 | HR70: 379.96 | HS70: 397.23 | HT70: 414.5
D71: 40 | E71: 49 | F71: 21.09 | G71: 0.26 | H71: 40-49 | I71: B-6-40-49 | J71: 42.7 | K71: 64.05 | L71: 85.4 | M71: 106.75 | N71: 128.1 | O71: 149.45 | P71: 162.4 | Q71: 182.7 | R71: 203 | S71: 223.3 | T71: 243.6 | U71: 1.15 | W71: 40 | X71: 49 | Y71: 18.87 | Z71: 0.23 | AA71: 40-49 | AB71: B-6-40-49 | AC71: 38.2 | AD71: 57.3 | AE71: 76.4 | AF71: 95.5 | AG71: 114.6 | AH71: 133.7 | AI71: 145.28 | AJ71: 163.44 | AK71: 181.6 | AL71: 199.76 | AM71: 217.92 | AN71: 1.15 | AP71: 40 | AQ71: 49 | AR71: 17.21 | AS71: 0.21 | AT71: 40-49 | AU71: B-6-40-49 | AV71: 34.84 | AW71: 52.26 | AX71: 69.68 | AY71: 87.1 | AZ71: 104.52 | BA71: 121.94 | BB71: 132.48 | BC71: 149.04 | BD71: 165.6 | BE71: 182.16 | BF71: 198.72 | BG71: 1.15 | BI71: 40 | BJ71: 49 | BK71: 16.1 | BL71: 0.2 | BM71: 40-49 | BN71: B-6-40-49 | BO71: 32.6 | BP71: 48.9 | BQ71: 65.2 | BR71: 81.5 | BS71: 97.8 | BT71: 114.1 | BU71: 124 | BV71: 139.5 | BW71: 155 | BX71: 170.5 | BY71: 186 | BZ71: 1.15 | CB71: 40 | CC71: 49 | CD71: 17.21 | CE71: 0 | CF71: 40-49 | CG71: B-6-40-49 | CH71: 34.42 | CI71: 51.63 | CJ71: 68.84 | CK71: 86.05 | CL71: 103.26 | CM71: 120.47 | CN71: 130.8 | CO71: 147.15 | CP71: 163.5 | CQ71: 179.85 | CR71: 196.2 | CS71: 1.15 | CT71: 212.55 | CU71: 228.9 | CV71: 245.25 | CW71: 261.6 | CX71: 277.95 | CY71: 294.3 | CZ71: 310.65 | DA71: 327 | DB71: 343.35 | DC71: 359.7 | DD71: 376.05 | DE71: 392.4 | DG71: 40 | DH71: 49 | DI71: 19.11 | DJ71: 0.23 | DK71: 40-49 | DL71: B-6-40-49 | DM71: 38.68 | DN71: 58.02 | DO71: 77.36 | DP71: 96.7 | DQ71: 116.04 | DR71: 135.38 | DS71: 147.04 | DT71: 165.42 | DU71: 183.8 | DV71: 202.18 | DW71: 220.56 | DX71: 1.15 | DZ71: 40 | EA71: 49 | EB71: 19.11 | EC71: 0.23 | ED71: 40-49 | EE71: B-6-40-49 | EF71: 33.08 | EG71: 49.62 | EH71: 66.16 | EI71: 82.7 | EJ71: 99.24 | EK71: 115.78 | EL71: 125.76 | EM71: 141.48 | EN71: 157.2 | EO71: 172.92 | EP71: 188.64 | EQ71: 1.15 | ES71: 40 | ET71: 49 | EU71: 17.21 | EV71: 0 | EW71: 40-49 | EX71: B-6-40-49 | EY71: 42.18 | EZ71: 63.27 | FA71: 84.36 | FB71: 105.45 | FC71: 126.54 | FD71: 147.63 | FE71: 160.32 | FF71: 180.36 | FG71: 200.4 | FH71: 220.44 | FI71: 240.48 | FJ71: 1.15 | FK71: 260.52 | FL71: 280.56 | FM71: 300.6 | FN71: 320.64 | FO71: 340.68 | FP71: 360.72 | FQ71: 380.76 | FR71: 400.8 | FS71: 420.84 | FT71: 440.88 | FU71: 460.92 | FV71: 480.96 | FX71: 40 | FY71: 49 | FZ71: 19.11 | GA71: 0.23 | GB71: 40-49 | GC71: B-6-40-49 | GD71: 99999 | GE71: 99999 | GF71: 99999 | GG71: 99999 | GH71: 99999 | GI71: 99999 | GJ71: 99999 | GK71: 99999 | GL71: 99999 | GM71: 99999 | GN71: 99999 | GO71: 100 | GQ71: 40 | GR71: 49 | GS71: 17.21 | GT71: 0 | GU71: 40-49 | GV71: B-6-40-49 | GW71: 70 | GX71: 105 | GY71: 140 | GZ71: 175 | HA71: 210 | HB71: 245 | HC71: 266 | HD71: 299.25 | HE71: 332.5 | HF71: 365.75 | HG71: 399 | HH71: 100 | HI71: 432.25 | HJ71: 465.5 | HK71: 498.75 | HL71: 532 | HM71: 565.25 | HN71: 598.5 | HO71: 631.75 | HP71: 665 | HQ71: 698.25 | HR71: 731.5 | HS71: 764.75 | HT71: 798
D72: 50 | E72: 54 | F72: 34.41 | G72: 0.62 | H72: 50-54 | I72: B-6-50-54 | J72: 70.06 | K72: 105.09 | L72: 140.12 | M72: 175.15 | N72: 210.18 | O72: 245.21 | P72: 266.48 | Q72: 299.79 | R72: 333.1 | S72: 366.41 | T72: 399.72 | U72: 1.15 | W72: 50 | X72: 54 | Y72: 31.08 | Z72: 0.56 | AA72: 50-54 | AB72: B-6-50-54 | AC72: 63.28 | AD72: 94.92 | AE72: 126.56 | AF72: 158.2 | AG72: 189.84 | AH72: 221.48 | AI72: 240.72 | AJ72: 270.81 | AK72: 300.9 | AL72: 330.99 | AM72: 361.08 | AN72: 1.15 | AP72: 50 | AQ72: 54 | AR72: 28.31 | AS72: 0.52 | AT72: 50-54 | AU72: B-6-50-54 | AV72: 57.66 | AW72: 86.49 | AX72: 115.32 | AY72: 144.15 | AZ72: 172.98 | BA72: 201.81 | BB72: 219.28 | BC72: 246.69 | BD72: 274.1 | BE72: 301.51 | BF72: 328.92 | BG72: 1.15 | BI72: 50 | BJ72: 54 | BK72: 26.09 | BL72: 0.48 | BM72: 50-54 | BN72: B-6-50-54 | BO72: 53.14 | BP72: 79.71 | BQ72: 106.28 | BR72: 132.85 | BS72: 159.42 | BT72: 185.99 | BU72: 202.16 | BV72: 227.43 | BW72: 252.7 | BX72: 277.97 | BY72: 303.24 | BZ72: 1.15 | CB72: 50 | CC72: 54 | CD72: 28.31 | CE72: 0 | CF72: 50-54 | CG72: B-6-50-54 | CH72: 56.62 | CI72: 84.93 | CJ72: 113.24 | CK72: 141.55 | CL72: 169.86 | CM72: 198.17 | CN72: 215.12 | CO72: 242.01 | CP72: 268.9 | CQ72: 295.79 | CR72: 322.68 | CS72: 1.15 | CT72: 349.57 | CU72: 376.46 | CV72: 403.35 | CW72: 430.24 | CX72: 457.13 | CY72: 484.02 | CZ72: 510.91 | DA72: 537.8 | DB72: 564.69 | DC72: 591.58 | DD72: 618.47 | DE72: 645.36 | DG72: 50 | DH72: 54 | DI72: 31.47 | DJ72: 0.57 | DK72: 50-54 | DL72: B-6-50-54 | DM72: 64.08 | DN72: 96.12 | DO72: 128.16 | DP72: 160.2 | DQ72: 192.24 | DR72: 224.28 | DS72: 243.76 | DT72: 274.23 | DU72: 304.7 | DV72: 335.17 | DW72: 365.64 | DX72: 1.15 | DZ72: 50 | EA72: 54 | EB72: 31.47 | EC72: 0.57 | ED72: 50-54 | EE72: B-6-50-54 | EF72: 53.94 | EG72: 80.91 | EH72: 107.88 | EI72: 134.85 | EJ72: 161.82 | EK72: 188.79 | EL72: 205.2 | EM72: 230.85 | EN72: 256.5 | EO72: 282.15 | EP72: 307.8 | EQ72: 1.15 | ES72: 50 | ET72: 54 | EU72: 28.31 | EV72: 0 | EW72: 50-54 | EX72: B-6-50-54 | EY72: 68.82 | EZ72: 103.23 | FA72: 137.64 | FB72: 172.05 | FC72: 206.46 | FD72: 240.87 | FE72: 261.52 | FF72: 294.21 | FG72: 326.9 | FH72: 359.59 | FI72: 392.28 | FJ72: 1.15 | FK72: 424.97 | FL72: 457.66 | FM72: 490.35 | FN72: 523.04 | FO72: 555.73 | FP72: 588.42 | FQ72: 621.11 | FR72: 653.8 | FS72: 686.49 | FT72: 719.18 | FU72: 751.87 | FV72: 784.56 | FX72: 50 | FY72: 54 | FZ72: 31.47 | GA72: 0.57 | GB72: 50-54 | GC72: B-6-50-54 | GD72: 99999 | GE72: 99999 | GF72: 99999 | GG72: 99999 | GH72: 99999 | GI72: 99999 | GJ72: 99999 | GK72: 99999 | GL72: 99999 | GM72: 99999 | GN72: 99999 | GO72: 100 | GQ72: 50 | GR72: 54 | GS72: 28.31 | GT72: 0 | GU72: 50-54 | GV72: B-6-50-54 | GW72: 102.12 | GX72: 153.18 | GY72: 204.24 | GZ72: 255.3 | HA72: 306.36 | HB72: 357.42 | HC72: 388.06 | HD72: 436.56 | HE72: 485.07 | HF72: 533.58 | HG72: 582.08 | HH72: 100 | HI72: 630.59 | HJ72: 679.1 | HK72: 727.61 | HL72: 776.11 | HM72: 824.62 | HN72: 873.13 | HO72: 921.63 | HP72: 970.14 | HQ72: 1018.65 | HR72: 1067.15 | HS72: 1115.66 | HT72: 1164.17
D73: 55 | E73: 59 | F73: 47.18 | G73: 1.22 | H73: 55-59 | I73: B-6-55-59 | J73: 96.8 | K73: 145.2 | L73: 193.6 | M73: 242 | N73: 290.4 | O73: 338.8 | P73: 368.32 | Q73: 414.36 | R73: 460.4 | S73: 506.44 | T73: 552.48 | U73: 1.2 | W73: 55 | X73: 59 | Y73: 42.74 | Z73: 1.11 | AA73: 55-59 | AB73: B-6-55-59 | AC73: 87.7 | AD73: 131.55 | AE73: 175.4 | AF73: 219.25 | AG73: 263.1 | AH73: 306.95 | AI73: 333.68 | AJ73: 375.39 | AK73: 417.1 | AL73: 458.81 | AM73: 500.52 | AN73: 1.2 | AP73: 55 | AQ73: 59 | AR73: 39.41 | AS73: 1.01 | AT73: 55-59 | AU73: B-6-55-59 | AV73: 80.84 | AW73: 121.26 | AX73: 161.68 | AY73: 202.1 | AZ73: 242.52 | BA73: 282.94 | BB73: 307.6 | BC73: 346.05 | BD73: 384.5 | BE73: 422.95 | BF73: 461.4 | BG73: 1.2 | BI73: 55 | BJ73: 59 | BK73: 36.08 | BL73: 0.93 | BM73: 55-59 | BN73: B-6-55-59 | BO73: 74.02 | BP73: 111.03 | BQ73: 148.04 | BR73: 185.05 | BS73: 222.06 | BT73: 259.07 | BU73: 281.68 | BV73: 316.89 | BW73: 352.1 | BX73: 387.31 | BY73: 422.52 | BZ73: 1.2 | CB73: 55 | CC73: 59 | CD73: 39.41 | CE73: 0 | CF73: 55-59 | CG73: B-6-55-59 | CH73: 78.82 | CI73: 118.23 | CJ73: 157.64 | CK73: 197.05 | CL73: 236.46 | CM73: 275.87 | CN73: 299.52 | CO73: 336.96 | CP73: 374.4 | CQ73: 411.84 | CR73: 449.28 | CS73: 1.2 | CT73: 486.72 | CU73: 524.16 | CV73: 561.6 | CW73: 599.04 | CX73: 636.48 | CY73: 673.92 | CZ73: 711.36 | DA73: 748.8 | DB73: 786.24 | DC73: 823.68 | DD73: 861.12 | DE73: 898.56 | DG73: 55 | DH73: 59 | DI73: 43.27 | DJ73: 1.12 | DK73: 55-59 | DL73: B-6-55-59 | DM73: 88.78 | DN73: 133.17 | DO73: 177.56 | DP73: 221.95 | DQ73: 266.34 | DR73: 310.73 | DS73: 337.84 | DT73: 380.07 | DU73: 422.3 | DV73: 464.53 | DW73: 506.76 | DX73: 1.2 | DZ73: 55 | EA73: 59 | EB73: 43.27 | EC73: 1.12 | ED73: 55-59 | EE73: B-6-55-59 | EF73: 75.12 | EG73: 112.68 | EH73: 150.24 | EI73: 187.8 | EJ73: 225.36 | EK73: 262.92 | EL73: 285.84 | EM73: 321.57 | EN73: 357.3 | EO73: 393.03 | EP73: 428.76 | EQ73: 1.2 | ES73: 55 | ET73: 59 | EU73: 39.41 | EV73: 0 | EW73: 55-59 | EX73: B-6-55-59 | EY73: 94.36 | EZ73: 141.54 | FA73: 188.72 | FB73: 235.9 | FC73: 283.08 | FD73: 330.26 | FE73: 358.56 | FF73: 403.38 | FG73: 448.2 | FH73: 493.02 | FI73: 537.84 | FJ73: 1.2 | FK73: 582.66 | FL73: 627.48 | FM73: 672.3 | FN73: 717.12 | FO73: 761.94 | FP73: 806.76 | FQ73: 851.58 | FR73: 896.4 | FS73: 941.22 | FT73: 986.04 | FU73: 1030.86 | FV73: 1075.68 | FX73: 55 | FY73: 59 | FZ73: 43.27 | GA73: 1.12 | GB73: 55-59 | GC73: B-6-55-59 | GD73: 99999 | GE73: 99999 | GF73: 99999 | GG73: 99999 | GH73: 99999 | GI73: 99999 | GJ73: 99999 | GK73: 99999 | GL73: 99999 | GM73: 99999 | GN73: 99999 | GO73: 100 | GQ73: 55 | GR73: 59 | GS73: 39.41 | GT73: 0 | GU73: 55-59 | GV73: B-6-55-59 | GW73: 127.04 | GX73: 190.56 | GY73: 254.08 | GZ73: 317.6 | HA73: 381.12 | HB73: 444.64 | HC73: 482.75 | HD73: 543.1 | HE73: 603.44 | HF73: 663.78 | HG73: 724.13 | HH73: 100 | HI73: 784.47 | HJ73: 844.82 | HK73: 905.16 | HL73: 965.5 | HM73: 1025.85 | HN73: 1086.19 | HO73: 1146.54 | HP73: 1206.88 | HQ73: 1267.22 | HR73: 1327.57 | HS73: 1387.91 | HT73: 1448.26
D74: 60 | E74: 64 | F74: 61.61 | G74: 2.3 | H74: 60-64 | I74: B-6-60-64 | J74: 127.82 | K74: 191.73 | L74: 255.64 | M74: 319.55 | N74: 383.46 | O74: 447.37 | P74: 486.64 | Q74: 547.47 | R74: 608.3 | S74: 669.13 | T74: 729.96 | U74: 1.25 | W74: 60 | X74: 64 | Y74: 55.5 | Z74: 2.07 | AA74: 60-64 | AB74: B-6-60-64 | AC74: 115.14 | AD74: 172.71 | AE74: 230.28 | AF74: 287.85 | AG74: 345.42 | AH74: 402.99 | AI74: 438.4 | AJ74: 493.2 | AK74: 548 | AL74: 602.8 | AM74: 657.6 | AN74: 1.25 | AP74: 60 | AQ74: 64 | AR74: 51.06 | AS74: 1.9 | AT74: 60-64 | AU74: B-6-60-64 | AV74: 105.92 | AW74: 158.88 | AX74: 211.84 | AY74: 264.8 | AZ74: 317.76 | BA74: 370.72 | BB74: 403.28 | BC74: 453.69 | BD74: 504.1 | BE74: 554.51 | BF74: 604.92 | BG74: 1.25 | BI74: 60 | BJ74: 64 | BK74: 46.62 | BL74: 1.74 | BM74: 60-64 | BN74: B-6-60-64 | BO74: 96.72 | BP74: 145.08 | BQ74: 193.44 | BR74: 241.8 | BS74: 290.16 | BT74: 338.52 | BU74: 368.24 | BV74: 414.27 | BW74: 460.3 | BX74: 506.33 | BY74: 552.36 | BZ74: 1.22 | CB74: 60 | CC74: 64 | CD74: 51.06 | CE74: 0 | CF74: 60-64 | CG74: B-6-60-64 | CH74: 102.12 | CI74: 153.18 | CJ74: 204.24 | CK74: 255.3 | CL74: 306.36 | CM74: 357.42 | CN74: 388.08 | CO74: 436.59 | CP74: 485.1 | CQ74: 533.61 | CR74: 582.12 | CS74: 1.25 | CT74: 630.63 | CU74: 679.14 | CV74: 727.65 | CW74: 776.16 | CX74: 824.67 | CY74: 873.18 | CZ74: 921.69 | DA74: 970.2 | DB74: 1018.71 | DC74: 1067.22 | DD74: 1115.73 | DE74: 1164.24 | DG74: 60 | DH74: 64 | DI74: 56.19 | DJ74: 2.1 | DK74: 60-64 | DL74: B-6-60-64 | DM74: 116.58 | DN74: 174.87 | DO74: 233.16 | DP74: 291.45 | DQ74: 349.74 | DR74: 408.03 | DS74: 443.84 | DT74: 499.32 | DU74: 554.8 | DV74: 610.28 | DW74: 665.76 | DX74: 1.25 | DZ74: 60 | EA74: 64 | EB74: 56.19 | EC74: 2.1 | ED74: 60-64 | EE74: B-6-60-64 | EF74: 98.18 | EG74: 147.27 | EH74: 196.36 | EI74: 245.45 | EJ74: 294.54 | EK74: 343.63 | EL74: 373.76 | EM74: 420.48 | EN74: 467.2 | EO74: 513.92 | EP74: 560.64 | EQ74: 1.25 | ES74: 60 | ET74: 64 | EU74: 51.06 | EV74: 0 | EW74: 60-64 | EX74: B-6-60-64 | EY74: 123.22 | EZ74: 184.83 | FA74: 246.44 | FB74: 308.05 | FC74: 369.66 | FD74: 431.27 | FE74: 468.24 | FF74: 526.77 | FG74: 585.3 | FH74: 643.83 | FI74: 702.36 | FJ74: 1.25 | FK74: 760.89 | FL74: 819.42 | FM74: 877.95 | FN74: 936.48 | FO74: 995.01 | FP74: 1053.54 | FQ74: 1112.07 | FR74: 1170.6 | FS74: 1229.13 | FT74: 1287.66 | FU74: 1346.19 | FV74: 1404.72 | FX74: 60 | FY74: 64 | FZ74: 56.19 | GA74: 2.1 | GB74: 60-64 | GC74: B-6-60-64 | GD74: 123.48 | GE74: 185.22 | GF74: 246.96 | GG74: 308.7 | GH74: 370.44 | GI74: 432.18 | GJ74: 470.16 | GK74: 528.93 | GL74: 587.7 | GM74: 646.47 | GN74: 705.24 | GO74: 1.25 | GQ74: 60 | GR74: 64 | GS74: 51.06 | GT74: 0 | GU74: 60-64 | GV74: B-6-60-64 | GW74: 154.18 | GX74: 231.27 | GY74: 308.36 | GZ74: 385.45 | HA74: 462.54 | HB74: 539.63 | HC74: 585.88 | HD74: 659.12 | HE74: 732.36 | HF74: 805.59 | HG74: 878.83 | HH74: 100 | HI74: 952.06 | HJ74: 1025.3 | HK74: 1098.53 | HL74: 1171.77 | HM74: 1245 | HN74: 1318.24 | HO74: 1391.47 | HP74: 1464.71 | HQ74: 1537.95 | HR74: 1611.18 | HS74: 1684.42 | HT74: 1757.65
D75: 65 | E75: 69 | F75: 75.48 | G75: 4.05 | H75: 65-69 | I75: B-6-65-69 | J75: 159.06 | K75: 238.59 | L75: 318.12 | M75: 397.65 | N75: 477.18 | O75: 556.71 | P75: 606.08 | Q75: 681.84 | R75: 757.6 | S75: 833.36 | T75: 909.12 | U75: 1.25 | W75: 65 | X75: 69 | Y75: 68.27 | Z75: 3.66 | AA75: 65-69 | AB75: B-6-65-69 | AC75: 143.86 | AD75: 215.79 | AE75: 287.72 | AF75: 359.65 | AG75: 431.58 | AH75: 503.51 | AI75: 548.16 | AJ75: 616.68 | AK75: 685.2 | AL75: 753.72 | AM75: 822.24 | AN75: 1.25 | AP75: 65 | AQ75: 69 | AR75: 62.16 | AS75: 3.35 | AT75: 65-69 | AU75: B-6-65-69 | AV75: 131.02 | AW75: 196.53 | AX75: 262.04 | AY75: 327.55 | AZ75: 393.06 | BA75: 458.57 | BB75: 499.2 | BC75: 561.6 | BD75: 624 | BE75: 686.4 | BF75: 748.8 | BG75: 1.25 | BI75: 65 | BJ75: 69 | BK75: 57.17 | BL75: 3.09 | BM75: 65-69 | BN75: B-6-65-69 | BO75: 120.52 | BP75: 180.78 | BQ75: 241.04 | BR75: 301.3 | BS75: 361.56 | BT75: 421.82 | BU75: 459.2 | BV75: 516.6 | BW75: 574 | BX75: 631.4 | BY75: 688.8 | BZ75: 1.22 | CB75: 65 | CC75: 69 | CD75: 62.16 | CE75: 0 | CF75: 65-69 | CG75: B-6-65-69 | CH75: 124.32 | CI75: 186.48 | CJ75: 248.64 | CK75: 310.8 | CL75: 372.96 | CM75: 435.12 | CN75: 472.4 | CO75: 531.45 | CP75: 590.5 | CQ75: 649.55 | CR75: 708.6 | CS75: 1.25 | CT75: 767.65 | CU75: 826.7 | CV75: 885.75 | CW75: 944.8 | CX75: 1003.85 | CY75: 1062.9 | CZ75: 1121.95 | DA75: 1181 | DB75: 1240.05 | DC75: 1299.1 | DD75: 1358.15 | DE75: 1417.2 | DG75: 65 | DH75: 69 | DI75: 69.12 | DJ75: 3.71 | DK75: 65-69 | DL75: B-6-65-69 | DM75: 145.66 | DN75: 218.49 | DO75: 291.32 | DP75: 364.15 | DQ75: 436.98 | DR75: 509.81 | DS75: 554.96 | DT75: 624.33 | DU75: 693.7 | DV75: 763.07 | DW75: 832.44 | DX75: 1.25 | DZ75: 65 | EA75: 69 | EB75: 69.12 | EC75: 3.71 | ED75: 65-69 | EE75: B-6-65-69 | EF75: 122.34 | EG75: 183.51 | EH75: 244.68 | EI75: 305.85 | EJ75: 367.02 | EK75: 428.19 | EL75: 466.16 | EM75: 524.43 | EN75: 582.7 | EO75: 640.97 | EP75: 699.24 | EQ75: 1.25 | ES75: 65 | ET75: 69 | EU75: 62.16 | EV75: 0 | EW75: 65-69 | EX75: B-6-65-69 | EY75: 150.96 | EZ75: 226.44 | FA75: 301.92 | FB75: 377.4 | FC75: 452.88 | FD75: 528.36 | FE75: 573.68 | FF75: 645.39 | FG75: 717.1 | FH75: 788.81 | FI75: 860.52 | FJ75: 1.25 | FK75: 932.23 | FL75: 1003.94 | FM75: 1075.65 | FN75: 1147.36 | FO75: 1219.07 | FP75: 1290.78 | FQ75: 1362.49 | FR75: 1434.2 | FS75: 1505.91 | FT75: 1577.62 | FU75: 1649.33 | FV75: 1721.04 | FX75: 65 | FY75: 69 | FZ75: 69.12 | GA75: 3.71 | GB75: 65-69 | GC75: B-6-65-69 | GD75: 153.76 | GE75: 230.64 | GF75: 307.52 | GG75: 384.4 | GH75: 461.28 | GI75: 538.16 | GJ75: 585.92 | GK75: 659.16 | GL75: 732.4 | GM75: 805.64 | GN75: 878.88 | GO75: 1.25 | GQ75: 65 | GR75: 69 | GS75: 62.16 | GT75: 0 | GU75: 65-69 | GV75: B-6-65-69 | GW75: 177.84 | GX75: 266.76 | GY75: 355.68 | GZ75: 444.6 | HA75: 533.52 | HB75: 622.44 | HC75: 675.79 | HD75: 760.27 | HE75: 844.74 | HF75: 929.21 | HG75: 1013.69 | HH75: 100 | HI75: 1098.16 | HJ75: 1182.64 | HK75: 1267.11 | HL75: 1351.58 | HM75: 1436.06 | HN75: 1520.53 | HO75: 1605.01 | HP75: 1689.48 | HQ75: 1773.95 | HR75: 1858.43 | HS75: 1942.9 | HT75: 2027.38
D76: 70 | E76: 74 | F76: 88.8 | G76: 6.91 | H76: 70-74 | I76: B-6-70-74 | J76: 191.42 | K76: 287.13 | L76: 382.84 | M76: 478.55 | N76: 574.26 | O76: 669.97 | P76: 730.16 | Q76: 821.43 | R76: 912.7 | S76: 1003.97 | T76: 1095.24 | U76: N/A | W76: 70 | X76: 74 | Y76: 79.92 | Z76: 6.25 | AA76: 70-74 | AB76: B-6-70-74 | AC76: 172.34 | AD76: 258.51 | AE76: 344.68 | AF76: 430.85 | AG76: 517.02 | AH76: 603.19 | AI76: 657.36 | AJ76: 739.53 | AK76: 821.7 | AL76: 903.87 | AM76: 986.04 | AN76: N/A | AP76: 70 | AQ76: 74 | AR76: 73.26 | AS76: 5.71 | AT76: 70-74 | AU76: B-6-70-74 | AV76: 157.94 | AW76: 236.91 | AX76: 315.88 | AY76: 394.85 | AZ76: 473.82 | BA76: 552.79 | BB76: 602.48 | BC76: 677.79 | BD76: 753.1 | BE76: 828.41 | BF76: 903.72 | BG76: N/A | BI76: 70 | BJ76: 74 | BK76: 67.16 | BL76: 5.25 | BM76: 70-74 | BN76: B-6-70-74 | BO76: 144.82 | BP76: 217.23 | BQ76: 289.64 | BR76: 362.05 | BS76: 434.46 | BT76: 506.87 | BU76: 552.4 | BV76: 621.45 | BW76: 690.5 | BX76: 759.55 | BY76: 828.6 | BZ76: N/A | CB76: 70 | CC76: 74 | CD76: 73.26 | CE76: 0 | CF76: 70-74 | CG76: B-6-70-74 | CH76: 146.52 | CI76: 219.78 | CJ76: 293.04 | CK76: 366.3 | CL76: 439.56 | CM76: 512.82 | CN76: 556.8 | CO76: 626.4 | CP76: 696 | CQ76: 765.6 | CR76: 835.2 | CS76: N/A | CT76: 904.8 | CU76: 974.4 | CV76: 1044 | CW76: 1113.6 | CX76: 1183.2 | CY76: 1252.8 | CZ76: 1322.4 | DA76: 1392 | DB76: 1461.6 | DC76: 1531.2 | DD76: 1600.8 | DE76: 1670.4 | DG76: 70 | DH76: 74 | DI76: 80.92 | DJ76: 6.33 | DK76: 70-74 | DL76: B-6-70-74 | DM76: 174.5 | DN76: 261.75 | DO76: 349 | DP76: 436.25 | DQ76: 523.5 | DR76: 610.75 | DS76: 665.6 | DT76: 748.8 | DU76: 832 | DV76: 915.2 | DW76: 998.4 | DX76: N/A | DZ76: 70 | EA76: 74 | EB76: 80.92 | EC76: 6.33 | ED76: 70-74 | EE76: B-6-70-74 | EF76: 147 | EG76: 220.5 | EH76: 294 | EI76: 367.5 | EJ76: 441 | EK76: 514.5 | EL76: 560.72 | EM76: 630.81 | EN76: 700.9 | EO76: 770.99 | EP76: 841.08 | EQ76: N/A | ES76: 70 | ET76: 74 | EU76: 73.26 | EV76: 0 | EW76: 70-74 | EX76: B-6-70-74 | EY76: 177.6 | EZ76: 266.4 | FA76: 355.2 | FB76: 444 | FC76: 532.8 | FD76: 621.6 | FE76: 674.88 | FF76: 759.24 | FG76: 843.6 | FH76: 927.96 | FI76: 1012.32 | FJ76: N/A | FK76: 1096.68 | FL76: 1181.04 | FM76: 1265.4 | FN76: 1349.76 | FO76: 1434.12 | FP76: 1518.48 | FQ76: 1602.84 | FR76: 1687.2 | FS76: 1771.56 | FT76: 1855.92 | FU76: 1940.28 | FV76: 2024.64 | FX76: 70 | FY76: 74 | FZ76: 80.92 | GA76: 6.33 | GB76: 70-74 | GC76: B-6-70-74 | GD76: 185.3 | GE76: 277.95 | GF76: 370.6 | GG76: 463.25 | GH76: 555.9 | GI76: 648.55 | GJ76: 706.88 | GK76: 795.24 | GL76: 883.6 | GM76: 971.96 | GN76: 1060.32 | GO76: N/A | GQ76: 70 | GR76: 74 | GS76: 73.26 | GT76: 0 | GU76: 70-74 | GV76: B-6-70-74 | GW76: 199.26 | GX76: 298.89 | GY76: 398.52 | GZ76: 498.15 | HA76: 597.78 | HB76: 697.41 | HC76: 757.19 | HD76: 851.84 | HE76: 946.49 | HF76: 1041.13 | HG76: 1135.78 | HH76: N/A | HI76: 1230.43 | HJ76: 1325.08 | HK76: 1419.73 | HL76: 1514.38 | HM76: 1609.02 | HN76: 1703.67 | HO76: 1798.32 | HP76: 1892.97 | HQ76: 1987.62 | HR76: 2082.27 | HS76: 2176.92 | HT76: 2271.56
D77: 75 | E77: 79 | F77: 102.68 | G77: 11.02 | H77: 75-79 | I77: B-6-75-79 | J77: 227.4 | K77: 341.1 | L77: 454.8 | M77: 568.5 | N77: 682.2 | O77: 795.9 | P77: 868.56 | Q77: 977.13 | R77: 1085.7 | S77: 1194.27 | T77: 1302.84 | U77: N/A | W77: 75 | X77: 79 | Y77: 92.69 | Z77: 9.97 | AA77: 75-79 | AB77: B-6-75-79 | AC77: 205.32 | AD77: 307.98 | AE77: 410.64 | AF77: 513.3 | AG77: 615.96 | AH77: 718.62 | AI77: 784.24 | AJ77: 882.27 | AK77: 980.3 | AL77: 1078.33 | AM77: 1176.36 | AN77: N/A | AP77: 75 | AQ77: 79 | AR77: 84.92 | AS77: 9.12 | AT77: 75-79 | AU77: B-6-75-79 | AV77: 188.08 | AW77: 282.12 | AX77: 376.16 | AY77: 470.2 | AZ77: 564.24 | BA77: 658.28 | BB77: 718.32 | BC77: 808.11 | BD77: 897.9 | BE77: 987.69 | BF77: 1077.48 | BG77: N/A | BI77: 75 | BJ77: 79 | BK77: 77.7 | BL77: 8.39 | BM77: 75-79 | BN77: B-6-75-79 | BO77: 172.18 | BP77: 258.27 | BQ77: 344.36 | BR77: 430.45 | BS77: 516.54 | BT77: 602.63 | BU77: 657.68 | BV77: 739.89 | BW77: 822.1 | BX77: 904.31 | BY77: 986.52 | BZ77: N/A | CB77: 75 | CC77: 79 | CD77: 84.92 | CE77: 0 | CF77: 75-79 | CG77: B-6-75-79 | CH77: 169.84 | CI77: 254.76 | CJ77: 339.68 | CK77: 424.6 | CL77: 509.52 | CM77: 594.44 | CN77: 645.36 | CO77: 726.03 | CP77: 806.7 | CQ77: 887.37 | CR77: 968.04 | CS77: N/A | CT77: 1048.71 | CU77: 1129.38 | CV77: 1210.05 | CW77: 1290.72 | CX77: 1371.39 | CY77: 1452.06 | CZ77: 1532.73 | DA77: 1613.4 | DB77: 1694.07 | DC77: 1774.74 | DD77: 1855.41 | DE77: 1936.08 | DG77: 75 | DH77: 79 | DI77: 93.84 | DJ77: 10.09 | DK77: 75-79 | DL77: B-6-75-79 | DM77: 207.86 | DN77: 311.79 | DO77: 415.72 | DP77: 519.65 | DQ77: 623.58 | DR77: 727.51 | DS77: 793.92 | DT77: 893.16 | DU77: 992.4 | DV77: 1091.64 | DW77: 1190.88 | DX77: N/A | DZ77: 75 | EA77: 79 | EB77: 93.84 | EC77: 10.09 | ED77: 75-79 | EE77: B-6-75-79 | EF77: 174.78 | EG77: 262.17 | EH77: 349.56 | EI77: 436.95 | EJ77: 524.34 | EK77: 611.73 | EL77: 667.6 | EM77: 751.05 | EN77: 834.5 | EO77: 917.95 | EP77: 1001.4 | EQ77: N/A | ES77: 75 | ET77: 79 | EU77: 84.92 | EV77: 0 | EW77: 75-79 | EX77: B-6-75-79 | EY77: 205.36 | EZ77: 308.04 | FA77: 410.72 | FB77: 513.4 | FC77: 616.08 | FD77: 718.76 | FE77: 780.4 | FF77: 877.95 | FG77: 975.5 | FH77: 1073.05 | FI77: 1170.6 | FJ77: N/A | FK77: 1268.15 | FL77: 1365.7 | FM77: 1463.25 | FN77: 1560.8 | FO77: 1658.35 | FP77: 1755.9 | FQ77: 1853.45 | FR77: 1951 | FS77: 2048.55 | FT77: 2146.1 | FU77: 2243.65 | FV77: 2341.2 | FX77: 75 | FY77: 79 | FZ77: 93.84 | GA77: 10.09 | GB77: 75-79 | GC77: B-6-75-79 | GD77: 220.32 | GE77: 330.48 | GF77: 440.64 | GG77: 550.8 | GH77: 660.96 | GI77: 771.12 | GJ77: 841.6 | GK77: 946.8 | GL77: 1052 | GM77: 1157.2 | GN77: 1262.4 | GO77: N/A | GQ77: 75 | GR77: 79 | GS77: 84.92 | GT77: 0 | GU77: 75-79 | GV77: B-6-75-79 | GW77: 214.46 | GX77: 321.69 | GY77: 428.92 | GZ77: 536.15 | HA77: 643.38 | HB77: 750.61 | HC77: 814.95 | HD77: 916.82 | HE77: 1018.69 | HF77: 1120.55 | HG77: 1222.42 | HH77: N/A | HI77: 1324.29 | HJ77: 1426.16 | HK77: 1528.03 | HL77: 1629.9 | HM77: 1731.76 | HN77: 1833.63 | HO77: 1935.5 | HP77: 2037.37 | HQ77: 2139.24 | HR77: 2241.11 | HS77: 2342.98 | HT77: 2444.84
D78: 80 | E78: 84 | F78: 110.45 | G78: 16.24 | H78: 80-84 | I78: B-6-80-84 | J78: 253.38 | K78: 380.07 | L78: 506.76 | M78: 633.45 | N78: 760.14 | O78: 886.83 | P78: 969.36 | Q78: 1090.53 | R78: 1211.7 | S78: 1332.87 | T78: 1454.04 | U78: N/A | W78: 80 | X78: 84 | Y78: 99.9 | Z78: 14.68 | AA78: 80-84 | AB78: B-6-80-84 | AC78: 229.16 | AD78: 343.74 | AE78: 458.32 | AF78: 572.9 | AG78: 687.48 | AH78: 802.06 | AI78: 876.72 | AJ78: 986.31 | AK78: 1095.9 | AL78: 1205.49 | AM78: 1315.08 | AN78: N/A | AP78: 80 | AQ78: 84 | AR78: 91.58 | AS78: 13.43 | AT78: 80-84 | AU78: B-6-80-84 | AV78: 210.02 | AW78: 315.03 | AX78: 420.04 | AY78: 525.05 | AZ78: 630.06 | BA78: 735.07 | BB78: 803.44 | BC78: 903.87 | BD78: 1004.3 | BE78: 1104.73 | BF78: 1205.16 | BG78: N/A | BI78: 80 | BJ78: 84 | BK78: 84.36 | BL78: 12.36 | BM78: 80-84 | BN78: B-6-80-84 | BO78: 193.44 | BP78: 290.16 | BQ78: 386.88 | BR78: 483.6 | BS78: 580.32 | BT78: 677.04 | BU78: 740 | BV78: 832.5 | BW78: 925 | BX78: 1017.5 | BY78: 1110 | BZ78: N/A | CB78: 80 | CC78: 84 | CD78: 91.58 | CE78: 0 | CF78: 80-84 | CG78: B-6-80-84 | CH78: 183.16 | CI78: 274.74 | CJ78: 366.32 | CK78: 457.9 | CL78: 549.48 | CM78: 641.06 | CN78: 696 | CO78: 783 | CP78: 870 | CQ78: 957 | CR78: 1044 | CS78: N/A | CT78: 1131 | CU78: 1218 | CV78: 1305 | CW78: 1392 | CX78: 1479 | CY78: 1566 | CZ78: 1653 | DA78: 1740 | DB78: 1827 | DC78: 1914 | DD78: 2001 | DE78: 2088 | DG78: 80 | DH78: 84 | DI78: 101.15 | DJ78: 14.86 | DK78: 80-84 | DL78: B-6-80-84 | DM78: 232.02 | DN78: 348.03 | DO78: 464.04 | DP78: 580.05 | DQ78: 696.06 | DR78: 812.07 | DS78: 887.6 | DT78: 998.55 | DU78: 1109.5 | DV78: 1220.45 | DW78: 1331.4 | DX78: N/A | DZ78: 80 | EA78: 84 | EB78: 101.15 | EC78: 14.86 | ED78: 80-84 | EE78: B-6-80-84 | EF78: 196.36 | EG78: 294.54 | EH78: 392.72 | EI78: 490.9 | EJ78: 589.08 | EK78: 687.26 | EL78: 751.2 | EM78: 845.1 | EN78: 939 | EO78: 1032.9 | EP78: 1126.8 | EQ78: N/A | ES78: 80 | ET78: 84 | EU78: 91.58 | EV78: 0 | EW78: 80-84 | EX78: B-6-80-84 | EY78: 220.9 | EZ78: 331.35 | FA78: 441.8 | FB78: 552.25 | FC78: 662.7 | FD78: 773.15 | FE78: 839.44 | FF78: 944.37 | FG78: 1049.3 | FH78: 1154.23 | FI78: 1259.16 | FJ78: N/A | FK78: 1364.09 | FL78: 1469.02 | FM78: 1573.95 | FN78: 1678.88 | FO78: 1783.81 | FP78: 1888.74 | FQ78: 1993.67 | FR78: 2098.6 | FS78: 2203.53 | FT78: 2308.46 | FU78: 2413.39 | FV78: 2518.32 | FX78: 80 | FY78: 84 | FZ78: 101.15 | GA78: 14.86 | GB78: 80-84 | GC78: B-6-80-84 | GD78: 246.36 | GE78: 369.54 | GF78: 492.72 | GG78: 615.9 | GH78: 739.08 | GI78: 862.26 | GJ78: 942.64 | GK78: 1060.47 | GL78: 1178.3 | GM78: 1296.13 | GN78: 1413.96 | GO78: N/A | GQ78: 80 | GR78: 84 | GS78: 91.58 | GT78: 0 | GU78: 80-84 | GV78: B-6-80-84 | GW78: 220.18 | GX78: 330.27 | GY78: 440.36 | GZ78: 550.45 | HA78: 660.54 | HB78: 770.63 | HC78: 836.68 | HD78: 941.27 | HE78: 1045.86 | HF78: 1150.44 | HG78: 1255.03 | HH78: N/A | HI78: 1359.61 | HJ78: 1464.2 | HK78: 1568.78 | HL78: 1673.37 | HM78: 1777.95 | HN78: 1882.54 | HO78: 1987.12 | HP78: 2091.71 | HQ78: 2196.3 | HR78: 2300.88 | HS78: 2405.47 | HT78: 2510.05
J80: 500 | K80: 750 | L80: 1000 | M80: 1250 | N80: 1500 | O80: 1750 | P80: 2000 | Q80: 2250 | R80: 2500 | S80: 2750 | T80: 3000 | U80: ROP | AC80: 500 | AD80: 750 | AE80: 1000 | AF80: 1250 | AG80: 1500 | AH80: 1750 | AI80: 2000 | AJ80: 2250 | AK80: 2500 | AL80: 2750 | AM80: 3000 | AN80: ROP | AV80: 500 | AW80: 750 | AX80: 1000 | AY80: 1250 | AZ80: 1500 | BA80: 1750 | BB80: 2000 | BC80: 2250 | BD80: 2500 | BE80: 2750 | BF80: 3000 | BG80: ROP | BO80: 500 | BP80: 750 | BQ80: 1000 | BR80: 1250 | BS80: 1500 | BT80: 1750 | BU80: 2000 | BV80: 2250 | BW80: 2500 | BX80: 2750 | BY80: 3000 | BZ80: ROP | CH80: 500 | CI80: 750 | CJ80: 1000 | CK80: 1250 | CL80: 1500 | CM80: 1750 | CN80: 2000 | CO80: 2250 | CP80: 2500 | CQ80: 2750 | CR80: 3000 | CS80: ROP | CT80: 3250 | CU80: 3500 | CV80: 3750 | CW80: 4000 | CX80: 4250 | CY80: 4500 | CZ80: 4750 | DA80: 5000 | DB80: 5250 | DC80: 5500 | DD80: 5750 | DE80: 6000 | DM80: 500 | DN80: 750 | DO80: 1000 | DP80: 1250 | DQ80: 1500 | DR80: 1750 | DS80: 2000 | DT80: 2250 | DU80: 2500 | DV80: 2750 | DW80: 3000 | DX80: ROP | EF80: 500 | EG80: 750 | EH80: 1000 | EI80: 1250 | EJ80: 1500 | EK80: 1750 | EL80: 2000 | EM80: 2250 | EN80: 2500 | EO80: 2750 | EP80: 3000 | EQ80: ROP | EY80: 500 | EZ80: 750 | FA80: 1000 | FB80: 1250 | FC80: 1500 | FD80: 1750 | FE80: 2000 | FF80: 2250 | FG80: 2500 | FH80: 2750 | FI80: 3000 | FJ80: ROP | FK80: 3250 | FL80: 3500 | FM80: 3750 | FN80: 4000 | FO80: 4250 | FP80: 4500 | FQ80: 4750 | FR80: 5000 | FS80: 5250 | FT80: 5500 | FU80: 5750 | FV80: 6000 | GD80: 500 | GE80: 750 | GF80: 1000 | GG80: 1250 | GH80: 1500 | GI80: 1750 | GJ80: 2000 | GK80: 2250 | GL80: 2500 | GM80: 2750 | GN80: 3000 | GO80: ROP | GW80: 500 | GX80: 750 | GY80: 1000 | GZ80: 1250 | HA80: 1500 | HB80: 1750 | HC80: 2000 | HD80: 2250 | HE80: 2500 | HF80: 2750 | HG80: 3000 | HH80: ROP | HI80: 3250 | HJ80: 3500 | HK80: 3750 | HL80: 4000 | HM80: 4250 | HN80: 4500 | HO80: 4750 | HP80: 5000 | HQ80: 5250 | HR80: 5500 | HS80: 5750 | HT80: 6000
I81: B-12 | J81: 2 | K81: 3 | L81: 4 | M81: 5 | N81: 6 | O81: 7 | P81: 8 | Q81: 9 | R81: 10 | S81: 11 | T81: 12 | AB81: B-12 | AC81: 2 | AD81: 3 | AE81: 4 | AF81: 5 | AG81: 6 | AH81: 7 | AI81: 8 | AJ81: 9 | AK81: 10 | AL81: 11 | AM81: 12 | AU81: B-12 | AV81: 2 | AW81: 3 | AX81: 4 | AY81: 5 | AZ81: 6 | BA81: 7 | BB81: 8 | BC81: 9 | BD81: 10 | BE81: 11 | BF81: 12 | BN81: B-12 | BO81: 2 | BP81: 3 | BQ81: 4 | BR81: 5 | BS81: 6 | BT81: 7 | BU81: 8 | BV81: 9 | BW81: 10 | BX81: 11 | BY81: 12 | CG81: B-12 | CH81: 2 | CI81: 3 | CJ81: 4 | CK81: 5 | CL81: 6 | CM81: 7 | CN81: 8 | CO81: 9 | CP81: 10 | CQ81: 11 | CR81: 12 | CT81: 13 | CU81: 14 | CV81: 15 | CW81: 16 | CX81: 17 | CY81: 18 | CZ81: 19 | DA81: 20 | DB81: 21 | DC81: 22 | DD81: 23 | DE81: 24 | DL81: B-12 | DM81: 2 | DN81: 3 | DO81: 4 | DP81: 5 | DQ81: 6 | DR81: 7 | DS81: 8 | DT81: 9 | DU81: 10 | DV81: 11 | DW81: 12 | EE81: B-12 | EF81: 2 | EG81: 3 | EH81: 4 | EI81: 5 | EJ81: 6 | EK81: 7 | EL81: 8 | EM81: 9 | EN81: 10 | EO81: 11 | EP81: 12 | EX81: B-12 | EY81: 2 | EZ81: 3 | FA81: 4 | FB81: 5 | FC81: 6 | FD81: 7 | FE81: 8 | FF81: 9 | FG81: 10 | FH81: 11 | FI81: 12 | FK81: 13 | FL81: 14 | FM81: 15 | FN81: 16 | FO81: 17 | FP81: 18 | FQ81: 19 | FR81: 20 | FS81: 21 | FT81: 22 | FU81: 23 | FV81: 24 | GC81: B-12 | GD81: 2 | GE81: 3 | GF81: 4 | GG81: 5 | GH81: 6 | GI81: 7 | GJ81: 8 | GK81: 9 | GL81: 10 | GM81: 11 | GN81: 12 | GV81: B-12 | GW81: 2 | GX81: 3 | GY81: 4 | GZ81: 5 | HA81: 6 | HB81: 7 | HC81: 8 | HD81: 9 | HE81: 10 | HF81: 11 | HG81: 12 | HI81: 13 | HJ81: 14 | HK81: 15 | HL81: 16 | HM81: 17 | HN81: 18 | HO81: 19 | HP81: 20 | HQ81: 21 | HR81: 22 | HS81: 23 | HT81: 24
D82: Dependent | F82: 5 | G82: 0.16 | H82: D | I82: =CONCATENATE(I$81,"-",H82) -> B-12-D | J82: 10.32 | K82: Dependent benefit is $500 | U82: 1.1 | W82: Dependent | Y82: 4.52 | Z82: 0.14 | AA82: D | AB82: =CONCATENATE(AB$81,"-",AA82) -> B-12-D | AC82: 9.32 | AD82: Dependent benefit is $500 | AN82: 1.1 | AP82: Dependent | AR82: 4.14 | AS82: 0.14 | AT82: D | AU82: =CONCATENATE(AU$81,"-",AT82) -> B-12-D | AV82: 8.56 | AW82: Dependent benefit is $500 | BG82: 1.1 | BI82: Dependent | BK82: 3.81 | BL82: 0.12 | BM82: D | BN82: =CONCATENATE(BN$81,"-",BM82) -> B-12-D | BO82: 7.86 | BP82: Dependent benefit is $500 | BZ82: 1.1 | CB82: Dependent | CD82: 4.14 | CE82: 0 | CF82: D | CG82: =CONCATENATE(CG$81,"-",CF82) -> B-12-D | CH82: 8.28 | CI82: Dependent benefit is $500 | CS82: 1.1 | CU82: Dependent benefit is $500 | DG82: Dependent | DI82: 4.58 | DJ82: 0.14 | DK82: D | DL82: =CONCATENATE(DL$81,"-",DK82) -> B-12-D | DM82: 9.44 | DN82: Dependent benefit is $500 | DX82: 1.1 | DZ82: Dependent | EB82: 4.58 | EC82: 0.14 | ED82: D | EE82: =CONCATENATE(EE$81,"-",ED82) -> B-12-D | EF82: 7.98 | EG82: Dependent benefit is $500 | EQ82: 1.1 | ES82: Dependent | EU82: 4.14 | EV82: 0 | EW82: D | EX82: =CONCATENATE(EX$81,"-",EW82) -> B-12-D | EY82: 10 | EZ82: Dependent benefit is $500 | FJ82: 1.1 | FL82: Dependent benefit is $500 | FX82: Dependent | FZ82: 4.58 | GA82: 0.14 | GB82: D | GC82: =CONCATENATE(GC$81,"-",GB82) -> B-12-D | GD82: 99999 | GE82: Dependent benefit is $500 | GO82: 100 | GQ82: Dependent | GS82: 4.14 | GT82: 0 | GU82: D | GV82: =CONCATENATE(GV$81,"-",GU82) -> B-12-D | GW82: 9.38 | GX82: Dependent benefit is $500 | HH82: 100 | HJ82: Dependent benefit is $500
D83: 18 | E83: 29 | F83: 11 | G83: 0.16 | H83: 18-29 | I83: =CONCATENATE(I$81,"-",H83) -> B-12-18-29 | J83: 22.32 | K83: 33.48 | L83: 44.64 | M83: 55.8 | N83: 66.96 | O83: 78.12 | P83: 84.88 | Q83: 95.49 | R83: 106.1 | S83: 116.71 | T83: 127.32 | U83: 1.1 | W83: 18 | X83: 29 | Y83: 10 | Z83: 0.14 | AA83: 18-29 | AB83: =CONCATENATE(AB$81,"-",AA83) -> B-12-18-29 | AC83: 20.28 | AD83: 30.42 | AE83: 40.56 | AF83: 50.7 | AG83: 60.84 | AH83: 70.98 | AI83: 77.12 | AJ83: 86.76 | AK83: 96.4 | AL83: 106.04 | AM83: 115.68 | AN83: 1.1 | AP83: 18 | AQ83: 29 | AR83: 9 | AS83: 0.14 | AT83: 18-29 | AU83: =CONCATENATE(AU$81,"-",AT83) -> B-12-18-29 | AV83: 18.28 | AW83: 27.42 | AX83: 36.56 | AY83: 45.7 | AZ83: 54.84 | BA83: 63.98 | BB83: 69.52 | BC83: 78.21 | BD83: 86.9 | BE83: 95.59 | BF83: 104.28 | BG83: 1.1 | BI83: 18 | BJ83: 29 | BK83: 9 | BL83: 0.12 | BM83: 18-29 | BN83: =CONCATENATE(BN$81,"-",BM83) -> B-12-18-29 | BO83: 18.24 | BP83: 27.36 | BQ83: 36.48 | BR83: 45.6 | BS83: 54.72 | BT83: 63.84 | BU83: 69.36 | BV83: 78.03 | BW83: 86.7 | BX83: 95.37 | BY83: 104.04 | BZ83: 1.1 | CB83: 18 | CC83: 29 | CD83: 9 | CE83: 0 | CF83: 18-29 | CG83: =CONCATENATE(CG$81,"-",CF83) -> B-12-18-29 | CH83: 18 | CI83: 27 | CJ83: 36 | CK83: 45 | CL83: 54 | CM83: 63 | CN83: 68.4 | CO83: 76.95 | CP83: 85.5 | CQ83: 94.05 | CR83: 102.6 | CS83: 1.1 | CT83: 111.15 | CU83: 119.7 | CV83: 128.25 | CW83: 136.8 | CX83: 145.35 | CY83: 153.9 | CZ83: 162.45 | DA83: 171 | DB83: 179.55 | DC83: 188.1 | DD83: 196.65 | DE83: 205.2 | DG83: 18 | DH83: 29 | DI83: 10.13 | DJ83: 0.14 | DK83: 18-29 | DL83: =CONCATENATE(DL$81,"-",DK83) -> B-12-18-29 | DM83: 20.54 | DN83: 30.81 | DO83: 41.08 | DP83: 51.35 | DQ83: 61.62 | DR83: 71.89 | DS83: 78.08 | DT83: 87.84 | DU83: 97.6 | DV83: 107.36 | DW83: 117.12 | DX83: 1.1 | DZ83: 18 | EA83: 29 | EB83: 10.13 | EC83: 0.14 | ED83: 18-29 | EE83: =CONCATENATE(EE$81,"-",ED83) -> B-12-18-29 | EF83: 18.52 | EG83: 27.78 | EH83: 37.04 | EI83: 46.3 | EJ83: 55.56 | EK83: 64.82 | EL83: 70.4 | EM83: 79.2 | EN83: 88 | EO83: 96.8 | EP83: 105.6 | EQ83: 1.1 | ES83: 18 | ET83: 29 | EU83: 9 | EV83: 0 | EW83: 18-29 | EX83: =CONCATENATE(EX$81,"-",EW83) -> B-12-18-29 | EY83: 22 | EZ83: 33 | FA83: 44 | FB83: 55 | FC83: 66 | FD83: 77 | FE83: 83.6 | FF83: 94.05 | FG83: 104.5 | FH83: 114.95 | FI83: 125.4 | FJ83: 1.1 | FK83: 135.85 | FL83: 146.3 | FM83: 156.75 | FN83: 167.2 | FO83: 177.65 | FP83: 188.1 | FQ83: 198.55 | FR83: 209 | FS83: 219.45 | FT83: 229.9 | FU83: 240.35 | FV83: 250.8 | FX83: 18 | FY83: 29 | FZ83: 10.13 | GA83: 0.14 | GB83: 18-29 | GC83: =CONCATENATE(GC$81,"-",GB83) -> B-12-18-29 | GD83: 99999 | GE83: 99999 | GF83: 99999 | GG83: 99999 | GH83: 99999 | GI83: 99999 | GJ83: 99999 | GK83: 99999 | GL83: 99999 | GM83: 99999 | GN83: 99999 | GO83: 100 | GQ83: 18 | GR83: 29 | GS83: 9 | GT83: 0 | GU83: 18-29 | GV83: =CONCATENATE(GV$81,"-",GU83) -> B-12-18-29 | GW83: 30.38 | GX83: 45.57 | GY83: 60.76 | GZ83: 75.95 | HA83: 91.14 | HB83: 106.33 | HC83: 115.44 | HD83: 129.87 | HE83: 144.31 | HF83: 158.74 | HG83: 173.17 | HH83: 100 | HI83: 187.6 | HJ83: 202.03 | HK83: 216.46 | HL83: 230.89 | HM83: 245.32 | HN83: 259.75 | HO83: 274.18 | HP83: 288.61 | HQ83: 303.04 | HR83: 317.47 | HS83: 331.9 | HT83: 346.33
D84: 30 | E84: 39 | F84: 16 | G84: 0.25 | H84: 30-39 | I84: B-12-30-39 | J84: 32.5 | K84: 48.75 | L84: 65 | M84: 81.25 | N84: 97.5 | O84: 113.75 | P84: 123.6 | Q84: 139.05 | R84: 154.5 | S84: 169.95 | T84: 185.4 | U84: 1.1 | W84: 30 | X84: 39 | Y84: 14 | Z84: 0.22 | AA84: 30-39 | AB84: B-12-30-39 | AC84: 28.44 | AD84: 42.66 | AE84: 56.88 | AF84: 71.1 | AG84: 85.32 | AH84: 99.54 | AI84: 108.16 | AJ84: 121.68 | AK84: 135.2 | AL84: 148.72 | AM84: 162.24 | AN84: 1.1 | AP84: 30 | AQ84: 39 | AR84: 13 | AS84: 0.2 | AT84: 30-39 | AU84: B-12-30-39 | AV84: 26.4 | AW84: 39.6 | AX84: 52.8 | AY84: 66 | AZ84: 79.2 | BA84: 92.4 | BB84: 100.4 | BC84: 112.95 | BD84: 125.5 | BE84: 138.05 | BF84: 150.6 | BG84: 1.1 | BI84: 30 | BJ84: 39 | BK84: 12 | BL84: 0.19 | BM84: 30-39 | BN84: B-12-30-39 | BO84: 24.38 | BP84: 36.57 | BQ84: 48.76 | BR84: 60.95 | BS84: 73.14 | BT84: 85.33 | BU84: 92.72 | BV84: 104.31 | BW84: 115.9 | BX84: 127.49 | BY84: 139.08 | BZ84: 1.1 | CB84: 30 | CC84: 39 | CD84: 13 | CE84: 0 | CF84: 30-39 | CG84: B-12-30-39 | CH84: 26 | CI84: 39 | CJ84: 52 | CK84: 65 | CL84: 78 | CM84: 91 | CN84: 98.8 | CO84: 111.15 | CP84: 123.5 | CQ84: 135.85 | CR84: 148.2 | CS84: 1.1 | CT84: 160.55 | CU84: 172.9 | CV84: 185.25 | CW84: 197.6 | CX84: 209.95 | CY84: 222.3 | CZ84: 234.65 | DA84: 247 | DB84: 259.35 | DC84: 271.7 | DD84: 284.05 | DE84: 296.4 | DG84: 30 | DH84: 39 | DI84: 14.18 | DJ84: 0.22 | DK84: 30-39 | DL84: B-12-30-39 | DM84: 28.8 | DN84: 43.2 | DO84: 57.6 | DP84: 72 | DQ84: 86.4 | DR84: 100.8 | DS84: 109.52 | DT84: 123.21 | DU84: 136.9 | DV84: 150.59 | DW84: 164.28 | DX84: 1.1 | DZ84: 30 | EA84: 39 | EB84: 14.18 | EC84: 0.22 | ED84: 30-39 | EE84: B-12-30-39 | EF84: 24.74 | EG84: 37.11 | EH84: 49.48 | EI84: 61.85 | EJ84: 74.22 | EK84: 86.59 | EL84: 94.08 | EM84: 105.84 | EN84: 117.6 | EO84: 129.36 | EP84: 141.12 | EQ84: 1.1 | ES84: 30 | ET84: 39 | EU84: 13 | EV84: 0 | EW84: 30-39 | EX84: B-12-30-39 | EY84: 32 | EZ84: 48 | FA84: 64 | FB84: 80 | FC84: 96 | FD84: 112 | FE84: 121.6 | FF84: 136.8 | FG84: 152 | FH84: 167.2 | FI84: 182.4 | FJ84: 1.1 | FK84: 197.6 | FL84: 212.8 | FM84: 228 | FN84: 243.2 | FO84: 258.4 | FP84: 273.6 | FQ84: 288.8 | FR84: 304 | FS84: 319.2 | FT84: 334.4 | FU84: 349.6 | FV84: 364.8 | FX84: 30 | FY84: 39 | FZ84: 14.18 | GA84: 0.22 | GB84: 30-39 | GC84: B-12-30-39 | GD84: 99999 | GE84: 99999 | GF84: 99999 | GG84: 99999 | GH84: 99999 | GI84: 99999 | GJ84: 99999 | GK84: 99999 | GL84: 99999 | GM84: 99999 | GN84: 99999 | GO84: 100 | GQ84: 30 | GR84: 39 | GS84: 13 | GT84: 0 | GU84: 30-39 | GV84: B-12-30-39 | GW84: 66.26 | GX84: 99.39 | GY84: 132.52 | GZ84: 165.65 | HA84: 198.78 | HB84: 231.91 | HC84: 251.79 | HD84: 283.26 | HE84: 314.74 | HF84: 346.21 | HG84: 377.68 | HH84: 100 | HI84: 409.16 | HJ84: 440.63 | HK84: 472.1 | HL84: 503.58 | HM84: 535.05 | HN84: 566.52 | HO84: 598 | HP84: 629.47 | HQ84: 660.94 | HR84: 692.42 | HS84: 723.89 | HT84: 755.36
D85: 40 | E85: 49 | F85: 38 | G85: 0.48 | H85: 40-49 | I85: B-12-40-49 | J85: 76.96 | K85: 115.44 | L85: 153.92 | M85: 192.4 | N85: 230.88 | O85: 269.36 | P85: 292.64 | Q85: 329.22 | R85: 365.8 | S85: 402.38 | T85: 438.96 | U85: 1.15 | W85: 40 | X85: 49 | Y85: 34 | Z85: 0.44 | AA85: 40-49 | AB85: B-12-40-49 | AC85: 68.88 | AD85: 103.32 | AE85: 137.76 | AF85: 172.2 | AG85: 206.64 | AH85: 241.08 | AI85: 261.92 | AJ85: 294.66 | AK85: 327.4 | AL85: 360.14 | AM85: 392.88 | AN85: 1.15 | AP85: 40 | AQ85: 49 | AR85: 31 | AS85: 0.4 | AT85: 40-49 | AU85: B-12-40-49 | AV85: 62.8 | AW85: 94.2 | AX85: 125.6 | AY85: 157 | AZ85: 188.4 | BA85: 219.8 | BB85: 238.8 | BC85: 268.65 | BD85: 298.5 | BE85: 328.35 | BF85: 358.2 | BG85: 1.15 | BI85: 40 | BJ85: 49 | BK85: 29 | BL85: 0.37 | BM85: 40-49 | BN85: B-12-40-49 | BO85: 58.74 | BP85: 88.11 | BQ85: 117.48 | BR85: 146.85 | BS85: 176.22 | BT85: 205.59 | BU85: 223.36 | BV85: 251.28 | BW85: 279.2 | BX85: 307.12 | BY85: 335.04 | BZ85: 1.15 | CB85: 40 | CC85: 49 | CD85: 31 | CE85: 0 | CF85: 40-49 | CG85: B-12-40-49 | CH85: 62 | CI85: 93 | CJ85: 124 | CK85: 155 | CL85: 186 | CM85: 217 | CN85: 235.6 | CO85: 265.05 | CP85: 294.5 | CQ85: 323.95 | CR85: 353.4 | CS85: 1.15 | CT85: 382.85 | CU85: 412.3 | CV85: 441.75 | CW85: 471.2 | CX85: 500.65 | CY85: 530.1 | CZ85: 559.55 | DA85: 589 | DB85: 618.45 | DC85: 647.9 | DD85: 677.35 | DE85: 706.8 | DG85: 40 | DH85: 49 | DI85: 34.43 | DJ85: 0.45 | DK85: 40-49 | DL85: B-12-40-49 | DM85: 69.76 | DN85: 104.64 | DO85: 139.52 | DP85: 174.4 | DQ85: 209.28 | DR85: 244.16 | DS85: 265.28 | DT85: 298.44 | DU85: 331.6 | DV85: 364.76 | DW85: 397.92 | DX85: 1.15 | DZ85: 40 | EA85: 49 | EB85: 34.43 | EC85: 0.45 | ED85: 40-49 | EE85: B-12-40-49 | EF85: 59.64 | EG85: 89.46 | EH85: 119.28 | EI85: 149.1 | EJ85: 178.92 | EK85: 208.74 | EL85: 226.8 | EM85: 255.15 | EN85: 283.5 | EO85: 311.85 | EP85: 340.2 | EQ85: 1.15 | ES85: 40 | ET85: 49 | EU85: 31 | EV85: 0 | EW85: 40-49 | EX85: B-12-40-49 | EY85: 76 | EZ85: 114 | FA85: 152 | FB85: 190 | FC85: 228 | FD85: 266 | FE85: 288.8 | FF85: 324.9 | FG85: 361 | FH85: 397.1 | FI85: 433.2 | FJ85: 1.15 | FK85: 469.3 | FL85: 505.4 | FM85: 541.5 | FN85: 577.6 | FO85: 613.7 | FP85: 649.8 | FQ85: 685.9 | FR85: 722 | FS85: 758.1 | FT85: 794.2 | FU85: 830.3 | FV85: 866.4 | FX85: 40 | FY85: 49 | FZ85: 34.43 | GA85: 0.45 | GB85: 40-49 | GC85: B-12-40-49 | GD85: 99999 | GE85: 99999 | GF85: 99999 | GG85: 99999 | GH85: 99999 | GI85: 99999 | GJ85: 99999 | GK85: 99999 | GL85: 99999 | GM85: 99999 | GN85: 99999 | GO85: 100 | GQ85: 40 | GR85: 49 | GS85: 31 | GT85: 0 | GU85: 40-49 | GV85: B-12-40-49 | GW85: 127.52 | GX85: 191.28 | GY85: 255.04 | GZ85: 318.8 | HA85: 382.56 | HB85: 446.32 | HC85: 484.58 | HD85: 545.15 | HE85: 605.72 | HF85: 666.29 | HG85: 726.86 | HH85: 100 | HI85: 787.44 | HJ85: 848.01 | HK85: 908.58 | HL85: 969.15 | HM85: 1029.72 | HN85: 1090.3 | HO85: 1150.87 | HP85: 1211.44 | HQ85: 1272.01 | HR85: 1332.58 | HS85: 1393.16 | HT85: 1453.73
D86: 50 | E86: 54 | F86: 62 | G86: 1.17 | H86: 50-54 | I86: B-12-50-54 | J86: 126.34 | K86: 189.51 | L86: 252.68 | M86: 315.85 | N86: 379.02 | O86: 442.19 | P86: 480.56 | Q86: 540.63 | R86: 600.7 | S86: 660.77 | T86: 720.84 | U86: 1.15 | W86: 50 | X86: 54 | Y86: 56 | Z86: 1.06 | AA86: 50-54 | AB86: B-12-50-54 | AC86: 114.12 | AD86: 171.18 | AE86: 228.24 | AF86: 285.3 | AG86: 342.36 | AH86: 399.42 | AI86: 434.08 | AJ86: 488.34 | AK86: 542.6 | AL86: 596.86 | AM86: 651.12 | AN86: 1.15 | AP86: 50 | AQ86: 54 | AR86: 51 | AS86: 0.97 | AT86: 50-54 | AU86: B-12-50-54 | AV86: 103.94 | AW86: 155.91 | AX86: 207.88 | AY86: 259.85 | AZ86: 311.82 | BA86: 363.79 | BB86: 395.36 | BC86: 444.78 | BD86: 494.2 | BE86: 543.62 | BF86: 593.04 | BG86: 1.15 | BI86: 50 | BJ86: 54 | BK86: 47 | BL86: 0.89 | BM86: 50-54 | BN86: B-12-50-54 | BO86: 95.78 | BP86: 143.67 | BQ86: 191.56 | BR86: 239.45 | BS86: 287.34 | BT86: 335.23 | BU86: 364.32 | BV86: 409.86 | BW86: 455.4 | BX86: 500.94 | BY86: 546.48 | BZ86: 1.15 | CB86: 50 | CC86: 54 | CD86: 51 | CE86: 0 | CF86: 50-54 | CG86: B-12-50-54 | CH86: 102 | CI86: 153 | CJ86: 204 | CK86: 255 | CL86: 306 | CM86: 357 | CN86: 387.6 | CO86: 436.05 | CP86: 484.5 | CQ86: 532.95 | CR86: 581.4 | CS86: 1.15 | CT86: 629.85 | CU86: 678.3 | CV86: 726.75 | CW86: 775.2 | CX86: 823.65 | CY86: 872.1 | CZ86: 920.55 | DA86: 969 | DB86: 1017.45 | DC86: 1065.9 | DD86: 1114.35 | DE86: 1162.8 | DG86: 50 | DH86: 54 | DI86: 56.7 | DJ86: 1.07 | DK86: 50-54 | DL86: B-12-50-54 | DM86: 115.54 | DN86: 173.31 | DO86: 231.08 | DP86: 288.85 | DQ86: 346.62 | DR86: 404.39 | DS86: 439.52 | DT86: 494.46 | DU86: 549.4 | DV86: 604.34 | DW86: 659.28 | DX86: 1.15 | DZ86: 50 | EA86: 54 | EB86: 56.7 | EC86: 1.07 | ED86: 50-54 | EE86: B-12-50-54 | EF86: 97.22 | EG86: 145.83 | EH86: 194.44 | EI86: 243.05 | EJ86: 291.66 | EK86: 340.27 | EL86: 369.76 | EM86: 415.98 | EN86: 462.2 | EO86: 508.42 | EP86: 554.64 | EQ86: 1.15 | ES86: 50 | ET86: 54 | EU86: 51 | EV86: 0 | EW86: 50-54 | EX86: B-12-50-54 | EY86: 124 | EZ86: 186 | FA86: 248 | FB86: 310 | FC86: 372 | FD86: 434 | FE86: 471.2 | FF86: 530.1 | FG86: 589 | FH86: 647.9 | FI86: 706.8 | FJ86: 1.15 | FK86: 765.7 | FL86: 824.6 | FM86: 883.5 | FN86: 942.4 | FO86: 1001.3 | FP86: 1060.2 | FQ86: 1119.1 | FR86: 1178 | FS86: 1236.9 | FT86: 1295.8 | FU86: 1354.7 | FV86: 1413.6 | FX86: 50 | FY86: 54 | FZ86: 56.7 | GA86: 1.07 | GB86: 50-54 | GC86: B-12-50-54 | GD86: 99999 | GE86: 99999 | GF86: 99999 | GG86: 99999 | GH86: 99999 | GI86: 99999 | GJ86: 99999 | GK86: 99999 | GL86: 99999 | GM86: 99999 | GN86: 99999 | GO86: 100 | GQ86: 50 | GR86: 54 | GS86: 51 | GT86: 0 | GU86: 50-54 | GV86: B-12-50-54 | GW86: 186.56 | GX86: 279.84 | GY86: 373.12 | GZ86: 466.4 | HA86: 559.68 | HB86: 652.96 | HC86: 708.93 | HD86: 797.54 | HE86: 886.16 | HF86: 974.78 | HG86: 1063.39 | HH86: 100 | HI86: 1152.01 | HJ86: 1240.62 | HK86: 1329.24 | HL86: 1417.86 | HM86: 1506.47 | HN86: 1595.09 | HO86: 1683.7 | HP86: 1772.32 | HQ86: 1860.94 | HR86: 1949.55 | HS86: 2038.17 | HT86: 2126.78
D87: 55 | E87: 59 | F87: 85 | G87: 2.3 | H87: 55-59 | I87: B-12-55-59 | J87: 174.6 | K87: 261.9 | L87: 349.2 | M87: 436.5 | N87: 523.8 | O87: 611.1 | P87: 664.4 | Q87: 747.45 | R87: 830.5 | S87: 913.55 | T87: 996.6 | U87: 1.2 | W87: 55 | X87: 59 | Y87: 77 | Z87: 2.08 | AA87: 55-59 | AB87: B-12-55-59 | AC87: 158.16 | AD87: 237.24 | AE87: 316.32 | AF87: 395.4 | AG87: 474.48 | AH87: 553.56 | AI87: 601.84 | AJ87: 677.07 | AK87: 752.3 | AL87: 827.53 | AM87: 902.76 | AN87: 1.2 | AP87: 55 | AQ87: 59 | AR87: 71 | AS87: 1.9 | AT87: 55-59 | AU87: B-12-55-59 | AV87: 145.8 | AW87: 218.7 | AX87: 291.6 | AY87: 364.5 | AZ87: 437.4 | BA87: 510.3 | BB87: 554.8 | BC87: 624.15 | BD87: 693.5 | BE87: 762.85 | BF87: 832.2 | BG87: 1.2 | BI87: 55 | BJ87: 59 | BK87: 65 | BL87: 1.76 | BM87: 55-59 | BN87: B-12-55-59 | BO87: 133.52 | BP87: 200.28 | BQ87: 267.04 | BR87: 333.8 | BS87: 400.56 | BT87: 467.32 | BU87: 508.08 | BV87: 571.59 | BW87: 635.1 | BX87: 698.61 | BY87: 762.12 | BZ87: 1.2 | CB87: 55 | CC87: 59 | CD87: 71 | CE87: 0 | CF87: 55-59 | CG87: B-12-55-59 | CH87: 142 | CI87: 213 | CJ87: 284 | CK87: 355 | CL87: 426 | CM87: 497 | CN87: 539.6 | CO87: 607.05 | CP87: 674.5 | CQ87: 741.95 | CR87: 809.4 | CS87: 1.2 | CT87: 876.85 | CU87: 944.3 | CV87: 1011.75 | CW87: 1079.2 | CX87: 1146.65 | CY87: 1214.1 | CZ87: 1281.55 | DA87: 1349 | DB87: 1416.45 | DC87: 1483.9 | DD87: 1551.35 | DE87: 1618.8 | DG87: 55 | DH87: 59 | DI87: 77.96 | DJ87: 2.11 | DK87: 55-59 | DL87: B-12-55-59 | DM87: 160.14 | DN87: 240.21 | DO87: 320.28 | DP87: 400.35 | DQ87: 480.42 | DR87: 560.49 | DS87: 609.36 | DT87: 685.53 | DU87: 761.7 | DV87: 837.87 | DW87: 914.04 | DX87: 1.2 | DZ87: 55 | EA87: 59 | EB87: 77.96 | EC87: 2.11 | ED87: 55-59 | EE87: B-12-55-59 | EF87: 135.54 | EG87: 203.31 | EH87: 271.08 | EI87: 338.85 | EJ87: 406.62 | EK87: 474.39 | EL87: 515.76 | EM87: 580.23 | EN87: 644.7 | EO87: 709.17 | EP87: 773.64 | EQ87: 1.2 | ES87: 55 | ET87: 59 | EU87: 71 | EV87: 0 | EW87: 55-59 | EX87: B-12-55-59 | EY87: 170 | EZ87: 255 | FA87: 340 | FB87: 425 | FC87: 510 | FD87: 595 | FE87: 646 | FF87: 726.75 | FG87: 807.5 | FH87: 888.25 | FI87: 969 | FJ87: 1.2 | FK87: 1049.75 | FL87: 1130.5 | FM87: 1211.25 | FN87: 1292 | FO87: 1372.75 | FP87: 1453.5 | FQ87: 1534.25 | FR87: 1615 | FS87: 1695.75 | FT87: 1776.5 | FU87: 1857.25 | FV87: 1938 | FX87: 55 | FY87: 59 | FZ87: 77.96 | GA87: 2.11 | GB87: 55-59 | GC87: B-12-55-59 | GD87: 99999 | GE87: 99999 | GF87: 99999 | GG87: 99999 | GH87: 99999 | GI87: 99999 | GJ87: 99999 | GK87: 99999 | GL87: 99999 | GM87: 99999 | GN87: 99999 | GO87: 100 | GQ87: 55 | GR87: 59 | GS87: 71 | GT87: 0 | GU87: 55-59 | GV87: B-12-55-59 | GW87: 231.9 | GX87: 347.85 | GY87: 463.8 | GZ87: 579.75 | HA87: 695.7 | HB87: 811.65 | HC87: 881.22 | HD87: 991.37 | HE87: 1101.53 | HF87: 1211.68 | HG87: 1321.83 | HH87: 100 | HI87: 1431.98 | HJ87: 1542.14 | HK87: 1652.29 | HL87: 1762.44 | HM87: 1872.59 | HN87: 1982.75 | HO87: 2092.9 | HP87: 2203.05 | HQ87: 2313.2 | HR87: 2423.36 | HS87: 2533.51 | HT87: 2643.66
D88: 60 | E88: 64 | F88: 111 | G88: 4.33 | H88: 60-64 | I88: B-12-60-64 | J88: 230.66 | K88: 345.99 | L88: 461.32 | M88: 576.65 | N88: 691.98 | O88: 807.31 | P88: 878.24 | Q88: 988.02 | R88: 1097.8 | S88: 1207.58 | T88: 1317.36 | U88: 1.25 | W88: 60 | X88: 64 | Y88: 100 | Z88: 3.92 | AA88: 60-64 | AB88: B-12-60-64 | AC88: 207.84 | AD88: 311.76 | AE88: 415.68 | AF88: 519.6 | AG88: 623.52 | AH88: 727.44 | AI88: 791.36 | AJ88: 890.28 | AK88: 989.2 | AL88: 1088.12 | AM88: 1187.04 | AN88: 1.25 | AP88: 60 | AQ88: 64 | AR88: 92 | AS88: 3.58 | AT88: 60-64 | AU88: B-12-60-64 | AV88: 191.16 | AW88: 286.74 | AX88: 382.32 | AY88: 477.9 | AZ88: 573.48 | BA88: 669.06 | BB88: 727.84 | BC88: 818.82 | BD88: 909.8 | BE88: 1000.78 | BF88: 1091.76 | BG88: 1.25 | BI88: 60 | BJ88: 64 | BK88: 84 | BL88: 3.3 | BM88: 60-64 | BN88: B-12-60-64 | BO88: 174.6 | BP88: 261.9 | BQ88: 349.2 | BR88: 436.5 | BS88: 523.8 | BT88: 611.1 | BU88: 664.8 | BV88: 747.9 | BW88: 831 | BX88: 914.1 | BY88: 997.2 | BZ88: 1.22 | CB88: 60 | CC88: 64 | CD88: 92 | CE88: 0 | CF88: 60-64 | CG88: B-12-60-64 | CH88: 184 | CI88: 276 | CJ88: 368 | CK88: 460 | CL88: 552 | CM88: 644 | CN88: 699.2 | CO88: 786.6 | CP88: 874 | CQ88: 961.4 | CR88: 1048.8 | CS88: 1.25 | CT88: 1136.2 | CU88: 1223.6 | CV88: 1311 | CW88: 1398.4 | CX88: 1485.8 | CY88: 1573.2 | CZ88: 1660.6 | DA88: 1748 | DB88: 1835.4 | DC88: 1922.8 | DD88: 2010.2 | DE88: 2097.6 | DG88: 60 | DH88: 64 | DI88: 101.25 | DJ88: 3.97 | DK88: 60-64 | DL88: B-12-60-64 | DM88: 210.44 | DN88: 315.66 | DO88: 420.88 | DP88: 526.1 | DQ88: 631.32 | DR88: 736.54 | DS88: 801.28 | DT88: 901.44 | DU88: 1001.6 | DV88: 1101.76 | DW88: 1201.92 | DX88: 1.25 | DZ88: 60 | EA88: 64 | EB88: 101.25 | EC88: 3.97 | ED88: 60-64 | EE88: B-12-60-64 | EF88: 177.22 | EG88: 265.83 | EH88: 354.44 | EI88: 443.05 | EJ88: 531.66 | EK88: 620.27 | EL88: 674.8 | EM88: 759.15 | EN88: 843.5 | EO88: 927.85 | EP88: 1012.2 | EQ88: 1.25 | ES88: 60 | ET88: 64 | EU88: 92 | EV88: 0 | EW88: 60-64 | EX88: B-12-60-64 | EY88: 222 | EZ88: 333 | FA88: 444 | FB88: 555 | FC88: 666 | FD88: 777 | FE88: 843.6 | FF88: 949.05 | FG88: 1054.5 | FH88: 1159.95 | FI88: 1265.4 | FJ88: 1.25 | FK88: 1370.85 | FL88: 1476.3 | FM88: 1581.75 | FN88: 1687.2 | FO88: 1792.65 | FP88: 1898.1 | FQ88: 2003.55 | FR88: 2109 | FS88: 2214.45 | FT88: 2319.9 | FU88: 2425.35 | FV88: 2530.8 | FX88: 60 | FY88: 64 | FZ88: 101.25 | GA88: 3.97 | GB88: 60-64 | GC88: B-12-60-64 | GD88: 234.06 | GE88: 351.09 | GF88: 468.12 | GG88: 585.15 | GH88: 702.18 | GI88: 819.21 | GJ88: 891.2 | GK88: 1002.6 | GL88: 1114 | GM88: 1225.4 | GN88: 1336.8 | GO88: 1.25 | GQ88: 60 | GR88: 64 | GS88: 92 | GT88: 0 | GU88: 60-64 | GV88: B-12-60-64 | GW88: 281.7 | GX88: 422.55 | GY88: 563.4 | GZ88: 704.25 | HA88: 845.1 | HB88: 985.95 | HC88: 1070.46 | HD88: 1204.27 | HE88: 1338.08 | HF88: 1471.88 | HG88: 1605.69 | HH88: 100 | HI88: 1739.5 | HJ88: 1873.31 | HK88: 2007.11 | HL88: 2140.92 | HM88: 2274.73 | HN88: 2408.54 | HO88: 2542.34 | HP88: 2676.15 | HQ88: 2809.96 | HR88: 2943.77 | HS88: 3077.57 | HT88: 3211.38
D89: 65 | E89: 69 | F89: 136 | G89: 7.65 | H89: 65-69 | I89: B-12-65-69 | J89: 287.3 | K89: 430.95 | L89: 574.6 | M89: 718.25 | N89: 861.9 | O89: 1005.55 | P89: 1094.8 | Q89: 1231.65 | R89: 1368.5 | S89: 1505.35 | T89: 1642.2 | U89: 1.25 | W89: 65 | X89: 69 | Y89: 123 | Z89: 6.92 | AA89: 65-69 | AB89: B-12-65-69 | AC89: 259.84 | AD89: 389.76 | AE89: 519.68 | AF89: 649.6 | AG89: 779.52 | AH89: 909.44 | AI89: 990.16 | AJ89: 1113.93 | AK89: 1237.7 | AL89: 1361.47 | AM89: 1485.24 | AN89: 1.25 | AP89: 65 | AQ89: 69 | AR89: 112 | AS89: 6.32 | AT89: 65-69 | AU89: B-12-65-69 | AV89: 236.64 | AW89: 354.96 | AX89: 473.28 | AY89: 591.6 | AZ89: 709.92 | BA89: 828.24 | BB89: 901.76 | BC89: 1014.48 | BD89: 1127.2 | BE89: 1239.92 | BF89: 1352.64 | BG89: 1.25 | BI89: 65 | BJ89: 69 | BK89: 103 | BL89: 5.82 | BM89: 65-69 | BN89: B-12-65-69 | BO89: 217.64 | BP89: 326.46 | BQ89: 435.28 | BR89: 544.1 | BS89: 652.92 | BT89: 761.74 | BU89: 829.36 | BV89: 933.03 | BW89: 1036.7 | BX89: 1140.37 | BY89: 1244.04 | BZ89: 1.22 | CB89: 65 | CC89: 69 | CD89: 112 | CE89: 0 | CF89: 65-69 | CG89: B-12-65-69 | CH89: 224 | CI89: 336 | CJ89: 448 | CK89: 560 | CL89: 672 | CM89: 784 | CN89: 851.2 | CO89: 957.6 | CP89: 1064 | CQ89: 1170.4 | CR89: 1276.8 | CS89: 1.25 | CT89: 1383.2 | CU89: 1489.6 | CV89: 1596 | CW89: 1702.4 | CX89: 1808.8 | CY89: 1915.2 | CZ89: 2021.6 | DA89: 2128 | DB89: 2234.4 | DC89: 2340.8 | DD89: 2447.2 | DE89: 2553.6 | DG89: 65 | DH89: 69 | DI89: 124.54 | DJ89: 7.01 | DK89: 65-69 | DL89: B-12-65-69 | DM89: 263.1 | DN89: 394.65 | DO89: 526.2 | DP89: 657.75 | DQ89: 789.3 | DR89: 920.85 | DS89: 1002.56 | DT89: 1127.88 | DU89: 1253.2 | DV89: 1378.52 | DW89: 1503.84 | DX89: 1.25 | DZ89: 65 | EA89: 69 | EB89: 124.54 | EC89: 7.01 | ED89: 65-69 | EE89: B-12-65-69 | EF89: 220.92 | EG89: 331.38 | EH89: 441.84 | EI89: 552.3 | EJ89: 662.76 | EK89: 773.22 | EL89: 841.84 | EM89: 947.07 | EN89: 1052.3 | EO89: 1157.53 | EP89: 1262.76 | EQ89: 1.25 | ES89: 65 | ET89: 69 | EU89: 112 | EV89: 0 | EW89: 65-69 | EX89: B-12-65-69 | EY89: 272 | EZ89: 408 | FA89: 544 | FB89: 680 | FC89: 816 | FD89: 952 | FE89: 1033.6 | FF89: 1162.8 | FG89: 1292 | FH89: 1421.2 | FI89: 1550.4 | FJ89: 1.25 | FK89: 1679.6 | FL89: 1808.8 | FM89: 1938 | FN89: 2067.2 | FO89: 2196.4 | FP89: 2325.6 | FQ89: 2454.8 | FR89: 2584 | FS89: 2713.2 | FT89: 2842.4 | FU89: 2971.6 | FV89: 3100.8 | FX89: 65 | FY89: 69 | FZ89: 124.54 | GA89: 7.01 | GB89: 65-69 | GC89: B-12-65-69 | GD89: 291.52 | GE89: 437.28 | GF89: 583.04 | GG89: 728.8 | GH89: 874.56 | GI89: 1020.32 | GJ89: 1110.8 | GK89: 1249.65 | GL89: 1388.5 | GM89: 1527.35 | GN89: 1666.2 | GO89: 1.25 | GQ89: 65 | GR89: 69 | GS89: 112 | GT89: 0 | GU89: 65-69 | GV89: B-12-65-69 | GW89: 325.3 | GX89: 487.95 | GY89: 650.6 | GZ89: 813.25 | HA89: 975.9 | HB89: 1138.55 | HC89: 1236.14 | HD89: 1390.66 | HE89: 1545.18 | HF89: 1699.69 | HG89: 1854.21 | HH89: 100 | HI89: 2008.73 | HJ89: 2163.25 | HK89: 2317.76 | HL89: 2472.28 | HM89: 2626.8 | HN89: 2781.32 | HO89: 2935.83 | HP89: 3090.35 | HQ89: 3244.87 | HR89: 3399.39 | HS89: 3553.9 | HT89: 3708.42
D90: 70 | E90: 74 | F90: 160 | G90: 13.03 | H90: 70-74 | I90: B-12-70-74 | J90: 346.06 | K90: 519.09 | L90: 692.12 | M90: 865.15 | N90: 1038.18 | O90: 1211.21 | P90: 1320.24 | Q90: 1485.27 | R90: 1650.3 | S90: 1815.33 | T90: 1980.36 | U90: N/A | W90: 70 | X90: 74 | Y90: 144 | Z90: 11.78 | AA90: 70-74 | AB90: B-12-70-74 | AC90: 311.56 | AD90: 467.34 | AE90: 623.12 | AF90: 778.9 | AG90: 934.68 | AH90: 1090.46 | AI90: 1188.64 | AJ90: 1337.22 | AK90: 1485.8 | AL90: 1634.38 | AM90: 1782.96 | AN90: N/A | AP90: 70 | AQ90: 74 | AR90: 132 | AS90: 10.78 | AT90: 70-74 | AU90: B-12-70-74 | AV90: 285.56 | AW90: 428.34 | AX90: 571.12 | AY90: 713.9 | AZ90: 856.68 | BA90: 999.46 | BB90: 1089.44 | BC90: 1225.62 | BD90: 1361.8 | BE90: 1497.98 | BF90: 1634.16 | BG90: N/A | BI90: 70 | BJ90: 74 | BK90: 121 | BL90: 9.92 | BM90: 70-74 | BN90: B-12-70-74 | BO90: 261.84 | BP90: 392.76 | BQ90: 523.68 | BR90: 654.6 | BS90: 785.52 | BT90: 916.44 | BU90: 998.96 | BV90: 1123.83 | BW90: 1248.7 | BX90: 1373.57 | BY90: 1498.44 | BZ90: N/A | CB90: 70 | CC90: 74 | CD90: 132 | CE90: 0 | CF90: 70-74 | CG90: B-12-70-74 | CH90: 264 | CI90: 396 | CJ90: 528 | CK90: 660 | CL90: 792 | CM90: 924 | CN90: 1003.2 | CO90: 1128.6 | CP90: 1254 | CQ90: 1379.4 | CR90: 1504.8 | CS90: N/A | CT90: 1630.2 | CU90: 1755.6 | CV90: 1881 | CW90: 2006.4 | CX90: 2131.8 | CY90: 2257.2 | CZ90: 2382.6 | DA90: 2508 | DB90: 2633.4 | DC90: 2758.8 | DD90: 2884.2 | DE90: 3009.6 | DG90: 70 | DH90: 74 | DI90: 145.8 | DJ90: 11.93 | DK90: 70-74 | DL90: B-12-70-74 | DM90: 315.46 | DN90: 473.19 | DO90: 630.92 | DP90: 788.65 | DQ90: 946.38 | DR90: 1104.11 | DS90: 1203.52 | DT90: 1353.96 | DU90: 1504.4 | DV90: 1654.84 | DW90: 1805.28 | DX90: N/A | DZ90: 70 | EA90: 74 | EB90: 145.8 | EC90: 11.93 | ED90: 70-74 | EE90: B-12-70-74 | EF90: 265.78 | EG90: 398.67 | EH90: 531.56 | EI90: 664.45 | EJ90: 797.34 | EK90: 930.23 | EL90: 1014 | EM90: 1140.75 | EN90: 1267.5 | EO90: 1394.25 | EP90: 1521 | EQ90: N/A | ES90: 70 | ET90: 74 | EU90: 132 | EV90: 0 | EW90: 70-74 | EX90: B-12-70-74 | EY90: 320 | EZ90: 480 | FA90: 640 | FB90: 800 | FC90: 960 | FD90: 1120 | FE90: 1216 | FF90: 1368 | FG90: 1520 | FH90: 1672 | FI90: 1824 | FJ90: N/A | FK90: 1976 | FL90: 2128 | FM90: 2280 | FN90: 2432 | FO90: 2584 | FP90: 2736 | FQ90: 2888 | FR90: 3040 | FS90: 3192 | FT90: 3344 | FU90: 3496 | FV90: 3648 | FX90: 70 | FY90: 74 | FZ90: 145.8 | GA90: 11.93 | GB90: 70-74 | GC90: B-12-70-74 | GD90: 351.24 | GE90: 526.86 | GF90: 702.48 | GG90: 878.1 | GH90: 1053.72 | GI90: 1229.34 | GJ90: 1339.92 | GK90: 1507.41 | GL90: 1674.9 | GM90: 1842.39 | GN90: 2009.88 | GO90: N/A | GQ90: 70 | GR90: 74 | GS90: 132 | GT90: 0 | GU90: 70-74 | GV90: B-12-70-74 | GW90: 364.9 | GX90: 547.35 | GY90: 729.8 | GZ90: 912.25 | HA90: 1094.7 | HB90: 1277.15 | HC90: 1386.62 | HD90: 1559.95 | HE90: 1733.28 | HF90: 1906.6 | HG90: 2079.93 | HH90: N/A | HI90: 2253.26 | HJ90: 2426.59 | HK90: 2599.91 | HL90: 2773.24 | HM90: 2946.57 | HN90: 3119.9 | HO90: 3293.22 | HP90: 3466.55 | HQ90: 3639.88 | HR90: 3813.21 | HS90: 3986.53 | HT90: 4159.86
D91: 75 | E91: 79 | F91: 185 | G91: 20.8 | H91: 75-79 | I91: B-12-75-79 | J91: 411.6 | K91: 617.4 | L91: 823.2 | M91: 1029 | N91: 1234.8 | O91: 1440.6 | P91: 1572.4 | Q91: 1768.95 | R91: 1965.5 | S91: 2162.05 | T91: 2358.6 | U91: N/A | W91: 75 | X91: 79 | Y91: 167 | Z91: 18.81 | AA91: 75-79 | AB91: B-12-75-79 | AC91: 371.62 | AD91: 557.43 | AE91: 743.24 | AF91: 929.05 | AG91: 1114.86 | AH91: 1300.67 | AI91: 1419.68 | AJ91: 1597.14 | AK91: 1774.6 | AL91: 1952.06 | AM91: 2129.52 | AN91: N/A | AP91: 75 | AQ91: 79 | AR91: 153 | AS91: 17.2 | AT91: 75-79 | AU91: B-12-75-79 | AV91: 340.4 | AW91: 510.6 | AX91: 680.8 | AY91: 851 | AZ91: 1021.2 | BA91: 1191.4 | BB91: 1300.4 | BC91: 1462.95 | BD91: 1625.5 | BE91: 1788.05 | BF91: 1950.6 | BG91: N/A | BI91: 75 | BJ91: 79 | BK91: 140 | BL91: 15.84 | BM91: 75-79 | BN91: B-12-75-79 | BO91: 311.68 | BP91: 467.52 | BQ91: 623.36 | BR91: 779.2 | BS91: 935.04 | BT91: 1090.88 | BU91: 1190.72 | BV91: 1339.56 | BW91: 1488.4 | BX91: 1637.24 | BY91: 1786.08 | BZ91: N/A | CB91: 75 | CC91: 79 | CD91: 153 | CE91: 0 | CF91: 75-79 | CG91: B-12-75-79 | CH91: 306 | CI91: 459 | CJ91: 612 | CK91: 765 | CL91: 918 | CM91: 1071 | CN91: 1162.8 | CO91: 1308.15 | CP91: 1453.5 | CQ91: 1598.85 | CR91: 1744.2 | CS91: N/A | CT91: 1889.55 | CU91: 2034.9 | CV91: 2180.25 | CW91: 2325.6 | CX91: 2470.95 | CY91: 2616.3 | CZ91: 2761.65 | DA91: 2907 | DB91: 3052.35 | DC91: 3197.7 | DD91: 3343.05 | DE91: 3488.4 | DG91: 75 | DH91: 79 | DI91: 169.09 | DJ91: 19.05 | DK91: 75-79 | DL91: B-12-75-79 | DM91: 376.28 | DN91: 564.42 | DO91: 752.56 | DP91: 940.7 | DQ91: 1128.84 | DR91: 1316.98 | DS91: 1437.52 | DT91: 1617.21 | DU91: 1796.9 | DV91: 1976.59 | DW91: 2156.28 | DX91: N/A | DZ91: 75 | EA91: 79 | EB91: 169.09 | EC91: 19.05 | ED91: 75-79 | EE91: B-12-75-79 | EF91: 316.36 | EG91: 474.54 | EH91: 632.72 | EI91: 790.9 | EJ91: 949.08 | EK91: 1107.26 | EL91: 1208.64 | EM91: 1359.72 | EN91: 1510.8 | EO91: 1661.88 | EP91: 1812.96 | EQ91: N/A | ES91: 75 | ET91: 79 | EU91: 153 | EV91: 0 | EW91: 75-79 | EX91: B-12-75-79 | EY91: 370 | EZ91: 555 | FA91: 740 | FB91: 925 | FC91: 1110 | FD91: 1295 | FE91: 1406 | FF91: 1581.75 | FG91: 1757.5 | FH91: 1933.25 | FI91: 2109 | FJ91: N/A | FK91: 2284.75 | FL91: 2460.5 | FM91: 2636.25 | FN91: 2812 | FO91: 2987.75 | FP91: 3163.5 | FQ91: 3339.25 | FR91: 3515 | FS91: 3690.75 | FT91: 3866.5 | FU91: 4042.25 | FV91: 4218 | FX91: 75 | FY91: 79 | FZ91: 169.09 | GA91: 19.05 | GB91: 75-79 | GC91: B-12-75-79 | GD91: 417.58 | GE91: 626.37 | GF91: 835.16 | GG91: 1043.95 | GH91: 1252.74 | GI91: 1461.53 | GJ91: 1595.12 | GK91: 1794.51 | GL91: 1993.9 | GM91: 2193.29 | GN91: 2392.68 | GO91: N/A | GQ91: 75 | GR91: 79 | GS91: 153 | GT91: 0 | GU91: 75-79 | GV91: B-12-75-79 | GW91: 392.56 | GX91: 588.84 | GY91: 785.12 | GZ91: 981.4 | HA91: 1177.68 | HB91: 1373.96 | HC91: 1491.73 | HD91: 1678.19 | HE91: 1864.66 | HF91: 2051.13 | HG91: 2237.59 | HH91: N/A | HI91: 2424.06 | HJ91: 2610.52 | HK91: 2796.99 | HL91: 2983.46 | HM91: 3169.92 | HN91: 3356.39 | HO91: 3542.85 | HP91: 3729.32 | HQ91: 3915.79 | HR91: 4102.25 | HS91: 4288.72 | HT91: 4475.18
D92: 80 | E92: 84 | F92: 199 | G92: 30.64 | H92: 80-84 | I92: B-12-80-84 | J92: 459.28 | K92: 688.92 | L92: 918.56 | M92: 1148.2 | N92: 1377.84 | O92: 1607.48 | P92: 1757.52 | Q92: 1977.21 | R92: 2196.9 | S92: 2416.59 | T92: 2636.28 | U92: N/A | W92: 80 | X92: 84 | Y92: 180 | Z92: 27.7 | AA92: 80-84 | AB92: B-12-80-84 | AC92: 415.4 | AD92: 623.1 | AE92: 830.8 | AF92: 1038.5 | AG92: 1246.2 | AH92: 1453.9 | AI92: 1589.6 | AJ92: 1788.3 | AK92: 1987 | AL92: 2185.7 | AM92: 2384.4 | AN92: N/A | AP92: 80 | AQ92: 84 | AR92: 165 | AS92: 25.34 | AT92: 80-84 | AU92: B-12-80-84 | AV92: 380.68 | AW92: 571.02 | AX92: 761.36 | AY92: 951.7 | AZ92: 1142.04 | BA92: 1332.38 | BB92: 1456.72 | BC92: 1638.81 | BD92: 1820.9 | BE92: 2002.99 | BF92: 2185.08 | BG92: N/A | BI92: 80 | BJ92: 84 | BK92: 152 | BL92: 23.32 | BM92: 80-84 | BN92: B-12-80-84 | BO92: 350.64 | BP92: 525.96 | BQ92: 701.28 | BR92: 876.6 | BS92: 1051.92 | BT92: 1227.24 | BU92: 1341.76 | BV92: 1509.48 | BW92: 1677.2 | BX92: 1844.92 | BY92: 2012.64 | BZ92: N/A | CB92: 80 | CC92: 84 | CD92: 165 | CE92: 0 | CF92: 80-84 | CG92: B-12-80-84 | CH92: 330 | CI92: 495 | CJ92: 660 | CK92: 825 | CL92: 990 | CM92: 1155 | CN92: 1254 | CO92: 1410.75 | CP92: 1567.5 | CQ92: 1724.25 | CR92: 1881 | CS92: N/A | CT92: 2037.75 | CU92: 2194.5 | CV92: 2351.25 | CW92: 2508 | CX92: 2664.75 | CY92: 2821.5 | CZ92: 2978.25 | DA92: 3135 | DB92: 3291.75 | DC92: 3448.5 | DD92: 3605.25 | DE92: 3762 | DG92: 80 | DH92: 84 | DI92: 182.25 | DJ92: 28.05 | DK92: 80-84 | DL92: B-12-80-84 | DM92: 420.6 | DN92: 630.9 | DO92: 841.2 | DP92: 1051.5 | DQ92: 1261.8 | DR92: 1472.1 | DS92: 1609.52 | DT92: 1810.71 | DU92: 2011.9 | DV92: 2213.09 | DW92: 2414.28 | DX92: N/A | DZ92: 80 | EA92: 84 | EB92: 182.25 | EC92: 28.05 | ED92: 80-84 | EE92: B-12-80-84 | EF92: 355.9 | EG92: 533.85 | EH92: 711.8 | EI92: 889.75 | EJ92: 1067.7 | EK92: 1245.65 | EL92: 1361.92 | EM92: 1532.16 | EN92: 1702.4 | EO92: 1872.64 | EP92: 2042.88 | EQ92: N/A | ES92: 80 | ET92: 84 | EU92: 165 | EV92: 0 | EW92: 80-84 | EX92: B-12-80-84 | EY92: 398 | EZ92: 597 | FA92: 796 | FB92: 995 | FC92: 1194 | FD92: 1393 | FE92: 1512.4 | FF92: 1701.45 | FG92: 1890.5 | FH92: 2079.55 | FI92: 2268.6 | FJ92: N/A | FK92: 2457.65 | FL92: 2646.7 | FM92: 2835.75 | FN92: 3024.8 | FO92: 3213.85 | FP92: 3402.9 | FQ92: 3591.95 | FR92: 3781 | FS92: 3970.05 | FT92: 4159.1 | FU92: 4348.15 | FV92: 4537.2 | FX92: 80 | FY92: 84 | FZ92: 182.25 | GA92: 28.05 | GB92: 80-84 | GC92: B-12-80-84 | GD92: 466.82 | GE92: 700.23 | GF92: 933.64 | GG92: 1167.05 | GH92: 1400.46 | GI92: 1633.87 | GJ92: 1786.16 | GK92: 2009.43 | GL92: 2232.7 | GM92: 2455.97 | GN92: 2679.24 | GO92: N/A | GQ92: 80 | GR92: 84 | GS92: 165 | GT92: 0 | GU92: 80-84 | GV92: B-12-80-84 | GW92: 403.76 | GX92: 605.64 | GY92: 807.52 | GZ92: 1009.4 | HA92: 1211.28 | HB92: 1413.16 | HC92: 1534.29 | HD92: 1726.07 | HE92: 1917.86 | HF92: 2109.65 | HG92: 2301.43 | HH92: N/A | HI92: 2493.22 | HJ92: 2685 | HK92: 2876.79 | HL92: 3068.58 | HM92: 3260.36 | HN92: 3452.15 | HO92: 3643.93 | HP92: 3835.72 | HQ92: 4027.51 | HR92: 4219.29 | HS92: 4411.08 | HT92: 4602.86
J95: 500 | K95: 750 | L95: 1000 | M95: 1250 | N95: 1500 | O95: 1750 | P95: 2000 | Q95: 2250 | R95: 2500 | S95: 2750 | T95: 3000 | U95: ROP | AC95: 500 | AD95: 750 | AE95: 1000 | AF95: 1250 | AG95: 1500 | AH95: 1750 | AI95: 2000 | AJ95: 2250 | AK95: 2500 | AL95: 2750 | AM95: 3000 | AN95: ROP | AV95: 500 | AW95: 750 | AX95: 1000 | AY95: 1250 | AZ95: 1500 | BA95: 1750 | BB95: 2000 | BC95: 2250 | BD95: 2500 | BE95: 2750 | BF95: 3000 | BG95: ROP | BO95: 500 | BP95: 750 | BQ95: 1000 | BR95: 1250 | BS95: 1500 | BT95: 1750 | BU95: 2000 | BV95: 2250 | BW95: 2500 | BX95: 2750 | BY95: 3000 | BZ95: ROP | CH95: 500 | CI95: 750 | CJ95: 1000 | CK95: 1250 | CL95: 1500 | CM95: 1750 | CN95: 2000 | CO95: 2250 | CP95: 2500 | CQ95: 2750 | CR95: 3000 | CS95: ROP | CT95: 3250 | CU95: 3500 | CV95: 3750 | CW95: 4000 | CX95: 4250 | CY95: 4500 | CZ95: 4750 | DA95: 5000 | DB95: 5250 | DC95: 5500 | DD95: 5750 | DE95: 6000 | DM95: 500 | DN95: 750 | DO95: 1000 | DP95: 1250 | DQ95: 1500 | DR95: 1750 | DS95: 2000 | DT95: 2250 | DU95: 2500 | DV95: 2750 | DW95: 3000 | DX95: ROP | EF95: 500 | EG95: 750 | EH95: 1000 | EI95: 1250 | EJ95: 1500 | EK95: 1750 | EL95: 2000 | EM95: 2250 | EN95: 2500 | EO95: 2750 | EP95: 3000 | EQ95: ROP | EY95: 500 | EZ95: 750 | FA95: 1000 | FB95: 1250 | FC95: 1500 | FD95: 1750 | FE95: 2000 | FF95: 2250 | FG95: 2500 | FH95: 2750 | FI95: 3000 | FJ95: ROP | FK95: 3250 | FL95: 3500 | FM95: 3750 | FN95: 4000 | FO95: 4250 | FP95: 4500 | FQ95: 4750 | FR95: 5000 | FS95: 5250 | FT95: 5500 | FU95: 5750 | FV95: 6000 | GD95: 500 | GE95: 750 | GF95: 1000 | GG95: 1250 | GH95: 1500 | GI95: 1750 | GJ95: 2000 | GK95: 2250 | GL95: 2500 | GM95: 2750 | GN95: 3000 | GO95: ROP | GW95: 500 | GX95: 750 | GY95: 1000 | GZ95: 1250 | HA95: 1500 | HB95: 1750 | HC95: 2000 | HD95: 2250 | HE95: 2500 | HF95: 2750 | HG95: 3000 | HH95: ROP | HI95: 3250 | HJ95: 3500 | HK95: 3750 | HL95: 4000 | HM95: 4250 | HN95: 4500 | HO95: 4750 | HP95: 5000 | HQ95: 5250 | HR95: 5500 | HS95: 5750 | HT95: 6000
I96: B-18 | J96: 2 | K96: 3 | L96: 4 | M96: 5 | N96: 6 | O96: 7 | P96: 8 | Q96: 9 | R96: 10 | S96: 11 | T96: 12 | AB96: B-18 | AC96: 2 | AD96: 3 | AE96: 4 | AF96: 5 | AG96: 6 | AH96: 7 | AI96: 8 | AJ96: 9 | AK96: 10 | AL96: 11 | AM96: 12 | AU96: B-18 | AV96: 2 | AW96: 3 | AX96: 4 | AY96: 5 | AZ96: 6 | BA96: 7 | BB96: 8 | BC96: 9 | BD96: 10 | BE96: 11 | BF96: 12 | BN96: B-18 | BO96: 2 | BP96: 3 | BQ96: 4 | BR96: 5 | BS96: 6 | BT96: 7 | BU96: 8 | BV96: 9 | BW96: 10 | BX96: 11 | BY96: 12 | CG96: B-18 | CH96: 2 | CI96: 3 | CJ96: 4 | CK96: 5 | CL96: 6 | CM96: 7 | CN96: 8 | CO96: 9 | CP96: 10 | CQ96: 11 | CR96: 12 | CT96: 13 | CU96: 14 | CV96: 15 | CW96: 16 | CX96: 17 | CY96: 18 | CZ96: 19 | DA96: 20 | DB96: 21 | DC96: 22 | DD96: 23 | DE96: 24 | DL96: B-18 | DM96: 2 | DN96: 3 | DO96: 4 | DP96: 5 | DQ96: 6 | DR96: 7 | DS96: 8 | DT96: 9 | DU96: 10 | DV96: 11 | DW96: 12 | EE96: B-18 | EF96: 2 | EG96: 3 | EH96: 4 | EI96: 5 | EJ96: 6 | EK96: 7 | EL96: 8 | EM96: 9 | EN96: 10 | EO96: 11 | EP96: 12 | EX96: B-18 | EY96: 2 | EZ96: 3 | FA96: 4 | FB96: 5 | FC96: 6 | FD96: 7 | FE96: 8 | FF96: 9 | FG96: 10 | FH96: 11 | FI96: 12 | FK96: 13 | FL96: 14 | FM96: 15 | FN96: 16 | FO96: 17 | FP96: 18 | FQ96: 19 | FR96: 20 | FS96: 21 | FT96: 22 | FU96: 23 | FV96: 24 | GC96: B-18 | GD96: 2 | GE96: 3 | GF96: 4 | GG96: 5 | GH96: 6 | GI96: 7 | GJ96: 8 | GK96: 9 | GL96: 10 | GM96: 11 | GN96: 12 | GV96: B-18 | GW96: 2 | GX96: 3 | GY96: 4 | GZ96: 5 | HA96: 6 | HB96: 7 | HC96: 8 | HD96: 9 | HE96: 10 | HF96: 11 | HG96: 12 | HI96: 13 | HJ96: 14 | HK96: 15 | HL96: 16 | HM96: 17 | HN96: 18 | HO96: 19 | HP96: 20 | HQ96: 21 | HR96: 22 | HS96: 23 | HT96: 24
D97: Dependent | F97: 7.1 | G97: 0.24 | H97: D | I97: =CONCATENATE(I$96,"-",H97) -> B-18-D | J97: 14.68 | K97: Dependent benefit is $500 | U97: 1.1 | W97: Dependent | Y97: 6.42 | Z97: 0.21 | AA97: D | AB97: =CONCATENATE(AB$96,"-",AA97) -> B-18-D | AC97: 13.26 | AD97: Dependent benefit is $500 | AN97: 1.1 | AP97: Dependent | AR97: 5.88 | AS97: 0.2 | AT97: D | AU97: =CONCATENATE(AU$96,"-",AT97) -> B-18-D | AV97: 12.16 | AW97: Dependent benefit is $500 | BG97: 1.1 | BI97: Dependent | BK97: 5.41 | BL97: 0.27 | BM97: D | BN97: =CONCATENATE(BN$96,"-",BM97) -> B-18-D | BO97: 11.36 | BP97: Dependent benefit is $500 | BZ97: 1.1 | CB97: Dependent | CD97: 5.88 | CE97: 0 | CF97: D | CG97: =CONCATENATE(CG$96,"-",CF97) -> B-18-D | CH97: 11.76 | CI97: Dependent benefit is $500 | CS97: 1.1 | CU97: Dependent benefit is $500 | DG97: Dependent | DI97: 6.5 | DJ97: 0.21 | DK97: D | DL97: =CONCATENATE(DL$96,"-",DK97) -> B-18-D | DM97: 13.42 | DN97: Dependent benefit is $500 | DX97: 1.1 | DZ97: Dependent | EB97: 6.5 | EC97: 0.21 | ED97: D | EE97: =CONCATENATE(EE$96,"-",ED97) -> B-18-D | EF97: 11.36 | EG97: Dependent benefit is $500 | EQ97: 1.1 | ES97: Dependent | EU97: 5.88 | EV97: 0 | EW97: D | EX97: =CONCATENATE(EX$96,"-",EW97) -> B-18-D | EY97: 14.2 | EZ97: Dependent benefit is $500 | FJ97: 1.1 | FL97: Dependent benefit is $500 | FX97: Dependent | FZ97: 6.5 | GA97: 0.21 | GB97: D | GC97: =CONCATENATE(GC$96,"-",GB97) -> B-18-D | GD97: 99999 | GE97: Dependent benefit is $500 | GO97: 100 | GQ97: Dependent | GS97: 5.88 | GT97: 0 | GU97: D | GV97: =CONCATENATE(GV$96,"-",GU97) -> B-18-D | GW97: 13.62 | GX97: Dependent benefit is $500 | HH97: 100 | HJ97: Dependent benefit is $500
D98: 18 | E98: 29 | F98: 15.62 | G98: 0.24 | H98: 18-29 | I98: =CONCATENATE(I$96,"-",H98) -> B-18-18-29 | J98: 31.72 | K98: 47.58 | L98: 63.44 | M98: 79.3 | N98: 95.16 | O98: 111.02 | P98: 120.64 | Q98: 135.72 | R98: 150.8 | S98: 165.88 | T98: 180.96 | U98: 1.1 | W98: 18 | X98: 29 | Y98: 14.2 | Z98: 0.21 | AA98: 18-29 | AB98: =CONCATENATE(AB$96,"-",AA98) -> B-18-18-29 | AC98: 28.82 | AD98: 43.23 | AE98: 57.64 | AF98: 72.05 | AG98: 86.46 | AH98: 100.87 | AI98: 109.6 | AJ98: 123.3 | AK98: 137 | AL98: 150.7 | AM98: 164.4 | AN98: 1.1 | AP98: 18 | AQ98: 29 | AR98: 12.78 | AS98: 0.2 | AT98: 18-29 | AU98: =CONCATENATE(AU$96,"-",AT98) -> B-18-18-29 | AV98: 25.96 | AW98: 38.94 | AX98: 51.92 | AY98: 64.9 | AZ98: 77.88 | BA98: 90.86 | BB98: 98.72 | BC98: 111.06 | BD98: 123.4 | BE98: 135.74 | BF98: 148.08 | BG98: 1.1 | BI98: 18 | BJ98: 29 | BK98: 12.78 | BL98: 0.18 | BM98: 18-29 | BN98: =CONCATENATE(BN$96,"-",BM98) -> B-18-18-29 | BO98: 25.92 | BP98: 38.88 | BQ98: 51.84 | BR98: 64.8 | BS98: 77.76 | BT98: 90.72 | BU98: 98.56 | BV98: 110.88 | BW98: 123.2 | BX98: 135.52 | BY98: 147.84 | BZ98: 1.1 | CB98: 18 | CC98: 29 | CD98: 12.78 | CE98: 0 | CF98: 18-29 | CG98: =CONCATENATE(CG$96,"-",CF98) -> B-18-18-29 | CH98: 25.56 | CI98: 38.34 | CJ98: 51.12 | CK98: 63.9 | CL98: 76.68 | CM98: 89.46 | CN98: 97.12 | CO98: 109.26 | CP98: 121.4 | CQ98: 133.54 | CR98: 145.68 | CS98: 1.1 | CT98: 157.82 | CU98: 169.96 | CV98: 182.1 | CW98: 194.24 | CX98: 206.38 | CY98: 218.52 | CZ98: 230.66 | DA98: 242.8 | DB98: 254.94 | DC98: 267.08 | DD98: 279.22 | DE98: 291.36 | DG98: 18 | DH98: 29 | DI98: 14.38 | DJ98: 0.21 | DK98: 18-29 | DL98: =CONCATENATE(DL$96,"-",DK98) -> B-18-18-29 | DM98: 29.18 | DN98: 43.77 | DO98: 58.36 | DP98: 72.95 | DQ98: 87.54 | DR98: 102.13 | DS98: 110.96 | DT98: 124.83 | DU98: 138.7 | DV98: 152.57 | DW98: 166.44 | DX98: 1.1 | DZ98: 18 | EA98: 29 | EB98: 14.38 | EC98: 0.21 | ED98: 18-29 | EE98: =CONCATENATE(EE$96,"-",ED98) -> B-18-18-29 | EF98: 26.32 | EG98: 39.48 | EH98: 52.64 | EI98: 65.8 | EJ98: 78.96 | EK98: 92.12 | EL98: 100.08 | EM98: 112.59 | EN98: 125.1 | EO98: 137.61 | EP98: 150.12 | EQ98: 1.1 | ES98: 18 | ET98: 29 | EU98: 12.78 | EV98: 0 | EW98: 18-29 | EX98: =CONCATENATE(EX$96,"-",EW98) -> B-18-18-29 | EY98: 31.24 | EZ98: 46.86 | FA98: 62.48 | FB98: 78.1 | FC98: 93.72 | FD98: 109.34 | FE98: 118.72 | FF98: 133.56 | FG98: 148.4 | FH98: 163.24 | FI98: 178.08 | FJ98: 1.1 | FK98: 192.92 | FL98: 207.76 | FM98: 222.6 | FN98: 237.44 | FO98: 252.28 | FP98: 267.12 | FQ98: 281.96 | FR98: 296.8 | FS98: 311.64 | FT98: 326.48 | FU98: 341.32 | FV98: 356.16 | FX98: 18 | FY98: 29 | FZ98: 14.38 | GA98: 0.21 | GB98: 18-29 | GC98: =CONCATENATE(GC$96,"-",GB98) -> B-18-18-29 | GD98: 99999 | GE98: 99999 | GF98: 99999 | GG98: 99999 | GH98: 99999 | GI98: 99999 | GJ98: 99999 | GK98: 99999 | GL98: 99999 | GM98: 99999 | GN98: 99999 | GO98: 100 | GQ98: 18 | GR98: 29 | GS98: 12.78 | GT98: 0 | GU98: 18-29 | GV98: =CONCATENATE(GV$96,"-",GU98) -> B-18-18-29 | GW98: 44.08 | GX98: 66.12 | GY98: 88.16 | GZ98: 110.2 | HA98: 132.24 | HB98: 154.28 | HC98: 167.5 | HD98: 188.44 | HE98: 209.38 | HF98: 230.32 | HG98: 251.26 | HH98: 100 | HI98: 272.19 | HJ98: 293.13 | HK98: 314.07 | HL98: 335.01 | HM98: 355.95 | HN98: 376.88 | HO98: 397.82 | HP98: 418.76 | HQ98: 439.7 | HR98: 460.64 | HS98: 481.57 | HT98: 502.51
